Workbook

Sheet Cover
C2: CitiPower
C3: Regulatory proposal 2026-31
C5: =REPLACE(LEFT(_xlfn.TEXTAFTER(CELL("filename")," - ",1),FIND("Jan2025",_xlfn.TEXTAFTER(CELL("filename")," - "),1)-4),1,1,UPPER(LEFT(LEFT(_xlfn.TEXTAFTER(CELL("filename")," - ",1),FIND("Jan2025",_xlfn.TEXTAFTER(CELL("filename")," - "),1)-4),1))) -> Connections
C6: Model number: | D6: =LEFT(_xlfn.TEXTAFTER(CELL("filename")," MOD "),FIND(" - ",_xlfn.TEXTAFTER(CELL("filename")," MOD "),1)-1) -> 5.01
C8: 2025-01-31

Sheet Assumptions
A1: =business -> CitiPower
A2: =title -> Connections
A3: Assumptions
B5: Business: | C5: CitiPower
B6: Title | C6: Connections
B8: Output dollars | C8: 2026-06-30
B12: Input
B13: Link/Calculated
B16: Forecast | D16: 2025 | K16: =AND(K$19>=$D16, K$19<$D$17) -> FALSE | L16: =AND(L$19>=$D16, L$19<$D$17) -> FALSE | M16: FALSE | N16: FALSE | O16: FALSE | P16: FALSE | Q16: FALSE | R16: FALSE | S16: FALSE | T16: FALSE | U16: FALSE | V16: FALSE | W16: FALSE | X16: TRUE | Y16: TRUE | Z16: FALSE | AA16: FALSE | AB16: FALSE | AC16: FALSE | AD16: FALSE
B17: 2026/7 - 2030/31 reg period | D17: 2027 | K17: =AND(K$19>=$D$17, SUM(J$17:J$17)<5) -> FALSE | L17: =AND(L19>=$D$17, SUM(K17:K17)<5) -> FALSE | M17: FALSE | N17: FALSE | O17: FALSE | P17: FALSE | Q17: FALSE | R17: FALSE | S17: FALSE | T17: FALSE | U17: FALSE | V17: FALSE | W17: FALSE | X17: FALSE | Y17: FALSE | Z17: TRUE | AA17: TRUE | AB17: TRUE | AC17: TRUE | AD17: TRUE
B18: Forecast period | K18: =OR(K16:K17) -> FALSE | L18: =OR(L16:L17) -> FALSE | M18: FALSE | N18: FALSE | O18: FALSE | P18: FALSE | Q18: FALSE | R18: FALSE | S18: FALSE | T18: FALSE | U18: FALSE | V18: FALSE | W18: FALSE | X18: TRUE | Y18: TRUE | Z18: TRUE | AA18: TRUE | AB18: TRUE | AC18: TRUE | AD18: TRUE
B19: Fin year end | K19: 2012 | L19: =K19+1 -> 2013 | M19: 2014 | N19: 2015 | O19: 2016 | P19: 2017 | Q19: 2018 | R19: 2019 | S19: 2020 | T19: 2021 | U19: 2022 | V19: 2023 | W19: 2024 | X19: 2025 | Y19: 2026 | Z19: 2027 | AA19: 2028 | AB19: 2029 | AC19: 2030 | AD19: 2031
B20: Basis | K20: Actual | L20: Actual | M20: Actual | N20: Actual | O20: Actual | P20: Actual | Q20: Actual | R20: Actual | S20: Actual | T20: Actual | U20: Actual | V20: Actual | W20: Actual | X20: Forecast | Y20: Forecast | Z20: Forecast | AA20: Forecast | AB20: Forecast | AC20: Forecast | AD20: Forecast
K24: =K19-1&"/"&RIGHT(K19,2) -> 2011/12 | L24: =L19-1&"/"&RIGHT(L19,2) -> 2012/13 | M24: 2013/14 | N24: 2014/15 | O24: 2015/16 | P24: 2016/17 | Q24: 2017/18 | R24: 2018/19 | S24: 2019/20 | T24: 2020/21 | U24: 2021/22 | V24: 2022/23 | W24: 2023/24 | X24: 2024/25 | Y24: 2025/26 | Z24: 2026/27 | AA24: 2027/28 | AB24: 2028/29 | AC24: 2029/30 | AD24: 2030/31
B25: Inflation conversions
B27: Cumulative escalation
B29: Conversion to June 2026 | D29: 2025/26 | K29: 1.411271192 | L29: 1.383544843 | M29: 1.354277548 | N29: 1.323729934 | O29: 1.304027907 | P29: 1.290819521 | Q29: 1.26633243 | R29: 1.240557522 | S29: 1.221106272 | T29: 1.206394148 | U29: 1.20123639 | V29: 1.175712522 | W29: 1.112912646 | X29: 1.050660525 | Y29: 1.014889157 | Z29: 0.9870079234 | AA29: 0.9615279594 | AB29: 0.9367057698 | AC29: 0.9125243739 | AD29: 0.8889672295

Sheet Hist_vol
A1: =Assumptions!$A$1 -> CitiPower
A2: =Assumptions!$A$2 -> Connections
A3: Historical volumes
B7: =Assumptions!B17 -> 2026/7 - 2030/31 reg period | G7: =Assumptions!K17 -> FALSE | H7: =Assumptions!L17 -> FALSE | I7: =Assumptions!M17 -> FALSE | J7: =Assumptions!N17 -> FALSE | K7: =Assumptions!O17 -> FALSE | L7: =Assumptions!P17 -> FALSE | M7: =Assumptions!Q17 -> FALSE | N7: =Assumptions!R17 -> FALSE | O7: =Assumptions!S17 -> FALSE | P7: =Assumptions!T17 -> FALSE | Q7: =Assumptions!U17 -> FALSE | R7: =Assumptions!V17 -> FALSE | S7: =Assumptions!W17 -> FALSE | T7: =Assumptions!X17 -> FALSE | U7: =Assumptions!Y17 -> FALSE | V7: =Assumptions!Z17 -> TRUE | W7: =Assumptions!AA17 -> TRUE | X7: =Assumptions!AB17 -> TRUE | Y7: =Assumptions!AC17 -> TRUE | Z7: =Assumptions!AD17 -> TRUE
B8: =Assumptions!B18 -> Forecast period | G8: =Assumptions!K18 -> FALSE | H8: =Assumptions!L18 -> FALSE | I8: =Assumptions!M18 -> FALSE | J8: =Assumptions!N18 -> FALSE | K8: =Assumptions!O18 -> FALSE | L8: =Assumptions!P18 -> FALSE | M8: =Assumptions!Q18 -> FALSE | N8: =Assumptions!R18 -> FALSE | O8: =Assumptions!S18 -> FALSE | P8: =Assumptions!T18 -> FALSE | Q8: =Assumptions!U18 -> FALSE | R8: =Assumptions!V18 -> FALSE | S8: =Assumptions!W18 -> FALSE | T8: =Assumptions!X18 -> TRUE | U8: =Assumptions!Y18 -> TRUE | V8: =Assumptions!Z18 -> TRUE | W8: =Assumptions!AA18 -> TRUE | X8: =Assumptions!AB18 -> TRUE | Y8: =Assumptions!AC18 -> TRUE | Z8: =Assumptions!AD18 -> TRUE
B9: =Assumptions!B19 -> Fin year end | G9: =Assumptions!K19 -> 2012 | H9: =Assumptions!L19 -> 2013 | I9: =Assumptions!M19 -> 2014 | J9: =Assumptions!N19 -> 2015 | K9: =Assumptions!O19 -> 2016 | L9: =Assumptions!P19 -> 2017 | M9: =Assumptions!Q19 -> 2018 | N9: =Assumptions!R19 -> 2019 | O9: =Assumptions!S19 -> 2020 | P9: =Assumptions!T19 -> 2021 | Q9: =Assumptions!U19 -> 2022 | R9: =Assumptions!V19 -> 2023 | S9: =Assumptions!W19 -> 2024 | T9: =Assumptions!X19 -> 2025 | U9: =Assumptions!Y19 -> 2026 | V9: =Assumptions!Z19 -> 2027 | W9: =Assumptions!AA19 -> 2028 | X9: =Assumptions!AB19 -> 2029 | Y9: =Assumptions!AC19 -> 2030 | Z9: =Assumptions!AD19 -> 2031
B10: =Assumptions!B20 -> Basis | G10: =Assumptions!K20 -> Actual | H10: =Assumptions!L20 -> Actual | I10: =Assumptions!M20 -> Actual | J10: =Assumptions!N20 -> Actual | K10: =Assumptions!O20 -> Actual | L10: =Assumptions!P20 -> Actual | M10: =Assumptions!Q20 -> Actual | N10: =Assumptions!R20 -> Actual | O10: =Assumptions!S20 -> Actual | P10: =Assumptions!T20 -> Actual | Q10: =Assumptions!U20 -> Actual | R10: =Assumptions!V20 -> Actual | S10: =Assumptions!W20 -> Actual | T10: =Assumptions!X20 -> Forecast | U10: =Assumptions!Y20 -> Forecast | V10: =Assumptions!Z20 -> Forecast | W10: =Assumptions!AA20 -> Forecast | X10: =Assumptions!AB20 -> Forecast | Y10: =Assumptions!AC20 -> Forecast | Z10: =Assumptions!AD20 -> Forecast
B13: Category | C13: Type | D13: RIN category | E13: Description | G13: =Assumptions!K$24 -> 2011/12 | H13: =Assumptions!L$24 -> 2012/13 | I13: =Assumptions!M$24 -> 2013/14 | J13: =Assumptions!N$24 -> 2014/15 | K13: =Assumptions!O$24 -> 2015/16 | L13: =Assumptions!P$24 -> 2016/17 | M13: =Assumptions!Q$24 -> 2017/18 | N13: =Assumptions!R$24 -> 2018/19 | O13: =Assumptions!S$24 -> 2019/20 | P13: =Assumptions!T$24 -> 2020/21 | Q13: =Assumptions!U$24 -> 2021/22 | R13: =Assumptions!V$24 -> 2022/23 | S13: =Assumptions!W$24 -> 2023/24 | T13: =Assumptions!X$24 -> 2024/25 | U13: =Assumptions!Y$24 -> 2025/26 | V13: =Assumptions!Z$24 -> 2026/27 | W13: =Assumptions!AA$24 -> 2027/28 | X13: =Assumptions!AB$24 -> 2028/29 | Y13: =Assumptions!AC$24 -> 2029/30 | Z13: =Assumptions!AD$24 -> 2030/31
B14: Volumes
B15: Connections | C15: R1 | D15: =IF(ISBLANK($C15), "", INDEX(Lists!T$7:T$21, MATCH($C15, Lists!$S$7:$S$21,0))) -> Residential | E15: =IF(ISBLANK($C15), "", INDEX(Lists!U$7:U$21, MATCH($C15, Lists!$S$7:$S$21,0))) -> Simple connection LV | G15: 5225.283411 | H15: 4933.709131 | I15: 4386.972064 | J15: 3782.81 | K15: 1668.5 | L15: 0 | M15: 0 | N15: 0 | O15: 0 | P15: 0 | Q15: 0 | R15: 0 | S15: 0
B16: Connections | C16: R2 | D16: =IF(ISBLANK($C16), "", INDEX(Lists!T$7:T$21, MATCH($C16, Lists!$S$7:$S$21,0))) -> Residential | E16: =IF(ISBLANK($C16), "", INDEX(Lists!U$7:U$21, MATCH($C16, Lists!$S$7:$S$21,0))) -> Complex connection LV | G16: 146 | H16: 147 | I16: 144.2401261 | J16: 118.2401261 | K16: 322 | L16: 575.5 | M16: 695.1466027 | N16: 884.6466027 | O16: 1001 | P16: 761 | Q16: 632 | R16: 617 | S16: 522
B17: Connections | C17: R3 | D17: =IF(ISBLANK($C17), "", INDEX(Lists!T$7:T$21, MATCH($C17, Lists!$S$7:$S$21,0))) -> Residential | E17: =IF(ISBLANK($C17), "", INDEX(Lists!U$7:U$21, MATCH($C17, Lists!$S$7:$S$21,0))) -> Complex connection HV | G17: 92.5 | H17: 92.5 | I17: 85.25699689 | J17: 86.75699689 | K17: 69.5 | L17: 64 | M17: 135.851315 | N17: 149.351315 | O17: 93 | P17: 64 | Q17: 33 | R17: 54 | S17: 57
B18: Connections | C18: CI1 | D18: =IF(ISBLANK($C18), "", INDEX(Lists!T$7:T$21, MATCH($C18, Lists!$S$7:$S$21,0))) -> Commercial/Industrial | E18: =IF(ISBLANK($C18), "", INDEX(Lists!U$7:U$21, MATCH($C18, Lists!$S$7:$S$21,0))) -> Simple connection LV | G18: 1522 | H18: 1693.5 | I18: 1669.700539 | J18: 1454.700539 | K18: 683.5 | L18: 21.95 | M18: 31.17765371 | N18: 30.22765371 | O18: 27 | P18: 36 | Q18: 32 | R18: 36 | S18: 26
B19: Connections | C19: CI2 | D19: =IF(ISBLANK($C19), "", INDEX(Lists!T$7:T$21, MATCH($C19, Lists!$S$7:$S$21,0))) -> Commercial/Industrial | E19: =IF(ISBLANK($C19), "", INDEX(Lists!U$7:U$21, MATCH($C19, Lists!$S$7:$S$21,0))) -> Complex connection HV (customer connected at LV, minor HV works) | G19: 0 | H19: 0 | I19: 0 | J19: 0 | K19: 273.455 | L19: 228.455 | M19: 232.9417489 | N19: 203.4417489 | O19: 146.5 | P19: 198 | Q19: 145 | R19: 124 | S19: =179-S32 -> 178
B20: Connections | C20: CI3 | D20: =IF(ISBLANK($C20), "", INDEX(Lists!T$7:T$21, MATCH($C20, Lists!$S$7:$S$21,0))) -> Commercial/Industrial | E20: =IF(ISBLANK($C20), "", INDEX(Lists!U$7:U$21, MATCH($C20, Lists!$S$7:$S$21,0))) -> Complex connection HV (customer connected at LV, upstream asset works) | G20: 41.5 | H20: 41 | I20: 37.76807548 | J20: 37.26807548 | K20: 29.5 | L20: 28.2 | M20: 60.35999774 | N20: 65.65999774 | O20: 41.5 | P20: 29 | Q20: 16 | R20: 23 | S20: 25
B21: Connections | C21: CI4 | D21: =IF(ISBLANK($C21), "", INDEX(Lists!T$7:T$21, MATCH($C21, Lists!$S$7:$S$21,0))) -> Commercial/Industrial | E21: =IF(ISBLANK($C21), "", INDEX(Lists!U$7:U$21, MATCH($C21, Lists!$S$7:$S$21,0))) -> Complex connection HV (customer connected at HV) | G21: 1 | H21: 0.5 | I21: 3.537009898 | J21: 4.037009898 | K21: 2 | L21: 2.85 | M21: 2.12338452 | N21: 3.27338452 | O21: 5 | P21: 2 | Q21: 2 | R21: 4 | S21: 0.3
B22: Connections | C22: CI5 | D22: =IF(ISBLANK($C22), "", INDEX(Lists!T$7:T$21, MATCH($C22, Lists!$S$7:$S$21,0))) -> Commercial/Industrial | E22: =IF(ISBLANK($C22), "", INDEX(Lists!U$7:U$21, MATCH($C22, Lists!$S$7:$S$21,0))) -> Complex connection sub-transmission | G22: 0 | H22: 0 | I22: 0 | J22: 0 | K22: 0 | L22: 0 | M22: 0 | N22: 0 | O22: 0 | P22: 0 | Q22: 0 | R22: 0 | S22: 0
B23: Connections | C23: S1 | D23: =IF(ISBLANK($C23), "", INDEX(Lists!T$7:T$21, MATCH($C23, Lists!$S$7:$S$21,0))) -> Subdivision | E23: =IF(ISBLANK($C23), "", INDEX(Lists!U$7:U$21, MATCH($C23, Lists!$S$7:$S$21,0))) -> Complex connection LV | G23: 0 | H23: 0 | I23: 0 | J23: 0 | K23: 0 | L23: 0 | M23: 0 | N23: 0 | O23: 0 | P23: 0 | Q23: 0 | R23: 0 | S23: 0
B24: Connections | C24: S2 | D24: =IF(ISBLANK($C24), "", INDEX(Lists!T$7:T$21, MATCH($C24, Lists!$S$7:$S$21,0))) -> Subdivision | E24: =IF(ISBLANK($C24), "", INDEX(Lists!U$7:U$21, MATCH($C24, Lists!$S$7:$S$21,0))) -> Complex connection HV (no upstream asset works) | G24: 0 | H24: 0 | I24: 0 | J24: 0 | K24: 0 | L24: 0 | M24: 0 | N24: 0 | O24: 0 | P24: 0 | Q24: 0 | R24: 0 | S24: 0
B25: Connections | C25: S3 | D25: =IF(ISBLANK($C25), "", INDEX(Lists!T$7:T$21, MATCH($C25, Lists!$S$7:$S$21,0))) -> Subdivision | E25: =IF(ISBLANK($C25), "", INDEX(Lists!U$7:U$21, MATCH($C25, Lists!$S$7:$S$21,0))) -> Complex connection HV (with upstream asset works) | G25: 0 | H25: 0 | I25: 0 | J25: 0 | K25: 0 | L25: 0 | M25: 0 | N25: 0 | O25: 0 | P25: 0 | Q25: 0 | R25: 0 | S25: 0
B26: Connections | C26: EG1 | D26: =IF(ISBLANK($C26), "", INDEX(Lists!T$7:T$21, MATCH($C26, Lists!$S$7:$S$21,0))) -> Embedded generation | E26: =IF(ISBLANK($C26), "", INDEX(Lists!U$7:U$21, MATCH($C26, Lists!$S$7:$S$21,0))) -> Simple connection LV | G26: 0 | H26: 0 | I26: 0 | J26: 0 | K26: 0 | L26: 0 | M26: 0 | N26: 0 | O26: 3 | P26: 9 | Q26: 12 | R26: 4 | S26: 4
B27: Connections | C27: EG2 | D27: =IF(ISBLANK($C27), "", INDEX(Lists!T$7:T$21, MATCH($C27, Lists!$S$7:$S$21,0))) -> Embedded generation | E27: =IF(ISBLANK($C27), "", INDEX(Lists!U$7:U$21, MATCH($C27, Lists!$S$7:$S$21,0))) -> Complex connection HV (small capacity) | G27: 4 | H27: 3 | I27: 2.629647267 | J27: 1.129647267 | K27: 1 | L27: 1 | M27: 0.6107102797 | N27: 0.1107102797 | O27: 0 | P27: 0 | Q27: 0 | R27: 0 | S27: 0
B28: Connections | C28: EG3 | D28: =IF(ISBLANK($C28), "", INDEX(Lists!T$7:T$21, MATCH($C28, Lists!$S$7:$S$21,0))) -> Embedded generation | E28: =IF(ISBLANK($C28), "", INDEX(Lists!U$7:U$21, MATCH($C28, Lists!$S$7:$S$21,0))) -> Complex connection HV (large capacity) | G28: 0 | H28: 0 | I28: 0 | J28: 0 | K28: 0 | L28: 0 | M28: 0 | N28: 0 | O28: 0 | P28: 0 | Q28: 0 | R28: 0 | S28: 0
R30: **Major project exclusion (CI2) - for unit rate calculation only
S31: 2023/24
R32: Major project volume | S32: 1

Sheet Hist_expenditure
A1: =Assumptions!$A$1 -> CitiPower
A2: =Assumptions!$A$2 -> Connections
A3: Historical expenditure (nominal)
B7: =Assumptions!B17 -> 2026/7 - 2030/31 reg period | G7: =Assumptions!K17 -> FALSE | H7: =Assumptions!L17 -> FALSE | I7: =Assumptions!M17 -> FALSE | J7: =Assumptions!N17 -> FALSE | K7: =Assumptions!O17 -> FALSE | L7: =Assumptions!P17 -> FALSE | M7: =Assumptions!Q17 -> FALSE | N7: =Assumptions!R17 -> FALSE | O7: =Assumptions!S17 -> FALSE | P7: =Assumptions!T17 -> FALSE | Q7: =Assumptions!U17 -> FALSE | R7: =Assumptions!V17 -> FALSE | S7: =Assumptions!W17 -> FALSE | T7: =Assumptions!X17 -> FALSE | U7: =Assumptions!Y17 -> FALSE | V7: =Assumptions!Z17 -> TRUE | W7: =Assumptions!AA17 -> TRUE | X7: =Assumptions!AB17 -> TRUE | Y7: =Assumptions!AC17 -> TRUE | Z7: =Assumptions!AD17 -> TRUE
B8: =Assumptions!B18 -> Forecast period | G8: =Assumptions!K18 -> FALSE | H8: =Assumptions!L18 -> FALSE | I8: =Assumptions!M18 -> FALSE | J8: =Assumptions!N18 -> FALSE | K8: =Assumptions!O18 -> FALSE | L8: =Assumptions!P18 -> FALSE | M8: =Assumptions!Q18 -> FALSE | N8: =Assumptions!R18 -> FALSE | O8: =Assumptions!S18 -> FALSE | P8: =Assumptions!T18 -> FALSE | Q8: =Assumptions!U18 -> FALSE | R8: =Assumptions!V18 -> FALSE | S8: =Assumptions!W18 -> FALSE | T8: =Assumptions!X18 -> TRUE | U8: =Assumptions!Y18 -> TRUE | V8: =Assumptions!Z18 -> TRUE | W8: =Assumptions!AA18 -> TRUE | X8: =Assumptions!AB18 -> TRUE | Y8: =Assumptions!AC18 -> TRUE | Z8: =Assumptions!AD18 -> TRUE
B9: =Assumptions!B19 -> Fin year end | G9: =Assumptions!K19 -> 2012 | H9: =Assumptions!L19 -> 2013 | I9: =Assumptions!M19 -> 2014 | J9: =Assumptions!N19 -> 2015 | K9: =Assumptions!O19 -> 2016 | L9: =Assumptions!P19 -> 2017 | M9: =Assumptions!Q19 -> 2018 | N9: =Assumptions!R19 -> 2019 | O9: =Assumptions!S19 -> 2020 | P9: =Assumptions!T19 -> 2021 | Q9: =Assumptions!U19 -> 2022 | R9: =Assumptions!V19 -> 2023 | S9: =Assumptions!W19 -> 2024 | T9: =Assumptions!X19 -> 2025 | U9: =Assumptions!Y19 -> 2026 | V9: =Assumptions!Z19 -> 2027 | W9: =Assumptions!AA19 -> 2028 | X9: =Assumptions!AB19 -> 2029 | Y9: =Assumptions!AC19 -> 2030 | Z9: =Assumptions!AD19 -> 2031
B10: =Assumptions!B20 -> Basis | G10: =Assumptions!K20 -> Actual | H10: =Assumptions!L20 -> Actual | I10: =Assumptions!M20 -> Actual | J10: =Assumptions!N20 -> Actual | K10: =Assumptions!O20 -> Actual | L10: =Assumptions!P20 -> Actual | M10: =Assumptions!Q20 -> Actual | N10: =Assumptions!R20 -> Actual | O10: =Assumptions!S20 -> Actual | P10: =Assumptions!T20 -> Actual | Q10: =Assumptions!U20 -> Actual | R10: =Assumptions!V20 -> Actual | S10: =Assumptions!W20 -> Actual | T10: =Assumptions!X20 -> Forecast | U10: =Assumptions!Y20 -> Forecast | V10: =Assumptions!Z20 -> Forecast | W10: =Assumptions!AA20 -> Forecast | X10: =Assumptions!AB20 -> Forecast | Y10: =Assumptions!AC20 -> Forecast | Z10: =Assumptions!AD20 -> Forecast
B13: =Hist_vol!B$13 -> Category | C13: Type | D13: =Hist_vol!D$13 -> RIN category | E13: =Hist_vol!E$13 -> Description | G13: =Assumptions!K$24 -> 2011/12 | H13: =Assumptions!L$24 -> 2012/13 | I13: =Assumptions!M$24 -> 2013/14 | J13: =Assumptions!N$24 -> 2014/15 | K13: =Assumptions!O$24 -> 2015/16 | L13: =Assumptions!P$24 -> 2016/17 | M13: =Assumptions!Q$24 -> 2017/18 | N13: =Assumptions!R$24 -> 2018/19 | O13: =Assumptions!S$24 -> 2019/20 | P13: =Assumptions!T$24 -> 2020/21 | Q13: =Assumptions!U$24 -> 2021/22 | R13: =Assumptions!V$24 -> 2022/23 | S13: =Assumptions!W$24 -> 2023/24 | T13: =Assumptions!X$24 -> 2024/25 | U13: =Assumptions!Y$24 -> 2025/26 | V13: =Assumptions!Z$24 -> 2026/27 | W13: =Assumptions!AA$24 -> 2027/28 | X13: =Assumptions!AB$24 -> 2028/29 | Y13: =Assumptions!AC$24 -> 2029/30 | Z13: =Assumptions!AD$24 -> 2030/31
B14: Spend ($ nominal) incl Rebates
B15: =Hist_vol!B15 -> Connections | C15: =Hist_vol!C15 -> R1 | D15: =Hist_vol!D15 -> Residential | E15: =Hist_vol!E15 -> Simple connection LV | G15: 1094511.388 | H15: 1116796.127 | I15: 1393280.998 | J15: 1622111.191 | K15: 800490.11 | L15: 0 | M15: 0 | N15: 0 | O15: 0 | P15: 0 | Q15: 0 | R15: 0 | S15: 0
B16: =Hist_vol!B16 -> Connections | C16: =Hist_vol!C16 -> R2 | D16: =Hist_vol!D16 -> Residential | E16: =Hist_vol!E16 -> Complex connection LV | G16: 7874604.062 | H16: 7955575.689 | I16: 7765842.243 | J16: 7801732.76 | K16: 9373060.089 | L16: 12473540 | M16: 14442000.09 | N16: 17374779.59 | O16: 20356234.5 | P16: 22290558 | Q16: 20121121 | R16: 22231796 | S16: 22593604
B17: =Hist_vol!B17 -> Connections | C17: =Hist_vol!C17 -> R3 | D17: =Hist_vol!D17 -> Residential | E17: =Hist_vol!E17 -> Complex connection HV | G17: 21568164.63 | H17: 21563571.05 | I17: 21276192.12 | J17: 22163807.54 | K17: 20396916.58 | L17: 17794179 | M17: 20487714.07 | N17: 25091660.57 | O17: 27676682.15 | P17: 26804792.3 | Q17: 15133339 | R17: 20385551 | S17: 23692001
B18: =Hist_vol!B18 -> Connections | C18: =Hist_vol!C18 -> CI1 | D18: =Hist_vol!D18 -> Commercial/Industrial | E18: =Hist_vol!E18 -> Simple connection LV | G18: 2097582.68 | H18: 2131096.445 | I18: 2023619.668 | J18: 2102130.252 | K18: 1940462.973 | L18: 1694377 | M18: 1982627.85 | N18: 2335786.35 | O18: 2569309.5 | P18: 2823912 | Q18: 2316922 | R18: 3028954 | S18: 3060372
B19: =Hist_vol!B19 -> Connections | C19: =Hist_vol!C19 -> CI2 | D19: =Hist_vol!D19 -> Commercial/Industrial | E19: =Hist_vol!E19 -> Complex connection HV (customer connected at LV, minor HV works) | G19: 10331879.3 | H19: 11988621.8 | I19: 9939419.82 | J19: 9689209.98 | K19: 15962146.85 | L19: 21738427.96 | M19: 24447585.66 | N19: 22027441.55 | O19: 22177293.5 | P19: 25491839 | Q19: 20237485 | R19: 45326250 | S19: 31091336.96
B20: =Hist_vol!B20 -> Connections | C20: =Hist_vol!C20 -> CI3 | D20: =Hist_vol!D20 -> Commercial/Industrial | E20: =Hist_vol!E20 -> Complex connection HV (customer connected at LV, upstream asset works) | G20: 9580187.526 | H20: 9548319.865 | I20: 9358194.798 | J20: 9469729.934 | K20: 8564976.992 | L20: 7545497.5 | M20: 8685367.016 | N20: 10647283.02 | O20: 11792225.35 | P20: 11461983.7 | Q20: 6520353 | R20: 8584545 | S20: 10119481
B21: =Hist_vol!B21 -> Connections | C21: =Hist_vol!C21 -> CI4 | D21: =Hist_vol!D21 -> Commercial/Industrial | E21: =Hist_vol!E21 -> Complex connection HV (customer connected at HV) | G21: 100340.145 | H21: 0 | I21: 362573.395 | J21: 1191002.105 | K21: 2852959.71 | L21: 3238626 | M21: 1898865.895 | N21: 2529397.395 | O21: 3711276.5 | P21: 1677018 | Q21: 2035083 | R21: 8121442 | S21: 673376
B22: =Hist_vol!B22 -> Connections | C22: =Hist_vol!C22 -> CI5 | D22: =Hist_vol!D22 -> Commercial/Industrial | E22: =Hist_vol!E22 -> Complex connection sub-transmission | G22: 0 | H22: 0 | I22: 0 | J22: 0 | K22: 0 | L22: 0 | M22: 0 | N22: 0 | O22: 0 | P22: 0 | Q22: 0 | R22: 0 | S22: 0
B23: =Hist_vol!B23 -> Connections | C23: =Hist_vol!C23 -> S1 | D23: =Hist_vol!D23 -> Subdivision | E23: =Hist_vol!E23 -> Complex connection LV | G23: 0 | H23: 0 | I23: 0 | J23: 0 | K23: 0 | L23: 0 | M23: 0 | N23: 0 | O23: 0 | P23: 0 | Q23: 0 | R23: 0 | S23: 0
B24: =Hist_vol!B24 -> Connections | C24: =Hist_vol!C24 -> S2 | D24: =Hist_vol!D24 -> Subdivision | E24: =Hist_vol!E24 -> Complex connection HV (no upstream asset works) | G24: 0 | H24: 0 | I24: 0 | J24: 0 | K24: 0 | L24: 0 | M24: 0 | N24: 0 | O24: 0 | P24: 0 | Q24: 0 | R24: 0 | S24: 0
B25: =Hist_vol!B25 -> Connections | C25: =Hist_vol!C25 -> S3 | D25: =Hist_vol!D25 -> Subdivision | E25: =Hist_vol!E25 -> Complex connection HV (with upstream asset works) | G25: 0 | H25: 0 | I25: 0 | J25: 0 | K25: 0 | L25: 0 | M25: 0 | N25: 0 | O25: 0 | P25: 0 | Q25: 0 | R25: 0 | S25: 0
B26: =Hist_vol!B26 -> Connections | C26: =Hist_vol!C26 -> EG1 | D26: =Hist_vol!D26 -> Embedded generation | E26: =Hist_vol!E26 -> Simple connection LV | G26: 0 | H26: 0 | I26: 0 | J26: 0 | K26: 0 | L26: 0 | M26: 0 | N26: 0 | O26: 1850 | P26: 5936 | Q26: 7666 | R26: 1449 | S26: 11544
B27: =Hist_vol!B27 -> Connections | C27: =Hist_vol!C27 -> EG2 | D27: =Hist_vol!D27 -> Embedded generation | E27: =Hist_vol!E27 -> Complex connection HV (small capacity) | G27: 443708.1 | H27: 238793.2 | I27: 198671.31 | J27: 91745.395 | K27: 43357.465 | L27: 31120.5 | M27: 24871.475 | N27: 4441.475 | O27: 0 | P27: 0 | Q27: 0 | R27: 0 | S27: 0
B28: =Hist_vol!B28 -> Connections | C28: =Hist_vol!C28 -> EG3 | D28: =Hist_vol!D28 -> Embedded generation | E28: =Hist_vol!E28 -> Complex connection HV (large capacity) | G28: 0 | H28: 0 | I28: 0 | J28: 0 | K28: 0 | L28: 0 | M28: 0 | N28: 0 | O28: 0 | P28: 0 | Q28: 0 | R28: 0 | S28: 0
C29: Total | G29: =SUM(G15:G28) -> 53090977.83 | H29: 54542774.18 | I29: 52317794.36 | J29: 54131469.16 | K29: 59934370.77 | L29: 64515767.96 | M29: 71969032.06 | N29: 80010789.95 | O29: 88284871.5 | P29: 90556039 | Q29: 66371969 | R29: 107679987 | S29: =SUM(S15:S28) -> 91241714.96
R31: **Major project exclusion (CI2) - for unit rate calculation only
S32: 2023/24
R33: Major project expenditure ($ nominal) | S33: 17739291.04

Sheet Hist_contributions
A1: =Assumptions!$A$1 -> CitiPower
A2: =Assumptions!$A$2 -> Connections
A3: Historical Type 1 Contributions (nominal)
B7: =Assumptions!B17 -> 2026/7 - 2030/31 reg period | G7: =Assumptions!K17 -> FALSE | H7: =Assumptions!L17 -> FALSE | I7: =Assumptions!M17 -> FALSE | J7: =Assumptions!N17 -> FALSE | K7: =Assumptions!O17 -> FALSE | L7: =Assumptions!P17 -> FALSE | M7: =Assumptions!Q17 -> FALSE | N7: =Assumptions!R17 -> FALSE | O7: =Assumptions!S17 -> FALSE | P7: =Assumptions!T17 -> FALSE | Q7: =Assumptions!U17 -> FALSE | R7: =Assumptions!V17 -> FALSE | S7: =Assumptions!W17 -> FALSE | T7: =Assumptions!X17 -> FALSE | U7: =Assumptions!Y17 -> FALSE | V7: =Assumptions!Z17 -> TRUE | W7: =Assumptions!AA17 -> TRUE | X7: =Assumptions!AB17 -> TRUE | Y7: =Assumptions!AC17 -> TRUE | Z7: =Assumptions!AD17 -> TRUE
B8: =Assumptions!B18 -> Forecast period | G8: =Assumptions!K18 -> FALSE | H8: =Assumptions!L18 -> FALSE | I8: =Assumptions!M18 -> FALSE | J8: =Assumptions!N18 -> FALSE | K8: =Assumptions!O18 -> FALSE | L8: =Assumptions!P18 -> FALSE | M8: =Assumptions!Q18 -> FALSE | N8: =Assumptions!R18 -> FALSE | O8: =Assumptions!S18 -> FALSE | P8: =Assumptions!T18 -> FALSE | Q8: =Assumptions!U18 -> FALSE | R8: =Assumptions!V18 -> FALSE | S8: =Assumptions!W18 -> FALSE | T8: =Assumptions!X18 -> TRUE | U8: =Assumptions!Y18 -> TRUE | V8: =Assumptions!Z18 -> TRUE | W8: =Assumptions!AA18 -> TRUE | X8: =Assumptions!AB18 -> TRUE | Y8: =Assumptions!AC18 -> TRUE | Z8: =Assumptions!AD18 -> TRUE
B9: =Assumptions!B19 -> Fin year end | G9: =Assumptions!K19 -> 2012 | H9: =Assumptions!L19 -> 2013 | I9: =Assumptions!M19 -> 2014 | J9: =Assumptions!N19 -> 2015 | K9: =Assumptions!O19 -> 2016 | L9: =Assumptions!P19 -> 2017 | M9: =Assumptions!Q19 -> 2018 | N9: =Assumptions!R19 -> 2019 | O9: =Assumptions!S19 -> 2020 | P9: =Assumptions!T19 -> 2021 | Q9: =Assumptions!U19 -> 2022 | R9: =Assumptions!V19 -> 2023 | S9: =Assumptions!W19 -> 2024 | T9: =Assumptions!X19 -> 2025 | U9: =Assumptions!Y19 -> 2026 | V9: =Assumptions!Z19 -> 2027 | W9: =Assumptions!AA19 -> 2028 | X9: =Assumptions!AB19 -> 2029 | Y9: =Assumptions!AC19 -> 2030 | Z9: =Assumptions!AD19 -> 2031
B10: =Assumptions!B20 -> Basis | G10: =Assumptions!K20 -> Actual | H10: =Assumptions!L20 -> Actual | I10: =Assumptions!M20 -> Actual | J10: =Assumptions!N20 -> Actual | K10: =Assumptions!O20 -> Actual | L10: =Assumptions!P20 -> Actual | M10: =Assumptions!Q20 -> Actual | N10: =Assumptions!R20 -> Actual | O10: =Assumptions!S20 -> Actual | P10: =Assumptions!T20 -> Actual | Q10: =Assumptions!U20 -> Actual | R10: =Assumptions!V20 -> Actual | S10: =Assumptions!W20 -> Actual | T10: =Assumptions!X20 -> Forecast | U10: =Assumptions!Y20 -> Forecast | V10: =Assumptions!Z20 -> Forecast | W10: =Assumptions!AA20 -> Forecast | X10: =Assumptions!AB20 -> Forecast | Y10: =Assumptions!AC20 -> Forecast | Z10: =Assumptions!AD20 -> Forecast
B13: =Hist_vol!B$13 -> Category | C13: Type | D13: =Hist_vol!D$13 -> RIN category | E13: =Hist_vol!E$13 -> Description | G13: =Assumptions!K$24 -> 2011/12 | H13: =Assumptions!L$24 -> 2012/13 | I13: =Assumptions!M$24 -> 2013/14 | J13: =Assumptions!N$24 -> 2014/15 | K13: =Assumptions!O$24 -> 2015/16 | L13: =Assumptions!P$24 -> 2016/17 | M13: =Assumptions!Q$24 -> 2017/18 | N13: =Assumptions!R$24 -> 2018/19 | O13: =Assumptions!S$24 -> 2019/20 | P13: =Assumptions!T$24 -> 2020/21 | Q13: =Assumptions!U$24 -> 2021/22 | R13: =Assumptions!V$24 -> 2022/23 | S13: =Assumptions!W$24 -> 2023/24 | T13: =Assumptions!X$24 -> 2024/25 | U13: =Assumptions!Y$24 -> 2025/26 | V13: =Assumptions!Z$24 -> 2026/27 | W13: =Assumptions!AA$24 -> 2027/28 | X13: =Assumptions!AB$24 -> 2028/29 | Y13: =Assumptions!AC$24 -> 2029/30 | Z13: =Assumptions!AD$24 -> 2030/31
B14: Contributions exp ($ nominal)
B15: =Hist_expenditure!B15 -> Connections | C15: =Hist_expenditure!C15 -> R1 | D15: =Hist_expenditure!D15 -> Residential | E15: =Hist_expenditure!E15 -> Simple connection LV | G15: 270875.1658 | H15: 264597.0933 | I15: 341655.0842 | J15: 427336.5011 | K15: 224857.7305 | L15: 0 | M15: 0 | N15: 0 | O15: 0 | P15: 0 | Q15: 0 | R15: 0 | S15: 0
B16: =Hist_expenditure!B16 -> Connections | C16: =Hist_expenditure!C16 -> R2 | D16: =Hist_expenditure!D16 -> Residential | E16: =Hist_expenditure!E16 -> Complex connection LV | G16: 1944759.711 | H16: 1882780.257 | I16: 1902138.095 | J16: 2058824.545 | K16: 3637695.437 | L16: 6437330.169 | M16: 7688673.339 | N16: 8744937.57 | O16: 10426571.82 | P16: 11433183 | Q16: 12473828 | R16: 11256583 | S16: 14613517
B17: =Hist_expenditure!B17 -> Connections | C17: =Hist_expenditure!C17 -> R3 | D17: =Hist_expenditure!D17 -> Residential | E17: =Hist_expenditure!E17 -> Complex connection HV | G17: 5326386.105 | H17: 5101648.876 | I17: 5212017.46 | J17: 5854181.719 | K17: 7400688.207 | L17: 9055800.559 | M17: 10840228.74 | N17: 12643510.76 | O17: 11911513.66 | P17: 8698120 | Q17: 7798981 | R17: 9037566 | S17: 12124967
B18: =Hist_expenditure!B18 -> Connections | C18: =Hist_expenditure!C18 -> CI1 | D18: =Hist_expenditure!D18 -> Commercial/Industrial | E18: =Hist_expenditure!E18 -> Simple connection LV | G18: 518474.7454 | H18: 504601.1521 | I18: 495517.1128 | J18: 557547.7308 | K18: 692270.5737 | L18: 868178.7854 | M18: 1051432.595 | N18: 1176878.341 | O18: 1139503.636 | P18: 1128234 | Q18: 1296720 | R18: 1285571 | S18: 1427561
B19: =Hist_expenditure!B19 -> Connections | C19: =Hist_expenditure!C19 -> CI2 | D19: =Hist_expenditure!D19 -> Commercial/Industrial | E19: =Hist_expenditure!E19 -> Complex connection HV (customer connected at LV, minor HV works) | G19: 3873120.59 | H19: 9098236.252 | I19: 9268452.799 | J19: 10208522.99 | K19: 15666328.21 | L19: 20512863.69 | M19: 23665198.41 | N19: 19991256.88 | O19: 21206875.88 | P19: 26260809.3 | Q19: 23914519.41 | R19: 46418797 | S19: =47090216-S33 -> 31774436
B20: =Hist_expenditure!B20 -> Connections | C20: =Hist_expenditure!C20 -> CI3 | D20: =Hist_expenditure!D20 -> Commercial/Industrial | E20: =Hist_expenditure!E20 -> Complex connection HV (customer connected at LV, upstream asset works) | G20: 2366825.644 | H20: 2259161.502 | I20: 2292344.435 | J20: 2498063.391 | K20: 3109378.677 | L20: 3844128.743 | M20: 4598362.234 | N20: 5364618.027 | O20: 5091275.014 | P20: 3717762 | Q20: 3352862 | R20: 3733912 | S20: 5115287
B21: =Hist_expenditure!B21 -> Connections | C21: =Hist_expenditure!C21 -> CI4 | D21: =Hist_expenditure!D21 -> Commercial/Industrial | E21: =Hist_expenditure!E21 -> Complex connection HV (customer connected at HV) | G21: 26566.38808 | H21: 0 | I21: 89351.91292 | J21: 322057.5982 | K21: 1176619.494 | L21: 1618636.666 | M21: 1024898.981 | N21: 1267588.593 | O21: 2334032.968 | P21: 977989 | Q21: 2613701 | R21: 7972495 | S21: 589967
B22: =Hist_expenditure!B22 -> Connections | C22: =Hist_expenditure!C22 -> CI5 | D22: =Hist_expenditure!D22 -> Commercial/Industrial | E22: =Hist_expenditure!E22 -> Complex connection sub-transmission | G22: 0 | H22: 0 | I22: 0 | J22: 0 | K22: 0 | L22: 0 | M22: 0 | N22: 0 | O22: 0 | P22: 0 | Q22: 0 | R22: 0 | S22: 0
B23: =Hist_expenditure!B23 -> Connections | C23: =Hist_expenditure!C23 -> S1 | D23: =Hist_expenditure!D23 -> Subdivision | E23: =Hist_expenditure!E23 -> Complex connection LV | G23: 0 | H23: 0 | I23: 0 | J23: 0 | K23: 0 | L23: 0 | M23: 0 | N23: 0 | O23: 0 | P23: 0 | Q23: 0 | R23: 0 | S23: 0
B24: =Hist_expenditure!B24 -> Connections | C24: =Hist_expenditure!C24 -> S2 | D24: =Hist_expenditure!D24 -> Subdivision | E24: =Hist_expenditure!E24 -> Complex connection HV (no upstream asset works) | G24: 0 | H24: 0 | I24: 0 | J24: 0 | K24: 0 | L24: 0 | M24: 0 | N24: 0 | O24: 0 | P24: 0 | Q24: 0 | R24: 0 | S24: 0
B25: =Hist_expenditure!B25 -> Connections | C25: =Hist_expenditure!C25 -> S3 | D25: =Hist_expenditure!D25 -> Subdivision | E25: =Hist_expenditure!E25 -> Complex connection HV (with upstream asset works) | G25: 0 | H25: 0 | I25: 0 | J25: 0 | K25: 0 | L25: 0 | M25: 0 | N25: 0 | O25: 0 | P25: 0 | Q25: 0 | R25: 0 | S25: 0
B26: =Hist_expenditure!B26 -> Connections | C26: =Hist_expenditure!C26 -> EG1 | D26: =Hist_expenditure!D26 -> Embedded generation | E26: =Hist_expenditure!E26 -> Simple connection LV | G26: 0 | H26: 0 | I26: 0 | J26: 0 | K26: 0 | L26: 0 | M26: 0 | N26: 0 | O26: 1775.5 | P26: -2063 | Q26: 518 | R26: 0 | S26: 1572
B27: =Hist_expenditure!B27 -> Connections | C27: =Hist_expenditure!C27 -> EG2 | D27: =Hist_expenditure!D27 -> Embedded generation | E27: =Hist_expenditure!E27 -> Complex connection HV (small capacity) | G27: 114036.27 | H27: 56808.53287 | I27: 48544.45853 | J27: 23735.33124 | K27: 14160.47297 | L27: 16338.11694 | M27: 13625.06524 | N27: 2271.268409 | O27: 0 | P27: 0 | Q27: 0 | R27: 0 | S27: 0
B28: =Hist_expenditure!B28 -> Connections | C28: =Hist_expenditure!C28 -> EG3 | D28: =Hist_expenditure!D28 -> Embedded generation | E28: =Hist_expenditure!E28 -> Complex connection HV (large capacity) | G28: 0 | H28: 0 | I28: 0 | J28: 0 | K28: 0 | L28: 0 | M28: 0 | N28: 0 | O28: 0 | P28: 0 | Q28: 0 | R28: 0 | S28: 0
C29: Total | G29: =SUM(G15:G28) -> 14441044.62 | H29: =SUM(H15:H28) -> 19167833.66 | I29: 19650021.36 | J29: 21950269.81 | K29: 31921998.8 | L29: 42353276.73 | M29: 48882419.36 | N29: 49191061.44 | O29: 52111548.49 | P29: 52214034.3 | Q29: 51451129.41 | R29: 79704924 | S29: 65647307
R31: **Major project exclusion (CI2) - for customer contribution rate calculation only
S32: 2023/24
R33: Major project expenditure ($ nominal) | S33: 15315780

Sheet Unit_rates
A1: =Assumptions!$A$1 -> CitiPower
A2: =Assumptions!$A$2 -> Connections
A3: Unit rates
B7: =Assumptions!B17 -> 2026/7 - 2030/31 reg period | G7: =Assumptions!K17 -> FALSE | H7: =Assumptions!L17 -> FALSE | I7: =Assumptions!M17 -> FALSE | J7: =Assumptions!N17 -> FALSE | K7: =Assumptions!O17 -> FALSE | L7: =Assumptions!P17 -> FALSE | M7: =Assumptions!Q17 -> FALSE | N7: =Assumptions!R17 -> FALSE | O7: =Assumptions!S17 -> FALSE | P7: =Assumptions!T17 -> FALSE | Q7: =Assumptions!U17 -> FALSE | R7: =Assumptions!V17 -> FALSE | S7: =Assumptions!W17 -> FALSE | T7: =Assumptions!X17 -> FALSE | U7: =Assumptions!Y17 -> FALSE | V7: =Assumptions!Z17 -> TRUE | W7: =Assumptions!AA17 -> TRUE | X7: =Assumptions!AB17 -> TRUE | Y7: =Assumptions!AC17 -> TRUE | Z7: =Assumptions!AD17 -> TRUE
B8: =Assumptions!B18 -> Forecast period | G8: =Assumptions!K18 -> FALSE | H8: =Assumptions!L18 -> FALSE | I8: =Assumptions!M18 -> FALSE | J8: =Assumptions!N18 -> FALSE | K8: =Assumptions!O18 -> FALSE | L8: =Assumptions!P18 -> FALSE | M8: =Assumptions!Q18 -> FALSE | N8: =Assumptions!R18 -> FALSE | O8: =Assumptions!S18 -> FALSE | P8: =Assumptions!T18 -> FALSE | Q8: =Assumptions!U18 -> FALSE | R8: =Assumptions!V18 -> FALSE | S8: =Assumptions!W18 -> FALSE | T8: =Assumptions!X18 -> TRUE | U8: =Assumptions!Y18 -> TRUE | V8: =Assumptions!Z18 -> TRUE | W8: =Assumptions!AA18 -> TRUE | X8: =Assumptions!AB18 -> TRUE | Y8: =Assumptions!AC18 -> TRUE | Z8: =Assumptions!AD18 -> TRUE
B9: =Assumptions!B19 -> Fin year end | G9: =Assumptions!K19 -> 2012 | H9: =Assumptions!L19 -> 2013 | I9: =Assumptions!M19 -> 2014 | J9: =Assumptions!N19 -> 2015 | K9: =Assumptions!O19 -> 2016 | L9: =Assumptions!P19 -> 2017 | M9: =Assumptions!Q19 -> 2018 | N9: =Assumptions!R19 -> 2019 | O9: =Assumptions!S19 -> 2020 | P9: =Assumptions!T19 -> 2021 | Q9: =Assumptions!U19 -> 2022 | R9: =Assumptions!V19 -> 2023 | S9: =Assumptions!W19 -> 2024 | T9: =Assumptions!X19 -> 2025 | U9: =Assumptions!Y19 -> 2026 | V9: =Assumptions!Z19 -> 2027 | W9: =Assumptions!AA19 -> 2028 | X9: =Assumptions!AB19 -> 2029 | Y9: =Assumptions!AC19 -> 2030 | Z9: =Assumptions!AD19 -> 2031
B10: =Assumptions!B20 -> Basis | G10: =Assumptions!K20 -> Actual | H10: =Assumptions!L20 -> Actual | I10: =Assumptions!M20 -> Actual | J10: =Assumptions!N20 -> Actual | K10: =Assumptions!O20 -> Actual | L10: =Assumptions!P20 -> Actual | M10: =Assumptions!Q20 -> Actual | N10: =Assumptions!R20 -> Actual | O10: =Assumptions!S20 -> Actual | P10: =Assumptions!T20 -> Actual | Q10: =Assumptions!U20 -> Actual | R10: =Assumptions!V20 -> Actual | S10: =Assumptions!W20 -> Actual | T10: =Assumptions!X20 -> Forecast | U10: =Assumptions!Y20 -> Forecast | V10: =Assumptions!Z20 -> Forecast | W10: =Assumptions!AA20 -> Forecast | X10: =Assumptions!AB20 -> Forecast | Y10: =Assumptions!AC20 -> Forecast | Z10: =Assumptions!AD20 -> Forecast
B13: =Hist_vol!B$13 -> Category | C13: Type | D13: =Hist_vol!D$13 -> RIN category | E13: =Hist_vol!E$13 -> Description | G13: =Assumptions!K$24 -> 2011/12 | H13: =Assumptions!L$24 -> 2012/13 | I13: =Assumptions!M$24 -> 2013/14 | J13: =Assumptions!N$24 -> 2014/15 | K13: =Assumptions!O$24 -> 2015/16 | L13: =Assumptions!P$24 -> 2016/17 | M13: =Assumptions!Q$24 -> 2017/18 | N13: =Assumptions!R$24 -> 2018/19 | O13: =Assumptions!S$24 -> 2019/20 | P13: =Assumptions!T$24 -> 2020/21 | Q13: =Assumptions!U$24 -> 2021/22 | R13: =Assumptions!V$24 -> 2022/23 | S13: =Assumptions!W$24 -> 2023/24 | T13: =Assumptions!X$24 -> 2024/25 | U13: =Assumptions!Y$24 -> 2025/26 | V13: =Assumptions!Z$24 -> 2026/27 | W13: =Assumptions!AA$24 -> 2027/28 | X13: =Assumptions!AB$24 -> 2028/29 | Y13: =Assumptions!AC$24 -> 2029/30 | Z13: =Assumptions!AD$24 -> 2030/31
B14: Unit rate ($ June 2026) | S14: Base year
B15: =Hist_vol!B15 -> Connections | C15: =Hist_vol!C15 -> R1 | D15: =Hist_vol!D15 -> Residential | E15: =Hist_vol!E15 -> Simple connection LV | G15: =IF(Hist_vol!G15=0,0, Hist_expenditure!G15*Assumptions!K$29/Hist_vol!G15) -> 295.6112177 | H15: =IF(Hist_vol!H15=0,0, Hist_expenditure!H15*Assumptions!L$29/Hist_vol!H15) -> 313.1796951 | I15: =IF(Hist_vol!I15=0,0, Hist_expenditure!I15*Assumptions!M$29/Hist_vol!I15) -> 430.1119647 | J15: =IF(Hist_vol!J15=0,0, Hist_expenditure!J15*Assumptions!N$29/Hist_vol!J15) -> 567.6301849 | K15: =IF(Hist_vol!K15=0,0, Hist_expenditure!K15*Assumptions!O$29/Hist_vol!K15) -> 625.6286741 | L15: =IF(Hist_vol!L15=0,0, Hist_expenditure!L15*Assumptions!P$29/Hist_vol!L15) -> 0 | M15: =IF(Hist_vol!M15=0,0, Hist_expenditure!M15*Assumptions!Q$29/Hist_vol!M15) -> 0 | N15: =IF(Hist_vol!N15=0,0, Hist_expenditure!N15*Assumptions!R$29/Hist_vol!N15) -> 0 | O15: =IF(Hist_vol!O15=0,0, Hist_expenditure!O15*Assumptions!S$29/Hist_vol!O15) -> 0 | P15: =IF(Hist_vol!P15=0,0, Hist_expenditure!P15*Assumptions!T$29/Hist_vol!P15) -> 0 | Q15: =IF(Hist_vol!Q15=0,0, Hist_expenditure!Q15*Assumptions!U$29/Hist_vol!Q15) -> 0 | R15: =IF(Hist_vol!R15=0,0, Hist_expenditure!R15*Assumptions!V$29/Hist_vol!R15) -> 0 | S15: =IF(Hist_vol!S15=0,0, Hist_expenditure!S15*Assumptions!W$29/Hist_vol!S15) -> 0
B16: =Hist_vol!B16 -> Connections | C16: =Hist_vol!C16 -> R2 | D16: =Hist_vol!D16 -> Residential | E16: =Hist_vol!E16 -> Complex connection LV | G16: =IF(Hist_vol!G16=0,0, Hist_expenditure!G16*Assumptions!K$29/Hist_vol!G16) -> 76117.82097 | H16: =IF(Hist_vol!H16=0,0, Hist_expenditure!H16*Assumptions!L$29/Hist_vol!H16) -> 74876.84158 | I16: =IF(Hist_vol!I16=0,0, Hist_expenditure!I16*Assumptions!M$29/Hist_vol!I16) -> 72913.86993 | J16: =IF(Hist_vol!J16=0,0, Hist_expenditure!J16*Assumptions!N$29/Hist_vol!J16) -> 87342.49138 | K16: =IF(Hist_vol!K16=0,0, Hist_expenditure!K16*Assumptions!O$29/Hist_vol!K16) -> 37958.79481 | L16: =IF(Hist_vol!L16=0,0, Hist_expenditure!L16*Assumptions!P$29/Hist_vol!L16) -> 27977.56547 | M16: =IF(Hist_vol!M16=0,0, Hist_expenditure!M16*Assumptions!Q$29/Hist_vol!M16) -> 26308.65633 | N16: =IF(Hist_vol!N16=0,0, Hist_expenditure!N16*Assumptions!R$29/Hist_vol!N16) -> 24364.99892 | O16: =IF(Hist_vol!O16=0,0, Hist_expenditure!O16*Assumptions!S$29/Hist_vol!O16) -> 24832.29332 | P16: =IF(Hist_vol!P16=0,0, Hist_expenditure!P16*Assumptions!T$29/Hist_vol!P16) -> 35336.66061 | Q16: =IF(Hist_vol!Q16=0,0, Hist_expenditure!Q16*Assumptions!U$29/Hist_vol!Q16) -> 38244.02333 | R16: =IF(Hist_vol!R16=0,0, Hist_expenditure!R16*Assumptions!V$29/Hist_vol!R16) -> 42363.37267 | S16: =IF(Hist_vol!S16=0,0, Hist_expenditure!S16*Assumptions!W$29/Hist_vol!S16) -> 48169.93797
B17: =Hist_vol!B17 -> Connections | C17: =Hist_vol!C17 -> R3 | D17: =Hist_vol!D17 -> Residential | E17: =Hist_vol!E17 -> Complex connection HV | G17: =IF(Hist_vol!G17=0,0, Hist_expenditure!G17*Assumptions!K$29/Hist_vol!G17) -> 329065.1828 | H17: =IF(Hist_vol!H17=0,0, Hist_expenditure!H17*Assumptions!L$29/Hist_vol!H17) -> 322531.5407 | I17: =IF(Hist_vol!I17=0,0, Hist_expenditure!I17*Assumptions!M$29/Hist_vol!I17) -> 337964.8633 | J17: =IF(Hist_vol!J17=0,0, Hist_expenditure!J17*Assumptions!N$29/Hist_vol!J17) -> 338173.2488 | K17: =IF(Hist_vol!K17=0,0, Hist_expenditure!K17*Assumptions!O$29/Hist_vol!K17) -> 382707.1717 | L17: =IF(Hist_vol!L17=0,0, Hist_expenditure!L17*Assumptions!P$29/Hist_vol!L17) -> 358891.7753 | M17: =IF(Hist_vol!M17=0,0, Hist_expenditure!M17*Assumptions!Q$29/Hist_vol!M17) -> 190975.3817 | N17: =IF(Hist_vol!N17=0,0, Hist_expenditure!N17*Assumptions!R$29/Hist_vol!N17) -> 208418.9768 | O17: =IF(Hist_vol!O17=0,0, Hist_expenditure!O17*Assumptions!S$29/Hist_vol!O17) -> 363399.6791 | P17: =IF(Hist_vol!P17=0,0, Hist_expenditure!P17*Assumptions!T$29/Hist_vol!P17) -> 505267.8839 | Q17: =IF(Hist_vol!Q17=0,0, Hist_expenditure!Q17*Assumptions!U$29/Hist_vol!Q17) -> 550870.2274 | R17: =IF(Hist_vol!R17=0,0, Hist_expenditure!R17*Assumptions!V$29/Hist_vol!R17) -> 443843.4736 | S17: =IF(Hist_vol!S17=0,0, Hist_expenditure!S17*Assumptions!W$29/Hist_vol!S17) -> 462581.1848
B18: =Hist_vol!B18 -> Connections | C18: =Hist_vol!C18 -> CI1 | D18: =Hist_vol!D18 -> Commercial/Industrial | E18: =Hist_vol!E18 -> Simple connection LV | G18: =IF(Hist_vol!G18=0,0, Hist_expenditure!G18*Assumptions!K$29/Hist_vol!G18) -> 1944.978981 | H18: =IF(Hist_vol!H18=0,0, Hist_expenditure!H18*Assumptions!L$29/Hist_vol!H18) -> 1741.049598 | I18: =IF(Hist_vol!I18=0,0, Hist_expenditure!I18*Assumptions!M$29/Hist_vol!I18) -> 1641.337843 | J18: =IF(Hist_vol!J18=0,0, Hist_expenditure!J18*Assumptions!N$29/Hist_vol!J18) -> 1912.869807 | K18: =IF(Hist_vol!K18=0,0, Hist_expenditure!K18*Assumptions!O$29/Hist_vol!K18) -> 3702.147578 | L18: =IF(Hist_vol!L18=0,0, Hist_expenditure!L18*Assumptions!P$29/Hist_vol!L18) -> 99641.68145 | M18: =IF(Hist_vol!M18=0,0, Hist_expenditure!M18*Assumptions!Q$29/Hist_vol!M18) -> 80527.73843 | N18: =IF(Hist_vol!N18=0,0, Hist_expenditure!N18*Assumptions!R$29/Hist_vol!N18) -> 95861.80105 | O18: =IF(Hist_vol!O18=0,0, Hist_expenditure!O18*Assumptions!S$29/Hist_vol!O18) -> 116199.9979 | P18: =IF(Hist_vol!P18=0,0, Hist_expenditure!P18*Assumptions!T$29/Hist_vol!P18) -> 94631.96976 | Q18: =IF(Hist_vol!Q18=0,0, Hist_expenditure!Q18*Assumptions!U$29/Hist_vol!Q18) -> 86974.09433 | R18: =IF(Hist_vol!R18=0,0, Hist_expenditure!R18*Assumptions!V$29/Hist_vol!R18) -> 98921.64294 | S18: =IF(Hist_vol!S18=0,0, Hist_expenditure!S18*Assumptions!W$29/Hist_vol!S18) -> 130997.1808
B19: =Hist_vol!B19 -> Connections | C19: =Hist_vol!C19 -> CI2 | D19: =Hist_vol!D19 -> Commercial/Industrial | E19: =Hist_vol!E19 -> Complex connection HV (customer connected at LV, minor HV works) | G19: =IF(Hist_vol!G19=0,0, Hist_expenditure!G19*Assumptions!K$29/Hist_vol!G19) -> 0 | H19: =IF(Hist_vol!H19=0,0, Hist_expenditure!H19*Assumptions!L$29/Hist_vol!H19) -> 0 | I19: =IF(Hist_vol!I19=0,0, Hist_expenditure!I19*Assumptions!M$29/Hist_vol!I19) -> 0 | J19: =IF(Hist_vol!J19=0,0, Hist_expenditure!J19*Assumptions!N$29/Hist_vol!J19) -> 0 | K19: =IF(Hist_vol!K19=0,0, Hist_expenditure!K19*Assumptions!O$29/Hist_vol!K19) -> 76118.86763 | L19: =IF(Hist_vol!L19=0,0, Hist_expenditure!L19*Assumptions!P$29/Hist_vol!L19) -> 122826.7588 | M19: =IF(Hist_vol!M19=0,0, Hist_expenditure!M19*Assumptions!Q$29/Hist_vol!M19) -> 132903.4864 | N19: =IF(Hist_vol!N19=0,0, Hist_expenditure!N19*Assumptions!R$29/Hist_vol!N19) -> 134320.0619 | O19: =IF(Hist_vol!O19=0,0, Hist_expenditure!O19*Assumptions!S$29/Hist_vol!O19) -> 184852.0968 | P19: =IF(Hist_vol!P19=0,0, Hist_expenditure!P19*Assumptions!T$29/Hist_vol!P19) -> 155319.2192 | Q19: =IF(Hist_vol!Q19=0,0, Hist_expenditure!Q19*Assumptions!U$29/Hist_vol!Q19) -> 167655.196 | R19: =IF(Hist_vol!R19=0,0, Hist_expenditure!R19*Assumptions!V$29/Hist_vol!R19) -> 429763.2233 | S19: =IF(Hist_vol!S19=0,0, Hist_expenditure!S19*Assumptions!W$29/Hist_vol!S19) -> 194392.9331
B20: =Hist_vol!B20 -> Connections | C20: =Hist_vol!C20 -> CI3 | D20: =Hist_vol!D20 -> Commercial/Industrial | E20: =Hist_vol!E20 -> Complex connection HV (customer connected at LV, upstream asset works) | G20: =IF(Hist_vol!G20=0,0, Hist_expenditure!G20*Assumptions!K$29/Hist_vol!G20) -> 325788.98 | H20: =IF(Hist_vol!H20=0,0, Hist_expenditure!H20*Assumptions!L$29/Hist_vol!H20) -> 322208.0172 | I20: =IF(Hist_vol!I20=0,0, Hist_expenditure!I20*Assumptions!M$29/Hist_vol!I20) -> 335563.6458 | J20: =IF(Hist_vol!J20=0,0, Hist_expenditure!J20*Assumptions!N$29/Hist_vol!J20) -> 336356.6489 | K20: =IF(Hist_vol!K20=0,0, Hist_expenditure!K20*Assumptions!O$29/Hist_vol!K20) -> 378609.1193 | L20: =IF(Hist_vol!L20=0,0, Hist_expenditure!L20*Assumptions!P$29/Hist_vol!L20) -> 345385.655 | M20: =IF(Hist_vol!M20=0,0, Hist_expenditure!M20*Assumptions!Q$29/Hist_vol!M20) -> 182216.0757 | N20: =IF(Hist_vol!N20=0,0, Hist_expenditure!N20*Assumptions!R$29/Hist_vol!N20) -> 201166.1208 | O20: =IF(Hist_vol!O20=0,0, Hist_expenditure!O20*Assumptions!S$29/Hist_vol!O20) -> 346977.3574 | P20: =IF(Hist_vol!P20=0,0, Hist_expenditure!P20*Assumptions!T$29/Hist_vol!P20) -> 476816.209 | Q20: =IF(Hist_vol!Q20=0,0, Hist_expenditure!Q20*Assumptions!U$29/Hist_vol!Q20) -> 489530.3311 | R20: =IF(Hist_vol!R20=0,0, Hist_expenditure!R20*Assumptions!V$29/Hist_vol!R20) -> 438824.2196 | S20: =IF(Hist_vol!S20=0,0, Hist_expenditure!S20*Assumptions!W$29/Hist_vol!S20) -> 450483.9352
B21: =Hist_vol!B21 -> Connections | C21: =Hist_vol!C21 -> CI4 | D21: =Hist_vol!D21 -> Commercial/Industrial | E21: =Hist_vol!E21 -> Complex connection HV (customer connected at HV) | G21: =IF(Hist_vol!G21=0,0, Hist_expenditure!G21*Assumptions!K$29/Hist_vol!G21) -> 141607.156 | H21: =IF(Hist_vol!H21=0,0, Hist_expenditure!H21*Assumptions!L$29/Hist_vol!H21) -> 0 | I21: =IF(Hist_vol!I21=0,0, Hist_expenditure!I21*Assumptions!M$29/Hist_vol!I21) -> 138824.8895 | J21: =IF(Hist_vol!J21=0,0, Hist_expenditure!J21*Assumptions!N$29/Hist_vol!J21) -> 390527.9347 | K21: =IF(Hist_vol!K21=0,0, Hist_expenditure!K21*Assumptions!O$29/Hist_vol!K21) -> 1860169.54 | L21: =IF(Hist_vol!L21=0,0, Hist_expenditure!L21*Assumptions!P$29/Hist_vol!L21) -> 1466835.671 | M21: =IF(Hist_vol!M21=0,0, Hist_expenditure!M21*Assumptions!Q$29/Hist_vol!M21) -> 1132435.242 | N21: =IF(Hist_vol!N21=0,0, Hist_expenditure!N21*Assumptions!R$29/Hist_vol!N21) -> 958598.9503 | O21: =IF(Hist_vol!O21=0,0, Hist_expenditure!O21*Assumptions!S$29/Hist_vol!O21) -> 906372.6021 | P21: =IF(Hist_vol!P21=0,0, Hist_expenditure!P21*Assumptions!T$29/Hist_vol!P21) -> 1011572.351 | Q21: =IF(Hist_vol!Q21=0,0, Hist_expenditure!Q21*Assumptions!U$29/Hist_vol!Q21) -> 1222307.878 | R21: =IF(Hist_vol!R21=0,0, Hist_expenditure!R21*Assumptions!V$29/Hist_vol!R21) -> 2387120.264 | S21: =IF(Hist_vol!S21=0,0, Hist_expenditure!S21*Assumptions!W$29/Hist_vol!S21) -> 2498028.887
B22: =Hist_vol!B22 -> Connections | C22: =Hist_vol!C22 -> CI5 | D22: =Hist_vol!D22 -> Commercial/Industrial | E22: =Hist_vol!E22 -> Complex connection sub-transmission | G22: =IF(Hist_vol!G22=0,0, Hist_expenditure!G22*Assumptions!K$29/Hist_vol!G22) -> 0 | H22: =IF(Hist_vol!H22=0,0, Hist_expenditure!H22*Assumptions!L$29/Hist_vol!H22) -> 0 | I22: =IF(Hist_vol!I22=0,0, Hist_expenditure!I22*Assumptions!M$29/Hist_vol!I22) -> 0 | J22: =IF(Hist_vol!J22=0,0, Hist_expenditure!J22*Assumptions!N$29/Hist_vol!J22) -> 0 | K22: =IF(Hist_vol!K22=0,0, Hist_expenditure!K22*Assumptions!O$29/Hist_vol!K22) -> 0 | L22: =IF(Hist_vol!L22=0,0, Hist_expenditure!L22*Assumptions!P$29/Hist_vol!L22) -> 0 | M22: =IF(Hist_vol!M22=0,0, Hist_expenditure!M22*Assumptions!Q$29/Hist_vol!M22) -> 0 | N22: =IF(Hist_vol!N22=0,0, Hist_expenditure!N22*Assumptions!R$29/Hist_vol!N22) -> 0 | O22: =IF(Hist_vol!O22=0,0, Hist_expenditure!O22*Assumptions!S$29/Hist_vol!O22) -> 0 | P22: =IF(Hist_vol!P22=0,0, Hist_expenditure!P22*Assumptions!T$29/Hist_vol!P22) -> 0 | Q22: =IF(Hist_vol!Q22=0,0, Hist_expenditure!Q22*Assumptions!U$29/Hist_vol!Q22) -> 0 | R22: =IF(Hist_vol!R22=0,0, Hist_expenditure!R22*Assumptions!V$29/Hist_vol!R22) -> 0 | S22: =IF(Hist_vol!S22=0,0, Hist_expenditure!S22*Assumptions!W$29/Hist_vol!S22) -> 0
B23: =Hist_vol!B23 -> Connections | C23: =Hist_vol!C23 -> S1 | D23: =Hist_vol!D23 -> Subdivision | E23: =Hist_vol!E23 -> Complex connection LV | G23: =IF(Hist_vol!G23=0,0, Hist_expenditure!G23*Assumptions!K$29/Hist_vol!G23) -> 0 | H23: =IF(Hist_vol!H23=0,0, Hist_expenditure!H23*Assumptions!L$29/Hist_vol!H23) -> 0 | I23: =IF(Hist_vol!I23=0,0, Hist_expenditure!I23*Assumptions!M$29/Hist_vol!I23) -> 0 | J23: =IF(Hist_vol!J23=0,0, Hist_expenditure!J23*Assumptions!N$29/Hist_vol!J23) -> 0 | K23: =IF(Hist_vol!K23=0,0, Hist_expenditure!K23*Assumptions!O$29/Hist_vol!K23) -> 0 | L23: =IF(Hist_vol!L23=0,0, Hist_expenditure!L23*Assumptions!P$29/Hist_vol!L23) -> 0 | M23: =IF(Hist_vol!M23=0,0, Hist_expenditure!M23*Assumptions!Q$29/Hist_vol!M23) -> 0 | N23: =IF(Hist_vol!N23=0,0, Hist_expenditure!N23*Assumptions!R$29/Hist_vol!N23) -> 0 | O23: =IF(Hist_vol!O23=0,0, Hist_expenditure!O23*Assumptions!S$29/Hist_vol!O23) -> 0 | P23: =IF(Hist_vol!P23=0,0, Hist_expenditure!P23*Assumptions!T$29/Hist_vol!P23) -> 0 | Q23: =IF(Hist_vol!Q23=0,0, Hist_expenditure!Q23*Assumptions!U$29/Hist_vol!Q23) -> 0 | R23: =IF(Hist_vol!R23=0,0, Hist_expenditure!R23*Assumptions!V$29/Hist_vol!R23) -> 0 | S23: =IF(Hist_vol!S23=0,0, Hist_expenditure!S23*Assumptions!W$29/Hist_vol!S23) -> 0
B24: =Hist_vol!B24 -> Connections | C24: =Hist_vol!C24 -> S2 | D24: =Hist_vol!D24 -> Subdivision | E24: =Hist_vol!E24 -> Complex connection HV (no upstream asset works) | G24: =IF(Hist_vol!G24=0,0, Hist_expenditure!G24*Assumptions!K$29/Hist_vol!G24) -> 0 | H24: =IF(Hist_vol!H24=0,0, Hist_expenditure!H24*Assumptions!L$29/Hist_vol!H24) -> 0 | I24: =IF(Hist_vol!I24=0,0, Hist_expenditure!I24*Assumptions!M$29/Hist_vol!I24) -> 0 | J24: =IF(Hist_vol!J24=0,0, Hist_expenditure!J24*Assumptions!N$29/Hist_vol!J24) -> 0 | K24: =IF(Hist_vol!K24=0,0, Hist_expenditure!K24*Assumptions!O$29/Hist_vol!K24) -> 0 | L24: =IF(Hist_vol!L24=0,0, Hist_expenditure!L24*Assumptions!P$29/Hist_vol!L24) -> 0 | M24: =IF(Hist_vol!M24=0,0, Hist_expenditure!M24*Assumptions!Q$29/Hist_vol!M24) -> 0 | N24: =IF(Hist_vol!N24=0,0, Hist_expenditure!N24*Assumptions!R$29/Hist_vol!N24) -> 0 | O24: =IF(Hist_vol!O24=0,0, Hist_expenditure!O24*Assumptions!S$29/Hist_vol!O24) -> 0 | P24: =IF(Hist_vol!P24=0,0, Hist_expenditure!P24*Assumptions!T$29/Hist_vol!P24) -> 0 | Q24: =IF(Hist_vol!Q24=0,0, Hist_expenditure!Q24*Assumptions!U$29/Hist_vol!Q24) -> 0 | R24: =IF(Hist_vol!R24=0,0, Hist_expenditure!R24*Assumptions!V$29/Hist_vol!R24) -> 0 | S24: =IF(Hist_vol!S24=0,0, Hist_expenditure!S24*Assumptions!W$29/Hist_vol!S24) -> 0
B25: =Hist_vol!B25 -> Connections | C25: =Hist_vol!C25 -> S3 | D25: =Hist_vol!D25 -> Subdivision | E25: =Hist_vol!E25 -> Complex connection HV (with upstream asset works) | G25: =IF(Hist_vol!G25=0,0, Hist_expenditure!G25*Assumptions!K$29/Hist_vol!G25) -> 0 | H25: =IF(Hist_vol!H25=0,0, Hist_expenditure!H25*Assumptions!L$29/Hist_vol!H25) -> 0 | I25: =IF(Hist_vol!I25=0,0, Hist_expenditure!I25*Assumptions!M$29/Hist_vol!I25) -> 0 | J25: =IF(Hist_vol!J25=0,0, Hist_expenditure!J25*Assumptions!N$29/Hist_vol!J25) -> 0 | K25: =IF(Hist_vol!K25=0,0, Hist_expenditure!K25*Assumptions!O$29/Hist_vol!K25) -> 0 | L25: =IF(Hist_vol!L25=0,0, Hist_expenditure!L25*Assumptions!P$29/Hist_vol!L25) -> 0 | M25: =IF(Hist_vol!M25=0,0, Hist_expenditure!M25*Assumptions!Q$29/Hist_vol!M25) -> 0 | N25: =IF(Hist_vol!N25=0,0, Hist_expenditure!N25*Assumptions!R$29/Hist_vol!N25) -> 0 | O25: =IF(Hist_vol!O25=0,0, Hist_expenditure!O25*Assumptions!S$29/Hist_vol!O25) -> 0 | P25: =IF(Hist_vol!P25=0,0, Hist_expenditure!P25*Assumptions!T$29/Hist_vol!P25) -> 0 | Q25: =IF(Hist_vol!Q25=0,0, Hist_expenditure!Q25*Assumptions!U$29/Hist_vol!Q25) -> 0 | R25: =IF(Hist_vol!R25=0,0, Hist_expenditure!R25*Assumptions!V$29/Hist_vol!R25) -> 0 | S25: =IF(Hist_vol!S25=0,0, Hist_expenditure!S25*Assumptions!W$29/Hist_vol!S25) -> 0
B26: =Hist_vol!B26 -> Connections | C26: =Hist_vol!C26 -> EG1 | D26: =Hist_vol!D26 -> Embedded generation | E26: =Hist_vol!E26 -> Simple connection LV | G26: =IF(Hist_vol!G26=0,0, Hist_expenditure!G26*Assumptions!K$29/Hist_vol!G26) -> 0 | H26: =IF(Hist_vol!H26=0,0, Hist_expenditure!H26*Assumptions!L$29/Hist_vol!H26) -> 0 | I26: =IF(Hist_vol!I26=0,0, Hist_expenditure!I26*Assumptions!M$29/Hist_vol!I26) -> 0 | J26: =IF(Hist_vol!J26=0,0, Hist_expenditure!J26*Assumptions!N$29/Hist_vol!J26) -> 0 | K26: =IF(Hist_vol!K26=0,0, Hist_expenditure!K26*Assumptions!O$29/Hist_vol!K26) -> 0 | L26: =IF(Hist_vol!L26=0,0, Hist_expenditure!L26*Assumptions!P$29/Hist_vol!L26) -> 0 | M26: =IF(Hist_vol!M26=0,0, Hist_expenditure!M26*Assumptions!Q$29/Hist_vol!M26) -> 0 | N26: =IF(Hist_vol!N26=0,0, Hist_expenditure!N26*Assumptions!R$29/Hist_vol!N26) -> 0 | O26: =IF(Hist_vol!O26=0,0, Hist_expenditure!O26*Assumptions!S$29/Hist_vol!O26) -> 753.0155343 | P26: =IF(Hist_vol!P26=0,0, Hist_expenditure!P26*Assumptions!T$29/Hist_vol!P26) -> 795.6839625 | Q26: =IF(Hist_vol!Q26=0,0, Hist_expenditure!Q26*Assumptions!U$29/Hist_vol!Q26) -> 767.3898469 | R26: =IF(Hist_vol!R26=0,0, Hist_expenditure!R26*Assumptions!V$29/Hist_vol!R26) -> 425.901861 | S26: =IF(Hist_vol!S26=0,0, Hist_expenditure!S26*Assumptions!W$29/Hist_vol!S26) -> 3211.865898
B27: =Hist_vol!B27 -> Connections | C27: =Hist_vol!C27 -> EG2 | D27: =Hist_vol!D27 -> Embedded generation | E27: =Hist_vol!E27 -> Complex connection HV (small capacity) | G27: =IF(Hist_vol!G27=0,0, Hist_expenditure!G27*Assumptions!K$29/Hist_vol!G27) -> 156548.1148 | H27: =IF(Hist_vol!H27=0,0, Hist_expenditure!H27*Assumptions!L$29/Hist_vol!H27) -> 110127.0334 | I27: =IF(Hist_vol!I27=0,0, Hist_expenditure!I27*Assumptions!M$29/Hist_vol!I27) -> 102316.4201 | J27: =IF(Hist_vol!J27=0,0, Hist_expenditure!J27*Assumptions!N$29/Hist_vol!J27) -> 107508.0064 | K27: =IF(Hist_vol!K27=0,0, Hist_expenditure!K27*Assumptions!O$29/Hist_vol!K27) -> 56539.34434 | L27: =IF(Hist_vol!L27=0,0, Hist_expenditure!L27*Assumptions!P$29/Hist_vol!L27) -> 40170.94891 | M27: =IF(Hist_vol!M27=0,0, Hist_expenditure!M27*Assumptions!Q$29/Hist_vol!M27) -> 51572.00791 | N27: =IF(Hist_vol!N27=0,0, Hist_expenditure!N27*Assumptions!R$29/Hist_vol!N27) -> 49768.68667 | O27: =IF(Hist_vol!O27=0,0, Hist_expenditure!O27*Assumptions!S$29/Hist_vol!O27) -> 0 | P27: =IF(Hist_vol!P27=0,0, Hist_expenditure!P27*Assumptions!T$29/Hist_vol!P27) -> 0 | Q27: =IF(Hist_vol!Q27=0,0, Hist_expenditure!Q27*Assumptions!U$29/Hist_vol!Q27) -> 0 | R27: =IF(Hist_vol!R27=0,0, Hist_expenditure!R27*Assumptions!V$29/Hist_vol!R27) -> 0 | S27: =IF(Hist_vol!S27=0,0, Hist_expenditure!S27*Assumptions!W$29/Hist_vol!S27) -> 0
B28: =Hist_vol!B28 -> Connections | C28: =Hist_vol!C28 -> EG3 | D28: =Hist_vol!D28 -> Embedded generation | E28: =Hist_vol!E28 -> Complex connection HV (large capacity) | G28: =IF(Hist_vol!G28=0,0, Hist_expenditure!G28*Assumptions!K$29/Hist_vol!G28) -> 0 | H28: =IF(Hist_vol!H28=0,0, Hist_expenditure!H28*Assumptions!L$29/Hist_vol!H28) -> 0 | I28: =IF(Hist_vol!I28=0,0, Hist_expenditure!I28*Assumptions!M$29/Hist_vol!I28) -> 0 | J28: =IF(Hist_vol!J28=0,0, Hist_expenditure!J28*Assumptions!N$29/Hist_vol!J28) -> 0 | K28: =IF(Hist_vol!K28=0,0, Hist_expenditure!K28*Assumptions!O$29/Hist_vol!K28) -> 0 | L28: =IF(Hist_vol!L28=0,0, Hist_expenditure!L28*Assumptions!P$29/Hist_vol!L28) -> 0 | M28: =IF(Hist_vol!M28=0,0, Hist_expenditure!M28*Assumptions!Q$29/Hist_vol!M28) -> 0 | N28: =IF(Hist_vol!N28=0,0, Hist_expenditure!N28*Assumptions!R$29/Hist_vol!N28) -> 0 | O28: =IF(Hist_vol!O28=0,0, Hist_expenditure!O28*Assumptions!S$29/Hist_vol!O28) -> 0 | P28: =IF(Hist_vol!P28=0,0, Hist_expenditure!P28*Assumptions!T$29/Hist_vol!P28) -> 0 | Q28: =IF(Hist_vol!Q28=0,0, Hist_expenditure!Q28*Assumptions!U$29/Hist_vol!Q28) -> 0 | R28: =IF(Hist_vol!R28=0,0, Hist_expenditure!R28*Assumptions!V$29/Hist_vol!R28) -> 0 | S28: =IF(Hist_vol!S28=0,0, Hist_expenditure!S28*Assumptions!W$29/Hist_vol!S28) -> 0

Sheet CC_ratio
A1: =Assumptions!$A$1 -> CitiPower
A2: =Assumptions!$A$2 -> Connections
A3: Customer contribution ratio
B7: =Assumptions!B17 -> 2026/7 - 2030/31 reg period | G7: =Assumptions!K17 -> FALSE | H7: =Assumptions!L17 -> FALSE | I7: =Assumptions!M17 -> FALSE | J7: =Assumptions!N17 -> FALSE | K7: =Assumptions!O17 -> FALSE | L7: =Assumptions!P17 -> FALSE | M7: =Assumptions!Q17 -> FALSE | N7: =Assumptions!R17 -> FALSE | O7: =Assumptions!S17 -> FALSE | P7: =Assumptions!T17 -> FALSE | Q7: =Assumptions!U17 -> FALSE | R7: =Assumptions!V17 -> FALSE | S7: =Assumptions!W17 -> FALSE | T7: =Assumptions!X17 -> FALSE | U7: =Assumptions!Y17 -> FALSE | V7: =Assumptions!Z17 -> TRUE | W7: =Assumptions!AA17 -> TRUE | X7: =Assumptions!AB17 -> TRUE | Y7: =Assumptions!AC17 -> TRUE | Z7: =Assumptions!AD17 -> TRUE
B8: =Assumptions!B18 -> Forecast period | G8: =Assumptions!K18 -> FALSE | H8: =Assumptions!L18 -> FALSE | I8: =Assumptions!M18 -> FALSE | J8: =Assumptions!N18 -> FALSE | K8: =Assumptions!O18 -> FALSE | L8: =Assumptions!P18 -> FALSE | M8: =Assumptions!Q18 -> FALSE | N8: =Assumptions!R18 -> FALSE | O8: =Assumptions!S18 -> FALSE | P8: =Assumptions!T18 -> FALSE | Q8: =Assumptions!U18 -> FALSE | R8: =Assumptions!V18 -> FALSE | S8: =Assumptions!W18 -> FALSE | T8: =Assumptions!X18 -> TRUE | U8: =Assumptions!Y18 -> TRUE | V8: =Assumptions!Z18 -> TRUE | W8: =Assumptions!AA18 -> TRUE | X8: =Assumptions!AB18 -> TRUE | Y8: =Assumptions!AC18 -> TRUE | Z8: =Assumptions!AD18 -> TRUE
B9: =Assumptions!B19 -> Fin year end | G9: =Assumptions!K19 -> 2012 | H9: =Assumptions!L19 -> 2013 | I9: =Assumptions!M19 -> 2014 | J9: =Assumptions!N19 -> 2015 | K9: =Assumptions!O19 -> 2016 | L9: =Assumptions!P19 -> 2017 | M9: =Assumptions!Q19 -> 2018 | N9: =Assumptions!R19 -> 2019 | O9: =Assumptions!S19 -> 2020 | P9: =Assumptions!T19 -> 2021 | Q9: =Assumptions!U19 -> 2022 | R9: =Assumptions!V19 -> 2023 | S9: =Assumptions!W19 -> 2024 | T9: =Assumptions!X19 -> 2025 | U9: =Assumptions!Y19 -> 2026 | V9: =Assumptions!Z19 -> 2027 | W9: =Assumptions!AA19 -> 2028 | X9: =Assumptions!AB19 -> 2029 | Y9: =Assumptions!AC19 -> 2030 | Z9: =Assumptions!AD19 -> 2031
B10: =Assumptions!B20 -> Basis | G10: =Assumptions!K20 -> Actual | H10: =Assumptions!L20 -> Actual | I10: =Assumptions!M20 -> Actual | J10: =Assumptions!N20 -> Actual | K10: =Assumptions!O20 -> Actual | L10: =Assumptions!P20 -> Actual | M10: =Assumptions!Q20 -> Actual | N10: =Assumptions!R20 -> Actual | O10: =Assumptions!S20 -> Actual | P10: =Assumptions!T20 -> Actual | Q10: =Assumptions!U20 -> Actual | R10: =Assumptions!V20 -> Actual | S10: =Assumptions!W20 -> Actual | T10: =Assumptions!X20 -> Forecast | U10: =Assumptions!Y20 -> Forecast | V10: =Assumptions!Z20 -> Forecast | W10: =Assumptions!AA20 -> Forecast | X10: =Assumptions!AB20 -> Forecast | Y10: =Assumptions!AC20 -> Forecast | Z10: =Assumptions!AD20 -> Forecast
B13: =Hist_vol!B$13 -> Category | C13: Type | D13: =Hist_vol!D$13 -> RIN category | E13: =Hist_vol!E$13 -> Description | G13: =Assumptions!K$24 -> 2011/12 | H13: =Assumptions!L$24 -> 2012/13 | I13: =Assumptions!M$24 -> 2013/14 | J13: =Assumptions!N$24 -> 2014/15 | K13: =Assumptions!O$24 -> 2015/16 | L13: =Assumptions!P$24 -> 2016/17 | M13: =Assumptions!Q$24 -> 2017/18 | N13: =Assumptions!R$24 -> 2018/19 | O13: =Assumptions!S$24 -> 2019/20 | P13: =Assumptions!T$24 -> 2020/21 | Q13: =Assumptions!U$24 -> 2021/22 | R13: =Assumptions!V$24 -> 2022/23 | S13: =Assumptions!W$24 -> 2023/24 | T13: =Assumptions!X$24 -> 2024/25 | U13: =Assumptions!Y$24 -> 2025/26 | V13: =Assumptions!Z$24 -> 2026/27 | W13: =Assumptions!AA$24 -> 2027/28 | X13: =Assumptions!AB$24 -> 2028/29 | Y13: =Assumptions!AC$24 -> 2029/30 | Z13: =Assumptions!AD$24 -> 2030/31
B14: Contribution as % of spend
B15: =Hist_vol!B15 -> Connections | C15: =Hist_vol!C15 -> R1 | D15: =Hist_vol!D15 -> Residential | E15: =Hist_vol!E15 -> Simple connection LV | G15: =IF(Hist_expenditure!G15=0,0, Hist_contributions!G15/Hist_expenditure!G15) -> 0.2474850136 | H15: =IF(Hist_expenditure!H15=0,0, Hist_contributions!H15/Hist_expenditure!H15) -> 0.236925153 | I15: =IF(Hist_expenditure!I15=0,0, Hist_contributions!I15/Hist_expenditure!I15) -> 0.2452162088 | J15: =IF(Hist_expenditure!J15=0,0, Hist_contributions!J15/Hist_expenditure!J15) -> 0.2634446414 | K15: =IF(Hist_expenditure!K15=0,0, Hist_contributions!K15/Hist_expenditure!K15) -> 0.2809000731 | L15: =IF(Hist_expenditure!L15=0,0, Hist_contributions!L15/Hist_expenditure!L15) -> 0 | M15: =IF(Hist_expenditure!M15=0,0, Hist_contributions!M15/Hist_expenditure!M15) -> 0 | N15: =IF(Hist_expenditure!N15=0,0, Hist_contributions!N15/Hist_expenditure!N15) -> 0 | O15: =IF(Hist_expenditure!O15=0,0, Hist_contributions!O15/Hist_expenditure!O15) -> 0 | P15: =IF(Hist_expenditure!P15=0,0, Hist_contributions!P15/Hist_expenditure!P15) -> 0 | Q15: =IF(Hist_expenditure!Q15=0,0, Hist_contributions!Q15/Hist_expenditure!Q15) -> 0 | R15: =IF(Hist_expenditure!R15=0,0, Hist_contributions!R15/Hist_expenditure!R15) -> 0 | S15: =IF(Hist_expenditure!S15=0,0, Hist_contributions!S15/Hist_expenditure!S15) -> 0 | T15: 0 | U15: =$T15 -> 0 | V15: =$T15 -> 0 | W15: 0 | X15: 0 | Y15: 0 | Z15: 0
B16: =Hist_vol!B16 -> Connections | C16: =Hist_vol!C16 -> R2 | D16: =Hist_vol!D16 -> Residential | E16: =Hist_vol!E16 -> Complex connection LV | G16: =IF(Hist_expenditure!G16=0,0, Hist_contributions!G16/Hist_expenditure!G16) -> 0.2469660311 | H16: =IF(Hist_expenditure!H16=0,0, Hist_contributions!H16/Hist_expenditure!H16) -> 0.2366617239 | I16: =IF(Hist_expenditure!I16=0,0, Hist_contributions!I16/Hist_expenditure!I16) -> 0.2449364841 | J16: =IF(Hist_expenditure!J16=0,0, Hist_contributions!J16/Hist_expenditure!J16) -> 0.2638932412 | K16: =IF(Hist_expenditure!K16=0,0, Hist_contributions!K16/Hist_expenditure!K16) -> 0.388101154 | L16: =IF(Hist_expenditure!L16=0,0, Hist_contributions!L16/Hist_expenditure!L16) -> 0.5160788492 | M16: =IF(Hist_expenditure!M16=0,0, Hist_contributions!M16/Hist_expenditure!M16) -> 0.5323828617 | N16: =IF(Hist_expenditure!N16=0,0, Hist_contributions!N16/Hist_expenditure!N16) -> 0.5033121441 | O16: =IF(Hist_expenditure!O16=0,0, Hist_contributions!O16/Hist_expenditure!O16) -> 0.5122053307 | P16: =IF(Hist_expenditure!P16=0,0, Hist_contributions!P16/Hist_expenditure!P16) -> 0.512915962 | Q16: =IF(Hist_expenditure!Q16=0,0, Hist_contributions!Q16/Hist_expenditure!Q16) -> 0.6199370303 | R16: =IF(Hist_expenditure!R16=0,0, Hist_contributions!R16/Hist_expenditure!R16) -> 0.5063280987 | S16: =IF(Hist_expenditure!S16=0,0, Hist_contributions!S16/Hist_expenditure!S16) -> 0.6467988463 | T16: 0.5595542191 | U16: =$T16 -> 0.5595542191 | V16: 0.5595542191 | W16: 0.5595542191 | X16: 0.5595542191 | Y16: 0.5595542191 | Z16: 0.5595542191
B17: =Hist_vol!B17 -> Connections | C17: =Hist_vol!C17 -> R3 | D17: =Hist_vol!D17 -> Residential | E17: =Hist_vol!E17 -> Complex connection HV | G17: =IF(Hist_expenditure!G17=0,0, Hist_contributions!G17/Hist_expenditure!G17) -> 0.2469559277 | H17: =IF(Hist_expenditure!H17=0,0, Hist_contributions!H17/Hist_expenditure!H17) -> 0.236586457 | I17: =IF(Hist_expenditure!I17=0,0, Hist_contributions!I17/Hist_expenditure!I17) -> 0.2449694678 | J17: =IF(Hist_expenditure!J17=0,0, Hist_contributions!J17/Hist_expenditure!J17) -> 0.264132492 | K17: =IF(Hist_expenditure!K17=0,0, Hist_contributions!K17/Hist_expenditure!K17) -> 0.3628336753 | L17: =IF(Hist_expenditure!L17=0,0, Hist_contributions!L17/Hist_expenditure!L17) -> 0.5089192684 | M17: =IF(Hist_expenditure!M17=0,0, Hist_contributions!M17/Hist_expenditure!M17) -> 0.5291087479 | N17: =IF(Hist_expenditure!N17=0,0, Hist_contributions!N17/Hist_expenditure!N17) -> 0.503892946 | O17: =IF(Hist_expenditure!O17=0,0, Hist_contributions!O17/Hist_expenditure!O17) -> 0.4303808382 | P17: =IF(Hist_expenditure!P17=0,0, Hist_contributions!P17/Hist_expenditure!P17) -> 0.3244986905 | Q17: =IF(Hist_expenditure!Q17=0,0, Hist_contributions!Q17/Hist_expenditure!Q17) -> 0.5153509744 | R17: =IF(Hist_expenditure!R17=0,0, Hist_contributions!R17/Hist_expenditure!R17) -> 0.4433319462 | S17: =IF(Hist_expenditure!S17=0,0, Hist_contributions!S17/Hist_expenditure!S17) -> 0.5117747125 | T17: 0.6014428733 | U17: 0.6014428733 | V17: 0.6014428733 | W17: 0.6014428733 | X17: 0.6014428733 | Y17: 0.6014428733 | Z17: 0.6014428733
B18: =Hist_vol!B18 -> Connections | C18: =Hist_vol!C18 -> CI1 | D18: =Hist_vol!D18 -> Commercial/Industrial | E18: =Hist_vol!E18 -> Simple connection LV | G18: =IF(Hist_expenditure!G18=0,0, Hist_contributions!G18/Hist_expenditure!G18) -> 0.2471772628 | H18: =IF(Hist_expenditure!H18=0,0, Hist_contributions!H18/Hist_expenditure!H18) -> 0.2367800638 | I18: =IF(Hist_expenditure!I18=0,0, Hist_contributions!I18/Hist_expenditure!I18) -> 0.244866721 | J18: =IF(Hist_expenditure!J18=0,0, Hist_contributions!J18/Hist_expenditure!J18) -> 0.2652298688 | K18: =IF(Hist_expenditure!K18=0,0, Hist_contributions!K18/Hist_expenditure!K18) -> 0.3567553637 | L18: =IF(Hist_expenditure!L18=0,0, Hist_contributions!L18/Hist_expenditure!L18) -> 0.5123882025 | M18: =IF(Hist_expenditure!M18=0,0, Hist_contributions!M18/Hist_expenditure!M18) -> 0.5303227206 | N18: =IF(Hist_expenditure!N18=0,0, Hist_contributions!N18/Hist_expenditure!N18) -> 0.5038467413 | O18: =IF(Hist_expenditure!O18=0,0, Hist_contributions!O18/Hist_expenditure!O18) -> 0.4435057886 | P18: =IF(Hist_expenditure!P18=0,0, Hist_contributions!P18/Hist_expenditure!P18) -> 0.3995287389 | Q18: =IF(Hist_expenditure!Q18=0,0, Hist_contributions!Q18/Hist_expenditure!Q18) -> 0.5596735669 | R18: =IF(Hist_expenditure!R18=0,0, Hist_contributions!R18/Hist_expenditure!R18) -> 0.4244273766 | S18: =IF(Hist_expenditure!S18=0,0, Hist_contributions!S18/Hist_expenditure!S18) -> 0.4664664949 | T18: 0.4070111627 | U18: 0.4070111627 | V18: 0.4070111627 | W18: 0.4070111627 | X18: 0.4070111627 | Y18: 0.4070111627 | Z18: 0.4070111627
B19: =Hist_vol!B19 -> Connections | C19: =Hist_vol!C19 -> CI2 | D19: =Hist_vol!D19 -> Commercial/Industrial | E19: =Hist_vol!E19 -> Complex connection HV (customer connected at LV, minor HV works) | G19: =IF(Hist_expenditure!G19=0,0, Hist_contributions!G19/Hist_expenditure!G19) -> 0.3748708709 | H19: =IF(Hist_expenditure!H19=0,0, Hist_contributions!H19/Hist_expenditure!H19) -> 0.7589059363 | I19: =IF(Hist_expenditure!I19=0,0, Hist_contributions!I19/Hist_expenditure!I19) -> 0.9324943474 | J19: =IF(Hist_expenditure!J19=0,0, Hist_contributions!J19/Hist_expenditure!J19) -> 1.053597044 | K19: =IF(Hist_expenditure!K19=0,0, Hist_contributions!K19/Hist_expenditure!K19) -> 0.9814674904 | L19: =IF(Hist_expenditure!L19=0,0, Hist_contributions!L19/Hist_expenditure!L19) -> 0.9436222217 | M19: =IF(Hist_expenditure!M19=0,0, Hist_contributions!M19/Hist_expenditure!M19) -> 0.9679973612 | N19: =IF(Hist_expenditure!N19=0,0, Hist_contributions!N19/Hist_expenditure!N19) -> 0.9075614537 | O19: =IF(Hist_expenditure!O19=0,0, Hist_contributions!O19/Hist_expenditure!O19) -> 0.9562427391 | P19: =IF(Hist_expenditure!P19=0,0, Hist_contributions!P19/Hist_expenditure!P19) -> 1.030165352 | Q19: =IF(Hist_expenditure!Q19=0,0, Hist_contributions!Q19/Hist_expenditure!Q19) -> 1.181694238 | R19: =IF(Hist_expenditure!R19=0,0, Hist_contributions!R19/Hist_expenditure!R19) -> 1.024104068 | S19: =IF(Hist_expenditure!S19=0,0, Hist_contributions!S19/Hist_expenditure!S19) -> 1.021970719 | T19: 1 | U19: 1 | V19: 1 | W19: 1 | X19: 1 | Y19: 1 | Z19: 1
B20: =Hist_vol!B20 -> Connections | C20: =Hist_vol!C20 -> CI3 | D20: =Hist_vol!D20 -> Commercial/Industrial | E20: =Hist_vol!E20 -> Complex connection HV (customer connected at LV, upstream asset works) | G20: =IF(Hist_expenditure!G20=0,0, Hist_contributions!G20/Hist_expenditure!G20) -> 0.2470542083 | H20: =IF(Hist_expenditure!H20=0,0, Hist_contributions!H20/Hist_expenditure!H20) -> 0.2366030394 | I20: =IF(Hist_expenditure!I20=0,0, Hist_contributions!I20/Hist_expenditure!I20) -> 0.2449558365 | J20: =IF(Hist_expenditure!J20=0,0, Hist_contributions!J20/Hist_expenditure!J20) -> 0.2637945758 | K20: =IF(Hist_expenditure!K20=0,0, Hist_contributions!K20/Hist_expenditure!K20) -> 0.3630340957 | L20: =IF(Hist_expenditure!L20=0,0, Hist_contributions!L20/Hist_expenditure!L20) -> 0.5094599452 | M20: =IF(Hist_expenditure!M20=0,0, Hist_contributions!M20/Hist_expenditure!M20) -> 0.5294378725 | N20: =IF(Hist_expenditure!N20=0,0, Hist_contributions!N20/Hist_expenditure!N20) -> 0.5038485423 | O20: =IF(Hist_expenditure!O20=0,0, Hist_contributions!O20/Hist_expenditure!O20) -> 0.4317484497 | P20: =IF(Hist_expenditure!P20=0,0, Hist_contributions!P20/Hist_expenditure!P20) -> 0.3243558966 | Q20: =IF(Hist_expenditure!Q20=0,0, Hist_contributions!Q20/Hist_expenditure!Q20) -> 0.5142147979 | R20: =IF(Hist_expenditure!R20=0,0, Hist_contributions!R20/Hist_expenditure!R20) -> 0.434957473 | S20: =IF(Hist_expenditure!S20=0,0, Hist_contributions!S20/Hist_expenditure!S20) -> 0.5054890661 | T20: 0.6024595707 | U20: 0.6024595707 | V20: 0.6024595707 | W20: 0.6024595707 | X20: 0.6024595707 | Y20: 0.6024595707 | Z20: 0.6024595707
B21: =Hist_vol!B21 -> Connections | C21: =Hist_vol!C21 -> CI4 | D21: =Hist_vol!D21 -> Commercial/Industrial | E21: =Hist_vol!E21 -> Complex connection HV (customer connected at HV) | G21: =IF(Hist_expenditure!G21=0,0, Hist_contributions!G21/Hist_expenditure!G21) -> 0.2647633017 | H21: =IF(Hist_expenditure!H21=0,0, Hist_contributions!H21/Hist_expenditure!H21) -> 0 | I21: =IF(Hist_expenditure!I21=0,0, Hist_contributions!I21/Hist_expenditure!I21) -> 0.2464381396 | J21: =IF(Hist_expenditure!J21=0,0, Hist_contributions!J21/Hist_expenditure!J21) -> 0.2704089244 | K21: =IF(Hist_expenditure!K21=0,0, Hist_contributions!K21/Hist_expenditure!K21) -> 0.4124206487 | L21: =IF(Hist_expenditure!L21=0,0, Hist_contributions!L21/Hist_expenditure!L21) -> 0.4997911664 | M21: =IF(Hist_expenditure!M21=0,0, Hist_contributions!M21/Hist_expenditure!M21) -> 0.5397426873 | N21: =IF(Hist_expenditure!N21=0,0, Hist_contributions!N21/Hist_expenditure!N21) -> 0.5011425232 | O21: =IF(Hist_expenditure!O21=0,0, Hist_contributions!O21/Hist_expenditure!O21) -> 0.6289030118 | P21: =IF(Hist_expenditure!P21=0,0, Hist_contributions!P21/Hist_expenditure!P21) -> 0.5831714388 | Q21: =IF(Hist_expenditure!Q21=0,0, Hist_contributions!Q21/Hist_expenditure!Q21) -> 1.284321573 | R21: =IF(Hist_expenditure!R21=0,0, Hist_contributions!R21/Hist_expenditure!R21) -> 0.9816600303 | S21: =IF(Hist_expenditure!S21=0,0, Hist_contributions!S21/Hist_expenditure!S21) -> 0.8761330965 | T21: 0.9977410367 | U21: 0.9977410367 | V21: 0.9977410367 | W21: 0.9977410367 | X21: 0.9977410367 | Y21: 0.9977410367 | Z21: 0.9977410367
B22: =Hist_vol!B22 -> Connections | C22: =Hist_vol!C22 -> CI5 | D22: =Hist_vol!D22 -> Commercial/Industrial | E22: =Hist_vol!E22 -> Complex connection sub-transmission | G22: =IF(Hist_expenditure!G22=0,0, Hist_contributions!G22/Hist_expenditure!G22) -> 0 | H22: =IF(Hist_expenditure!H22=0,0, Hist_contributions!H22/Hist_expenditure!H22) -> 0 | I22: =IF(Hist_expenditure!I22=0,0, Hist_contributions!I22/Hist_expenditure!I22) -> 0 | J22: =IF(Hist_expenditure!J22=0,0, Hist_contributions!J22/Hist_expenditure!J22) -> 0 | K22: =IF(Hist_expenditure!K22=0,0, Hist_contributions!K22/Hist_expenditure!K22) -> 0 | L22: =IF(Hist_expenditure!L22=0,0, Hist_contributions!L22/Hist_expenditure!L22) -> 0 | M22: =IF(Hist_expenditure!M22=0,0, Hist_contributions!M22/Hist_expenditure!M22) -> 0 | N22: =IF(Hist_expenditure!N22=0,0, Hist_contributions!N22/Hist_expenditure!N22) -> 0 | O22: =IF(Hist_expenditure!O22=0,0, Hist_contributions!O22/Hist_expenditure!O22) -> 0 | P22: =IF(Hist_expenditure!P22=0,0, Hist_contributions!P22/Hist_expenditure!P22) -> 0 | Q22: =IF(Hist_expenditure!Q22=0,0, Hist_contributions!Q22/Hist_expenditure!Q22) -> 0 | R22: =IF(Hist_expenditure!R22=0,0, Hist_contributions!R22/Hist_expenditure!R22) -> 0 | S22: =IF(Hist_expenditure!S22=0,0, Hist_contributions!S22/Hist_expenditure!S22) -> 0 | T22: 0 | U22: 0 | V22: 0 | W22: 0 | X22: 0 | Y22: 0 | Z22: 0
B23: =Hist_vol!B23 -> Connections | C23: =Hist_vol!C23 -> S1 | D23: =Hist_vol!D23 -> Subdivision | E23: =Hist_vol!E23 -> Complex connection LV | G23: =IF(Hist_expenditure!G23=0,0, Hist_contributions!G23/Hist_expenditure!G23) -> 0 | H23: =IF(Hist_expenditure!H23=0,0, Hist_contributions!H23/Hist_expenditure!H23) -> 0 | I23: =IF(Hist_expenditure!I23=0,0, Hist_contributions!I23/Hist_expenditure!I23) -> 0 | J23: =IF(Hist_expenditure!J23=0,0, Hist_contributions!J23/Hist_expenditure!J23) -> 0 | K23: =IF(Hist_expenditure!K23=0,0, Hist_contributions!K23/Hist_expenditure!K23) -> 0 | L23: =IF(Hist_expenditure!L23=0,0, Hist_contributions!L23/Hist_expenditure!L23) -> 0 | M23: =IF(Hist_expenditure!M23=0,0, Hist_contributions!M23/Hist_expenditure!M23) -> 0 | N23: =IF(Hist_expenditure!N23=0,0, Hist_contributions!N23/Hist_expenditure!N23) -> 0 | O23: =IF(Hist_expenditure!O23=0,0, Hist_contributions!O23/Hist_expenditure!O23) -> 0 | P23: =IF(Hist_expenditure!P23=0,0, Hist_contributions!P23/Hist_expenditure!P23) -> 0 | Q23: =IF(Hist_expenditure!Q23=0,0, Hist_contributions!Q23/Hist_expenditure!Q23) -> 0 | R23: =IF(Hist_expenditure!R23=0,0, Hist_contributions!R23/Hist_expenditure!R23) -> 0 | S23: =IF(Hist_expenditure!S23=0,0, Hist_contributions!S23/Hist_expenditure!S23) -> 0 | T23: 0 | U23: 0 | V23: 0 | W23: 0 | X23: 0 | Y23: 0 | Z23: 0
B24: =Hist_vol!B24 -> Connections | C24: =Hist_vol!C24 -> S2 | D24: =Hist_vol!D24 -> Subdivision | E24: =Hist_vol!E24 -> Complex connection HV (no upstream asset works) | G24: =IF(Hist_expenditure!G24=0,0, Hist_contributions!G24/Hist_expenditure!G24) -> 0 | H24: =IF(Hist_expenditure!H24=0,0, Hist_contributions!H24/Hist_expenditure!H24) -> 0 | I24: =IF(Hist_expenditure!I24=0,0, Hist_contributions!I24/Hist_expenditure!I24) -> 0 | J24: =IF(Hist_expenditure!J24=0,0, Hist_contributions!J24/Hist_expenditure!J24) -> 0 | K24: =IF(Hist_expenditure!K24=0,0, Hist_contributions!K24/Hist_expenditure!K24) -> 0 | L24: =IF(Hist_expenditure!L24=0,0, Hist_contributions!L24/Hist_expenditure!L24) -> 0 | M24: =IF(Hist_expenditure!M24=0,0, Hist_contributions!M24/Hist_expenditure!M24) -> 0 | N24: =IF(Hist_expenditure!N24=0,0, Hist_contributions!N24/Hist_expenditure!N24) -> 0 | O24: =IF(Hist_expenditure!O24=0,0, Hist_contributions!O24/Hist_expenditure!O24) -> 0 | P24: =IF(Hist_expenditure!P24=0,0, Hist_contributions!P24/Hist_expenditure!P24) -> 0 | Q24: =IF(Hist_expenditure!Q24=0,0, Hist_contributions!Q24/Hist_expenditure!Q24) -> 0 | R24: =IF(Hist_expenditure!R24=0,0, Hist_contributions!R24/Hist_expenditure!R24) -> 0 | S24: =IF(Hist_expenditure!S24=0,0, Hist_contributions!S24/Hist_expenditure!S24) -> 0 | T24: 0 | U24: 0 | V24: 0 | W24: 0 | X24: 0 | Y24: 0 | Z24: 0
B25: =Hist_vol!B25 -> Connections | C25: =Hist_vol!C25 -> S3 | D25: =Hist_vol!D25 -> Subdivision | E25: =Hist_vol!E25 -> Complex connection HV (with upstream asset works) | G25: =IF(Hist_expenditure!G25=0,0, Hist_contributions!G25/Hist_expenditure!G25) -> 0 | H25: =IF(Hist_expenditure!H25=0,0, Hist_contributions!H25/Hist_expenditure!H25) -> 0 | I25: =IF(Hist_expenditure!I25=0,0, Hist_contributions!I25/Hist_expenditure!I25) -> 0 | J25: =IF(Hist_expenditure!J25=0,0, Hist_contributions!J25/Hist_expenditure!J25) -> 0 | K25: =IF(Hist_expenditure!K25=0,0, Hist_contributions!K25/Hist_expenditure!K25) -> 0 | L25: =IF(Hist_expenditure!L25=0,0, Hist_contributions!L25/Hist_expenditure!L25) -> 0 | M25: =IF(Hist_expenditure!M25=0,0, Hist_contributions!M25/Hist_expenditure!M25) -> 0 | N25: =IF(Hist_expenditure!N25=0,0, Hist_contributions!N25/Hist_expenditure!N25) -> 0 | O25: =IF(Hist_expenditure!O25=0,0, Hist_contributions!O25/Hist_expenditure!O25) -> 0 | P25: =IF(Hist_expenditure!P25=0,0, Hist_contributions!P25/Hist_expenditure!P25) -> 0 | Q25: =IF(Hist_expenditure!Q25=0,0, Hist_contributions!Q25/Hist_expenditure!Q25) -> 0 | R25: =IF(Hist_expenditure!R25=0,0, Hist_contributions!R25/Hist_expenditure!R25) -> 0 | S25: =IF(Hist_expenditure!S25=0,0, Hist_contributions!S25/Hist_expenditure!S25) -> 0 | T25: 0 | U25: 0 | V25: 0 | W25: 0 | X25: 0 | Y25: 0 | Z25: 0
B26: =Hist_vol!B26 -> Connections | C26: =Hist_vol!C26 -> EG1 | D26: =Hist_vol!D26 -> Embedded generation | E26: =Hist_vol!E26 -> Simple connection LV | G26: =IF(Hist_expenditure!G26=0,0, Hist_contributions!G26/Hist_expenditure!G26) -> 0 | H26: =IF(Hist_expenditure!H26=0,0, Hist_contributions!H26/Hist_expenditure!H26) -> 0 | I26: =IF(Hist_expenditure!I26=0,0, Hist_contributions!I26/Hist_expenditure!I26) -> 0 | J26: =IF(Hist_expenditure!J26=0,0, Hist_contributions!J26/Hist_expenditure!J26) -> 0 | K26: =IF(Hist_expenditure!K26=0,0, Hist_contributions!K26/Hist_expenditure!K26) -> 0 | L26: =IF(Hist_expenditure!L26=0,0, Hist_contributions!L26/Hist_expenditure!L26) -> 0 | M26: =IF(Hist_expenditure!M26=0,0, Hist_contributions!M26/Hist_expenditure!M26) -> 0 | N26: =IF(Hist_expenditure!N26=0,0, Hist_contributions!N26/Hist_expenditure!N26) -> 0 | O26: =IF(Hist_expenditure!O26=0,0, Hist_contributions!O26/Hist_expenditure!O26) -> 0.9597297297 | P26: =IF(Hist_expenditure!P26=0,0, Hist_contributions!P26/Hist_expenditure!P26) -> -0.3475404313 | Q26: =IF(Hist_expenditure!Q26=0,0, Hist_contributions!Q26/Hist_expenditure!Q26) -> 0.06757109314 | R26: =IF(Hist_expenditure!R26=0,0, Hist_contributions!R26/Hist_expenditure!R26) -> 0 | S26: =IF(Hist_expenditure!S26=0,0, Hist_contributions!S26/Hist_expenditure!S26) -> 0.1361746362 | T26: 1 | U26: 1 | V26: 1 | W26: 1 | X26: 1 | Y26: 1 | Z26: 1
B27: =Hist_vol!B27 -> Connections | C27: =Hist_vol!C27 -> EG2 | D27: =Hist_vol!D27 -> Embedded generation | E27: =Hist_vol!E27 -> Complex connection HV (small capacity) | G27: =IF(Hist_expenditure!G27=0,0, Hist_contributions!G27/Hist_expenditure!G27) -> 0.257007411 | H27: =IF(Hist_expenditure!H27=0,0, Hist_contributions!H27/Hist_expenditure!H27) -> 0.237898453 | I27: =IF(Hist_expenditure!I27=0,0, Hist_contributions!I27/Hist_expenditure!I27) -> 0.2443455904 | J27: =IF(Hist_expenditure!J27=0,0, Hist_contributions!J27/Hist_expenditure!J27) -> 0.2587086931 | K27: =IF(Hist_expenditure!K27=0,0, Hist_contributions!K27/Hist_expenditure!K27) -> 0.3265982679 | L27: =IF(Hist_expenditure!L27=0,0, Hist_contributions!L27/Hist_expenditure!L27) -> 0.5249953227 | M27: =IF(Hist_expenditure!M27=0,0, Hist_contributions!M27/Hist_expenditure!M27) -> 0.5478189468 | N27: =IF(Hist_expenditure!N27=0,0, Hist_contributions!N27/Hist_expenditure!N27) -> 0.5113770559 | O27: =IF(Hist_expenditure!O27=0,0, Hist_contributions!O27/Hist_expenditure!O27) -> 0 | P27: =IF(Hist_expenditure!P27=0,0, Hist_contributions!P27/Hist_expenditure!P27) -> 0 | Q27: =IF(Hist_expenditure!Q27=0,0, Hist_contributions!Q27/Hist_expenditure!Q27) -> 0 | R27: =IF(Hist_expenditure!R27=0,0, Hist_contributions!R27/Hist_expenditure!R27) -> 0 | S27: =IF(Hist_expenditure!S27=0,0, Hist_contributions!S27/Hist_expenditure!S27) -> 0 | T27: 1 | U27: 1 | V27: 1 | W27: 1 | X27: 1 | Y27: 1 | Z27: 1
B28: =Hist_vol!B28 -> Connections | C28: =Hist_vol!C28 -> EG3 | D28: =Hist_vol!D28 -> Embedded generation | E28: =Hist_vol!E28 -> Complex connection HV (large capacity) | G28: =IF(Hist_expenditure!G28=0,0, Hist_contributions!G28/Hist_expenditure!G28) -> 0 | H28: =IF(Hist_expenditure!H28=0,0, Hist_contributions!H28/Hist_expenditure!H28) -> 0 | I28: =IF(Hist_expenditure!I28=0,0, Hist_contributions!I28/Hist_expenditure!I28) -> 0 | J28: =IF(Hist_expenditure!J28=0,0, Hist_contributions!J28/Hist_expenditure!J28) -> 0 | K28: =IF(Hist_expenditure!K28=0,0, Hist_contributions!K28/Hist_expenditure!K28) -> 0 | L28: =IF(Hist_expenditure!L28=0,0, Hist_contributions!L28/Hist_expenditure!L28) -> 0 | M28: =IF(Hist_expenditure!M28=0,0, Hist_contributions!M28/Hist_expenditure!M28) -> 0 | N28: =IF(Hist_expenditure!N28=0,0, Hist_contributions!N28/Hist_expenditure!N28) -> 0 | O28: =IF(Hist_expenditure!O28=0,0, Hist_contributions!O28/Hist_expenditure!O28) -> 0 | P28: =IF(Hist_expenditure!P28=0,0, Hist_contributions!P28/Hist_expenditure!P28) -> 0 | Q28: =IF(Hist_expenditure!Q28=0,0, Hist_contributions!Q28/Hist_expenditure!Q28) -> 0 | R28: =IF(Hist_expenditure!R28=0,0, Hist_contributions!R28/Hist_expenditure!R28) -> 0 | S28: =IF(Hist_expenditure!S28=0,0, Hist_contributions!S28/Hist_expenditure!S28) -> 0 | T28: 1 | U28: 1 | V28: 1 | W28: 1 | X28: 1 | Y28: 1 | Z28: 1

Sheet Macromonitor
A1: =Assumptions!$A$1 -> CitiPower
A2: =Assumptions!$A$2 -> Connections
A3: Macromonitor Forecast
B6: Growth rate %
B7: Category | C7: Type | D7: =Hist_vol!D$13 -> RIN category | E7: =Hist_vol!E$13 -> Description | H7: 2023/24 | I7: 2024/25 | J7: 2025/26 | K7: 2026/27 | L7: 2027/28 | M7: 2028/29 | N7: 2029/30 | O7: 2030/31
I8: forecast | J8: forecast | K8: forecast | L8: forecast | M8: forecast | N8: forecast | O8: forecast
B9: Connections | C9: R1 | D9: Residential | E9: Simple connection LV | I9: =TRANSPOSE($M$38:$M$44) -> 0.1875898773 | J9: 0.3406160299 | K9: 0.1289554289 | L9: -0.04573465043 | M9: -0.09877461897 | N9: -0.03635323075 | O9: 0.05060250064
B10: Connections | C10: R2 | D10: Residential | E10: Complex connection LV | I10: =TRANSPOSE($M$38:$M$44) -> 0.1875898773 | J10: 0.3406160299 | K10: 0.1289554289 | L10: -0.04573465043 | M10: -0.09877461897 | N10: -0.03635323075 | O10: 0.05060250064
B11: Connections | C11: R3 | D11: Residential | E11: Complex connection HV | I11: =TRANSPOSE($M$38:$M$44) -> 0.1875898773 | J11: 0.3406160299 | K11: 0.1289554289 | L11: -0.04573465043 | M11: -0.09877461897 | N11: -0.03635323075 | O11: 0.05060250064
B12: Connections | C12: CI1 | D12: Commercial/Industrial | E12: Simple connection LV | I12: =TRANSPOSE($M$63:$M$69) -> -0.03566124409 | J12: 0.1024540175 | K12: -0.01694089206 | L12: 0.0299416419 | M12: 0.02656187709 | N12: 0.02065087901 | O12: 0.04189755595
B13: Connections | C13: CI2 | D13: Commercial/Industrial | E13: Complex connection HV (customer connected at LV, minor HV works) | I13: =TRANSPOSE($M$63:$M$69) -> -0.03566124409 | J13: 0.1024540175 | K13: -0.01694089206 | L13: 0.0299416419 | M13: 0.02656187709 | N13: 0.02065087901 | O13: 0.04189755595
B14: Connections | C14: CI3 | D14: Commercial/Industrial | E14: Complex connection HV (customer connected at LV, upstream asset works) | I14: =TRANSPOSE($M$63:$M$69) -> -0.03566124409 | J14: 0.1024540175 | K14: -0.01694089206 | L14: 0.0299416419 | M14: 0.02656187709 | N14: 0.02065087901 | O14: 0.04189755595
B15: Connections | C15: CI4 | D15: Commercial/Industrial | E15: Complex connection HV (customer connected at HV) | I15: =TRANSPOSE($M$63:$M$69) -> -0.03566124409 | J15: 0.1024540175 | K15: -0.01694089206 | L15: 0.0299416419 | M15: 0.02656187709 | N15: 0.02065087901 | O15: 0.04189755595
B16: Connections | C16: CI5 | D16: Commercial/Industrial | E16: Complex connection sub-transmission | I16: =TRANSPOSE($M$63:$M$69) -> -0.03566124409 | J16: 0.1024540175 | K16: -0.01694089206 | L16: 0.0299416419 | M16: 0.02656187709 | N16: 0.02065087901 | O16: 0.04189755595
B17: Connections | C17: S1 | D17: Subdivision | E17: Complex connection LV | I17: =TRANSPOSE($M$38:$M$44) -> 0.1875898773 | J17: 0.3406160299 | K17: 0.1289554289 | L17: -0.04573465043 | M17: -0.09877461897 | N17: -0.03635323075 | O17: 0.05060250064
B18: Connections | C18: S2 | D18: Subdivision | E18: Complex connection HV (no upstream asset works) | I18: =TRANSPOSE($M$38:$M$44) -> 0.1875898773 | J18: 0.3406160299 | K18: 0.1289554289 | L18: -0.04573465043 | M18: -0.09877461897 | N18: -0.03635323075 | O18: 0.05060250064
B19: Connections | C19: S3 | D19: Subdivision | E19: Complex connection HV (with upstream asset works) | I19: =TRANSPOSE($M$38:$M$44) -> 0.1875898773 | J19: 0.3406160299 | K19: 0.1289554289 | L19: -0.04573465043 | M19: -0.09877461897 | N19: -0.03635323075 | O19: 0.05060250064
B20: Connections | C20: EG1 | D20: Embedded generation | E20: Simple connection LV | I20: =TRANSPOSE($L$90:$L$96) -> -0.5999905957 | J20: 0.0001189940359 | K20: 2.000614166 | L20: 7.333705771 | M20: -0.0002346961364 | N20: -0.3000592304 | O20: -4.109546733e-06
B21: Connections | C21: EG2 | D21: Embedded generation | E21: Complex connection HV (small capacity) | I21: =TRANSPOSE($L$90:$L$96) -> -0.5999905957 | J21: 0.0001189940359 | K21: 2.000614166 | L21: 7.333705771 | M21: -0.0002346961364 | N21: -0.3000592304 | O21: -4.109546733e-06
B22: Connections | C22: EG3 | D22: Embedded generation | E22: Complex connection HV (large capacity) | I22: =TRANSPOSE($L$90:$L$96) -> -0.5999905957 | J22: 0.0001189940359 | K22: 2.000614166 | L22: 7.333705771 | M22: -0.0002346961364 | N22: -0.3000592304 | O22: -4.109546733e-06
B25: Residential
B26: Estimated Number of Dwellings Commenced
B27: Numbers
B28: Year Ended June | C28: CitiPower | E28: United Energy | G28: Powercor | I28: Other Regions | K28: Victoria
C31: Annual | D31: A%Ch | E31: Annual | F31: A%Ch | G31: Annual | H31: A%Ch | I31: Annual | J31: A%Ch | K31: Annual | L31: A%Ch
B32: 2020-06-01 | C32: 9151.604912 | E32: 10331.94036 | G32: 19144.34476 | I32: =K32-G32-E32-C32 -> 20095.10997 | K32: 58723
B33: 2021-06-01 | C33: 5240.671963 | D33: =((C33/C32-1)*100) -> -42.73494089 | E33: 11281.15188 | F33: =((E33/E32-1)*100) -> 9.18715637 | G33: 26755.96783 | H33: =((G33/G32-1)*100) -> 39.75912033 | I33: 24131.20833 | J33: =((I33/I32-1)*100) -> 20.08497774 | K33: 67409 | L33: =((K33/K32-1)*100) -> 14.79147864
B34: 2022-06-01 | C34: 7116.85873 | D34: 35.80050002 | E34: 12394.63589 | F34: 9.870304237 | G34: 23889.11063 | H34: -10.71483271 | I34: 23873.39475 | J34: -1.068382411 | K34: 67274 | L34: -0.2002699936
B35: 2023-06-01 | C35: 6485.291041 | D35: -8.874247938 | E35: 9143.662179 | F35: -26.22887626 | G35: 20837.03662 | H35: -12.77600518 | I35: 18420.01016 | J35: -22.84293728 | K35: 54886 | L35: -18.41424622
B36: 2024-06-01 | C36: 5971.463806 | D36: -7.922963387 | E36: 8803.296585 | F36: -3.722420921 | G36: 17906.95044 | H36: -14.06191403 | I36: 20421.18717 | J36: 10.86414714 | K36: 53102.898 | L36: -3.24873738
B37: Forecasts | M37: Growth rate - CitiPower
B38: 2025-06-01 | C38: 7091.649969 | D38: =((C38/C36-1)*100) -> 18.75898773 | E38: 10041.64462 | F38: =((E38/E36-1)*100) -> 14.0668672 | G38: 18869.2242 | H38: =((G38/G36-1)*100) -> 5.373744433 | I38: 20610.80793 | J38: =((I38/I36-1)*100) -> 0.9285491703 | K38: 56613.32672 | L38: =((K38/K36-1)*100) -> 6.610616089 | M38: =D38/100 -> 0.1875898773
B39: 2026-06-01 | C39: 9507.179627 | D39: 34.06160299 | E39: 11374.66807 | F39: 13.27495143 | G39: 21044.64047 | H39: 11.52891211 | I39: 23489.04902 | J39: 13.96471743 | K39: 65415.53719 | L39: 15.54794776 | M39: =D39/100 -> 0.3406160299
B40: 2027-06-01 | C40: 10733.18205 | D40: 12.89554289 | E40: 12856.02726 | F40: 13.02331798 | G40: 23650.93959 | H40: 12.38462176 | I40: 26650.82433 | J40: 13.46063568 | K40: 73890.97324 | L40: 12.95630429 | M40: 0.1289554289
B41: 2028-06-01 | C41: 10242.30372 | D41: -4.573465043 | E41: 12346.68326 | F41: -3.961908271 | G41: 23444.945 | H41: -0.8709784624 | I41: 25866.34153 | J41: -2.943559243 | K41: 71900.27351 | L41: -2.694104087 | M41: -0.04573465043
B42: 2029-06-01 | C42: 9230.624076 | D42: -9.877461897 | E42: 11726.66678 | F42: -5.021724997 | G42: 21992.43652 | H42: -6.195401543 | I42: 24373.69933 | J42: -5.770596485 | K42: 67323.4267 | L42: -6.365548534 | M42: -0.09877461897
B43: 2030-06-01 | C43: 8895.061069 | D43: -3.635323075 | E43: 11915.79058 | F43: 1.612766932 | G43: 22139.10006 | H43: 0.6668817382 | I43: 24706.46893 | J43: 1.365281447 | K43: 67656.42064 | L43: 0.49461822 | M43: -0.03635323075
B44: 2031-06-01 | C44: 9345.173403 | D44: 5.060250064 | E44: 12347.3263 | F44: 3.621545016 | G44: 22659.44723 | H44: 2.350353771 | I44: 25440.25029 | J44: 2.969996915 | K44: 69792.19723 | L44: 3.156798085 | M44: 0.05060250064
L45: Source: ABS & Macromonitor
B47: Non Residential
B48: Estimated Value of Non-Residential Building Work Done
B49: Chain Volume Measures - 2021/22 Prices
B51: Year Ended June | C51: CitiPower | E51: United Energy | G51: Powercor | I51: Other Regions | K51: Victoria
C54: $M | D54: A%Ch | E54: $M | F54: A%Ch | G54: $M | H54: A%Ch | I54: $M | J54: A%Ch | K54: $M | L54: A%Ch
B55: 2018-06-01 | C55: 4617.706984 | E55: 3085.425466 | G55: 3078.393559 | I55: 2750.088567 | K55: 13531.61438
B56: 2019-06-01 | C56: 5414.364119 | D56: =((C56/C55-1)*100) -> 17.25222362 | E56: 2732.822329 | F56: -11.42802316 | G56: 3069.916262 | H56: -0.2753805339 | I56: 3214.968335 | J56: =((I56/I55-1)*100) -> 16.90417441 | K56: 14432.07091 | L56: 6.654464963
B57: 2020-06-01 | C57: 5783.360619 | D57: 6.815140103 | E57: 2672.812028 | F57: -2.19590936 | G57: 3471.087807 | H57: 13.06783347 | I57: 3713.534434 | J57: =((I57/I56-1)*100) -> 15.50765193 | K57: 15640.79489 | L57: 8.375263547
B58: 2021-06-01 | C58: 4623.711045 | D58: -20.05148306 | E58: 2367.97981 | F58: -11.40492541 | G58: 3936.047586 | H58: 13.395218 | I58: 3635.537544 | J58: -2.10034109 | K58: 14563.27598 | L58: -6.889156921
B59: 2022-06-01 | C59: 4612.490685 | D59: -0.2426700043 | E59: 2719.491283 | F59: 14.84436106 | G59: 4173.997529 | H59: 6.045403097 | I59: 4036.716473 | J59: 11.03492741 | K59: 15542.69597 | L59: 6.72527243
B60: 2023-06-01 | C60: 4677.633719 | D60: 1.412317964 | E60: 3160.67025 | F60: 16.2228491 | G60: 4693.230325 | H60: 12.43970062 | I60: 4775.617756 | J60: 18.30451279 | K60: 17307.15205 | L60: 11.35231677
B61: 2024-06-01 | C61: 4095.957515 | D61: =((C61/C60-1)*100) -> -12.43526619 | E61: 2811.8486 | F61: =((E61/E60-1)*100) -> -11.03631896 | G61: 5243.690936 | H61: =((G61/G60-1)*100) -> 11.72882157 | I61: 5077.920582 | J61: =((I61/I60-1)*100) -> 6.330130282 | K61: 17229.41763 | L61: =((K61/K60-1)*100) -> -0.4491462122
B62: Forecasts | M62: Growth rate - CitiPower
B63: 2025-06-01 | C63: 3949.890574 | D63: =((C63/C61-1)*100) -> -3.566124409 | E63: 2222.570064 | F63: =((E63/E61-1)*100) -> -20.95697954 | G63: 4896.573766 | H63: =((G63/G61-1)*100) -> -6.619710702 | I63: 4771.749516 | J63: =((I63/I61-1)*100) -> -6.02945755 | K63: 15840.78392 | L63: =((K63/K61-1)*100) -> -8.059667147 | M63: =D63/100 -> -0.03566124409
B64: 2026-06-01 | C64: 4354.572732 | D64: =((C64/C63-1)*100) -> 10.24540175 | E64: 2382.112854 | F64: =((E64/E63-1)*100) -> 7.178301935 | G64: 4092.211891 | H64: =((G64/G63-1)*100) -> -16.42703477 | I64: 4324.213062 | J64: =((I64/I63-1)*100) -> -9.378875656 | K64: 15153.11054 | L64: =((K64/K63-1)*100) -> -4.341157511 | M64: =D64/100 -> 0.1024540175
B65: 2027-06-01 | C65: 4280.802386 | D65: -1.694089206 | E65: 2701.837951 | F65: 13.42191225 | G65: 4070.711392 | H65: -0.525400426 | I65: 4254.872517 | J65: -1.60354138 | K65: 15308.22425 | L65: 1.023642673 | M65: -0.01694089206
B66: 2028-06-01 | C66: 4408.976638 | D66: 2.99416419 | E66: 2824.678847 | F66: 4.546567838 | G66: 4159.253134 | H66: 2.175092605 | I66: 4228.747567 | J66: -0.6140007648 | K66: 15621.65619 | L66: 2.047474188 | M66: 0.0299416419
B67: 2029-06-01 | C67: 4526.087333 | D67: 2.656187709 | E67: 2872.701482 | F67: 1.700109583 | G67: 4177.15655 | H67: 0.4304478418 | I67: 4241.08493 | J67: 0.2917498084 | K67: 15817.0303 | L67: 1.250661948 | M67: 0.02656187709
B68: 2030-06-01 | C68: 4619.555015 | D68: 2.065087901 | E68: 2930.236252 | F68: 2.0028106 | G68: 4155.397996 | H68: -0.5208939105 | I68: 4244.783728 | J68: 0.08721348205 | K68: 15949.97299 | L68: 0.8405035141 | M68: 0.02065087901
B69: 2031-06-01 | C69: 4813.10308 | D69: 4.189755595 | E69: 2924.635358 | F69: -0.1911413793 | G69: 4154.016388 | H69: -0.03324851361 | I69: 4235.933224 | J69: -0.2085030496 | K69: 16127.68805 | L69: 1.114202884 | M69: 0.04189755595
L70: Source: ABS & Macromonitor
B72: Renewable
B73: Estimated Value of Renewable Energy Construction - less than 200 MW capacity - Citipower
B74: $ Million - Constant 2021/22 Prices
B75: Year Ended June | C75: Citipower
C76: Wind | E76: Solar | G76: Battery & Other | I76: Total renewables
C77: Annual | D77: A%Ch | E77: Annual | F77: A%Ch | G77: Annual | H77: A%Ch | I77: Annual | J77: A%Ch
B78: 2014-06-01 | C78: 0.3626281167 | D78: - | E78: 0 | F78: - | G78: 9.070271971e-07 | H78: - | I78: 0.3626290238 | J78: -
B79: 2015-06-01 | C79: 0.1330191923 | D79: - | E79: 0 | F79: - | G79: 6.170217137e-07 | H79: - | I79: 0.1330198093 | J79: -
B80: 2016-06-01 | C80: 0.2229375015 | D80: - | E80: 0 | F80: - | G80: 4.987560226e-07 | H80: - | I80: 0.2229380003 | J80: -
B81: 2017-06-01 | C81: 0.002272113058 | D81: - | E81: -0.003029484077 | F81: - | G81: 0.001136056529 | H81: - | I81: 0.0003786855096 | J81: -
B82: 2018-06-01 | C82: 0.003115658064 | D82: 37.12601375 | E82: -0.004154210752 | F82: 37.12601375 | G82: 0.001557829032 | H82: 37.12601375 | I82: 0.000519276344 | J82: 37.12601375
B83: 2019-06-01 | C83: 0.0033753008 | D83: 8.333479839 | E83: -0.004500401067 | F83: 8.333479839 | G83: 0.0016876504 | H83: 8.333479839 | I83: 0.0005625501334 | J83: 8.333479839
B84: 2020-06-01 | C84: 0.05668340614 | D84: 1579.358655 | E84: -0.07557787485 | F84: 1579.358655 | G84: 0.02834170307 | H84: 1579.358655 | I84: 0.009447234356 | J84: 1579.358655
B85: 2021-06-01 | C85: 0.04998682152 | D85: -11.81401238 | E85: -0.06664909536 | F85: -11.81401238 | G85: 0.02499341076 | H85: -11.81401238 | I85: 0.00833113692 | J85: -11.81401238
B86: 2022-06-01 | C86: 0.1888454216 | D86: 277.7904173 | E86: -0.2517938955 | F86: 277.7904173 | G86: 0.09442271081 | H86: 277.7904173 | I86: 0.03147423694 | J86: 277.7904173
B87: 2023-06-01 | C87: 0.2177250289 | D87: 15.29272303 | E87: -0.1092081097 | F87: -56.62797562 | G87: 0.08294286815 | H87: -12.15792531 | I87: 0.1914597873 | J87: 508.3063672 | K87: Excl batteries
B88: 2024-06-01 | C88: 0.06913279131 | D88: -68.24766006 | E88: -0.09217705508 | F88: -15.59504573 | G88: 0.06913279131 | H88: -16.65010765 | I88: 0.04608852754 | J88: -75.92782893 | K88: =SUM(C88,E88) -> -0.02304426377
B89: Forecasts | L89: Growth rate - CitiPower
B90: 2025-06-01 | C90: 0.02765376667 | D90: -59.99905957 | E90: -0.03687168889 | F90: -59.99905957 | G90: 0.04148065001 | H90: -39.99858935 | I90: 0.03226272778 | J90: -29.99835425 | K90: =SUM(C90,E90) -> -0.009217922223 | L90: =K90/K88-1 -> -0.5999905957
B91: 2026-06-01 | C91: 0.0276570573 | D91: 0.01189940359 | E91: -0.03687607641 | F91: 0.01189940359 | G91: 0.04148558596 | H91: 0.01189940359 | I91: 0.03226656685 | J91: 0.01189940359 | K91: -0.009219019101 | L91: =K91/K90-1 -> 0.0001189940359
B92: 2027-06-01 | C92: 0.08298815792 | D92: 200.0614166 | E92: -0.1106508772 | F92: 200.0614166 | G92: 0.04149407896 | H92: 0.02047218576 | I92: 0.01383135965 | J92: -57.13408335 | K92: -0.02766271931 | L92: =K92/K91-1 -> 2.000614166
B93: 2028-06-01 | C93: 0.1383197781 | D93: 66.67411543 | E93: -0.3688527417 | F93: 233.3482309 | G93: 0.04149593344 | H93: 0.004469256184 | I93: -0.1890370301 | J93: -1466.727747 | K93: -0.2305329635 | L93: 7.333705771
B94: 2029-06-01 | C94: 0.138287315 | D94: -0.02346961364 | E94: -0.3687661734 | F94: -0.02346961364 | G94: 0.2029884925 | H94: 389.1768318 | I94: -0.02749036583 | J94: -85.45768212 | K94: -0.2304788584 | L94: -0.0002346961364
B95: 2030-06-01 | C95: 0.2074134208 | D95: 49.98730777 | E95: -0.3687349703 | F95: -0.008461486174 | G95: 0.1946229265 | H95: -4.121202106 | I95: 0.033301377 | J95: -221.1383552 | K95: -0.1613215495 | L95: -0.3000592304
B96: 2031-06-01 | C96: 0.2074125684 | D96: -0.0004109546732 | E96: -0.3687334549 | F96: -0.0004109546733 | G96: 0.2029704826 | H96: 4.289091844 | I96: 0.04164959603 | J96: 25.06869017 | K96: -0.1613208865 | L96: -4.109546733e-06
J97: Source: ABS & Macromonitor

Sheet Growth_rates
A1: =Assumptions!$A$1 -> CitiPower
A2: =Assumptions!$A$2 -> Connections
A3: Growth rates
B7: =Assumptions!B17 -> 2026/7 - 2030/31 reg period | H7: =Assumptions!K17 -> FALSE | I7: =Assumptions!L17 -> FALSE | J7: =Assumptions!M17 -> FALSE | K7: =Assumptions!N17 -> FALSE | L7: =Assumptions!O17 -> FALSE | M7: =Assumptions!P17 -> FALSE | N7: =Assumptions!Q17 -> FALSE | O7: =Assumptions!R17 -> FALSE | P7: =Assumptions!S17 -> FALSE | Q7: =Assumptions!T17 -> FALSE | R7: =Assumptions!U17 -> FALSE | S7: =Assumptions!V17 -> FALSE | T7: =Assumptions!W17 -> FALSE | U7: =Assumptions!X17 -> FALSE | V7: =Assumptions!Y17 -> FALSE | W7: =Assumptions!Z17 -> TRUE | X7: =Assumptions!AA17 -> TRUE | Y7: =Assumptions!AB17 -> TRUE | Z7: =Assumptions!AC17 -> TRUE | AA7: =Assumptions!AD17 -> TRUE
B8: =Assumptions!B18 -> Forecast period | H8: =Assumptions!K18 -> FALSE | I8: =Assumptions!L18 -> FALSE | J8: =Assumptions!M18 -> FALSE | K8: =Assumptions!N18 -> FALSE | L8: =Assumptions!O18 -> FALSE | M8: =Assumptions!P18 -> FALSE | N8: =Assumptions!Q18 -> FALSE | O8: =Assumptions!R18 -> FALSE | P8: =Assumptions!S18 -> FALSE | Q8: =Assumptions!T18 -> FALSE | R8: =Assumptions!U18 -> FALSE | S8: =Assumptions!V18 -> FALSE | T8: =Assumptions!W18 -> FALSE | U8: =Assumptions!X18 -> TRUE | V8: =Assumptions!Y18 -> TRUE | W8: =Assumptions!Z18 -> TRUE | X8: =Assumptions!AA18 -> TRUE | Y8: =Assumptions!AB18 -> TRUE | Z8: =Assumptions!AC18 -> TRUE | AA8: =Assumptions!AD18 -> TRUE
B9: =Assumptions!B19 -> Fin year end | H9: =Assumptions!K19 -> 2012 | I9: =Assumptions!L19 -> 2013 | J9: =Assumptions!M19 -> 2014 | K9: =Assumptions!N19 -> 2015 | L9: =Assumptions!O19 -> 2016 | M9: =Assumptions!P19 -> 2017 | N9: =Assumptions!Q19 -> 2018 | O9: =Assumptions!R19 -> 2019 | P9: =Assumptions!S19 -> 2020 | Q9: =Assumptions!T19 -> 2021 | R9: =Assumptions!U19 -> 2022 | S9: =Assumptions!V19 -> 2023 | T9: =Assumptions!W19 -> 2024 | U9: =Assumptions!X19 -> 2025 | V9: =Assumptions!Y19 -> 2026 | W9: =Assumptions!Z19 -> 2027 | X9: =Assumptions!AA19 -> 2028 | Y9: =Assumptions!AB19 -> 2029 | Z9: =Assumptions!AC19 -> 2030 | AA9: =Assumptions!AD19 -> 2031
B10: =Assumptions!B20 -> Basis | H10: =Assumptions!K20 -> Actual | I10: =Assumptions!L20 -> Actual | J10: =Assumptions!M20 -> Actual | K10: =Assumptions!N20 -> Actual | L10: =Assumptions!O20 -> Actual | M10: =Assumptions!P20 -> Actual | N10: =Assumptions!Q20 -> Actual | O10: =Assumptions!R20 -> Actual | P10: =Assumptions!S20 -> Actual | Q10: =Assumptions!T20 -> Actual | R10: =Assumptions!U20 -> Actual | S10: =Assumptions!V20 -> Actual | T10: =Assumptions!W20 -> Actual | U10: =Assumptions!X20 -> Forecast | V10: =Assumptions!Y20 -> Forecast | W10: =Assumptions!Z20 -> Forecast | X10: =Assumptions!AA20 -> Forecast | Y10: =Assumptions!AB20 -> Forecast | Z10: =Assumptions!AC20 -> Forecast | AA10: =Assumptions!AD20 -> Forecast
B13: =Hist_vol!B$13 -> Category | C13: Type | D13: =Hist_vol!D$13 -> RIN category | E13: =Hist_vol!E$13 -> Description | H13: =Assumptions!K$24 -> 2011/12 | I13: =Assumptions!L$24 -> 2012/13 | J13: =Assumptions!M$24 -> 2013/14 | K13: =Assumptions!N$24 -> 2014/15 | L13: =Assumptions!O$24 -> 2015/16 | M13: =Assumptions!P$24 -> 2016/17 | N13: =Assumptions!Q$24 -> 2017/18 | O13: =Assumptions!R$24 -> 2018/19 | P13: =Assumptions!S$24 -> 2019/20 | Q13: =Assumptions!T$24 -> 2020/21 | R13: =Assumptions!U$24 -> 2021/22 | S13: =Assumptions!V$24 -> 2022/23 | T13: =Assumptions!W$24 -> 2023/24 | U13: =Assumptions!X$24 -> 2024/25 | V13: =Assumptions!Y$24 -> 2025/26 | W13: =Assumptions!Z$24 -> 2026/27 | X13: =Assumptions!AA$24 -> 2027/28 | Y13: =Assumptions!AB$24 -> 2028/29 | Z13: =Assumptions!AC$24 -> 2029/30 | AA13: =Assumptions!AD$24 -> 2030/31
B14: Compound growth | T14: Base year
B16: Connections | C16: Macromonitor | D16: =Hist_vol!D15 -> Residential | E16: =Hist_vol!E15 -> Simple connection LV | F16: =C16&D16&E16 -> MacromonitorResidentialSimple connection LV | T16: 1 | U16: =(1+Macromonitor!I9)*Growth_rates!T16 -> 1.187589877 | V16: =(1+Macromonitor!J9)*Growth_rates!U16 -> 1.592102027 | W16: =(1+Macromonitor!K9)*Growth_rates!V16 -> 1.797412226 | X16: =(1+Macromonitor!L9)*Growth_rates!W16 -> 1.715208206 | Y16: =(1+Macromonitor!M9)*Growth_rates!X16 -> 1.545789169 | Z16: =(1+Macromonitor!N9)*Growth_rates!Y16 -> 1.489594739 | AA16: =(1+Macromonitor!O9)*Growth_rates!Z16 -> 1.564971958
B17: Connections | C17: Macromonitor | D17: =Hist_vol!D16 -> Residential | E17: =Hist_vol!E16 -> Complex connection LV | F17: MacromonitorResidentialComplex connection LV | T17: 1 | U17: =(1+Macromonitor!I10)*Growth_rates!T17 -> 1.187589877 | V17: =(1+Macromonitor!J10)*Growth_rates!U17 -> 1.592102027 | W17: =(1+Macromonitor!K10)*Growth_rates!V17 -> 1.797412226 | X17: =(1+Macromonitor!L10)*Growth_rates!W17 -> 1.715208206 | Y17: =(1+Macromonitor!M10)*Growth_rates!X17 -> 1.545789169 | Z17: =(1+Macromonitor!N10)*Growth_rates!Y17 -> 1.489594739 | AA17: =(1+Macromonitor!O10)*Growth_rates!Z17 -> 1.564971958
B18: Connections | C18: Macromonitor | D18: =Hist_vol!D17 -> Residential | E18: =Hist_vol!E17 -> Complex connection HV | F18: MacromonitorResidentialComplex connection HV | T18: 1 | U18: =(1+Macromonitor!I11)*Growth_rates!T18 -> 1.187589877 | V18: =(1+Macromonitor!J11)*Growth_rates!U18 -> 1.592102027 | W18: =(1+Macromonitor!K11)*Growth_rates!V18 -> 1.797412226 | X18: =(1+Macromonitor!L11)*Growth_rates!W18 -> 1.715208206 | Y18: =(1+Macromonitor!M11)*Growth_rates!X18 -> 1.545789169 | Z18: =(1+Macromonitor!N11)*Growth_rates!Y18 -> 1.489594739 | AA18: =(1+Macromonitor!O11)*Growth_rates!Z18 -> 1.564971958
B19: Connections | C19: Macromonitor | D19: =Hist_vol!D18 -> Commercial/Industrial | E19: =Hist_vol!E18 -> Simple connection LV | F19: MacromonitorCommercial/IndustrialSimple connection LV | T19: 1 | U19: =(1+Macromonitor!I12)*Growth_rates!T19 -> 0.9643387559 | V19: =(1+Macromonitor!J12)*Growth_rates!U19 -> 1.063139136 | W19: =(1+Macromonitor!K12)*Growth_rates!V19 -> 1.04512861 | X19: =(1+Macromonitor!L12)*Growth_rates!W19 -> 1.076421477 | Y19: =(1+Macromonitor!M12)*Growth_rates!X19 -> 1.105013252 | Z19: =(1+Macromonitor!N12)*Growth_rates!Y19 -> 1.127832747 | AA19: =(1+Macromonitor!O12)*Growth_rates!Z19 -> 1.175086182
B20: Connections | C20: Macromonitor | D20: =Hist_vol!D19 -> Commercial/Industrial | E20: =Hist_vol!E19 -> Complex connection HV (customer connected at LV, minor HV works) | F20: MacromonitorCommercial/IndustrialComplex connection HV (customer connected at LV, minor HV works) | T20: 1 | U20: =(1+Macromonitor!I13)*Growth_rates!T20 -> 0.9643387559 | V20: =(1+Macromonitor!J13)*Growth_rates!U20 -> 1.063139136 | W20: =(1+Macromonitor!K13)*Growth_rates!V20 -> 1.04512861 | X20: =(1+Macromonitor!L13)*Growth_rates!W20 -> 1.076421477 | Y20: =(1+Macromonitor!M13)*Growth_rates!X20 -> 1.105013252 | Z20: =(1+Macromonitor!N13)*Growth_rates!Y20 -> 1.127832747 | AA20: =(1+Macromonitor!O13)*Growth_rates!Z20 -> 1.175086182
B21: Connections | C21: Macromonitor | D21: =Hist_vol!D20 -> Commercial/Industrial | E21: =Hist_vol!E20 -> Complex connection HV (customer connected at LV, upstream asset works) | F21: MacromonitorCommercial/IndustrialComplex connection HV (customer connected at LV, upstream asset works) | T21: 1 | U21: =(1+Macromonitor!I14)*Growth_rates!T21 -> 0.9643387559 | V21: =(1+Macromonitor!J14)*Growth_rates!U21 -> 1.063139136 | W21: =(1+Macromonitor!K14)*Growth_rates!V21 -> 1.04512861 | X21: =(1+Macromonitor!L14)*Growth_rates!W21 -> 1.076421477 | Y21: =(1+Macromonitor!M14)*Growth_rates!X21 -> 1.105013252 | Z21: =(1+Macromonitor!N14)*Growth_rates!Y21 -> 1.127832747 | AA21: =(1+Macromonitor!O14)*Growth_rates!Z21 -> 1.175086182
B22: Connections | C22: Macromonitor | D22: =Hist_vol!D21 -> Commercial/Industrial | E22: =Hist_vol!E21 -> Complex connection HV (customer connected at HV) | F22: MacromonitorCommercial/IndustrialComplex connection HV (customer connected at HV) | T22: 1 | U22: =(1+Macromonitor!I15)*Growth_rates!T22 -> 0.9643387559 | V22: =(1+Macromonitor!J15)*Growth_rates!U22 -> 1.063139136 | W22: =(1+Macromonitor!K15)*Growth_rates!V22 -> 1.04512861 | X22: =(1+Macromonitor!L15)*Growth_rates!W22 -> 1.076421477 | Y22: =(1+Macromonitor!M15)*Growth_rates!X22 -> 1.105013252 | Z22: =(1+Macromonitor!N15)*Growth_rates!Y22 -> 1.127832747 | AA22: =(1+Macromonitor!O15)*Growth_rates!Z22 -> 1.175086182
B23: Connections | C23: Macromonitor | D23: =Hist_vol!D22 -> Commercial/Industrial | E23: =Hist_vol!E22 -> Complex connection sub-transmission | F23: MacromonitorCommercial/IndustrialComplex connection sub-transmission | T23: 1 | U23: =(1+Macromonitor!I16)*Growth_rates!T23 -> 0.9643387559 | V23: =(1+Macromonitor!J16)*Growth_rates!U23 -> 1.063139136 | W23: =(1+Macromonitor!K16)*Growth_rates!V23 -> 1.04512861 | X23: =(1+Macromonitor!L16)*Growth_rates!W23 -> 1.076421477 | Y23: =(1+Macromonitor!M16)*Growth_rates!X23 -> 1.105013252 | Z23: =(1+Macromonitor!N16)*Growth_rates!Y23 -> 1.127832747 | AA23: =(1+Macromonitor!O16)*Growth_rates!Z23 -> 1.175086182
B24: Connections | C24: Macromonitor | D24: =Hist_vol!D23 -> Subdivision | E24: =Hist_vol!E23 -> Complex connection LV | F24: MacromonitorSubdivisionComplex connection LV | T24: 1 | U24: =(1+Macromonitor!I17)*Growth_rates!T24 -> 1.187589877 | V24: =(1+Macromonitor!J17)*Growth_rates!U24 -> 1.592102027 | W24: =(1+Macromonitor!K17)*Growth_rates!V24 -> 1.797412226 | X24: =(1+Macromonitor!L17)*Growth_rates!W24 -> 1.715208206 | Y24: =(1+Macromonitor!M17)*Growth_rates!X24 -> 1.545789169 | Z24: =(1+Macromonitor!N17)*Growth_rates!Y24 -> 1.489594739 | AA24: =(1+Macromonitor!O17)*Growth_rates!Z24 -> 1.564971958
B25: Connections | C25: Macromonitor | D25: =Hist_vol!D24 -> Subdivision | E25: =Hist_vol!E24 -> Complex connection HV (no upstream asset works) | F25: MacromonitorSubdivisionComplex connection HV (no upstream asset works) | T25: 1 | U25: =(1+Macromonitor!I18)*Growth_rates!T25 -> 1.187589877 | V25: =(1+Macromonitor!J18)*Growth_rates!U25 -> 1.592102027 | W25: =(1+Macromonitor!K18)*Growth_rates!V25 -> 1.797412226 | X25: =(1+Macromonitor!L18)*Growth_rates!W25 -> 1.715208206 | Y25: =(1+Macromonitor!M18)*Growth_rates!X25 -> 1.545789169 | Z25: =(1+Macromonitor!N18)*Growth_rates!Y25 -> 1.489594739 | AA25: =(1+Macromonitor!O18)*Growth_rates!Z25 -> 1.564971958
B26: Connections | C26: Macromonitor | D26: =Hist_vol!D25 -> Subdivision | E26: =Hist_vol!E25 -> Complex connection HV (with upstream asset works) | F26: MacromonitorSubdivisionComplex connection HV (with upstream asset works) | T26: 1 | U26: =(1+Macromonitor!I19)*Growth_rates!T26 -> 1.187589877 | V26: =(1+Macromonitor!J19)*Growth_rates!U26 -> 1.592102027 | W26: =(1+Macromonitor!K19)*Growth_rates!V26 -> 1.797412226 | X26: =(1+Macromonitor!L19)*Growth_rates!W26 -> 1.715208206 | Y26: =(1+Macromonitor!M19)*Growth_rates!X26 -> 1.545789169 | Z26: =(1+Macromonitor!N19)*Growth_rates!Y26 -> 1.489594739 | AA26: =(1+Macromonitor!O19)*Growth_rates!Z26 -> 1.564971958
B27: Connections | C27: Macromonitor | D27: =Hist_vol!D26 -> Embedded generation | E27: =Hist_vol!E26 -> Simple connection LV | F27: MacromonitorEmbedded generationSimple connection LV | T27: 1 | U27: =(1+Macromonitor!I20)*Growth_rates!T27 -> 0.4000094043 | V27: =(1+Macromonitor!J20)*Growth_rates!U27 -> 0.400057003 | W27: =(1+Macromonitor!K20)*Growth_rates!V27 -> 1.20041671 | X27: =(1+Macromonitor!L20)*Growth_rates!W27 -> 10.00391967 | Y27: =(1+Macromonitor!M20)*Growth_rates!X27 -> 10.00157179 | Z27: =(1+Macromonitor!N20)*Growth_rates!Y27 -> 7.000507853 | AA27: =(1+Macromonitor!O20)*Growth_rates!Z27 -> 7.000479084
B28: Connections | C28: Macromonitor | D28: =Hist_vol!D27 -> Embedded generation | E28: =Hist_vol!E27 -> Complex connection HV (small capacity) | F28: MacromonitorEmbedded generationComplex connection HV (small capacity) | T28: 1 | U28: =(1+Macromonitor!I21)*Growth_rates!T28 -> 0.4000094043 | V28: =(1+Macromonitor!J21)*Growth_rates!U28 -> 0.400057003 | W28: =(1+Macromonitor!K21)*Growth_rates!V28 -> 1.20041671 | X28: =(1+Macromonitor!L21)*Growth_rates!W28 -> 10.00391967 | Y28: =(1+Macromonitor!M21)*Growth_rates!X28 -> 10.00157179 | Z28: =(1+Macromonitor!N21)*Growth_rates!Y28 -> 7.000507853 | AA28: =(1+Macromonitor!O21)*Growth_rates!Z28 -> 7.000479084
B29: Connections | C29: Macromonitor | D29: =Hist_vol!D28 -> Embedded generation | E29: =Hist_vol!E28 -> Complex connection HV (large capacity) | F29: MacromonitorEmbedded generationComplex connection HV (large capacity) | T29: 1 | U29: =(1+Macromonitor!I22)*Growth_rates!T29 -> 0.4000094043 | V29: =(1+Macromonitor!J22)*Growth_rates!U29 -> 0.400057003 | W29: =(1+Macromonitor!K22)*Growth_rates!V29 -> 1.20041671 | X29: =(1+Macromonitor!L22)*Growth_rates!W29 -> 10.00391967 | Y29: =(1+Macromonitor!M22)*Growth_rates!X29 -> 10.00157179 | Z29: =(1+Macromonitor!N22)*Growth_rates!Y29 -> 7.000507853 | AA29: =(1+Macromonitor!O22)*Growth_rates!Z29 -> 7.000479084

Sheet Data Centres
A1: =Assumptions!$A$1 -> CitiPower
A2: =Assumptions!$A$2 -> Connections
A3: Data Centres
B7: =Assumptions!B17 -> 2026/7 - 2030/31 reg period | E7: =Assumptions!Z17 -> TRUE | F7: =Assumptions!AA17 -> TRUE | G7: =Assumptions!AB17 -> TRUE | H7: =Assumptions!AC17 -> TRUE | I7: =Assumptions!AD17 -> TRUE
B8: =Assumptions!B18 -> Forecast period | E8: =Assumptions!Z18 -> TRUE | F8: =Assumptions!AA18 -> TRUE | G8: =Assumptions!AB18 -> TRUE | H8: =Assumptions!AC18 -> TRUE | I8: =Assumptions!AD18 -> TRUE
B9: =Assumptions!B19 -> Fin year end | E9: =Assumptions!Z19 -> 2027 | F9: =Assumptions!AA19 -> 2028 | G9: =Assumptions!AB19 -> 2029 | H9: =Assumptions!AC19 -> 2030 | I9: =Assumptions!AD19 -> 2031
B10: =Assumptions!B20 -> Basis | E10: =Assumptions!Z20 -> Forecast | F10: =Assumptions!AA20 -> Forecast | G10: =Assumptions!AB20 -> Forecast | H10: =Assumptions!AC20 -> Forecast | I10: =Assumptions!AD20 -> Forecast
B13: =Hist_vol!B$13 -> Category | C13: =Hist_vol!C$13 -> Type | D13: =Hist_vol!D$13 -> RIN category | E13: =Assumptions!Z$24 -> 2026/27 | F13: =Assumptions!AA$24 -> 2027/28 | G13: =Assumptions!AB$24 -> 2028/29 | H13: =Assumptions!AC$24 -> 2029/30 | I13: =Assumptions!AD$24 -> 2030/31 | K13: 2026-31 Total
B14: Contributions exp ($ nominal)
B15: =Hist_expenditure!B15 -> Connections | C15: Data Centres | D15: Connected capacity (MW) | E15: 0 | F15: 0 | G15: 0 | H15: 61 | I15: 78 | K15: =SUM(E15:I15) -> 139
B16: =Hist_expenditure!B16 -> Connections | C16: Data Centres | D16: Gross capex | E16: =$E$19*E15 -> 0 | F16: =$E$19*F15 -> 0 | G16: =$E$19*G15 -> 0 | H16: =$E$19*H15 -> 55586250 | I16: =$E$19*I15 -> 71077500 | K16: =SUM(E16:I16) -> 126663750
B17: =Hist_expenditure!B18 -> Connections | C17: Data Centres | D17: Customer contribution | E17: =E16*$E$20 -> 0 | F17: =F16*$E$20 -> 0 | G17: =G16*$E$20 -> 0 | H17: =H16*$E$20 -> 47248312.5 | I17: =I16*$E$20 -> 60415875 | K17: 107664187.5
B19: Connections | C19: Data Centres | D19: Gross capex unit rate | E19: 911250
B20: Connections | C20: Data Centres | D20: Customer contribution rate | E20: 0.85

Sheet Forecast_vol
A1: =Assumptions!$A$1 -> CitiPower
A2: =Assumptions!$A$2 -> Connections
A3: Forecast volumes
B7: =Assumptions!B17 -> 2026/7 - 2030/31 reg period | H7: =Assumptions!K17 -> FALSE | I7: =Assumptions!L17 -> FALSE | J7: =Assumptions!M17 -> FALSE | K7: =Assumptions!N17 -> FALSE | L7: =Assumptions!O17 -> FALSE | M7: =Assumptions!P17 -> FALSE | N7: =Assumptions!Q17 -> FALSE | O7: =Assumptions!R17 -> FALSE | P7: =Assumptions!S17 -> FALSE | Q7: =Assumptions!T17 -> FALSE | R7: =Assumptions!U17 -> FALSE | S7: =Assumptions!V17 -> FALSE | T7: =Assumptions!W17 -> FALSE | U7: =Assumptions!X17 -> FALSE | V7: =Assumptions!Y17 -> FALSE | W7: =Assumptions!Z17 -> TRUE | X7: =Assumptions!AA17 -> TRUE | Y7: =Assumptions!AB17 -> TRUE | Z7: =Assumptions!AC17 -> TRUE | AA7: =Assumptions!AD17 -> TRUE
B8: =Assumptions!B18 -> Forecast period | H8: =Assumptions!K18 -> FALSE | I8: =Assumptions!L18 -> FALSE | J8: =Assumptions!M18 -> FALSE | K8: =Assumptions!N18 -> FALSE | L8: =Assumptions!O18 -> FALSE | M8: =Assumptions!P18 -> FALSE | N8: =Assumptions!Q18 -> FALSE | O8: =Assumptions!R18 -> FALSE | P8: =Assumptions!S18 -> FALSE | Q8: =Assumptions!T18 -> FALSE | R8: =Assumptions!U18 -> FALSE | S8: =Assumptions!V18 -> FALSE | T8: =Assumptions!W18 -> FALSE | U8: =Assumptions!X18 -> TRUE | V8: =Assumptions!Y18 -> TRUE | W8: =Assumptions!Z18 -> TRUE | X8: =Assumptions!AA18 -> TRUE | Y8: =Assumptions!AB18 -> TRUE | Z8: =Assumptions!AC18 -> TRUE | AA8: =Assumptions!AD18 -> TRUE
B9: =Assumptions!B19 -> Fin year end | H9: =Assumptions!K19 -> 2012 | I9: =Assumptions!L19 -> 2013 | J9: =Assumptions!M19 -> 2014 | K9: =Assumptions!N19 -> 2015 | L9: =Assumptions!O19 -> 2016 | M9: =Assumptions!P19 -> 2017 | N9: =Assumptions!Q19 -> 2018 | O9: =Assumptions!R19 -> 2019 | P9: =Assumptions!S19 -> 2020 | Q9: =Assumptions!T19 -> 2021 | R9: =Assumptions!U19 -> 2022 | S9: =Assumptions!V19 -> 2023 | T9: =Assumptions!W19 -> 2024 | U9: =Assumptions!X19 -> 2025 | V9: =Assumptions!Y19 -> 2026 | W9: =Assumptions!Z19 -> 2027 | X9: =Assumptions!AA19 -> 2028 | Y9: =Assumptions!AB19 -> 2029 | Z9: =Assumptions!AC19 -> 2030 | AA9: =Assumptions!AD19 -> 2031
B10: =Assumptions!B20 -> Basis | H10: =Assumptions!K20 -> Actual | I10: =Assumptions!L20 -> Actual | J10: =Assumptions!M20 -> Actual | K10: =Assumptions!N20 -> Actual | L10: =Assumptions!O20 -> Actual | M10: =Assumptions!P20 -> Actual | N10: =Assumptions!Q20 -> Actual | O10: =Assumptions!R20 -> Actual | P10: =Assumptions!S20 -> Actual | Q10: =Assumptions!T20 -> Actual | R10: =Assumptions!U20 -> Actual | S10: =Assumptions!V20 -> Actual | T10: =Assumptions!W20 -> Actual | U10: =Assumptions!X20 -> Forecast | V10: =Assumptions!Y20 -> Forecast | W10: =Assumptions!Z20 -> Forecast | X10: =Assumptions!AA20 -> Forecast | Y10: =Assumptions!AB20 -> Forecast | Z10: =Assumptions!AC20 -> Forecast | AA10: =Assumptions!AD20 -> Forecast
B13: =Hist_vol!B$13 -> Category | C13: Type | D13: =Hist_vol!D$13 -> RIN category | E13: =Hist_vol!E$13 -> Description | H13: =Assumptions!K$24 -> 2011/12 | I13: =Assumptions!L$24 -> 2012/13 | J13: =Assumptions!M$24 -> 2013/14 | K13: =Assumptions!N$24 -> 2014/15 | L13: =Assumptions!O$24 -> 2015/16 | M13: =Assumptions!P$24 -> 2016/17 | N13: =Assumptions!Q$24 -> 2017/18 | O13: =Assumptions!R$24 -> 2018/19 | P13: =Assumptions!S$24 -> 2019/20 | Q13: =Assumptions!T$24 -> 2020/21 | R13: =Assumptions!U$24 -> 2021/22 | S13: =Assumptions!V$24 -> 2022/23 | T13: =Assumptions!W$24 -> 2023/24 | U13: =Assumptions!X$24 -> 2024/25 | V13: =Assumptions!Y$24 -> 2025/26 | W13: =Assumptions!Z$24 -> 2026/27 | X13: =Assumptions!AA$24 -> 2027/28 | Y13: =Assumptions!AB$24 -> 2028/29 | Z13: =Assumptions!AC$24 -> 2029/30 | AA13: =Assumptions!AD$24 -> 2030/31
B15: Forecast volumes
B16: =Hist_vol!B15 -> Connections | C16: =Hist_vol!C15 -> R1 | D16: =Hist_vol!D15 -> Residential | E16: =Hist_vol!E15 -> Simple connection LV | H16: =IF(H$8, Hist_vol!$S15*Growth_rates!H16, Hist_vol!G15) -> 5225.283411 | I16: =IF(I$8, Hist_vol!$S15*Growth_rates!I16, Hist_vol!H15) -> 4933.709131 | J16: =IF(J$8, Hist_vol!$S15*Growth_rates!J16, Hist_vol!I15) -> 4386.972064 | K16: =IF(K$8, Hist_vol!$S15*Growth_rates!K16, Hist_vol!J15) -> 3782.81 | L16: =IF(L$8, Hist_vol!$S15*Growth_rates!L16, Hist_vol!K15) -> 1668.5 | M16: =IF(M$8, Hist_vol!$S15*Growth_rates!M16, Hist_vol!L15) -> 0 | N16: =IF(N$8, Hist_vol!$S15*Growth_rates!N16, Hist_vol!M15) -> 0 | O16: =IF(O$8, Hist_vol!$S15*Growth_rates!O16, Hist_vol!N15) -> 0 | P16: =IF(P$8, Hist_vol!$S15*Growth_rates!P16, Hist_vol!O15) -> 0 | Q16: =IF(Q$8, Hist_vol!$S15*Growth_rates!Q16, Hist_vol!P15) -> 0 | R16: =IF(R$8, Hist_vol!$S15*Growth_rates!R16, Hist_vol!Q15) -> 0 | S16: =IF(S$8, Hist_vol!$S15*Growth_rates!S16, Hist_vol!R15) -> 0 | T16: =IF(T$8, Hist_vol!$S15*Growth_rates!T16, Hist_vol!S15) -> 0 | U16: =IF(U$8, Hist_vol!$S15*Growth_rates!U16, Hist_vol!T15) -> 0 | V16: =IF(V$8, Hist_vol!$S15*Growth_rates!V16, Hist_vol!U15) -> 0 | W16: =IF(W$8, Hist_vol!$S15*Growth_rates!W16, Hist_vol!V15) -> 0 | X16: =IF(X$8, Hist_vol!$S15*Growth_rates!X16, Hist_vol!W15) -> 0 | Y16: =IF(Y$8, Hist_vol!$S15*Growth_rates!Y16, Hist_vol!X15) -> 0 | Z16: =IF(Z$8, Hist_vol!$S15*Growth_rates!Z16, Hist_vol!Y15) -> 0 | AA16: =IF(AA$8, Hist_vol!$S15*Growth_rates!AA16, Hist_vol!Z15) -> 0
B17: =Hist_vol!B16 -> Connections | C17: =Hist_vol!C16 -> R2 | D17: =Hist_vol!D16 -> Residential | E17: =Hist_vol!E16 -> Complex connection LV | H17: =IF(H$8, Hist_vol!$S16*Growth_rates!H17, Hist_vol!G16) -> 146 | I17: =IF(I$8, Hist_vol!$S16*Growth_rates!I17, Hist_vol!H16) -> 147 | J17: =IF(J$8, Hist_vol!$S16*Growth_rates!J17, Hist_vol!I16) -> 144.2401261 | K17: =IF(K$8, Hist_vol!$S16*Growth_rates!K17, Hist_vol!J16) -> 118.2401261 | L17: =IF(L$8, Hist_vol!$S16*Growth_rates!L17, Hist_vol!K16) -> 322 | M17: =IF(M$8, Hist_vol!$S16*Growth_rates!M17, Hist_vol!L16) -> 575.5 | N17: =IF(N$8, Hist_vol!$S16*Growth_rates!N17, Hist_vol!M16) -> 695.1466027 | O17: =IF(O$8, Hist_vol!$S16*Growth_rates!O17, Hist_vol!N16) -> 884.6466027 | P17: =IF(P$8, Hist_vol!$S16*Growth_rates!P17, Hist_vol!O16) -> 1001 | Q17: =IF(Q$8, Hist_vol!$S16*Growth_rates!Q17, Hist_vol!P16) -> 761 | R17: =IF(R$8, Hist_vol!$S16*Growth_rates!R17, Hist_vol!Q16) -> 632 | S17: =IF(S$8, Hist_vol!$S16*Growth_rates!S17, Hist_vol!R16) -> 617 | T17: =IF(T$8, Hist_vol!$S16*Growth_rates!T17, Hist_vol!S16) -> 522 | U17: =IF(U$8, Hist_vol!$S16*Growth_rates!U17, Hist_vol!T16) -> 619.921916 | V17: =IF(V$8, Hist_vol!$S16*Growth_rates!V17, Hist_vol!U16) -> 831.0772579 | W17: =IF(W$8, Hist_vol!$S16*Growth_rates!W17, Hist_vol!V16) -> 938.2491821 | X17: =IF(X$8, Hist_vol!$S16*Growth_rates!X17, Hist_vol!W16) -> 895.3386837 | Y17: =IF(Y$8, Hist_vol!$S16*Growth_rates!Y17, Hist_vol!X16) -> 806.9019464 | Z17: =IF(Z$8, Hist_vol!$S16*Growth_rates!Z17, Hist_vol!Y16) -> 777.5684537 | AA17: =IF(AA$8, Hist_vol!$S16*Growth_rates!AA17, Hist_vol!Z16) -> 816.9153619
B18: =Hist_vol!B17 -> Connections | C18: =Hist_vol!C17 -> R3 | D18: =Hist_vol!D17 -> Residential | E18: =Hist_vol!E17 -> Complex connection HV | H18: =IF(H$8, Hist_vol!$S17*Growth_rates!H18, Hist_vol!G17) -> 92.5 | I18: =IF(I$8, Hist_vol!$S17*Growth_rates!I18, Hist_vol!H17) -> 92.5 | J18: =IF(J$8, Hist_vol!$S17*Growth_rates!J18, Hist_vol!I17) -> 85.25699689 | K18: =IF(K$8, Hist_vol!$S17*Growth_rates!K18, Hist_vol!J17) -> 86.75699689 | L18: =IF(L$8, Hist_vol!$S17*Growth_rates!L18, Hist_vol!K17) -> 69.5 | M18: =IF(M$8, Hist_vol!$S17*Growth_rates!M18, Hist_vol!L17) -> 64 | N18: =IF(N$8, Hist_vol!$S17*Growth_rates!N18, Hist_vol!M17) -> 135.851315 | O18: =IF(O$8, Hist_vol!$S17*Growth_rates!O18, Hist_vol!N17) -> 149.351315 | P18: =IF(P$8, Hist_vol!$S17*Growth_rates!P18, Hist_vol!O17) -> 93 | Q18: =IF(Q$8, Hist_vol!$S17*Growth_rates!Q18, Hist_vol!P17) -> 64 | R18: =IF(R$8, Hist_vol!$S17*Growth_rates!R18, Hist_vol!Q17) -> 33 | S18: =IF(S$8, Hist_vol!$S17*Growth_rates!S18, Hist_vol!R17) -> 54 | T18: =IF(T$8, Hist_vol!$S17*Growth_rates!T18, Hist_vol!S17) -> 57 | U18: =IF(U$8, Hist_vol!$S17*Growth_rates!U18, Hist_vol!T17) -> 67.69262301 | V18: =IF(V$8, Hist_vol!$S17*Growth_rates!V18, Hist_vol!U17) -> 90.74981551 | W18: =IF(W$8, Hist_vol!$S17*Growth_rates!W18, Hist_vol!V17) -> 102.4524969 | X18: =IF(X$8, Hist_vol!$S17*Growth_rates!X18, Hist_vol!W17) -> 97.76686776 | Y18: =IF(Y$8, Hist_vol!$S17*Growth_rates!Y18, Hist_vol!X17) -> 88.10998265 | Z18: =IF(Z$8, Hist_vol!$S17*Growth_rates!Z18, Hist_vol!Y17) -> 84.90690012 | AA18: =IF(AA$8, Hist_vol!$S17*Growth_rates!AA18, Hist_vol!Z17) -> 89.20340159
B19: =Hist_vol!B18 -> Connections | C19: =Hist_vol!C18 -> CI1 | D19: =Hist_vol!D18 -> Commercial/Industrial | E19: =Hist_vol!E18 -> Simple connection LV | H19: =IF(H$8, Hist_vol!$S18*Growth_rates!H19, Hist_vol!G18) -> 1522 | I19: =IF(I$8, Hist_vol!$S18*Growth_rates!I19, Hist_vol!H18) -> 1693.5 | J19: =IF(J$8, Hist_vol!$S18*Growth_rates!J19, Hist_vol!I18) -> 1669.700539 | K19: =IF(K$8, Hist_vol!$S18*Growth_rates!K19, Hist_vol!J18) -> 1454.700539 | L19: =IF(L$8, Hist_vol!$S18*Growth_rates!L19, Hist_vol!K18) -> 683.5 | M19: =IF(M$8, Hist_vol!$S18*Growth_rates!M19, Hist_vol!L18) -> 21.95 | N19: =IF(N$8, Hist_vol!$S18*Growth_rates!N19, Hist_vol!M18) -> 31.17765371 | O19: =IF(O$8, Hist_vol!$S18*Growth_rates!O19, Hist_vol!N18) -> 30.22765371 | P19: =IF(P$8, Hist_vol!$S18*Growth_rates!P19, Hist_vol!O18) -> 27 | Q19: =IF(Q$8, Hist_vol!$S18*Growth_rates!Q19, Hist_vol!P18) -> 36 | R19: =IF(R$8, Hist_vol!$S18*Growth_rates!R19, Hist_vol!Q18) -> 32 | S19: =IF(S$8, Hist_vol!$S18*Growth_rates!S19, Hist_vol!R18) -> 36 | T19: =IF(T$8, Hist_vol!$S18*Growth_rates!T19, Hist_vol!S18) -> 26 | U19: =IF(U$8, Hist_vol!$S18*Growth_rates!U19, Hist_vol!T18) -> 25.07280765 | V19: =IF(V$8, Hist_vol!$S18*Growth_rates!V19, Hist_vol!U18) -> 27.64161753 | W19: =IF(W$8, Hist_vol!$S18*Growth_rates!W19, Hist_vol!V18) -> 27.17334387 | X19: =IF(X$8, Hist_vol!$S18*Growth_rates!X19, Hist_vol!W18) -> 27.9869584 | Y19: =IF(Y$8, Hist_vol!$S18*Growth_rates!Y19, Hist_vol!X18) -> 28.73034455 | Z19: =IF(Z$8, Hist_vol!$S18*Growth_rates!Z19, Hist_vol!Y18) -> 29.32365142 | AA19: =IF(AA$8, Hist_vol!$S18*Growth_rates!AA19, Hist_vol!Z18) -> 30.55224074
B20: =Hist_vol!B19 -> Connections | C20: =Hist_vol!C19 -> CI2 | D20: =Hist_vol!D19 -> Commercial/Industrial | E20: =Hist_vol!E19 -> Complex connection HV (customer connected at LV, minor HV works) | H20: =IF(H$8, Hist_vol!$S19*Growth_rates!H20, Hist_vol!G19) -> 0 | I20: =IF(I$8, Hist_vol!$S19*Growth_rates!I20, Hist_vol!H19) -> 0 | J20: =IF(J$8, Hist_vol!$S19*Growth_rates!J20, Hist_vol!I19) -> 0 | K20: =IF(K$8, Hist_vol!$S19*Growth_rates!K20, Hist_vol!J19) -> 0 | L20: =IF(L$8, Hist_vol!$S19*Growth_rates!L20, Hist_vol!K19) -> 273.455 | M20: =IF(M$8, Hist_vol!$S19*Growth_rates!M20, Hist_vol!L19) -> 228.455 | N20: =IF(N$8, Hist_vol!$S19*Growth_rates!N20, Hist_vol!M19) -> 232.9417489 | O20: =IF(O$8, Hist_vol!$S19*Growth_rates!O20, Hist_vol!N19) -> 203.4417489 | P20: =IF(P$8, Hist_vol!$S19*Growth_rates!P20, Hist_vol!O19) -> 146.5 | Q20: =IF(Q$8, Hist_vol!$S19*Growth_rates!Q20, Hist_vol!P19) -> 198 | R20: =IF(R$8, Hist_vol!$S19*Growth_rates!R20, Hist_vol!Q19) -> 145 | S20: =IF(S$8, Hist_vol!$S19*Growth_rates!S20, Hist_vol!R19) -> 124 | T20: =IF(T$8, Hist_vol!$S19*Growth_rates!T20, Hist_vol!S19) -> 178 | U20: =IF(U$8, Hist_vol!$S19*Growth_rates!U20, Hist_vol!T19) -> 171.6522986 | V20: =IF(V$8, Hist_vol!$S19*Growth_rates!V20, Hist_vol!U19) -> 189.2387661 | W20: =IF(W$8, Hist_vol!$S19*Growth_rates!W20, Hist_vol!V19) -> 186.0328926 | X20: =IF(X$8, Hist_vol!$S19*Growth_rates!X20, Hist_vol!W19) -> 191.6030229 | Y20: =IF(Y$8, Hist_vol!$S19*Growth_rates!Y20, Hist_vol!X19) -> 196.6923588 | Z20: =IF(Z$8, Hist_vol!$S19*Growth_rates!Z20, Hist_vol!Y19) -> 200.7542289 | AA20: =IF(AA$8, Hist_vol!$S19*Growth_rates!AA20, Hist_vol!Z19) -> 209.1653405
B21: =Hist_vol!B20 -> Connections | C21: =Hist_vol!C20 -> CI3 | D21: =Hist_vol!D20 -> Commercial/Industrial | E21: =Hist_vol!E20 -> Complex connection HV (customer connected at LV, upstream asset works) | H21: =IF(H$8, Hist_vol!$S20*Growth_rates!H21, Hist_vol!G20) -> 41.5 | I21: =IF(I$8, Hist_vol!$S20*Growth_rates!I21, Hist_vol!H20) -> 41 | J21: =IF(J$8, Hist_vol!$S20*Growth_rates!J21, Hist_vol!I20) -> 37.76807548 | K21: =IF(K$8, Hist_vol!$S20*Growth_rates!K21, Hist_vol!J20) -> 37.26807548 | L21: =IF(L$8, Hist_vol!$S20*Growth_rates!L21, Hist_vol!K20) -> 29.5 | M21: =IF(M$8, Hist_vol!$S20*Growth_rates!M21, Hist_vol!L20) -> 28.2 | N21: =IF(N$8, Hist_vol!$S20*Growth_rates!N21, Hist_vol!M20) -> 60.35999774 | O21: =IF(O$8, Hist_vol!$S20*Growth_rates!O21, Hist_vol!N20) -> 65.65999774 | P21: =IF(P$8, Hist_vol!$S20*Growth_rates!P21, Hist_vol!O20) -> 41.5 | Q21: =IF(Q$8, Hist_vol!$S20*Growth_rates!Q21, Hist_vol!P20) -> 29 | R21: =IF(R$8, Hist_vol!$S20*Growth_rates!R21, Hist_vol!Q20) -> 16 | S21: =IF(S$8, Hist_vol!$S20*Growth_rates!S21, Hist_vol!R20) -> 23 | T21: =IF(T$8, Hist_vol!$S20*Growth_rates!T21, Hist_vol!S20) -> 25 | U21: =IF(U$8, Hist_vol!$S20*Growth_rates!U21, Hist_vol!T20) -> 24.1084689 | V21: =IF(V$8, Hist_vol!$S20*Growth_rates!V21, Hist_vol!U20) -> 26.57847839 | W21: =IF(W$8, Hist_vol!$S20*Growth_rates!W21, Hist_vol!V20) -> 26.12821526 | X21: =IF(X$8, Hist_vol!$S20*Growth_rates!X21, Hist_vol!W20) -> 26.91053692 | Y21: =IF(Y$8, Hist_vol!$S20*Growth_rates!Y21, Hist_vol!X20) -> 27.6253313 | Z21: =IF(Z$8, Hist_vol!$S20*Growth_rates!Z21, Hist_vol!Y20) -> 28.19581867 | AA21: =IF(AA$8, Hist_vol!$S20*Growth_rates!AA21, Hist_vol!Z20) -> 29.37715456
B22: =Hist_vol!B21 -> Connections | C22: =Hist_vol!C21 -> CI4 | D22: =Hist_vol!D21 -> Commercial/Industrial | E22: =Hist_vol!E21 -> Complex connection HV (customer connected at HV) | H22: =IF(H$8, Hist_vol!$S21*Growth_rates!H22, Hist_vol!G21) -> 1 | I22: =IF(I$8, Hist_vol!$S21*Growth_rates!I22, Hist_vol!H21) -> 0.5 | J22: =IF(J$8, Hist_vol!$S21*Growth_rates!J22, Hist_vol!I21) -> 3.537009898 | K22: =IF(K$8, Hist_vol!$S21*Growth_rates!K22, Hist_vol!J21) -> 4.037009898 | L22: =IF(L$8, Hist_vol!$S21*Growth_rates!L22, Hist_vol!K21) -> 2 | M22: =IF(M$8, Hist_vol!$S21*Growth_rates!M22, Hist_vol!L21) -> 2.85 | N22: =IF(N$8, Hist_vol!$S21*Growth_rates!N22, Hist_vol!M21) -> 2.12338452 | O22: =IF(O$8, Hist_vol!$S21*Growth_rates!O22, Hist_vol!N21) -> 3.27338452 | P22: =IF(P$8, Hist_vol!$S21*Growth_rates!P22, Hist_vol!O21) -> 5 | Q22: =IF(Q$8, Hist_vol!$S21*Growth_rates!Q22, Hist_vol!P21) -> 2 | R22: =IF(R$8, Hist_vol!$S21*Growth_rates!R22, Hist_vol!Q21) -> 2 | S22: =IF(S$8, Hist_vol!$S21*Growth_rates!S22, Hist_vol!R21) -> 4 | T22: =IF(T$8, Hist_vol!$S21*Growth_rates!T22, Hist_vol!S21) -> 0.3 | U22: =IF(U$8, Hist_vol!$S21*Growth_rates!U22, Hist_vol!T21) -> 0.2893016268 | V22: =IF(V$8, Hist_vol!$S21*Growth_rates!V22, Hist_vol!U21) -> 0.3189417407 | W22: =IF(W$8, Hist_vol!$S21*Growth_rates!W22, Hist_vol!V21) -> 0.3135385831 | X22: =IF(X$8, Hist_vol!$S21*Growth_rates!X22, Hist_vol!W21) -> 0.3229264431 | Y22: =IF(Y$8, Hist_vol!$S21*Growth_rates!Y22, Hist_vol!X21) -> 0.3315039756 | Z22: =IF(Z$8, Hist_vol!$S21*Growth_rates!Z22, Hist_vol!Y21) -> 0.338349824 | AA22: =IF(AA$8, Hist_vol!$S21*Growth_rates!AA22, Hist_vol!Z21) -> 0.3525258547
B23: =Hist_vol!B22 -> Connections | C23: =Hist_vol!C22 -> CI5 | D23: =Hist_vol!D22 -> Commercial/Industrial | E23: =Hist_vol!E22 -> Complex connection sub-transmission | H23: =IF(H$8, Hist_vol!$S22*Growth_rates!H23, Hist_vol!G22) -> 0 | I23: =IF(I$8, Hist_vol!$S22*Growth_rates!I23, Hist_vol!H22) -> 0 | J23: =IF(J$8, Hist_vol!$S22*Growth_rates!J23, Hist_vol!I22) -> 0 | K23: =IF(K$8, Hist_vol!$S22*Growth_rates!K23, Hist_vol!J22) -> 0 | L23: =IF(L$8, Hist_vol!$S22*Growth_rates!L23, Hist_vol!K22) -> 0 | M23: =IF(M$8, Hist_vol!$S22*Growth_rates!M23, Hist_vol!L22) -> 0 | N23: =IF(N$8, Hist_vol!$S22*Growth_rates!N23, Hist_vol!M22) -> 0 | O23: =IF(O$8, Hist_vol!$S22*Growth_rates!O23, Hist_vol!N22) -> 0 | P23: =IF(P$8, Hist_vol!$S22*Growth_rates!P23, Hist_vol!O22) -> 0 | Q23: =IF(Q$8, Hist_vol!$S22*Growth_rates!Q23, Hist_vol!P22) -> 0 | R23: =IF(R$8, Hist_vol!$S22*Growth_rates!R23, Hist_vol!Q22) -> 0 | S23: =IF(S$8, Hist_vol!$S22*Growth_rates!S23, Hist_vol!R22) -> 0 | T23: =IF(T$8, Hist_vol!$S22*Growth_rates!T23, Hist_vol!S22) -> 0 | U23: =IF(U$8, Hist_vol!$S22*Growth_rates!U23, Hist_vol!T22) -> 0 | V23: =IF(V$8, Hist_vol!$S22*Growth_rates!V23, Hist_vol!U22) -> 0 | W23: =IF(W$8, Hist_vol!$S22*Growth_rates!W23, Hist_vol!V22) -> 0 | X23: =IF(X$8, Hist_vol!$S22*Growth_rates!X23, Hist_vol!W22) -> 0 | Y23: =IF(Y$8, Hist_vol!$S22*Growth_rates!Y23, Hist_vol!X22) -> 0 | Z23: =IF(Z$8, Hist_vol!$S22*Growth_rates!Z23, Hist_vol!Y22) -> 0 | AA23: =IF(AA$8, Hist_vol!$S22*Growth_rates!AA23, Hist_vol!Z22) -> 0
B24: =Hist_vol!B23 -> Connections | C24: =Hist_vol!C23 -> S1 | D24: =Hist_vol!D23 -> Subdivision | E24: =Hist_vol!E23 -> Complex connection LV | H24: =IF(H$8, Hist_vol!$S23*Growth_rates!H24, Hist_vol!G23) -> 0 | I24: =IF(I$8, Hist_vol!$S23*Growth_rates!I24, Hist_vol!H23) -> 0 | J24: =IF(J$8, Hist_vol!$S23*Growth_rates!J24, Hist_vol!I23) -> 0 | K24: =IF(K$8, Hist_vol!$S23*Growth_rates!K24, Hist_vol!J23) -> 0 | L24: =IF(L$8, Hist_vol!$S23*Growth_rates!L24, Hist_vol!K23) -> 0 | M24: =IF(M$8, Hist_vol!$S23*Growth_rates!M24, Hist_vol!L23) -> 0 | N24: =IF(N$8, Hist_vol!$S23*Growth_rates!N24, Hist_vol!M23) -> 0 | O24: =IF(O$8, Hist_vol!$S23*Growth_rates!O24, Hist_vol!N23) -> 0 | P24: =IF(P$8, Hist_vol!$S23*Growth_rates!P24, Hist_vol!O23) -> 0 | Q24: =IF(Q$8, Hist_vol!$S23*Growth_rates!Q24, Hist_vol!P23) -> 0 | R24: =IF(R$8, Hist_vol!$S23*Growth_rates!R24, Hist_vol!Q23) -> 0 | S24: =IF(S$8, Hist_vol!$S23*Growth_rates!S24, Hist_vol!R23) -> 0 | T24: =IF(T$8, Hist_vol!$S23*Growth_rates!T24, Hist_vol!S23) -> 0 | U24: =IF(U$8, Hist_vol!$S23*Growth_rates!U24, Hist_vol!T23) -> 0 | V24: =IF(V$8, Hist_vol!$S23*Growth_rates!V24, Hist_vol!U23) -> 0 | W24: =IF(W$8, Hist_vol!$S23*Growth_rates!W24, Hist_vol!V23) -> 0 | X24: =IF(X$8, Hist_vol!$S23*Growth_rates!X24, Hist_vol!W23) -> 0 | Y24: =IF(Y$8, Hist_vol!$S23*Growth_rates!Y24, Hist_vol!X23) -> 0 | Z24: =IF(Z$8, Hist_vol!$S23*Growth_rates!Z24, Hist_vol!Y23) -> 0 | AA24: =IF(AA$8, Hist_vol!$S23*Growth_rates!AA24, Hist_vol!Z23) -> 0
B25: =Hist_vol!B24 -> Connections | C25: =Hist_vol!C24 -> S2 | D25: =Hist_vol!D24 -> Subdivision | E25: =Hist_vol!E24 -> Complex connection HV (no upstream asset works) | H25: =IF(H$8, Hist_vol!$S24*Growth_rates!H25, Hist_vol!G24) -> 0 | I25: =IF(I$8, Hist_vol!$S24*Growth_rates!I25, Hist_vol!H24) -> 0 | J25: =IF(J$8, Hist_vol!$S24*Growth_rates!J25, Hist_vol!I24) -> 0 | K25: =IF(K$8, Hist_vol!$S24*Growth_rates!K25, Hist_vol!J24) -> 0 | L25: =IF(L$8, Hist_vol!$S24*Growth_rates!L25, Hist_vol!K24) -> 0 | M25: =IF(M$8, Hist_vol!$S24*Growth_rates!M25, Hist_vol!L24) -> 0 | N25: =IF(N$8, Hist_vol!$S24*Growth_rates!N25, Hist_vol!M24) -> 0 | O25: =IF(O$8, Hist_vol!$S24*Growth_rates!O25, Hist_vol!N24) -> 0 | P25: =IF(P$8, Hist_vol!$S24*Growth_rates!P25, Hist_vol!O24) -> 0 | Q25: =IF(Q$8, Hist_vol!$S24*Growth_rates!Q25, Hist_vol!P24) -> 0 | R25: =IF(R$8, Hist_vol!$S24*Growth_rates!R25, Hist_vol!Q24) -> 0 | S25: =IF(S$8, Hist_vol!$S24*Growth_rates!S25, Hist_vol!R24) -> 0 | T25: =IF(T$8, Hist_vol!$S24*Growth_rates!T25, Hist_vol!S24) -> 0 | U25: =IF(U$8, Hist_vol!$S24*Growth_rates!U25, Hist_vol!T24) -> 0 | V25: =IF(V$8, Hist_vol!$S24*Growth_rates!V25, Hist_vol!U24) -> 0 | W25: =IF(W$8, Hist_vol!$S24*Growth_rates!W25, Hist_vol!V24) -> 0 | X25: =IF(X$8, Hist_vol!$S24*Growth_rates!X25, Hist_vol!W24) -> 0 | Y25: =IF(Y$8, Hist_vol!$S24*Growth_rates!Y25, Hist_vol!X24) -> 0 | Z25: =IF(Z$8, Hist_vol!$S24*Growth_rates!Z25, Hist_vol!Y24) -> 0 | AA25: =IF(AA$8, Hist_vol!$S24*Growth_rates!AA25, Hist_vol!Z24) -> 0
B26: =Hist_vol!B25 -> Connections | C26: =Hist_vol!C25 -> S3 | D26: =Hist_vol!D25 -> Subdivision | E26: =Hist_vol!E25 -> Complex connection HV (with upstream asset works) | H26: =IF(H$8, Hist_vol!$S25*Growth_rates!H26, Hist_vol!G25) -> 0 | I26: =IF(I$8, Hist_vol!$S25*Growth_rates!I26, Hist_vol!H25) -> 0 | J26: =IF(J$8, Hist_vol!$S25*Growth_rates!J26, Hist_vol!I25) -> 0 | K26: =IF(K$8, Hist_vol!$S25*Growth_rates!K26, Hist_vol!J25) -> 0 | L26: =IF(L$8, Hist_vol!$S25*Growth_rates!L26, Hist_vol!K25) -> 0 | M26: =IF(M$8, Hist_vol!$S25*Growth_rates!M26, Hist_vol!L25) -> 0 | N26: =IF(N$8, Hist_vol!$S25*Growth_rates!N26, Hist_vol!M25) -> 0 | O26: =IF(O$8, Hist_vol!$S25*Growth_rates!O26, Hist_vol!N25) -> 0 | P26: =IF(P$8, Hist_vol!$S25*Growth_rates!P26, Hist_vol!O25) -> 0 | Q26: =IF(Q$8, Hist_vol!$S25*Growth_rates!Q26, Hist_vol!P25) -> 0 | R26: =IF(R$8, Hist_vol!$S25*Growth_rates!R26, Hist_vol!Q25) -> 0 | S26: =IF(S$8, Hist_vol!$S25*Growth_rates!S26, Hist_vol!R25) -> 0 | T26: =IF(T$8, Hist_vol!$S25*Growth_rates!T26, Hist_vol!S25) -> 0 | U26: =IF(U$8, Hist_vol!$S25*Growth_rates!U26, Hist_vol!T25) -> 0 | V26: =IF(V$8, Hist_vol!$S25*Growth_rates!V26, Hist_vol!U25) -> 0 | W26: =IF(W$8, Hist_vol!$S25*Growth_rates!W26, Hist_vol!V25) -> 0 | X26: =IF(X$8, Hist_vol!$S25*Growth_rates!X26, Hist_vol!W25) -> 0 | Y26: =IF(Y$8, Hist_vol!$S25*Growth_rates!Y26, Hist_vol!X25) -> 0 | Z26: =IF(Z$8, Hist_vol!$S25*Growth_rates!Z26, Hist_vol!Y25) -> 0 | AA26: =IF(AA$8, Hist_vol!$S25*Growth_rates!AA26, Hist_vol!Z25) -> 0
B27: =Hist_vol!B26 -> Connections | C27: =Hist_vol!C26 -> EG1 | D27: =Hist_vol!D26 -> Embedded generation | E27: =Hist_vol!E26 -> Simple connection LV | H27: =IF(H$8, Hist_vol!$S26*Growth_rates!H27, Hist_vol!G26) -> 0 | I27: =IF(I$8, Hist_vol!$S26*Growth_rates!I27, Hist_vol!H26) -> 0 | J27: =IF(J$8, Hist_vol!$S26*Growth_rates!J27, Hist_vol!I26) -> 0 | K27: =IF(K$8, Hist_vol!$S26*Growth_rates!K27, Hist_vol!J26) -> 0 | L27: =IF(L$8, Hist_vol!$S26*Growth_rates!L27, Hist_vol!K26) -> 0 | M27: =IF(M$8, Hist_vol!$S26*Growth_rates!M27, Hist_vol!L26) -> 0 | N27: =IF(N$8, Hist_vol!$S26*Growth_rates!N27, Hist_vol!M26) -> 0 | O27: =IF(O$8, Hist_vol!$S26*Growth_rates!O27, Hist_vol!N26) -> 0 | P27: =IF(P$8, Hist_vol!$S26*Growth_rates!P27, Hist_vol!O26) -> 3 | Q27: =IF(Q$8, Hist_vol!$S26*Growth_rates!Q27, Hist_vol!P26) -> 9 | R27: =IF(R$8, Hist_vol!$S26*Growth_rates!R27, Hist_vol!Q26) -> 12 | S27: =IF(S$8, Hist_vol!$S26*Growth_rates!S27, Hist_vol!R26) -> 4 | T27: =IF(T$8, Hist_vol!$S26*Growth_rates!T27, Hist_vol!S26) -> 4 | U27: =IF(U$8, Hist_vol!$S26*Growth_rates!U27, Hist_vol!T26) -> 1.600037617 | V27: =IF(V$8, Hist_vol!$S26*Growth_rates!V27, Hist_vol!U26) -> 1.600228012 | W27: =IF(W$8, Hist_vol!$S26*Growth_rates!W27, Hist_vol!V26) -> 4.801666842 | X27: =IF(X$8, Hist_vol!$S26*Growth_rates!X27, Hist_vol!W26) -> 40.01567867 | Y27: =IF(Y$8, Hist_vol!$S26*Growth_rates!Y27, Hist_vol!X26) -> 40.00628714 | Z27: =IF(Z$8, Hist_vol!$S26*Growth_rates!Z27, Hist_vol!Y26) -> 28.00203141 | AA27: =IF(AA$8, Hist_vol!$S26*Growth_rates!AA27, Hist_vol!Z26) -> 28.00191634
B28: =Hist_vol!B27 -> Connections | C28: =Hist_vol!C27 -> EG2 | D28: =Hist_vol!D27 -> Embedded generation | E28: =Hist_vol!E27 -> Complex connection HV (small capacity) | H28: =IF(H$8, Hist_vol!$S27*Growth_rates!H28, Hist_vol!G27) -> 4 | I28: =IF(I$8, Hist_vol!$S27*Growth_rates!I28, Hist_vol!H27) -> 3 | J28: =IF(J$8, Hist_vol!$S27*Growth_rates!J28, Hist_vol!I27) -> 2.629647267 | K28: =IF(K$8, Hist_vol!$S27*Growth_rates!K28, Hist_vol!J27) -> 1.129647267 | L28: =IF(L$8, Hist_vol!$S27*Growth_rates!L28, Hist_vol!K27) -> 1 | M28: =IF(M$8, Hist_vol!$S27*Growth_rates!M28, Hist_vol!L27) -> 1 | N28: =IF(N$8, Hist_vol!$S27*Growth_rates!N28, Hist_vol!M27) -> 0.6107102797 | O28: =IF(O$8, Hist_vol!$S27*Growth_rates!O28, Hist_vol!N27) -> 0.1107102797 | P28: =IF(P$8, Hist_vol!$S27*Growth_rates!P28, Hist_vol!O27) -> 0 | Q28: =IF(Q$8, Hist_vol!$S27*Growth_rates!Q28, Hist_vol!P27) -> 0 | R28: =IF(R$8, Hist_vol!$S27*Growth_rates!R28, Hist_vol!Q27) -> 0 | S28: =IF(S$8, Hist_vol!$S27*Growth_rates!S28, Hist_vol!R27) -> 0 | T28: =IF(T$8, Hist_vol!$S27*Growth_rates!T28, Hist_vol!S27) -> 0 | U28: =IF(U$8, Hist_vol!$S27*Growth_rates!U28, Hist_vol!T27) -> 0 | V28: =IF(V$8, Hist_vol!$S27*Growth_rates!V28, Hist_vol!U27) -> 0 | W28: =IF(W$8, Hist_vol!$S27*Growth_rates!W28, Hist_vol!V27) -> 0 | X28: =IF(X$8, Hist_vol!$S27*Growth_rates!X28, Hist_vol!W27) -> 0 | Y28: =IF(Y$8, Hist_vol!$S27*Growth_rates!Y28, Hist_vol!X27) -> 0 | Z28: =IF(Z$8, Hist_vol!$S27*Growth_rates!Z28, Hist_vol!Y27) -> 0 | AA28: =IF(AA$8, Hist_vol!$S27*Growth_rates!AA28, Hist_vol!Z27) -> 0
B29: =Hist_vol!B28 -> Connections | C29: =Hist_vol!C28 -> EG3 | D29: =Hist_vol!D28 -> Embedded generation | E29: =Hist_vol!E28 -> Complex connection HV (large capacity) | H29: =IF(H$8, Hist_vol!$S28*Growth_rates!H29, Hist_vol!G28) -> 0 | I29: =IF(I$8, Hist_vol!$S28*Growth_rates!I29, Hist_vol!H28) -> 0 | J29: =IF(J$8, Hist_vol!$S28*Growth_rates!J29, Hist_vol!I28) -> 0 | K29: =IF(K$8, Hist_vol!$S28*Growth_rates!K29, Hist_vol!J28) -> 0 | L29: =IF(L$8, Hist_vol!$S28*Growth_rates!L29, Hist_vol!K28) -> 0 | M29: =IF(M$8, Hist_vol!$S28*Growth_rates!M29, Hist_vol!L28) -> 0 | N29: =IF(N$8, Hist_vol!$S28*Growth_rates!N29, Hist_vol!M28) -> 0 | O29: =IF(O$8, Hist_vol!$S28*Growth_rates!O29, Hist_vol!N28) -> 0 | P29: =IF(P$8, Hist_vol!$S28*Growth_rates!P29, Hist_vol!O28) -> 0 | Q29: =IF(Q$8, Hist_vol!$S28*Growth_rates!Q29, Hist_vol!P28) -> 0 | R29: =IF(R$8, Hist_vol!$S28*Growth_rates!R29, Hist_vol!Q28) -> 0 | S29: =IF(S$8, Hist_vol!$S28*Growth_rates!S29, Hist_vol!R28) -> 0 | T29: =IF(T$8, Hist_vol!$S28*Growth_rates!T29, Hist_vol!S28) -> 0 | U29: =IF(U$8, Hist_vol!$S28*Growth_rates!U29, Hist_vol!T28) -> 0 | V29: =IF(V$8, Hist_vol!$S28*Growth_rates!V29, Hist_vol!U28) -> 0 | W29: =IF(W$8, Hist_vol!$S28*Growth_rates!W29, Hist_vol!V28) -> 0 | X29: =IF(X$8, Hist_vol!$S28*Growth_rates!X29, Hist_vol!W28) -> 0 | Y29: =IF(Y$8, Hist_vol!$S28*Growth_rates!Y29, Hist_vol!X28) -> 0 | Z29: =IF(Z$8, Hist_vol!$S28*Growth_rates!Z29, Hist_vol!Y28) -> 0 | AA29: =IF(AA$8, Hist_vol!$S28*Growth_rates!AA29, Hist_vol!Z28) -> 0

Sheet Forecast_spend
A1: =Assumptions!$A$1 -> CitiPower
A2: =Assumptions!$A$2 -> Connections
A3: Forecast gross capex
B7: =Assumptions!B17 -> 2026/7 - 2030/31 reg period | H7: =Assumptions!K17 -> FALSE | I7: =Assumptions!L17 -> FALSE | J7: =Assumptions!M17 -> FALSE | K7: =Assumptions!N17 -> FALSE | L7: =Assumptions!O17 -> FALSE | M7: =Assumptions!P17 -> FALSE | N7: =Assumptions!Q17 -> FALSE | O7: =Assumptions!R17 -> FALSE | P7: =Assumptions!S17 -> FALSE | Q7: =Assumptions!T17 -> FALSE | R7: =Assumptions!U17 -> FALSE | S7: =Assumptions!V17 -> FALSE | T7: =Assumptions!W17 -> FALSE | U7: =Assumptions!X17 -> FALSE | V7: =Assumptions!Y17 -> FALSE | W7: =Assumptions!Z17 -> TRUE | X7: =Assumptions!AA17 -> TRUE | Y7: =Assumptions!AB17 -> TRUE | Z7: =Assumptions!AC17 -> TRUE | AA7: =Assumptions!AD17 -> TRUE
B8: =Assumptions!B18 -> Forecast period | H8: =Assumptions!K18 -> FALSE | I8: =Assumptions!L18 -> FALSE | J8: =Assumptions!M18 -> FALSE | K8: =Assumptions!N18 -> FALSE | L8: =Assumptions!O18 -> FALSE | M8: =Assumptions!P18 -> FALSE | N8: =Assumptions!Q18 -> FALSE | O8: =Assumptions!R18 -> FALSE | P8: =Assumptions!S18 -> FALSE | Q8: =Assumptions!T18 -> FALSE | R8: =Assumptions!U18 -> FALSE | S8: =Assumptions!V18 -> FALSE | T8: =Assumptions!W18 -> FALSE | U8: =Assumptions!X18 -> TRUE | V8: =Assumptions!Y18 -> TRUE | W8: =Assumptions!Z18 -> TRUE | X8: =Assumptions!AA18 -> TRUE | Y8: =Assumptions!AB18 -> TRUE | Z8: =Assumptions!AC18 -> TRUE | AA8: =Assumptions!AD18 -> TRUE
B9: =Assumptions!B19 -> Fin year end | H9: =Assumptions!K19 -> 2012 | I9: =Assumptions!L19 -> 2013 | J9: =Assumptions!M19 -> 2014 | K9: =Assumptions!N19 -> 2015 | L9: =Assumptions!O19 -> 2016 | M9: =Assumptions!P19 -> 2017 | N9: =Assumptions!Q19 -> 2018 | O9: =Assumptions!R19 -> 2019 | P9: =Assumptions!S19 -> 2020 | Q9: =Assumptions!T19 -> 2021 | R9: =Assumptions!U19 -> 2022 | S9: =Assumptions!V19 -> 2023 | T9: =Assumptions!W19 -> 2024 | U9: =Assumptions!X19 -> 2025 | V9: =Assumptions!Y19 -> 2026 | W9: =Assumptions!Z19 -> 2027 | X9: =Assumptions!AA19 -> 2028 | Y9: =Assumptions!AB19 -> 2029 | Z9: =Assumptions!AC19 -> 2030 | AA9: =Assumptions!AD19 -> 2031
B10: =Assumptions!B20 -> Basis | H10: =Assumptions!K20 -> Actual | I10: =Assumptions!L20 -> Actual | J10: =Assumptions!M20 -> Actual | K10: =Assumptions!N20 -> Actual | L10: =Assumptions!O20 -> Actual | M10: =Assumptions!P20 -> Actual | N10: =Assumptions!Q20 -> Actual | O10: =Assumptions!R20 -> Actual | P10: =Assumptions!S20 -> Actual | Q10: =Assumptions!T20 -> Actual | R10: =Assumptions!U20 -> Actual | S10: =Assumptions!V20 -> Actual | T10: =Assumptions!W20 -> Actual | U10: =Assumptions!X20 -> Forecast | V10: =Assumptions!Y20 -> Forecast | W10: =Assumptions!Z20 -> Forecast | X10: =Assumptions!AA20 -> Forecast | Y10: =Assumptions!AB20 -> Forecast | Z10: =Assumptions!AC20 -> Forecast | AA10: =Assumptions!AD20 -> Forecast
B13: =Hist_vol!B$13 -> Category | C13: Type | D13: =Hist_vol!D$13 -> RIN category | E13: =Hist_vol!E$13 -> Description | H13: =Assumptions!K$24 -> 2011/12 | I13: =Assumptions!L$24 -> 2012/13 | J13: =Assumptions!M$24 -> 2013/14 | K13: =Assumptions!N$24 -> 2014/15 | L13: =Assumptions!O$24 -> 2015/16 | M13: =Assumptions!P$24 -> 2016/17 | N13: =Assumptions!Q$24 -> 2017/18 | O13: =Assumptions!R$24 -> 2018/19 | P13: =Assumptions!S$24 -> 2019/20 | Q13: =Assumptions!T$24 -> 2020/21 | R13: =Assumptions!U$24 -> 2021/22 | S13: =Assumptions!V$24 -> 2022/23 | T13: =Assumptions!W$24 -> 2023/24 | U13: =Assumptions!X$24 -> 2024/25 | V13: =Assumptions!Y$24 -> 2025/26 | W13: =Assumptions!Z$24 -> 2026/27 | X13: =Assumptions!AA$24 -> 2027/28 | Y13: =Assumptions!AB$24 -> 2028/29 | Z13: =Assumptions!AC$24 -> 2029/30 | AA13: =Assumptions!AD$24 -> 2030/31 | AC13: 2026-31 Total
B15: Forecast total spend (June 2026 $)
B16: =Hist_vol!B15 -> Connections | C16: =Hist_vol!C15 -> R1 | D16: =Hist_vol!D15 -> Residential | E16: =Hist_vol!E15 -> Simple connection LV | F16: =D16&" "&E16 -> Residential Simple connection LV | H16: =SUMPRODUCT(($F$38:$F$53=$F16)*(H$38:H$53)) -> 1544652.392 | I16: =SUMPRODUCT(($F$38:$F$53=$F16)*(I$38:I$53)) -> 1545137.522 | J16: =SUMPRODUCT(($F$38:$F$53=$F16)*(J$38:J$53)) -> 1886889.173 | K16: =SUMPRODUCT(($F$38:$F$53=$F16)*(K$38:K$53)) -> 2147237.14 | L16: =SUMPRODUCT(($F$38:$F$53=$F16)*(L$38:L$53)) -> 1043861.443 | M16: =SUMPRODUCT(($F$38:$F$53=$F16)*(M$38:M$53)) -> 0 | N16: =SUMPRODUCT(($F$38:$F$53=$F16)*(N$38:N$53)) -> 0 | O16: =SUMPRODUCT(($F$38:$F$53=$F16)*(O$38:O$53)) -> 0 | P16: =SUMPRODUCT(($F$38:$F$53=$F16)*(P$38:P$53)) -> 0 | Q16: =SUMPRODUCT(($F$38:$F$53=$F16)*(Q$38:Q$53)) -> 0 | R16: =SUMPRODUCT(($F$38:$F$53=$F16)*(R$38:R$53)) -> 0 | S16: =SUMPRODUCT(($F$38:$F$53=$F16)*(S$38:S$53)) -> 0 | T16: =SUMPRODUCT(($F$38:$F$53=$F16)*(T$38:T$53)) -> 0 | U16: =SUMPRODUCT(($F$38:$F$53=$F16)*(U$38:U$53)) -> 0 | V16: =SUMPRODUCT(($F$38:$F$53=$F16)*(V$38:V$53)) -> 0 | W16: =SUMPRODUCT(($F$38:$F$53=$F16)*(W$38:W$53)) -> 0 | X16: =SUMPRODUCT(($F$38:$F$53=$F16)*(X$38:X$53)) -> 0 | Y16: =SUMPRODUCT(($F$38:$F$53=$F16)*(Y$38:Y$53)) -> 0 | Z16: =SUMPRODUCT(($F$38:$F$53=$F16)*(Z$38:Z$53)) -> 0 | AA16: =SUMPRODUCT(($F$38:$F$53=$F16)*(AA$38:AA$53)) -> 0 | AC16: =SUMPRODUCT($H$7:$AA$7*$H16:$AA16) -> 0
B17: =Hist_vol!B16 -> Connections | C17: =Hist_vol!C16 -> R2 | D17: =Hist_vol!D16 -> Residential | E17: =Hist_vol!E16 -> Complex connection LV | F17: =D17&" "&E17 -> Residential Complex connection LV | H17: =SUMPRODUCT(($F$38:$F$53=$F17)*(H$38:H$53)) -> 11113201.86 | I17: =SUMPRODUCT(($F$38:$F$53=$F17)*(I$38:I$53)) -> 11006895.71 | J17: =SUMPRODUCT(($F$38:$F$53=$F17)*(J$38:J$53)) -> 10517105.79 | K17: =SUMPRODUCT(($F$38:$F$53=$F17)*(K$38:K$53)) -> 10327387.19 | L17: =SUMPRODUCT(($F$38:$F$53=$F17)*(L$38:L$53)) -> 12222731.93 | M17: =SUMPRODUCT(($F$38:$F$53=$F17)*(M$38:M$53)) -> 16101088.93 | N17: =SUMPRODUCT(($F$38:$F$53=$F17)*(N$38:N$53)) -> 18288373.07 | O17: =SUMPRODUCT(($F$38:$F$53=$F17)*(O$38:O$53)) -> 21554413.52 | P17: =SUMPRODUCT(($F$38:$F$53=$F17)*(P$38:P$53)) -> 24857125.62 | Q17: =SUMPRODUCT(($F$38:$F$53=$F17)*(Q$38:Q$53)) -> 26891198.73 | R17: =SUMPRODUCT(($F$38:$F$53=$F17)*(R$38:R$53)) -> 24170222.75 | S17: =SUMPRODUCT(($F$38:$F$53=$F17)*(S$38:S$53)) -> 26138200.94 | T17: =SUMPRODUCT(($F$38:$F$53=$F17)*(T$38:T$53)) -> 25144707.62 | U17: =SUMPRODUCT(($F$38:$F$53=$F17)*(U$38:U$53)) -> 29861600.24 | V17: =SUMPRODUCT(($F$38:$F$53=$F17)*(V$38:V$53)) -> 40032939.96 | W17: =SUMPRODUCT(($F$38:$F$53=$F17)*(W$38:W$53)) -> 45195404.9 | X17: =SUMPRODUCT(($F$38:$F$53=$F17)*(X$38:X$53)) -> 43128408.86 | Y17: =SUMPRODUCT(($F$38:$F$53=$F17)*(Y$38:Y$53)) -> 38868416.7 | Z17: =SUMPRODUCT(($F$38:$F$53=$F17)*(Z$38:Z$53)) -> 37455424.18 | AA17: =SUMPRODUCT(($F$38:$F$53=$F17)*(AA$38:AA$53)) -> 39350762.31 | AC17: =SUMPRODUCT($H$7:$AA$7*$H17:$AA17) -> 203998417
B18: =Hist_vol!B17 -> Connections | C18: =Hist_vol!C17 -> R3 | D18: =Hist_vol!D17 -> Residential | E18: =Hist_vol!E17 -> Complex connection HV | F18: Residential Complex connection HV | H18: =SUMPRODUCT(($F$38:$F$53=$F18)*(H$38:H$53)) -> 30438529.41 | I18: =SUMPRODUCT(($F$38:$F$53=$F18)*(I$38:I$53)) -> 29834167.52 | J18: =SUMPRODUCT(($F$38:$F$53=$F18)*(J$38:J$53)) -> 28813869.29 | K18: =SUMPRODUCT(($F$38:$F$53=$F18)*(K$38:K$53)) -> 29338895.49 | L18: =SUMPRODUCT(($F$38:$F$53=$F18)*(L$38:L$53)) -> 26598148.43 | M18: =SUMPRODUCT(($F$38:$F$53=$F18)*(M$38:M$53)) -> 22969073.62 | N18: =SUMPRODUCT(($F$38:$F$53=$F18)*(N$38:N$53)) -> 25944256.74 | O18: =SUMPRODUCT(($F$38:$F$53=$F18)*(O$38:O$53)) -> 31127648.26 | P18: =SUMPRODUCT(($F$38:$F$53=$F18)*(P$38:P$53)) -> 33796170.16 | Q18: =SUMPRODUCT(($F$38:$F$53=$F18)*(Q$38:Q$53)) -> 32337144.57 | R18: =SUMPRODUCT(($F$38:$F$53=$F18)*(R$38:R$53)) -> 18178717.5 | S18: =SUMPRODUCT(($F$38:$F$53=$F18)*(S$38:S$53)) -> 23967547.57 | T18: =SUMPRODUCT(($F$38:$F$53=$F18)*(T$38:T$53)) -> 26367127.53 | U18: =SUMPRODUCT(($F$38:$F$53=$F18)*(U$38:U$53)) -> 31313333.75 | V18: =SUMPRODUCT(($F$38:$F$53=$F18)*(V$38:V$53)) -> 41979157.18 | W18: =SUMPRODUCT(($F$38:$F$53=$F18)*(W$38:W$53)) -> 47392597.4 | X18: =SUMPRODUCT(($F$38:$F$53=$F18)*(X$38:X$53)) -> 45225113.52 | Y18: =SUMPRODUCT(($F$38:$F$53=$F18)*(Y$38:Y$53)) -> 40758020.17 | Z18: =SUMPRODUCT(($F$38:$F$53=$F18)*(Z$38:Z$53)) -> 39276334.45 | AA18: =SUMPRODUCT(($F$38:$F$53=$F18)*(AA$38:AA$53)) -> 41263815.19 | AC18: =SUMPRODUCT($H$7:$AA$7*$H18:$AA18) -> 213915880.7
B19: =Hist_vol!B18 -> Connections | C19: =Hist_vol!C18 -> CI1 | D19: =Hist_vol!D18 -> Commercial/Industrial | E19: =Hist_vol!E18 -> Simple connection LV | F19: Commercial/Industrial Simple connection LV | H19: =SUMPRODUCT(($F$38:$F$53=$F19)*(H$38:H$53)) -> 2960258.01 | I19: =SUMPRODUCT(($F$38:$F$53=$F19)*(I$38:I$53)) -> 2948467.495 | J19: =SUMPRODUCT(($F$38:$F$53=$F19)*(J$38:J$53)) -> 2740542.682 | K19: =SUMPRODUCT(($F$38:$F$53=$F19)*(K$38:K$53)) -> 2782652.739 | L19: =SUMPRODUCT(($F$38:$F$53=$F19)*(L$38:L$53)) -> 2530417.869 | M19: =SUMPRODUCT(($F$38:$F$53=$F19)*(M$38:M$53)) -> 2187134.908 | N19: =SUMPRODUCT(($F$38:$F$53=$F19)*(N$38:N$53)) -> 2510665.943 | O19: =SUMPRODUCT(($F$38:$F$53=$F19)*(O$38:O$53)) -> 2897677.327 | P19: =SUMPRODUCT(($F$38:$F$53=$F19)*(P$38:P$53)) -> 3137399.945 | Q19: =SUMPRODUCT(($F$38:$F$53=$F19)*(Q$38:Q$53)) -> 3406750.911 | R19: =SUMPRODUCT(($F$38:$F$53=$F19)*(R$38:R$53)) -> 2783171.018 | S19: =SUMPRODUCT(($F$38:$F$53=$F19)*(S$38:S$53)) -> 3561179.146 | T19: =SUMPRODUCT(($F$38:$F$53=$F19)*(T$38:T$53)) -> 3405926.702 | U19: =SUMPRODUCT(($F$38:$F$53=$F19)*(U$38:U$53)) -> 3284467.118 | V19: =SUMPRODUCT(($F$38:$F$53=$F19)*(V$38:V$53)) -> 3620973.97 | W19: =SUMPRODUCT(($F$38:$F$53=$F19)*(W$38:W$53)) -> 3559631.44 | X19: =SUMPRODUCT(($F$38:$F$53=$F19)*(X$38:X$53)) -> 3666212.65 | Y19: =SUMPRODUCT(($F$38:$F$53=$F19)*(Y$38:Y$53)) -> 3763594.14 | Z19: =SUMPRODUCT(($F$38:$F$53=$F19)*(Z$38:Z$53)) -> 3841315.667 | AA19: =SUMPRODUCT(($F$38:$F$53=$F19)*(AA$38:AA$53)) -> 4002257.405 | AC19: =SUMPRODUCT($H$7:$AA$7*$H19:$AA19) -> 18833011.3
B20: =Hist_vol!B19 -> Connections | C20: =Hist_vol!C19 -> CI2 | D20: =Hist_vol!D19 -> Commercial/Industrial | E20: =Hist_vol!E19 -> Complex connection HV (customer connected at LV, minor HV works) | F20: Commercial/Industrial Complex connection HV (customer connected at LV, minor HV works) | H20: =SUMPRODUCT(($F$38:$F$53=$F20)*(H$38:H$53)) -> 14581083.61 | I20: =SUMPRODUCT(($F$38:$F$53=$F20)*(I$38:I$53)) -> 16586795.86 | J20: =SUMPRODUCT(($F$38:$F$53=$F20)*(J$38:J$53)) -> 13460733.1 | K20: =SUMPRODUCT(($F$38:$F$53=$F20)*(K$38:K$53)) -> 12825897.29 | L20: =SUMPRODUCT(($F$38:$F$53=$F20)*(L$38:L$53)) -> 20815084.95 | M20: =SUMPRODUCT(($F$38:$F$53=$F20)*(M$38:M$53)) -> 28060387.17 | N20: =SUMPRODUCT(($F$38:$F$53=$F20)*(N$38:N$53)) -> 30958770.56 | O20: =SUMPRODUCT(($F$38:$F$53=$F20)*(O$38:O$53)) -> 27326308.31 | P20: =SUMPRODUCT(($F$38:$F$53=$F20)*(P$38:P$53)) -> 27080832.18 | Q20: =SUMPRODUCT(($F$38:$F$53=$F20)*(Q$38:Q$53)) -> 30753205.39 | R20: =SUMPRODUCT(($F$38:$F$53=$F20)*(R$38:R$53)) -> 24310003.42 | S20: =SUMPRODUCT(($F$38:$F$53=$F20)*(S$38:S$53)) -> 53290639.69 | T20: =SUMPRODUCT(($F$38:$F$53=$F20)*(T$38:T$53)) -> 54344223.43 | U20: =SUMPRODUCT(($F$38:$F$53=$F20)*(U$38:U$53)) -> 33367993.79 | V20: =SUMPRODUCT(($F$38:$F$53=$F20)*(V$38:V$53)) -> 36786678.81 | W20: =SUMPRODUCT(($F$38:$F$53=$F20)*(W$38:W$53)) -> 36163479.66 | X20: =SUMPRODUCT(($F$38:$F$53=$F20)*(X$38:X$53)) -> 37246273.62 | Y20: =SUMPRODUCT(($F$38:$F$53=$F20)*(Y$38:Y$53)) -> 38235604.56 | Z20: =SUMPRODUCT(($F$38:$F$53=$F20)*(Z$38:Z$53)) -> 39025203.4 | AA20: =SUMPRODUCT(($F$38:$F$53=$F20)*(AA$38:AA$53)) -> 40660264.04 | AC20: =SUMPRODUCT($H$7:$AA$7*$H20:$AA20) -> 191330825.3
B21: =Hist_vol!B20 -> Connections | C21: =Hist_vol!C20 -> CI3 | D21: =Hist_vol!D20 -> Commercial/Industrial | E21: =Hist_vol!E20 -> Complex connection HV (customer connected at LV, upstream asset works) | F21: Commercial/Industrial Complex connection HV (customer connected at LV, upstream asset works) | H21: =SUMPRODUCT(($F$38:$F$53=$F21)*(H$38:H$53)) -> 13520242.67 | I21: =SUMPRODUCT(($F$38:$F$53=$F21)*(I$38:I$53)) -> 13210528.7 | J21: =SUMPRODUCT(($F$38:$F$53=$F21)*(J$38:J$53)) -> 12673593.1 | K21: =SUMPRODUCT(($F$38:$F$53=$F21)*(K$38:K$53)) -> 12535364.98 | L21: =SUMPRODUCT(($F$38:$F$53=$F21)*(L$38:L$53)) -> 11168969.02 | M21: =SUMPRODUCT(($F$38:$F$53=$F21)*(M$38:M$53)) -> 9739875.47 | N21: =SUMPRODUCT(($F$38:$F$53=$F21)*(N$38:N$53)) -> 10998561.92 | O21: =SUMPRODUCT(($F$38:$F$53=$F21)*(O$38:O$53)) -> 13208567.04 | P21: =SUMPRODUCT(($F$38:$F$53=$F21)*(P$38:P$53)) -> 14399560.33 | Q21: =SUMPRODUCT(($F$38:$F$53=$F21)*(Q$38:Q$53)) -> 13827670.06 | R21: =SUMPRODUCT(($F$38:$F$53=$F21)*(R$38:R$53)) -> 7832485.297 | S21: =SUMPRODUCT(($F$38:$F$53=$F21)*(S$38:S$53)) -> 10092957.05 | T21: =SUMPRODUCT(($F$38:$F$53=$F21)*(T$38:T$53)) -> 11262098.38 | U21: =SUMPRODUCT(($F$38:$F$53=$F21)*(U$38:U$53)) -> 10860477.94 | V21: =SUMPRODUCT(($F$38:$F$53=$F21)*(V$38:V$53)) -> 11973177.54 | W21: =SUMPRODUCT(($F$38:$F$53=$F21)*(W$38:W$53)) -> 11770341.23 | X21: =SUMPRODUCT(($F$38:$F$53=$F21)*(X$38:X$53)) -> 12122764.57 | Y21: =SUMPRODUCT(($F$38:$F$53=$F21)*(Y$38:Y$53)) -> 12444767.95 | Z21: =SUMPRODUCT(($F$38:$F$53=$F21)*(Z$38:Z$53)) -> 12701763.35 | AA21: =SUMPRODUCT(($F$38:$F$53=$F21)*(AA$38:AA$53)) -> 13233936.19 | AC21: =SUMPRODUCT($H$7:$AA$7*$H21:$AA21) -> 62273573.3
B22: =Hist_vol!B21 -> Connections | C22: =Hist_vol!C21 -> CI4 | D22: =Hist_vol!D21 -> Commercial/Industrial | E22: =Hist_vol!E21 -> Complex connection HV (customer connected at HV) | F22: Commercial/Industrial Complex connection HV (customer connected at HV) | H22: =SUMPRODUCT(($F$38:$F$53=$F22)*(H$38:H$53)) -> 141607.156 | I22: =SUMPRODUCT(($F$38:$F$53=$F22)*(I$38:I$53)) -> 0 | J22: =SUMPRODUCT(($F$38:$F$53=$F22)*(J$38:J$53)) -> 491025.0083 | K22: =SUMPRODUCT(($F$38:$F$53=$F22)*(K$38:K$53)) -> 1576565.138 | L22: =SUMPRODUCT(($F$38:$F$53=$F22)*(L$38:L$53)) -> 3720339.079 | M22: =SUMPRODUCT(($F$38:$F$53=$F22)*(M$38:M$53)) -> 4180481.663 | N22: =SUMPRODUCT(($F$38:$F$53=$F22)*(N$38:N$53)) -> 2404595.463 | O22: =SUMPRODUCT(($F$38:$F$53=$F22)*(O$38:O$53)) -> 3137862.965 | P22: =SUMPRODUCT(($F$38:$F$53=$F22)*(P$38:P$53)) -> 4531863.01 | Q22: =SUMPRODUCT(($F$38:$F$53=$F22)*(Q$38:Q$53)) -> 2023144.701 | R22: =SUMPRODUCT(($F$38:$F$53=$F22)*(R$38:R$53)) -> 2444615.756 | S22: =SUMPRODUCT(($F$38:$F$53=$F22)*(S$38:S$53)) -> 9548481.055 | T22: =SUMPRODUCT(($F$38:$F$53=$F22)*(T$38:T$53)) -> 749408.6662 | U22: =SUMPRODUCT(($F$38:$F$53=$F22)*(U$38:U$53)) -> 722683.8208 | V22: =SUMPRODUCT(($F$38:$F$53=$F22)*(V$38:V$53)) -> 796725.6816 | W22: =SUMPRODUCT(($F$38:$F$53=$F22)*(W$38:W$53)) -> 783228.4378 | X22: =SUMPRODUCT(($F$38:$F$53=$F22)*(X$38:X$53)) -> 806679.5833 | Y22: =SUMPRODUCT(($F$38:$F$53=$F22)*(Y$38:Y$53)) -> 828106.5072 | Z22: =SUMPRODUCT(($F$38:$F$53=$F22)*(Z$38:Z$53)) -> 845207.6345 | AA22: =SUMPRODUCT(($F$38:$F$53=$F22)*(AA$38:AA$53)) -> 880619.7686 | AC22: =SUMPRODUCT($H$7:$AA$7*$H22:$AA22) -> 4143841.931
B23: =Hist_vol!B22 -> Connections | C23: =Hist_vol!C22 -> CI5 | D23: =Hist_vol!D22 -> Commercial/Industrial | E23: =Hist_vol!E22 -> Complex connection sub-transmission | F23: Commercial/Industrial Complex connection sub-transmission | H23: =SUMPRODUCT(($F$38:$F$53=$F23)*(H$38:H$53)) -> 0 | I23: =SUMPRODUCT(($F$38:$F$53=$F23)*(I$38:I$53)) -> 0 | J23: =SUMPRODUCT(($F$38:$F$53=$F23)*(J$38:J$53)) -> 0 | K23: =SUMPRODUCT(($F$38:$F$53=$F23)*(K$38:K$53)) -> 0 | L23: =SUMPRODUCT(($F$38:$F$53=$F23)*(L$38:L$53)) -> 0 | M23: =SUMPRODUCT(($F$38:$F$53=$F23)*(M$38:M$53)) -> 0 | N23: =SUMPRODUCT(($F$38:$F$53=$F23)*(N$38:N$53)) -> 0 | O23: =SUMPRODUCT(($F$38:$F$53=$F23)*(O$38:O$53)) -> 0 | P23: =SUMPRODUCT(($F$38:$F$53=$F23)*(P$38:P$53)) -> 0 | Q23: =SUMPRODUCT(($F$38:$F$53=$F23)*(Q$38:Q$53)) -> 0 | R23: =SUMPRODUCT(($F$38:$F$53=$F23)*(R$38:R$53)) -> 0 | S23: =SUMPRODUCT(($F$38:$F$53=$F23)*(S$38:S$53)) -> 0 | T23: =SUMPRODUCT(($F$38:$F$53=$F23)*(T$38:T$53)) -> 0 | U23: =SUMPRODUCT(($F$38:$F$53=$F23)*(U$38:U$53)) -> 0 | V23: =SUMPRODUCT(($F$38:$F$53=$F23)*(V$38:V$53)) -> 0 | W23: =SUMPRODUCT(($F$38:$F$53=$F23)*(W$38:W$53)) -> 0 | X23: =SUMPRODUCT(($F$38:$F$53=$F23)*(X$38:X$53)) -> 0 | Y23: =SUMPRODUCT(($F$38:$F$53=$F23)*(Y$38:Y$53)) -> 0 | Z23: =SUMPRODUCT(($F$38:$F$53=$F23)*(Z$38:Z$53)) -> 0 | AA23: =SUMPRODUCT(($F$38:$F$53=$F23)*(AA$38:AA$53)) -> 0 | AC23: =SUMPRODUCT($H$7:$AA$7*$H23:$AA23) -> 0
B24: =Hist_vol!B23 -> Connections | C24: =Hist_vol!C23 -> S1 | D24: =Hist_vol!D23 -> Subdivision | E24: =Hist_vol!E23 -> Complex connection LV | F24: Subdivision Complex connection LV | H24: =SUMPRODUCT(($F$38:$F$53=$F24)*(H$38:H$53)) -> 0 | I24: =SUMPRODUCT(($F$38:$F$53=$F24)*(I$38:I$53)) -> 0 | J24: =SUMPRODUCT(($F$38:$F$53=$F24)*(J$38:J$53)) -> 0 | K24: =SUMPRODUCT(($F$38:$F$53=$F24)*(K$38:K$53)) -> 0 | L24: =SUMPRODUCT(($F$38:$F$53=$F24)*(L$38:L$53)) -> 0 | M24: =SUMPRODUCT(($F$38:$F$53=$F24)*(M$38:M$53)) -> 0 | N24: =SUMPRODUCT(($F$38:$F$53=$F24)*(N$38:N$53)) -> 0 | O24: =SUMPRODUCT(($F$38:$F$53=$F24)*(O$38:O$53)) -> 0 | P24: =SUMPRODUCT(($F$38:$F$53=$F24)*(P$38:P$53)) -> 0 | Q24: =SUMPRODUCT(($F$38:$F$53=$F24)*(Q$38:Q$53)) -> 0 | R24: =SUMPRODUCT(($F$38:$F$53=$F24)*(R$38:R$53)) -> 0 | S24: =SUMPRODUCT(($F$38:$F$53=$F24)*(S$38:S$53)) -> 0 | T24: =SUMPRODUCT(($F$38:$F$53=$F24)*(T$38:T$53)) -> 0 | U24: =SUMPRODUCT(($F$38:$F$53=$F24)*(U$38:U$53)) -> 0 | V24: =SUMPRODUCT(($F$38:$F$53=$F24)*(V$38:V$53)) -> 0 | W24: =SUMPRODUCT(($F$38:$F$53=$F24)*(W$38:W$53)) -> 0 | X24: =SUMPRODUCT(($F$38:$F$53=$F24)*(X$38:X$53)) -> 0 | Y24: =SUMPRODUCT(($F$38:$F$53=$F24)*(Y$38:Y$53)) -> 0 | Z24: =SUMPRODUCT(($F$38:$F$53=$F24)*(Z$38:Z$53)) -> 0 | AA24: =SUMPRODUCT(($F$38:$F$53=$F24)*(AA$38:AA$53)) -> 0 | AC24: =SUMPRODUCT($H$7:$AA$7*$H24:$AA24) -> 0
B25: =Hist_vol!B24 -> Connections | C25: =Hist_vol!C24 -> S2 | D25: =Hist_vol!D24 -> Subdivision | E25: =Hist_vol!E24 -> Complex connection HV (no upstream asset works) | F25: Subdivision Complex connection HV (no upstream asset works) | H25: =SUMPRODUCT(($F$38:$F$53=$F25)*(H$38:H$53)) -> 0 | I25: =SUMPRODUCT(($F$38:$F$53=$F25)*(I$38:I$53)) -> 0 | J25: =SUMPRODUCT(($F$38:$F$53=$F25)*(J$38:J$53)) -> 0 | K25: =SUMPRODUCT(($F$38:$F$53=$F25)*(K$38:K$53)) -> 0 | L25: =SUMPRODUCT(($F$38:$F$53=$F25)*(L$38:L$53)) -> 0 | M25: =SUMPRODUCT(($F$38:$F$53=$F25)*(M$38:M$53)) -> 0 | N25: =SUMPRODUCT(($F$38:$F$53=$F25)*(N$38:N$53)) -> 0 | O25: =SUMPRODUCT(($F$38:$F$53=$F25)*(O$38:O$53)) -> 0 | P25: =SUMPRODUCT(($F$38:$F$53=$F25)*(P$38:P$53)) -> 0 | Q25: =SUMPRODUCT(($F$38:$F$53=$F25)*(Q$38:Q$53)) -> 0 | R25: =SUMPRODUCT(($F$38:$F$53=$F25)*(R$38:R$53)) -> 0 | S25: =SUMPRODUCT(($F$38:$F$53=$F25)*(S$38:S$53)) -> 0 | T25: =SUMPRODUCT(($F$38:$F$53=$F25)*(T$38:T$53)) -> 0 | U25: =SUMPRODUCT(($F$38:$F$53=$F25)*(U$38:U$53)) -> 0 | V25: =SUMPRODUCT(($F$38:$F$53=$F25)*(V$38:V$53)) -> 0 | W25: =SUMPRODUCT(($F$38:$F$53=$F25)*(W$38:W$53)) -> 0 | X25: =SUMPRODUCT(($F$38:$F$53=$F25)*(X$38:X$53)) -> 0 | Y25: =SUMPRODUCT(($F$38:$F$53=$F25)*(Y$38:Y$53)) -> 0 | Z25: =SUMPRODUCT(($F$38:$F$53=$F25)*(Z$38:Z$53)) -> 0 | AA25: =SUMPRODUCT(($F$38:$F$53=$F25)*(AA$38:AA$53)) -> 0 | AC25: =SUMPRODUCT($H$7:$AA$7*$H25:$AA25) -> 0
B26: =Hist_vol!B25 -> Connections | C26: =Hist_vol!C25 -> S3 | D26: =Hist_vol!D25 -> Subdivision | E26: =Hist_vol!E25 -> Complex connection HV (with upstream asset works) | F26: Subdivision Complex connection HV (with upstream asset works) | H26: =SUMPRODUCT(($F$38:$F$53=$F26)*(H$38:H$53)) -> 0 | I26: =SUMPRODUCT(($F$38:$F$53=$F26)*(I$38:I$53)) -> 0 | J26: =SUMPRODUCT(($F$38:$F$53=$F26)*(J$38:J$53)) -> 0 | K26: =SUMPRODUCT(($F$38:$F$53=$F26)*(K$38:K$53)) -> 0 | L26: =SUMPRODUCT(($F$38:$F$53=$F26)*(L$38:L$53)) -> 0 | M26: =SUMPRODUCT(($F$38:$F$53=$F26)*(M$38:M$53)) -> 0 | N26: =SUMPRODUCT(($F$38:$F$53=$F26)*(N$38:N$53)) -> 0 | O26: =SUMPRODUCT(($F$38:$F$53=$F26)*(O$38:O$53)) -> 0 | P26: =SUMPRODUCT(($F$38:$F$53=$F26)*(P$38:P$53)) -> 0 | Q26: =SUMPRODUCT(($F$38:$F$53=$F26)*(Q$38:Q$53)) -> 0 | R26: =SUMPRODUCT(($F$38:$F$53=$F26)*(R$38:R$53)) -> 0 | S26: =SUMPRODUCT(($F$38:$F$53=$F26)*(S$38:S$53)) -> 0 | T26: =SUMPRODUCT(($F$38:$F$53=$F26)*(T$38:T$53)) -> 0 | U26: =SUMPRODUCT(($F$38:$F$53=$F26)*(U$38:U$53)) -> 0 | V26: =SUMPRODUCT(($F$38:$F$53=$F26)*(V$38:V$53)) -> 0 | W26: =SUMPRODUCT(($F$38:$F$53=$F26)*(W$38:W$53)) -> 0 | X26: =SUMPRODUCT(($F$38:$F$53=$F26)*(X$38:X$53)) -> 0 | Y26: =SUMPRODUCT(($F$38:$F$53=$F26)*(Y$38:Y$53)) -> 0 | Z26: =SUMPRODUCT(($F$38:$F$53=$F26)*(Z$38:Z$53)) -> 0 | AA26: =SUMPRODUCT(($F$38:$F$53=$F26)*(AA$38:AA$53)) -> 0 | AC26: =SUMPRODUCT($H$7:$AA$7*$H26:$AA26) -> 0
B27: =Hist_vol!B26 -> Connections | C27: =Hist_vol!C26 -> EG1 | D27: =Hist_vol!D26 -> Embedded generation | E27: =Hist_vol!E26 -> Simple connection LV | F27: Embedded generation Simple connection LV | H27: =SUMPRODUCT(($F$38:$F$53=$F27)*(H$38:H$53)) -> 0 | I27: =SUMPRODUCT(($F$38:$F$53=$F27)*(I$38:I$53)) -> 0 | J27: =SUMPRODUCT(($F$38:$F$53=$F27)*(J$38:J$53)) -> 0 | K27: =SUMPRODUCT(($F$38:$F$53=$F27)*(K$38:K$53)) -> 0 | L27: =SUMPRODUCT(($F$38:$F$53=$F27)*(L$38:L$53)) -> 0 | M27: =SUMPRODUCT(($F$38:$F$53=$F27)*(M$38:M$53)) -> 0 | N27: =SUMPRODUCT(($F$38:$F$53=$F27)*(N$38:N$53)) -> 0 | O27: =SUMPRODUCT(($F$38:$F$53=$F27)*(O$38:O$53)) -> 0 | P27: =SUMPRODUCT(($F$38:$F$53=$F27)*(P$38:P$53)) -> 2259.046603 | Q27: =SUMPRODUCT(($F$38:$F$53=$F27)*(Q$38:Q$53)) -> 7161.155663 | R27: =SUMPRODUCT(($F$38:$F$53=$F27)*(R$38:R$53)) -> 9208.678163 | S27: =SUMPRODUCT(($F$38:$F$53=$F27)*(S$38:S$53)) -> 1703.607444 | T27: =SUMPRODUCT(($F$38:$F$53=$F27)*(T$38:T$53)) -> 12847.46359 | U27: =SUMPRODUCT(($F$38:$F$53=$F27)*(U$38:U$53)) -> 5139.106258 | V27: =SUMPRODUCT(($F$38:$F$53=$F27)*(V$38:V$53)) -> 5139.717781 | W27: =SUMPRODUCT(($F$38:$F$53=$F27)*(W$38:W$53)) -> 15422.30998 | X27: =SUMPRODUCT(($F$38:$F$53=$F27)*(X$38:X$53)) -> 128524.9937 | Y27: =SUMPRODUCT(($F$38:$F$53=$F27)*(Y$38:Y$53)) -> 128494.8294 | Z27: =SUMPRODUCT(($F$38:$F$53=$F27)*(Z$38:Z$53)) -> 89938.76976 | AA27: =SUMPRODUCT(($F$38:$F$53=$F27)*(AA$38:AA$53)) -> 89938.40015 | AC27: =SUMPRODUCT($H$7:$AA$7*$H27:$AA27) -> 452319.3029
B28: =Hist_vol!B27 -> Connections | C28: =Hist_vol!C27 -> EG2 | D28: =Hist_vol!D27 -> Embedded generation | E28: =Hist_vol!E27 -> Complex connection HV (small capacity) | F28: Embedded generation Complex connection HV (small capacity) | H28: =SUMPRODUCT(($F$38:$F$53=$F28)*(H$38:H$53)) -> 626192.4592 | I28: =SUMPRODUCT(($F$38:$F$53=$F28)*(I$38:I$53)) -> 330381.1003 | J28: =SUMPRODUCT(($F$38:$F$53=$F28)*(J$38:J$53)) -> 269056.0945 | K28: =SUMPRODUCT(($F$38:$F$53=$F28)*(K$38:K$53)) -> 121446.1257 | L28: =SUMPRODUCT(($F$38:$F$53=$F28)*(L$38:L$53)) -> 56539.34434 | M28: =SUMPRODUCT(($F$38:$F$53=$F28)*(M$38:M$53)) -> 40170.94891 | N28: =SUMPRODUCT(($F$38:$F$53=$F28)*(N$38:N$53)) -> 31495.55537 | O28: =SUMPRODUCT(($F$38:$F$53=$F28)*(O$38:O$53)) -> 5509.905221 | P28: =SUMPRODUCT(($F$38:$F$53=$F28)*(P$38:P$53)) -> 0 | Q28: =SUMPRODUCT(($F$38:$F$53=$F28)*(Q$38:Q$53)) -> 0 | R28: =SUMPRODUCT(($F$38:$F$53=$F28)*(R$38:R$53)) -> 0 | S28: =SUMPRODUCT(($F$38:$F$53=$F28)*(S$38:S$53)) -> 0 | T28: =SUMPRODUCT(($F$38:$F$53=$F28)*(T$38:T$53)) -> 0 | U28: =SUMPRODUCT(($F$38:$F$53=$F28)*(U$38:U$53)) -> 0 | V28: =SUMPRODUCT(($F$38:$F$53=$F28)*(V$38:V$53)) -> 0 | W28: =SUMPRODUCT(($F$38:$F$53=$F28)*(W$38:W$53)) -> 0 | X28: =SUMPRODUCT(($F$38:$F$53=$F28)*(X$38:X$53)) -> 0 | Y28: =SUMPRODUCT(($F$38:$F$53=$F28)*(Y$38:Y$53)) -> 0 | Z28: =SUMPRODUCT(($F$38:$F$53=$F28)*(Z$38:Z$53)) -> 0 | AA28: =SUMPRODUCT(($F$38:$F$53=$F28)*(AA$38:AA$53)) -> 0 | AC28: =SUMPRODUCT($H$7:$AA$7*$H28:$AA28) -> 0
B29: =Hist_vol!B28 -> Connections | C29: =Hist_vol!C28 -> EG3 | D29: =Hist_vol!D28 -> Embedded generation | E29: =Hist_vol!E28 -> Complex connection HV (large capacity) | F29: Embedded generation Complex connection HV (large capacity) | H29: =SUMPRODUCT(($F$38:$F$53=$F29)*(H$38:H$53)) -> 0 | I29: =SUMPRODUCT(($F$38:$F$53=$F29)*(I$38:I$53)) -> 0 | J29: =SUMPRODUCT(($F$38:$F$53=$F29)*(J$38:J$53)) -> 0 | K29: =SUMPRODUCT(($F$38:$F$53=$F29)*(K$38:K$53)) -> 0 | L29: =SUMPRODUCT(($F$38:$F$53=$F29)*(L$38:L$53)) -> 0 | M29: =SUMPRODUCT(($F$38:$F$53=$F29)*(M$38:M$53)) -> 0 | N29: =SUMPRODUCT(($F$38:$F$53=$F29)*(N$38:N$53)) -> 0 | O29: =SUMPRODUCT(($F$38:$F$53=$F29)*(O$38:O$53)) -> 0 | P29: =SUMPRODUCT(($F$38:$F$53=$F29)*(P$38:P$53)) -> 0 | Q29: =SUMPRODUCT(($F$38:$F$53=$F29)*(Q$38:Q$53)) -> 0 | R29: =SUMPRODUCT(($F$38:$F$53=$F29)*(R$38:R$53)) -> 0 | S29: =SUMPRODUCT(($F$38:$F$53=$F29)*(S$38:S$53)) -> 0 | T29: =SUMPRODUCT(($F$38:$F$53=$F29)*(T$38:T$53)) -> 0 | U29: =SUMPRODUCT(($F$38:$F$53=$F29)*(U$38:U$53)) -> 0 | V29: =SUMPRODUCT(($F$38:$F$53=$F29)*(V$38:V$53)) -> 0 | W29: =SUMPRODUCT(($F$38:$F$53=$F29)*(W$38:W$53)) -> 0 | X29: =SUMPRODUCT(($F$38:$F$53=$F29)*(X$38:X$53)) -> 0 | Y29: =SUMPRODUCT(($F$38:$F$53=$F29)*(Y$38:Y$53)) -> 0 | Z29: =SUMPRODUCT(($F$38:$F$53=$F29)*(Z$38:Z$53)) -> 0 | AA29: =SUMPRODUCT(($F$38:$F$53=$F29)*(AA$38:AA$53)) -> 0 | AC29: =SUMPRODUCT($H$7:$AA$7*$H29:$AA29) -> 0
B30: Connections | C30: Grid connected Batteries | D30: Grid connected Battery | F30: Grid connected Battery | H30: 0 | I30: 0 | J30: 0 | K30: 0 | L30: 0 | M30: 0 | N30: 0 | O30: 0 | P30: 0 | Q30: 0 | R30: 0 | S30: 0 | T30: 0 | U30: 0 | V30: 0 | W30: 0 | X30: 0 | Y30: 0 | Z30: 0 | AA30: 0 | AC30: =SUMPRODUCT($H$7:$AA$7*$H30:$AA30) -> 0
B31: ='Data Centres'!B16 -> Connections | C31: Data Centres | D31: ='Data Centres'!C16 -> Data Centres | F31: =D31 -> Data Centres | H31: 0 | I31: 0 | J31: 0 | K31: 0 | L31: 0 | M31: 0 | N31: 0 | O31: 0 | P31: 0 | Q31: 0 | R31: 0 | S31: 0 | T31: 0 | U31: 0 | V31: 0 | W31: ='Data Centres'!E16 -> 0 | X31: ='Data Centres'!F16 -> 0 | Y31: ='Data Centres'!G16 -> 0 | Z31: ='Data Centres'!H16 -> 55586250 | AA31: ='Data Centres'!I16 -> 71077500 | AC31: =SUMPRODUCT($H$7:$AA$7*$H31:$AA31) -> 126663750
B32: Total | H32: =SUM(H16:H31) -> 74925767.57 | I32: 75462373.91 | J32: 70852814.24 | K32: 71655446.09 | L32: 78156092.06 | M32: 83278212.71 | N32: 91136719.25 | O32: 99257987.32 | P32: 107805210.3 | Q32: 109246275.5 | R32: 79728424.42 | S32: 126600709.1 | T32: 121286339.8 | U32: 109415695.8 | V32: 135194792.9 | W32: 144880105.4 | X32: 142323977.8 | Y32: 135027004.9 | Z32: 188821437.5 | AA32: 210559093.3 | AC32: =SUM(AC16:AC31) -> 821611618.8
B35: =Hist_vol!B$13 -> Category | C35: =Hist_vol!C$13 -> Type | D35: =Hist_vol!D$13 -> RIN category | E35: =Hist_vol!E$13 -> Description | G35: Unit rate | H35: =Assumptions!K$24 -> 2011/12 | I35: =Assumptions!L$24 -> 2012/13 | J35: =Assumptions!M$24 -> 2013/14 | K35: =Assumptions!N$24 -> 2014/15 | L35: =Assumptions!O$24 -> 2015/16 | M35: =Assumptions!P$24 -> 2016/17 | N35: =Assumptions!Q$24 -> 2017/18 | O35: =Assumptions!R$24 -> 2018/19 | P35: =Assumptions!S$24 -> 2019/20 | Q35: =Assumptions!T$24 -> 2020/21 | R35: =Assumptions!U$24 -> 2021/22 | S35: =Assumptions!V$24 -> 2022/23 | T35: =Assumptions!W$24 -> 2023/24 | U35: =Assumptions!X$24 -> 2024/25 | V35: =Assumptions!Y$24 -> 2025/26 | W35: =Assumptions!Z$24 -> 2026/27 | X35: =Assumptions!AA$24 -> 2027/28 | Y35: =Assumptions!AB$24 -> 2028/29 | Z35: =Assumptions!AC$24 -> 2029/30 | AA35: =Assumptions!AD$24 -> 2030/31 | AC35: 2026-31 Total
B37: Forecast spend from trend (June 2026 $)
B38: =Hist_vol!B15 -> Connections | C38: =Hist_vol!C15 -> R1 | D38: =Hist_vol!D15 -> Residential | E38: =Hist_vol!E15 -> Simple connection LV | F38: =D38&" "&E38 -> Residential Simple connection LV | G38: =Unit_rates!$S15 -> 0 | H38: =IF(H$8, $G38*Forecast_vol!H16,Hist_expenditure!G15*Assumptions!K$29) -> 1544652.392 | I38: =IF(I$8, $G38*Forecast_vol!I16,Hist_expenditure!H15*Assumptions!L$29) -> 1545137.522 | J38: =IF(J$8, $G38*Forecast_vol!J16,Hist_expenditure!I15*Assumptions!M$29) -> 1886889.173 | K38: =IF(K$8, $G38*Forecast_vol!K16,Hist_expenditure!J15*Assumptions!N$29) -> 2147237.14 | L38: =IF(L$8, $G38*Forecast_vol!L16,Hist_expenditure!K15*Assumptions!O$29) -> 1043861.443 | M38: =IF(M$8, $G38*Forecast_vol!M16,Hist_expenditure!L15*Assumptions!P$29) -> 0 | N38: =IF(N$8, $G38*Forecast_vol!N16,Hist_expenditure!M15*Assumptions!Q$29) -> 0 | O38: =IF(O$8, $G38*Forecast_vol!O16,Hist_expenditure!N15*Assumptions!R$29) -> 0 | P38: =IF(P$8, $G38*Forecast_vol!P16,Hist_expenditure!O15*Assumptions!S$29) -> 0 | Q38: =IF(Q$8, $G38*Forecast_vol!Q16,Hist_expenditure!P15*Assumptions!T$29) -> 0 | R38: =IF(R$8, $G38*Forecast_vol!R16,Hist_expenditure!Q15*Assumptions!U$29) -> 0 | S38: =IF(S$8, $G38*Forecast_vol!S16,Hist_expenditure!R15*Assumptions!V$29) -> 0 | T38: =IF(T$8, $G38*Forecast_vol!T16,Hist_expenditure!S15*Assumptions!W$29) -> 0 | U38: =IF(U$8, $G38*Forecast_vol!U16,Hist_expenditure!T15*Assumptions!X$29) -> 0 | V38: =IF(V$8, $G38*Forecast_vol!V16,Hist_expenditure!U15*Assumptions!Y$29) -> 0 | W38: =IF(W$8, $G38*Forecast_vol!W16,Hist_expenditure!V15*Assumptions!Z$29) -> 0 | X38: =IF(X$8, $G38*Forecast_vol!X16,Hist_expenditure!W15*Assumptions!AA$29) -> 0 | Y38: =IF(Y$8, $G38*Forecast_vol!Y16,Hist_expenditure!X15*Assumptions!AB$29) -> 0 | Z38: =IF(Z$8, $G38*Forecast_vol!Z16,Hist_expenditure!Y15*Assumptions!AC$29) -> 0 | AA38: =IF(AA$8, $G38*Forecast_vol!AA16,Hist_expenditure!Z15*Assumptions!AD$29) -> 0 | AC38: =SUMPRODUCT($H$7:$AA$7*$H38:$AA38) -> 0
B39: =Hist_vol!B16 -> Connections | C39: =Hist_vol!C16 -> R2 | D39: =Hist_vol!D16 -> Residential | E39: =Hist_vol!E16 -> Complex connection LV | F39: =D39&" "&E39 -> Residential Complex connection LV | G39: =Unit_rates!$S16 -> 48169.93797 | H39: =IF(H$8, $G39*Forecast_vol!H17,Hist_expenditure!G16*Assumptions!K$29) -> 11113201.86 | I39: =IF(I$8, $G39*Forecast_vol!I17,Hist_expenditure!H16*Assumptions!L$29) -> 11006895.71 | J39: =IF(J$8, $G39*Forecast_vol!J17,Hist_expenditure!I16*Assumptions!M$29) -> 10517105.79 | K39: =IF(K$8, $G39*Forecast_vol!K17,Hist_expenditure!J16*Assumptions!N$29) -> 10327387.19 | L39: =IF(L$8, $G39*Forecast_vol!L17,Hist_expenditure!K16*Assumptions!O$29) -> 12222731.93 | M39: =IF(M$8, $G39*Forecast_vol!M17,Hist_expenditure!L16*Assumptions!P$29) -> 16101088.93 | N39: =IF(N$8, $G39*Forecast_vol!N17,Hist_expenditure!M16*Assumptions!Q$29) -> 18288373.07 | O39: =IF(O$8, $G39*Forecast_vol!O17,Hist_expenditure!N16*Assumptions!R$29) -> 21554413.52 | P39: =IF(P$8, $G39*Forecast_vol!P17,Hist_expenditure!O16*Assumptions!S$29) -> 24857125.62 | Q39: =IF(Q$8, $G39*Forecast_vol!Q17,Hist_expenditure!P16*Assumptions!T$29) -> 26891198.73 | R39: =IF(R$8, $G39*Forecast_vol!R17,Hist_expenditure!Q16*Assumptions!U$29) -> 24170222.75 | S39: =IF(S$8, $G39*Forecast_vol!S17,Hist_expenditure!R16*Assumptions!V$29) -> 26138200.94 | T39: =IF(T$8, $G39*Forecast_vol!T17,Hist_expenditure!S16*Assumptions!W$29) -> 25144707.62 | U39: =IF(U$8, $G39*Forecast_vol!U17,Hist_expenditure!T16*Assumptions!X$29) -> 29861600.24 | V39: =IF(V$8, $G39*Forecast_vol!V17,Hist_expenditure!U16*Assumptions!Y$29) -> 40032939.96 | W39: =IF(W$8, $G39*Forecast_vol!W17,Hist_expenditure!V16*Assumptions!Z$29) -> 45195404.9 | X39: =IF(X$8, $G39*Forecast_vol!X17,Hist_expenditure!W16*Assumptions!AA$29) -> 43128408.86 | Y39: =IF(Y$8, $G39*Forecast_vol!Y17,Hist_expenditure!X16*Assumptions!AB$29) -> 38868416.7 | Z39: =IF(Z$8, $G39*Forecast_vol!Z17,Hist_expenditure!Y16*Assumptions!AC$29) -> 37455424.18 | AA39: =IF(AA$8, $G39*Forecast_vol!AA17,Hist_expenditure!Z16*Assumptions!AD$29) -> 39350762.31 | AC39: =SUMPRODUCT($H$7:$AA$7*$H39:$AA39) -> 203998417
B40: =Hist_vol!B17 -> Connections | C40: =Hist_vol!C17 -> R3 | D40: =Hist_vol!D17 -> Residential | E40: =Hist_vol!E17 -> Complex connection HV | F40: Residential Complex connection HV | G40: =Unit_rates!$S17 -> 462581.1848 | H40: =IF(H$8, $G40*Forecast_vol!H18,Hist_expenditure!G17*Assumptions!K$29) -> 30438529.41 | I40: =IF(I$8, $G40*Forecast_vol!I18,Hist_expenditure!H17*Assumptions!L$29) -> 29834167.52 | J40: =IF(J$8, $G40*Forecast_vol!J18,Hist_expenditure!I17*Assumptions!M$29) -> 28813869.29 | K40: =IF(K$8, $G40*Forecast_vol!K18,Hist_expenditure!J17*Assumptions!N$29) -> 29338895.49 | L40: =IF(L$8, $G40*Forecast_vol!L18,Hist_expenditure!K17*Assumptions!O$29) -> 26598148.43 | M40: =IF(M$8, $G40*Forecast_vol!M18,Hist_expenditure!L17*Assumptions!P$29) -> 22969073.62 | N40: =IF(N$8, $G40*Forecast_vol!N18,Hist_expenditure!M17*Assumptions!Q$29) -> 25944256.74 | O40: =IF(O$8, $G40*Forecast_vol!O18,Hist_expenditure!N17*Assumptions!R$29) -> 31127648.26 | P40: =IF(P$8, $G40*Forecast_vol!P18,Hist_expenditure!O17*Assumptions!S$29) -> 33796170.16 | Q40: =IF(Q$8, $G40*Forecast_vol!Q18,Hist_expenditure!P17*Assumptions!T$29) -> 32337144.57 | R40: =IF(R$8, $G40*Forecast_vol!R18,Hist_expenditure!Q17*Assumptions!U$29) -> 18178717.5 | S40: =IF(S$8, $G40*Forecast_vol!S18,Hist_expenditure!R17*Assumptions!V$29) -> 23967547.57 | T40: =IF(T$8, $G40*Forecast_vol!T18,Hist_expenditure!S17*Assumptions!W$29) -> 26367127.53 | U40: =IF(U$8, $G40*Forecast_vol!U18,Hist_expenditure!T17*Assumptions!X$29) -> 31313333.75 | V40: =IF(V$8, $G40*Forecast_vol!V18,Hist_expenditure!U17*Assumptions!Y$29) -> 41979157.18 | W40: =IF(W$8, $G40*Forecast_vol!W18,Hist_expenditure!V17*Assumptions!Z$29) -> 47392597.4 | X40: =IF(X$8, $G40*Forecast_vol!X18,Hist_expenditure!W17*Assumptions!AA$29) -> 45225113.52 | Y40: =IF(Y$8, $G40*Forecast_vol!Y18,Hist_expenditure!X17*Assumptions!AB$29) -> 40758020.17 | Z40: =IF(Z$8, $G40*Forecast_vol!Z18,Hist_expenditure!Y17*Assumptions!AC$29) -> 39276334.45 | AA40: =IF(AA$8, $G40*Forecast_vol!AA18,Hist_expenditure!Z17*Assumptions!AD$29) -> 41263815.19 | AC40: =SUMPRODUCT($H$7:$AA$7*$H40:$AA40) -> 213915880.7
B41: =Hist_vol!B18 -> Connections | C41: =Hist_vol!C18 -> CI1 | D41: =Hist_vol!D18 -> Commercial/Industrial | E41: =Hist_vol!E18 -> Simple connection LV | F41: Commercial/Industrial Simple connection LV | G41: =Unit_rates!$S18 -> 130997.1808 | H41: =IF(H$8, $G41*Forecast_vol!H19,Hist_expenditure!G18*Assumptions!K$29) -> 2960258.01 | I41: =IF(I$8, $G41*Forecast_vol!I19,Hist_expenditure!H18*Assumptions!L$29) -> 2948467.495 | J41: =IF(J$8, $G41*Forecast_vol!J19,Hist_expenditure!I18*Assumptions!M$29) -> 2740542.682 | K41: =IF(K$8, $G41*Forecast_vol!K19,Hist_expenditure!J18*Assumptions!N$29) -> 2782652.739 | L41: =IF(L$8, $G41*Forecast_vol!L19,Hist_expenditure!K18*Assumptions!O$29) -> 2530417.869 | M41: =IF(M$8, $G41*Forecast_vol!M19,Hist_expenditure!L18*Assumptions!P$29) -> 2187134.908 | N41: =IF(N$8, $G41*Forecast_vol!N19,Hist_expenditure!M18*Assumptions!Q$29) -> 2510665.943 | O41: =IF(O$8, $G41*Forecast_vol!O19,Hist_expenditure!N18*Assumptions!R$29) -> 2897677.327 | P41: =IF(P$8, $G41*Forecast_vol!P19,Hist_expenditure!O18*Assumptions!S$29) -> 3137399.945 | Q41: =IF(Q$8, $G41*Forecast_vol!Q19,Hist_expenditure!P18*Assumptions!T$29) -> 3406750.911 | R41: =IF(R$8, $G41*Forecast_vol!R19,Hist_expenditure!Q18*Assumptions!U$29) -> 2783171.018 | S41: =IF(S$8, $G41*Forecast_vol!S19,Hist_expenditure!R18*Assumptions!V$29) -> 3561179.146 | T41: =IF(T$8, $G41*Forecast_vol!T19,Hist_expenditure!S18*Assumptions!W$29) -> 3405926.702 | U41: =IF(U$8, $G41*Forecast_vol!U19,Hist_expenditure!T18*Assumptions!X$29) -> 3284467.118 | V41: =IF(V$8, $G41*Forecast_vol!V19,Hist_expenditure!U18*Assumptions!Y$29) -> 3620973.97 | W41: =IF(W$8, $G41*Forecast_vol!W19,Hist_expenditure!V18*Assumptions!Z$29) -> 3559631.44 | X41: =IF(X$8, $G41*Forecast_vol!X19,Hist_expenditure!W18*Assumptions!AA$29) -> 3666212.65 | Y41: =IF(Y$8, $G41*Forecast_vol!Y19,Hist_expenditure!X18*Assumptions!AB$29) -> 3763594.14 | Z41: =IF(Z$8, $G41*Forecast_vol!Z19,Hist_expenditure!Y18*Assumptions!AC$29) -> 3841315.667 | AA41: =IF(AA$8, $G41*Forecast_vol!AA19,Hist_expenditure!Z18*Assumptions!AD$29) -> 4002257.405 | AC41: =SUMPRODUCT($H$7:$AA$7*$H41:$AA41) -> 18833011.3
B42: =Hist_vol!B19 -> Connections | C42: =Hist_vol!C19 -> CI2 | D42: =Hist_vol!D19 -> Commercial/Industrial | E42: =Hist_vol!E19 -> Complex connection HV (customer connected at LV, minor HV works) | F42: Commercial/Industrial Complex connection HV (customer connected at LV, minor HV works) | G42: =Unit_rates!$S19 -> 194392.9331 | H42: =IF(H$8, $G42*Forecast_vol!H20,Hist_expenditure!G19*Assumptions!K$29) -> 14581083.61 | I42: =IF(I$8, $G42*Forecast_vol!I20,Hist_expenditure!H19*Assumptions!L$29) -> 16586795.86 | J42: =IF(J$8, $G42*Forecast_vol!J20,Hist_expenditure!I19*Assumptions!M$29) -> 13460733.1 | K42: =IF(K$8, $G42*Forecast_vol!K20,Hist_expenditure!J19*Assumptions!N$29) -> 12825897.29 | L42: =IF(L$8, $G42*Forecast_vol!L20,Hist_expenditure!K19*Assumptions!O$29) -> 20815084.95 | M42: =IF(M$8, $G42*Forecast_vol!M20,Hist_expenditure!L19*Assumptions!P$29) -> 28060387.17 | N42: =IF(N$8, $G42*Forecast_vol!N20,Hist_expenditure!M19*Assumptions!Q$29) -> 30958770.56 | O42: =IF(O$8, $G42*Forecast_vol!O20,Hist_expenditure!N19*Assumptions!R$29) -> 27326308.31 | P42: =IF(P$8, $G42*Forecast_vol!P20,Hist_expenditure!O19*Assumptions!S$29) -> 27080832.18 | Q42: =IF(Q$8, $G42*Forecast_vol!Q20,Hist_expenditure!P19*Assumptions!T$29) -> 30753205.39 | R42: =IF(R$8, $G42*Forecast_vol!R20,Hist_expenditure!Q19*Assumptions!U$29) -> 24310003.42 | S42: =IF(S$8, $G42*Forecast_vol!S20,Hist_expenditure!R19*Assumptions!V$29) -> 53290639.69 | T42: =IF(T$8, $G42*Forecast_vol!T20,(Hist_expenditure!S19+Hist_expenditure!S33)*Assumptions!W$29) -> 54344223.43 | U42: =IF(U$8, $G42*Forecast_vol!U20,Hist_expenditure!T19*Assumptions!X$29) -> 33367993.79 | V42: =IF(V$8, $G42*Forecast_vol!V20,Hist_expenditure!U19*Assumptions!Y$29) -> 36786678.81 | W42: =IF(W$8, $G42*Forecast_vol!W20,Hist_expenditure!V19*Assumptions!Z$29) -> 36163479.66 | X42: =IF(X$8, $G42*Forecast_vol!X20,Hist_expenditure!W19*Assumptions!AA$29) -> 37246273.62 | Y42: =IF(Y$8, $G42*Forecast_vol!Y20,Hist_expenditure!X19*Assumptions!AB$29) -> 38235604.56 | Z42: =IF(Z$8, $G42*Forecast_vol!Z20,Hist_expenditure!Y19*Assumptions!AC$29) -> 39025203.4 | AA42: =IF(AA$8, $G42*Forecast_vol!AA20,Hist_expenditure!Z19*Assumptions!AD$29) -> 40660264.04 | AC42: =SUMPRODUCT($H$7:$AA$7*$H42:$AA42) -> 191330825.3
B43: =Hist_vol!B20 -> Connections | C43: =Hist_vol!C20 -> CI3 | D43: =Hist_vol!D20 -> Commercial/Industrial | E43: =Hist_vol!E20 -> Complex connection HV (customer connected at LV, upstream asset works) | F43: Commercial/Industrial Complex connection HV (customer connected at LV, upstream asset works) | G43: =Unit_rates!$S20 -> 450483.9352 | H43: =IF(H$8, $G43*Forecast_vol!H21,Hist_expenditure!G20*Assumptions!K$29) -> 13520242.67 | I43: =IF(I$8, $G43*Forecast_vol!I21,Hist_expenditure!H20*Assumptions!L$29) -> 13210528.7 | J43: =IF(J$8, $G43*Forecast_vol!J21,Hist_expenditure!I20*Assumptions!M$29) -> 12673593.1 | K43: =IF(K$8, $G43*Forecast_vol!K21,Hist_expenditure!J20*Assumptions!N$29) -> 12535364.98 | L43: =IF(L$8, $G43*Forecast_vol!L21,Hist_expenditure!K20*Assumptions!O$29) -> 11168969.02 | M43: =IF(M$8, $G43*Forecast_vol!M21,Hist_expenditure!L20*Assumptions!P$29) -> 9739875.47 | N43: =IF(N$8, $G43*Forecast_vol!N21,Hist_expenditure!M20*Assumptions!Q$29) -> 10998561.92 | O43: =IF(O$8, $G43*Forecast_vol!O21,Hist_expenditure!N20*Assumptions!R$29) -> 13208567.04 | P43: =IF(P$8, $G43*Forecast_vol!P21,Hist_expenditure!O20*Assumptions!S$29) -> 14399560.33 | Q43: =IF(Q$8, $G43*Forecast_vol!Q21,Hist_expenditure!P20*Assumptions!T$29) -> 13827670.06 | R43: =IF(R$8, $G43*Forecast_vol!R21,Hist_expenditure!Q20*Assumptions!U$29) -> 7832485.297 | S43: =IF(S$8, $G43*Forecast_vol!S21,Hist_expenditure!R20*Assumptions!V$29) -> 10092957.05 | T43: =IF(T$8, $G43*Forecast_vol!T21,Hist_expenditure!S20*Assumptions!W$29) -> 11262098.38 | U43: =IF(U$8, $G43*Forecast_vol!U21,Hist_expenditure!T20*Assumptions!X$29) -> 10860477.94 | V43: =IF(V$8, $G43*Forecast_vol!V21,Hist_expenditure!U20*Assumptions!Y$29) -> 11973177.54 | W43: =IF(W$8, $G43*Forecast_vol!W21,Hist_expenditure!V20*Assumptions!Z$29) -> 11770341.23 | X43: =IF(X$8, $G43*Forecast_vol!X21,Hist_expenditure!W20*Assumptions!AA$29) -> 12122764.57 | Y43: =IF(Y$8, $G43*Forecast_vol!Y21,Hist_expenditure!X20*Assumptions!AB$29) -> 12444767.95 | Z43: =IF(Z$8, $G43*Forecast_vol!Z21,Hist_expenditure!Y20*Assumptions!AC$29) -> 12701763.35 | AA43: =IF(AA$8, $G43*Forecast_vol!AA21,Hist_expenditure!Z20*Assumptions!AD$29) -> 13233936.19 | AC43: =SUMPRODUCT($H$7:$AA$7*$H43:$AA43) -> 62273573.3
B44: =Hist_vol!B21 -> Connections | C44: =Hist_vol!C21 -> CI4 | D44: =Hist_vol!D21 -> Commercial/Industrial | E44: =Hist_vol!E21 -> Complex connection HV (customer connected at HV) | F44: Commercial/Industrial Complex connection HV (customer connected at HV) | G44: =Unit_rates!$S21 -> 2498028.887 | H44: =IF(H$8, $G44*Forecast_vol!H22,Hist_expenditure!G21*Assumptions!K$29) -> 141607.156 | I44: =IF(I$8, $G44*Forecast_vol!I22,Hist_expenditure!H21*Assumptions!L$29) -> 0 | J44: =IF(J$8, $G44*Forecast_vol!J22,Hist_expenditure!I21*Assumptions!M$29) -> 491025.0083 | K44: =IF(K$8, $G44*Forecast_vol!K22,Hist_expenditure!J21*Assumptions!N$29) -> 1576565.138 | L44: =IF(L$8, $G44*Forecast_vol!L22,Hist_expenditure!K21*Assumptions!O$29) -> 3720339.079 | M44: =IF(M$8, $G44*Forecast_vol!M22,Hist_expenditure!L21*Assumptions!P$29) -> 4180481.663 | N44: =IF(N$8, $G44*Forecast_vol!N22,Hist_expenditure!M21*Assumptions!Q$29) -> 2404595.463 | O44: =IF(O$8, $G44*Forecast_vol!O22,Hist_expenditure!N21*Assumptions!R$29) -> 3137862.965 | P44: =IF(P$8, $G44*Forecast_vol!P22,Hist_expenditure!O21*Assumptions!S$29) -> 4531863.01 | Q44: =IF(Q$8, $G44*Forecast_vol!Q22,Hist_expenditure!P21*Assumptions!T$29) -> 2023144.701 | R44: =IF(R$8, $G44*Forecast_vol!R22,Hist_expenditure!Q21*Assumptions!U$29) -> 2444615.756 | S44: =IF(S$8, $G44*Forecast_vol!S22,Hist_expenditure!R21*Assumptions!V$29) -> 9548481.055 | T44: =IF(T$8, $G44*Forecast_vol!T22,Hist_expenditure!S21*Assumptions!W$29) -> 749408.6662 | U44: =IF(U$8, $G44*Forecast_vol!U22,Hist_expenditure!T21*Assumptions!X$29) -> 722683.8208 | V44: =IF(V$8, $G44*Forecast_vol!V22,Hist_expenditure!U21*Assumptions!Y$29) -> 796725.6816 | W44: =IF(W$8, $G44*Forecast_vol!W22,Hist_expenditure!V21*Assumptions!Z$29) -> 783228.4378 | X44: =IF(X$8, $G44*Forecast_vol!X22,Hist_expenditure!W21*Assumptions!AA$29) -> 806679.5833 | Y44: =IF(Y$8, $G44*Forecast_vol!Y22,Hist_expenditure!X21*Assumptions!AB$29) -> 828106.5072 | Z44: =IF(Z$8, $G44*Forecast_vol!Z22,Hist_expenditure!Y21*Assumptions!AC$29) -> 845207.6345 | AA44: =IF(AA$8, $G44*Forecast_vol!AA22,Hist_expenditure!Z21*Assumptions!AD$29) -> 880619.7686 | AC44: =SUMPRODUCT($H$7:$AA$7*$H44:$AA44) -> 4143841.931
B45: =Hist_vol!B22 -> Connections | C45: =Hist_vol!C22 -> CI5 | D45: =Hist_vol!D22 -> Commercial/Industrial | E45: =Hist_vol!E22 -> Complex connection sub-transmission | F45: Commercial/Industrial Complex connection sub-transmission | G45: =Unit_rates!$S22 -> 0 | H45: =IF(H$8, $G45*Forecast_vol!H23,Hist_expenditure!G22*Assumptions!K$29) -> 0 | I45: =IF(I$8, $G45*Forecast_vol!I23,Hist_expenditure!H22*Assumptions!L$29) -> 0 | J45: =IF(J$8, $G45*Forecast_vol!J23,Hist_expenditure!I22*Assumptions!M$29) -> 0 | K45: =IF(K$8, $G45*Forecast_vol!K23,Hist_expenditure!J22*Assumptions!N$29) -> 0 | L45: =IF(L$8, $G45*Forecast_vol!L23,Hist_expenditure!K22*Assumptions!O$29) -> 0 | M45: =IF(M$8, $G45*Forecast_vol!M23,Hist_expenditure!L22*Assumptions!P$29) -> 0 | N45: =IF(N$8, $G45*Forecast_vol!N23,Hist_expenditure!M22*Assumptions!Q$29) -> 0 | O45: =IF(O$8, $G45*Forecast_vol!O23,Hist_expenditure!N22*Assumptions!R$29) -> 0 | P45: =IF(P$8, $G45*Forecast_vol!P23,Hist_expenditure!O22*Assumptions!S$29) -> 0 | Q45: =IF(Q$8, $G45*Forecast_vol!Q23,Hist_expenditure!P22*Assumptions!T$29) -> 0 | R45: =IF(R$8, $G45*Forecast_vol!R23,Hist_expenditure!Q22*Assumptions!U$29) -> 0 | S45: =IF(S$8, $G45*Forecast_vol!S23,Hist_expenditure!R22*Assumptions!V$29) -> 0 | T45: =IF(T$8, $G45*Forecast_vol!T23,Hist_expenditure!S22*Assumptions!W$29) -> 0 | U45: =IF(U$8, $G45*Forecast_vol!U23,Hist_expenditure!T22*Assumptions!X$29) -> 0 | V45: =IF(V$8, $G45*Forecast_vol!V23,Hist_expenditure!U22*Assumptions!Y$29) -> 0 | W45: =IF(W$8, $G45*Forecast_vol!W23,Hist_expenditure!V22*Assumptions!Z$29) -> 0 | X45: =IF(X$8, $G45*Forecast_vol!X23,Hist_expenditure!W22*Assumptions!AA$29) -> 0 | Y45: =IF(Y$8, $G45*Forecast_vol!Y23,Hist_expenditure!X22*Assumptions!AB$29) -> 0 | Z45: =IF(Z$8, $G45*Forecast_vol!Z23,Hist_expenditure!Y22*Assumptions!AC$29) -> 0 | AA45: =IF(AA$8, $G45*Forecast_vol!AA23,Hist_expenditure!Z22*Assumptions!AD$29) -> 0 | AC45: =SUMPRODUCT($H$7:$AA$7*$H45:$AA45) -> 0
B46: =Hist_vol!B23 -> Connections | C46: =Hist_vol!C23 -> S1 | D46: =Hist_vol!D23 -> Subdivision | E46: =Hist_vol!E23 -> Complex connection LV | F46: Subdivision Complex connection LV | G46: =Unit_rates!$S23 -> 0 | H46: =IF(H$8, $G46*Forecast_vol!H24,Hist_expenditure!G23*Assumptions!K$29) -> 0 | I46: =IF(I$8, $G46*Forecast_vol!I24,Hist_expenditure!H23*Assumptions!L$29) -> 0 | J46: =IF(J$8, $G46*Forecast_vol!J24,Hist_expenditure!I23*Assumptions!M$29) -> 0 | K46: =IF(K$8, $G46*Forecast_vol!K24,Hist_expenditure!J23*Assumptions!N$29) -> 0 | L46: =IF(L$8, $G46*Forecast_vol!L24,Hist_expenditure!K23*Assumptions!O$29) -> 0 | M46: =IF(M$8, $G46*Forecast_vol!M24,Hist_expenditure!L23*Assumptions!P$29) -> 0 | N46: =IF(N$8, $G46*Forecast_vol!N24,Hist_expenditure!M23*Assumptions!Q$29) -> 0 | O46: =IF(O$8, $G46*Forecast_vol!O24,Hist_expenditure!N23*Assumptions!R$29) -> 0 | P46: =IF(P$8, $G46*Forecast_vol!P24,Hist_expenditure!O23*Assumptions!S$29) -> 0 | Q46: =IF(Q$8, $G46*Forecast_vol!Q24,Hist_expenditure!P23*Assumptions!T$29) -> 0 | R46: =IF(R$8, $G46*Forecast_vol!R24,Hist_expenditure!Q23*Assumptions!U$29) -> 0 | S46: =IF(S$8, $G46*Forecast_vol!S24,Hist_expenditure!R23*Assumptions!V$29) -> 0 | T46: =IF(T$8, $G46*Forecast_vol!T24,Hist_expenditure!S23*Assumptions!W$29) -> 0 | U46: =IF(U$8, $G46*Forecast_vol!U24,Hist_expenditure!T23*Assumptions!X$29) -> 0 | V46: =IF(V$8, $G46*Forecast_vol!V24,Hist_expenditure!U23*Assumptions!Y$29) -> 0 | W46: =IF(W$8, $G46*Forecast_vol!W24,Hist_expenditure!V23*Assumptions!Z$29) -> 0 | X46: =IF(X$8, $G46*Forecast_vol!X24,Hist_expenditure!W23*Assumptions!AA$29) -> 0 | Y46: =IF(Y$8, $G46*Forecast_vol!Y24,Hist_expenditure!X23*Assumptions!AB$29) -> 0 | Z46: =IF(Z$8, $G46*Forecast_vol!Z24,Hist_expenditure!Y23*Assumptions!AC$29) -> 0 | AA46: =IF(AA$8, $G46*Forecast_vol!AA24,Hist_expenditure!Z23*Assumptions!AD$29) -> 0 | AC46: =SUMPRODUCT($H$7:$AA$7*$H46:$AA46) -> 0
B47: =Hist_vol!B24 -> Connections | C47: =Hist_vol!C24 -> S2 | D47: =Hist_vol!D24 -> Subdivision | E47: =Hist_vol!E24 -> Complex connection HV (no upstream asset works) | F47: Subdivision Complex connection HV (no upstream asset works) | G47: =Unit_rates!$S24 -> 0 | H47: =IF(H$8, $G47*Forecast_vol!H25,Hist_expenditure!G24*Assumptions!K$29) -> 0 | I47: =IF(I$8, $G47*Forecast_vol!I25,Hist_expenditure!H24*Assumptions!L$29) -> 0 | J47: =IF(J$8, $G47*Forecast_vol!J25,Hist_expenditure!I24*Assumptions!M$29) -> 0 | K47: =IF(K$8, $G47*Forecast_vol!K25,Hist_expenditure!J24*Assumptions!N$29) -> 0 | L47: =IF(L$8, $G47*Forecast_vol!L25,Hist_expenditure!K24*Assumptions!O$29) -> 0 | M47: =IF(M$8, $G47*Forecast_vol!M25,Hist_expenditure!L24*Assumptions!P$29) -> 0 | N47: =IF(N$8, $G47*Forecast_vol!N25,Hist_expenditure!M24*Assumptions!Q$29) -> 0 | O47: =IF(O$8, $G47*Forecast_vol!O25,Hist_expenditure!N24*Assumptions!R$29) -> 0 | P47: =IF(P$8, $G47*Forecast_vol!P25,Hist_expenditure!O24*Assumptions!S$29) -> 0 | Q47: =IF(Q$8, $G47*Forecast_vol!Q25,Hist_expenditure!P24*Assumptions!T$29) -> 0 | R47: =IF(R$8, $G47*Forecast_vol!R25,Hist_expenditure!Q24*Assumptions!U$29) -> 0 | S47: =IF(S$8, $G47*Forecast_vol!S25,Hist_expenditure!R24*Assumptions!V$29) -> 0 | T47: =IF(T$8, $G47*Forecast_vol!T25,Hist_expenditure!S24*Assumptions!W$29) -> 0 | U47: =IF(U$8, $G47*Forecast_vol!U25,Hist_expenditure!T24*Assumptions!X$29) -> 0 | V47: =IF(V$8, $G47*Forecast_vol!V25,Hist_expenditure!U24*Assumptions!Y$29) -> 0 | W47: =IF(W$8, $G47*Forecast_vol!W25,Hist_expenditure!V24*Assumptions!Z$29) -> 0 | X47: =IF(X$8, $G47*Forecast_vol!X25,Hist_expenditure!W24*Assumptions!AA$29) -> 0 | Y47: =IF(Y$8, $G47*Forecast_vol!Y25,Hist_expenditure!X24*Assumptions!AB$29) -> 0 | Z47: =IF(Z$8, $G47*Forecast_vol!Z25,Hist_expenditure!Y24*Assumptions!AC$29) -> 0 | AA47: =IF(AA$8, $G47*Forecast_vol!AA25,Hist_expenditure!Z24*Assumptions!AD$29) -> 0 | AC47: =SUMPRODUCT($H$7:$AA$7*$H47:$AA47) -> 0
B48: =Hist_vol!B25 -> Connections | C48: =Hist_vol!C25 -> S3 | D48: =Hist_vol!D25 -> Subdivision | E48: =Hist_vol!E25 -> Complex connection HV (with upstream asset works) | F48: Subdivision Complex connection HV (with upstream asset works) | G48: =Unit_rates!$S25 -> 0 | H48: =IF(H$8, $G48*Forecast_vol!H26,Hist_expenditure!G25*Assumptions!K$29) -> 0 | I48: =IF(I$8, $G48*Forecast_vol!I26,Hist_expenditure!H25*Assumptions!L$29) -> 0 | J48: =IF(J$8, $G48*Forecast_vol!J26,Hist_expenditure!I25*Assumptions!M$29) -> 0 | K48: =IF(K$8, $G48*Forecast_vol!K26,Hist_expenditure!J25*Assumptions!N$29) -> 0 | L48: =IF(L$8, $G48*Forecast_vol!L26,Hist_expenditure!K25*Assumptions!O$29) -> 0 | M48: =IF(M$8, $G48*Forecast_vol!M26,Hist_expenditure!L25*Assumptions!P$29) -> 0 | N48: =IF(N$8, $G48*Forecast_vol!N26,Hist_expenditure!M25*Assumptions!Q$29) -> 0 | O48: =IF(O$8, $G48*Forecast_vol!O26,Hist_expenditure!N25*Assumptions!R$29) -> 0 | P48: =IF(P$8, $G48*Forecast_vol!P26,Hist_expenditure!O25*Assumptions!S$29) -> 0 | Q48: =IF(Q$8, $G48*Forecast_vol!Q26,Hist_expenditure!P25*Assumptions!T$29) -> 0 | R48: =IF(R$8, $G48*Forecast_vol!R26,Hist_expenditure!Q25*Assumptions!U$29) -> 0 | S48: =IF(S$8, $G48*Forecast_vol!S26,Hist_expenditure!R25*Assumptions!V$29) -> 0 | T48: =IF(T$8, $G48*Forecast_vol!T26,Hist_expenditure!S25*Assumptions!W$29) -> 0 | U48: =IF(U$8, $G48*Forecast_vol!U26,Hist_expenditure!T25*Assumptions!X$29) -> 0 | V48: =IF(V$8, $G48*Forecast_vol!V26,Hist_expenditure!U25*Assumptions!Y$29) -> 0 | W48: =IF(W$8, $G48*Forecast_vol!W26,Hist_expenditure!V25*Assumptions!Z$29) -> 0 | X48: =IF(X$8, $G48*Forecast_vol!X26,Hist_expenditure!W25*Assumptions!AA$29) -> 0 | Y48: =IF(Y$8, $G48*Forecast_vol!Y26,Hist_expenditure!X25*Assumptions!AB$29) -> 0 | Z48: =IF(Z$8, $G48*Forecast_vol!Z26,Hist_expenditure!Y25*Assumptions!AC$29) -> 0 | AA48: =IF(AA$8, $G48*Forecast_vol!AA26,Hist_expenditure!Z25*Assumptions!AD$29) -> 0 | AC48: =SUMPRODUCT($H$7:$AA$7*$H48:$AA48) -> 0
B49: =Hist_vol!B26 -> Connections | C49: =Hist_vol!C26 -> EG1 | D49: =Hist_vol!D26 -> Embedded generation | E49: =Hist_vol!E26 -> Simple connection LV | F49: Embedded generation Simple connection LV | G49: =Unit_rates!$S26 -> 3211.865898 | H49: =IF(H$8, $G49*Forecast_vol!H27,Hist_expenditure!G26*Assumptions!K$29) -> 0 | I49: =IF(I$8, $G49*Forecast_vol!I27,Hist_expenditure!H26*Assumptions!L$29) -> 0 | J49: =IF(J$8, $G49*Forecast_vol!J27,Hist_expenditure!I26*Assumptions!M$29) -> 0 | K49: =IF(K$8, $G49*Forecast_vol!K27,Hist_expenditure!J26*Assumptions!N$29) -> 0 | L49: =IF(L$8, $G49*Forecast_vol!L27,Hist_expenditure!K26*Assumptions!O$29) -> 0 | M49: =IF(M$8, $G49*Forecast_vol!M27,Hist_expenditure!L26*Assumptions!P$29) -> 0 | N49: =IF(N$8, $G49*Forecast_vol!N27,Hist_expenditure!M26*Assumptions!Q$29) -> 0 | O49: =IF(O$8, $G49*Forecast_vol!O27,Hist_expenditure!N26*Assumptions!R$29) -> 0 | P49: =IF(P$8, $G49*Forecast_vol!P27,Hist_expenditure!O26*Assumptions!S$29) -> 2259.046603 | Q49: =IF(Q$8, $G49*Forecast_vol!Q27,Hist_expenditure!P26*Assumptions!T$29) -> 7161.155663 | R49: =IF(R$8, $G49*Forecast_vol!R27,Hist_expenditure!Q26*Assumptions!U$29) -> 9208.678163 | S49: =IF(S$8, $G49*Forecast_vol!S27,Hist_expenditure!R26*Assumptions!V$29) -> 1703.607444 | T49: =IF(T$8, $G49*Forecast_vol!T27,Hist_expenditure!S26*Assumptions!W$29) -> 12847.46359 | U49: =IF(U$8, $G49*Forecast_vol!U27,Hist_expenditure!T26*Assumptions!X$29) -> 5139.106258 | V49: =IF(V$8, $G49*Forecast_vol!V27,Hist_expenditure!U26*Assumptions!Y$29) -> 5139.717781 | W49: =IF(W$8, $G49*Forecast_vol!W27,Hist_expenditure!V26*Assumptions!Z$29) -> 15422.30998 | X49: =IF(X$8, $G49*Forecast_vol!X27,Hist_expenditure!W26*Assumptions!AA$29) -> 128524.9937 | Y49: =IF(Y$8, $G49*Forecast_vol!Y27,Hist_expenditure!X26*Assumptions!AB$29) -> 128494.8294 | Z49: =IF(Z$8, $G49*Forecast_vol!Z27,Hist_expenditure!Y26*Assumptions!AC$29) -> 89938.76976 | AA49: =IF(AA$8, $G49*Forecast_vol!AA27,Hist_expenditure!Z26*Assumptions!AD$29) -> 89938.40015 | AC49: =SUMPRODUCT($H$7:$AA$7*$H49:$AA49) -> 452319.3029
B50: =Hist_vol!B27 -> Connections | C50: =Hist_vol!C27 -> EG2 | D50: =Hist_vol!D27 -> Embedded generation | E50: =Hist_vol!E27 -> Complex connection HV (small capacity) | F50: Embedded generation Complex connection HV (small capacity) | G50: =Unit_rates!$S27 -> 0 | H50: =IF(H$8, $G50*Forecast_vol!H28,Hist_expenditure!G27*Assumptions!K$29) -> 626192.4592 | I50: =IF(I$8, $G50*Forecast_vol!I28,Hist_expenditure!H27*Assumptions!L$29) -> 330381.1003 | J50: =IF(J$8, $G50*Forecast_vol!J28,Hist_expenditure!I27*Assumptions!M$29) -> 269056.0945 | K50: =IF(K$8, $G50*Forecast_vol!K28,Hist_expenditure!J27*Assumptions!N$29) -> 121446.1257 | L50: =IF(L$8, $G50*Forecast_vol!L28,Hist_expenditure!K27*Assumptions!O$29) -> 56539.34434 | M50: =IF(M$8, $G50*Forecast_vol!M28,Hist_expenditure!L27*Assumptions!P$29) -> 40170.94891 | N50: =IF(N$8, $G50*Forecast_vol!N28,Hist_expenditure!M27*Assumptions!Q$29) -> 31495.55537 | O50: =IF(O$8, $G50*Forecast_vol!O28,Hist_expenditure!N27*Assumptions!R$29) -> 5509.905221 | P50: =IF(P$8, $G50*Forecast_vol!P28,Hist_expenditure!O27*Assumptions!S$29) -> 0 | Q50: =IF(Q$8, $G50*Forecast_vol!Q28,Hist_expenditure!P27*Assumptions!T$29) -> 0 | R50: =IF(R$8, $G50*Forecast_vol!R28,Hist_expenditure!Q27*Assumptions!U$29) -> 0 | S50: =IF(S$8, $G50*Forecast_vol!S28,Hist_expenditure!R27*Assumptions!V$29) -> 0 | T50: =IF(T$8, $G50*Forecast_vol!T28,Hist_expenditure!S27*Assumptions!W$29) -> 0 | U50: =IF(U$8, $G50*Forecast_vol!U28,Hist_expenditure!T27*Assumptions!X$29) -> 0 | V50: =IF(V$8, $G50*Forecast_vol!V28,Hist_expenditure!U27*Assumptions!Y$29) -> 0 | W50: =IF(W$8, $G50*Forecast_vol!W28,Hist_expenditure!V27*Assumptions!Z$29) -> 0 | X50: =IF(X$8, $G50*Forecast_vol!X28,Hist_expenditure!W27*Assumptions!AA$29) -> 0 | Y50: =IF(Y$8, $G50*Forecast_vol!Y28,Hist_expenditure!X27*Assumptions!AB$29) -> 0 | Z50: =IF(Z$8, $G50*Forecast_vol!Z28,Hist_expenditure!Y27*Assumptions!AC$29) -> 0 | AA50: =IF(AA$8, $G50*Forecast_vol!AA28,Hist_expenditure!Z27*Assumptions!AD$29) -> 0 | AC50: =SUMPRODUCT($H$7:$AA$7*$H50:$AA50) -> 0
B51: =Hist_vol!B28 -> Connections | C51: =Hist_vol!C28 -> EG3 | D51: =Hist_vol!D28 -> Embedded generation | E51: =Hist_vol!E28 -> Complex connection HV (large capacity) | F51: Embedded generation Complex connection HV (large capacity) | G51: =Unit_rates!$S28 -> 0 | H51: =IF(H$8, $G51*Forecast_vol!H29,Hist_expenditure!G28*Assumptions!K$29) -> 0 | I51: =IF(I$8, $G51*Forecast_vol!I29,Hist_expenditure!H28*Assumptions!L$29) -> 0 | J51: =IF(J$8, $G51*Forecast_vol!J29,Hist_expenditure!I28*Assumptions!M$29) -> 0 | K51: =IF(K$8, $G51*Forecast_vol!K29,Hist_expenditure!J28*Assumptions!N$29) -> 0 | L51: =IF(L$8, $G51*Forecast_vol!L29,Hist_expenditure!K28*Assumptions!O$29) -> 0 | M51: =IF(M$8, $G51*Forecast_vol!M29,Hist_expenditure!L28*Assumptions!P$29) -> 0 | N51: =IF(N$8, $G51*Forecast_vol!N29,Hist_expenditure!M28*Assumptions!Q$29) -> 0 | O51: =IF(O$8, $G51*Forecast_vol!O29,Hist_expenditure!N28*Assumptions!R$29) -> 0 | P51: =IF(P$8, $G51*Forecast_vol!P29,Hist_expenditure!O28*Assumptions!S$29) -> 0 | Q51: =IF(Q$8, $G51*Forecast_vol!Q29,Hist_expenditure!P28*Assumptions!T$29) -> 0 | R51: =IF(R$8, $G51*Forecast_vol!R29,Hist_expenditure!Q28*Assumptions!U$29) -> 0 | S51: =IF(S$8, $G51*Forecast_vol!S29,Hist_expenditure!R28*Assumptions!V$29) -> 0 | T51: =IF(T$8, $G51*Forecast_vol!T29,Hist_expenditure!S28*Assumptions!W$29) -> 0 | U51: =IF(U$8, $G51*Forecast_vol!U29,Hist_expenditure!T28*Assumptions!X$29) -> 0 | V51: =IF(V$8, $G51*Forecast_vol!V29,Hist_expenditure!U28*Assumptions!Y$29) -> 0 | W51: =IF(W$8, $G51*Forecast_vol!W29,Hist_expenditure!V28*Assumptions!Z$29) -> 0 | X51: =IF(X$8, $G51*Forecast_vol!X29,Hist_expenditure!W28*Assumptions!AA$29) -> 0 | Y51: =IF(Y$8, $G51*Forecast_vol!Y29,Hist_expenditure!X28*Assumptions!AB$29) -> 0 | Z51: =IF(Z$8, $G51*Forecast_vol!Z29,Hist_expenditure!Y28*Assumptions!AC$29) -> 0 | AA51: =IF(AA$8, $G51*Forecast_vol!AA29,Hist_expenditure!Z28*Assumptions!AD$29) -> 0 | AC51: =SUMPRODUCT($H$7:$AA$7*$H51:$AA51) -> 0
B54: Category | C54: Type | D54: RIN category | E54: Description | U54: =Assumptions!X$24 -> 2024/25 | V54: =Assumptions!Y$24 -> 2025/26 | W54: =Assumptions!Z$24 -> 2026/27 | X54: =Assumptions!AA$24 -> 2027/28 | Y54: =Assumptions!AB$24 -> 2028/29 | Z54: =Assumptions!AC$24 -> 2029/30 | AA54: =Assumptions!AD$24 -> 2030/31 | AC54: 2026-31 Total
B56: Gifted Assets | G56: As a % of gross capex (FY23)
B57: Connections | C57: R1 | D57: Residential | E57: Simple connection LV | F57: ResidentialSimple connection LV | G57: 0 | U57: =H57*U16 -> 0 | V57: =I57*V16 -> 0 | W57: =J57*W16 -> 0 | X57: =K57*X16 -> 0 | Y57: =L57*Y16 -> 0 | Z57: =M57*Z16 -> 0 | AC57: =SUMPRODUCT($H$7:$AA$7*$H57:$AA57) -> 0
B58: Connections | C58: R2 | D58: Residential | E58: Complex connection LV | F58: ResidentialComplex connection LV | G58: 0 | U58: 0 | V58: 0 | W58: 0 | X58: 0 | Y58: 0 | Z58: 0 | AC58: =SUMPRODUCT($H$7:$AA$7*$H58:$AA58) -> 0
B59: Connections | C59: R3 | D59: Residential | E59: Complex connection HV | F59: ResidentialComplex connection HV | G59: 0 | U59: 0 | V59: 0 | W59: 0 | X59: 0 | Y59: 0 | Z59: 0 | AC59: =SUMPRODUCT($H$7:$AA$7*$H59:$AA59) -> 0
B60: Connections | C60: CI1 | D60: Commercial/Industrial | E60: Simple connection LV | F60: Commercial/IndustrialSimple connection LV | G60: 0 | U60: 0 | V60: 0 | W60: 0 | X60: 0 | Y60: 0 | Z60: 0 | AC60: =SUMPRODUCT($H$7:$AA$7*$H60:$AA60) -> 0
B61: Connections | C61: CI2 | D61: Commercial/Industrial | E61: Complex connection HV (customer connected at LV, minor HV works) | F61: Commercial/IndustrialComplex connection HV (customer connected at LV, minor HV works) | G61: 0 | U61: 0 | V61: 0 | W61: 0 | X61: 0 | Y61: 0 | Z61: 0 | AC61: =SUMPRODUCT($H$7:$AA$7*$H61:$AA61) -> 0
B62: Connections | C62: CI3 | D62: Commercial/Industrial | E62: Complex connection HV (customer connected at LV, upstream asset works) | F62: Commercial/IndustrialComplex connection HV (customer connected at LV, upstream asset works) | G62: 0 | U62: 0 | V62: 0 | W62: 0 | X62: 0 | Y62: 0 | Z62: 0 | AC62: =SUMPRODUCT($H$7:$AA$7*$H62:$AA62) -> 0
B63: Connections | C63: CI4 | D63: Commercial/Industrial | E63: Complex connection HV (customer connected at HV) | F63: Commercial/IndustrialComplex connection HV (customer connected at HV) | G63: 0 | U63: 0 | V63: 0 | W63: 0 | X63: 0 | Y63: 0 | Z63: 0 | AC63: =SUMPRODUCT($H$7:$AA$7*$H63:$AA63) -> 0
B64: Connections | C64: CI5 | D64: Commercial/Industrial | E64: Complex connection sub-transmission | F64: Commercial/IndustrialComplex connection sub-transmission | G64: 0 | U64: 0 | V64: 0 | W64: 0 | X64: 0 | Y64: 0 | Z64: 0 | AC64: =SUMPRODUCT($H$7:$AA$7*$H64:$AA64) -> 0
B65: Connections | C65: S1 | D65: Subdivision | E65: Complex connection LV | F65: SubdivisionComplex connection LV | G65: 0 | U65: 0 | V65: 0 | W65: 0 | X65: 0 | Y65: 0 | Z65: 0 | AC65: =SUMPRODUCT($H$7:$AA$7*$H65:$AA65) -> 0
B66: Connections | C66: S2 | D66: Subdivision | E66: Complex connection HV (no upstream asset works) | F66: SubdivisionComplex connection HV (no upstream asset works) | G66: 0 | U66: 0 | V66: 0 | W66: 0 | X66: 0 | Y66: 0 | Z66: 0 | AC66: =SUMPRODUCT($H$7:$AA$7*$H66:$AA66) -> 0
B67: Connections | C67: S3 | D67: Subdivision | E67: Complex connection HV (with upstream asset works) | F67: SubdivisionComplex connection HV (with upstream asset works) | G67: 0 | U67: 0 | V67: 0 | W67: 0 | X67: 0 | Y67: 0 | Z67: 0 | AC67: =SUMPRODUCT($H$7:$AA$7*$H67:$AA67) -> 0
B68: Connections | C68: EG1 | D68: Embedded generation | E68: Simple connection LV | F68: Embedded generationSimple connection LV | G68: 0 | U68: 0 | V68: 0 | W68: 0 | X68: 0 | Y68: 0 | Z68: 0 | AC68: =SUMPRODUCT($H$7:$AA$7*$H68:$AA68) -> 0
B69: Connections | C69: EG2 | D69: Embedded generation | E69: Complex connection HV (small capacity) | F69: Embedded generationComplex connection HV (small capacity) | G69: 0 | U69: 0 | V69: 0 | W69: 0 | X69: 0 | Y69: 0 | Z69: 0 | AC69: =SUMPRODUCT($H$7:$AA$7*$H69:$AA69) -> 0
B70: Connections | C70: EG3 | D70: Embedded generation | E70: Complex connection HV (large capacity) | F70: Embedded generationComplex connection HV (large capacity) | G70: 0 | U70: 0 | V70: 0 | W70: 0 | X70: 0 | Y70: 0 | Z70: 0 | AC70: =SUMPRODUCT($H$7:$AA$7*$H70:$AA70) -> 0
U71: =SUM(U55:U70) -> 0 | V71: 0 | W71: 0 | X71: 0 | Y71: 0 | Z71: 0 | AC71: 0

Sheet Forecast_contrib
A1: =Assumptions!$A$1 -> CitiPower
A2: =Assumptions!$A$2 -> Connections
A3: Forecast contributions
B7: =Assumptions!B17 -> 2026/7 - 2030/31 reg period | H7: =Assumptions!K17 -> FALSE | I7: =Assumptions!L17 -> FALSE | J7: =Assumptions!M17 -> FALSE | K7: =Assumptions!N17 -> FALSE | L7: =Assumptions!O17 -> FALSE | M7: =Assumptions!P17 -> FALSE | N7: =Assumptions!Q17 -> FALSE | O7: =Assumptions!R17 -> FALSE | P7: =Assumptions!S17 -> FALSE | Q7: =Assumptions!T17 -> FALSE | R7: =Assumptions!U17 -> FALSE | S7: =Assumptions!V17 -> FALSE | T7: =Assumptions!W17 -> FALSE | U7: =Assumptions!X17 -> FALSE | V7: =Assumptions!Y17 -> FALSE | W7: =Assumptions!Z17 -> TRUE | X7: =Assumptions!AA17 -> TRUE | Y7: =Assumptions!AB17 -> TRUE | Z7: =Assumptions!AC17 -> TRUE | AA7: =Assumptions!AD17 -> TRUE
B8: =Assumptions!B18 -> Forecast period | H8: =Assumptions!K18 -> FALSE | I8: =Assumptions!L18 -> FALSE | J8: =Assumptions!M18 -> FALSE | K8: =Assumptions!N18 -> FALSE | L8: =Assumptions!O18 -> FALSE | M8: =Assumptions!P18 -> FALSE | N8: =Assumptions!Q18 -> FALSE | O8: =Assumptions!R18 -> FALSE | P8: =Assumptions!S18 -> FALSE | Q8: =Assumptions!T18 -> FALSE | R8: =Assumptions!U18 -> FALSE | S8: =Assumptions!V18 -> FALSE | T8: =Assumptions!W18 -> FALSE | U8: =Assumptions!X18 -> TRUE | V8: =Assumptions!Y18 -> TRUE | W8: =Assumptions!Z18 -> TRUE | X8: =Assumptions!AA18 -> TRUE | Y8: =Assumptions!AB18 -> TRUE | Z8: =Assumptions!AC18 -> TRUE | AA8: =Assumptions!AD18 -> TRUE
B9: =Assumptions!B19 -> Fin year end | H9: =Assumptions!K19 -> 2012 | I9: =Assumptions!L19 -> 2013 | J9: =Assumptions!M19 -> 2014 | K9: =Assumptions!N19 -> 2015 | L9: =Assumptions!O19 -> 2016 | M9: =Assumptions!P19 -> 2017 | N9: =Assumptions!Q19 -> 2018 | O9: =Assumptions!R19 -> 2019 | P9: =Assumptions!S19 -> 2020 | Q9: =Assumptions!T19 -> 2021 | R9: =Assumptions!U19 -> 2022 | S9: =Assumptions!V19 -> 2023 | T9: =Assumptions!W19 -> 2024 | U9: =Assumptions!X19 -> 2025 | V9: =Assumptions!Y19 -> 2026 | W9: =Assumptions!Z19 -> 2027 | X9: =Assumptions!AA19 -> 2028 | Y9: =Assumptions!AB19 -> 2029 | Z9: =Assumptions!AC19 -> 2030 | AA9: =Assumptions!AD19 -> 2031
B10: =Assumptions!B20 -> Basis | H10: =Assumptions!K20 -> Actual | I10: =Assumptions!L20 -> Actual | J10: =Assumptions!M20 -> Actual | K10: =Assumptions!N20 -> Actual | L10: =Assumptions!O20 -> Actual | M10: =Assumptions!P20 -> Actual | N10: =Assumptions!Q20 -> Actual | O10: =Assumptions!R20 -> Actual | P10: =Assumptions!S20 -> Actual | Q10: =Assumptions!T20 -> Actual | R10: =Assumptions!U20 -> Actual | S10: =Assumptions!V20 -> Actual | T10: =Assumptions!W20 -> Actual | U10: =Assumptions!X20 -> Forecast | V10: =Assumptions!Y20 -> Forecast | W10: =Assumptions!Z20 -> Forecast | X10: =Assumptions!AA20 -> Forecast | Y10: =Assumptions!AB20 -> Forecast | Z10: =Assumptions!AC20 -> Forecast | AA10: =Assumptions!AD20 -> Forecast
B13: =Hist_vol!B$13 -> Category | C13: Type | D13: =Hist_vol!D$13 -> RIN category | E13: =Hist_vol!E$13 -> Description | H13: =Assumptions!K$24 -> 2011/12 | I13: =Assumptions!L$24 -> 2012/13 | J13: =Assumptions!M$24 -> 2013/14 | K13: =Assumptions!N$24 -> 2014/15 | L13: =Assumptions!O$24 -> 2015/16 | M13: =Assumptions!P$24 -> 2016/17 | N13: =Assumptions!Q$24 -> 2017/18 | O13: =Assumptions!R$24 -> 2018/19 | P13: =Assumptions!S$24 -> 2019/20 | Q13: =Assumptions!T$24 -> 2020/21 | R13: =Assumptions!U$24 -> 2021/22 | S13: =Assumptions!V$24 -> 2022/23 | T13: =Assumptions!W$24 -> 2023/24 | U13: =Assumptions!X$24 -> 2024/25 | V13: =Assumptions!Y$24 -> 2025/26 | W13: =Assumptions!Z$24 -> 2026/27 | X13: =Assumptions!AA$24 -> 2027/28 | Y13: =Assumptions!AB$24 -> 2028/29 | Z13: =Assumptions!AC$24 -> 2029/30 | AA13: =Assumptions!AD$24 -> 2030/31 | AC13: 2026-31 Total
B15: Forecast type 1 contributions (June 2026 $)
B16: =Hist_vol!B15 -> Connections | C16: =Hist_vol!C15 -> R1 | D16: =Hist_vol!D15 -> Residential | E16: =Hist_vol!E15 -> Simple connection LV | F16: =D16&" "&E16 -> Residential Simple connection LV | H16: =IF(H$8,CC_ratio!G15*Forecast_spend!H16,Hist_contributions!G15*Assumptions!K$29) -> 382278.3182 | I16: =IF(I$8,CC_ratio!H15*Forecast_spend!I16,Hist_contributions!H15*Assumptions!L$29) -> 366081.9438 | J16: =IF(J$8,CC_ratio!I15*Forecast_spend!J16,Hist_contributions!I15*Assumptions!M$29) -> 462695.8096 | K16: =IF(K$8,CC_ratio!J15*Forecast_spend!K16,Hist_contributions!J15*Assumptions!N$29) -> 565678.1183 | L16: =IF(L$8,CC_ratio!K15*Forecast_spend!L16,Hist_contributions!K15*Assumptions!O$29) -> 293220.7556 | M16: =IF(M$8,CC_ratio!L15*Forecast_spend!M16,Hist_contributions!L15*Assumptions!P$29) -> 0 | N16: =IF(N$8,CC_ratio!M15*Forecast_spend!N16,Hist_contributions!M15*Assumptions!Q$29) -> 0 | O16: =IF(O$8,CC_ratio!N15*Forecast_spend!O16,Hist_contributions!N15*Assumptions!R$29) -> 0 | P16: =IF(P$8,CC_ratio!O15*Forecast_spend!P16,Hist_contributions!O15*Assumptions!S$29) -> 0 | Q16: =IF(Q$8,CC_ratio!P15*Forecast_spend!Q16,Hist_contributions!P15*Assumptions!T$29) -> 0 | R16: =IF(R$8,CC_ratio!Q15*Forecast_spend!R16,Hist_contributions!Q15*Assumptions!U$29) -> 0 | S16: =IF(S$8,CC_ratio!R15*Forecast_spend!S16,Hist_contributions!R15*Assumptions!V$29) -> 0 | T16: =IF(T$8,CC_ratio!S15*Forecast_spend!T16,Hist_contributions!S15*Assumptions!W$29) -> 0 | U16: =IF(U$8,CC_ratio!T15*Forecast_spend!U16,Hist_contributions!T15*Assumptions!X$29) -> 0 | V16: =IF(V$8,CC_ratio!U15*Forecast_spend!V16,Hist_contributions!U15*Assumptions!Y$29) -> 0 | W16: =IF(W$8,CC_ratio!V15*Forecast_spend!W16,Hist_contributions!V15*Assumptions!Z$29) -> 0 | X16: =IF(X$8,CC_ratio!W15*Forecast_spend!X16,Hist_contributions!W15*Assumptions!AA$29) -> 0 | Y16: =IF(Y$8,CC_ratio!X15*Forecast_spend!Y16,Hist_contributions!X15*Assumptions!AB$29) -> 0 | Z16: =IF(Z$8,CC_ratio!Y15*Forecast_spend!Z16,Hist_contributions!Y15*Assumptions!AC$29) -> 0 | AA16: =IF(AA$8,CC_ratio!Z15*Forecast_spend!AA16,Hist_contributions!Z15*Assumptions!AD$29) -> 0 | AC16: =SUMPRODUCT($H$7:$AA$7*$H16:$AA16) -> 0
B17: =Hist_vol!B16 -> Connections | C17: =Hist_vol!C16 -> R2 | D17: =Hist_vol!D16 -> Residential | E17: =Hist_vol!E16 -> Complex connection LV | F17: =D17&" "&E17 -> Residential Complex connection LV | H17: =IF(H$8,CC_ratio!G16*Forecast_spend!H17,Hist_contributions!G16*Assumptions!K$29) -> 2744583.356 | I17: =IF(I$8,CC_ratio!H16*Forecast_spend!I17,Hist_contributions!H16*Assumptions!L$29) -> 2604910.914 | J17: =IF(J$8,CC_ratio!I16*Forecast_spend!J17,Hist_contributions!I16*Assumptions!M$29) -> 2576022.915 | K17: =IF(K$8,CC_ratio!J16*Forecast_spend!K17,Hist_contributions!J16*Assumptions!N$29) -> 2725327.679 | L17: =IF(L$8,CC_ratio!K16*Forecast_spend!L17,Hist_contributions!K16*Assumptions!O$29) -> 4743656.367 | M17: =IF(M$8,CC_ratio!L16*Forecast_spend!M17,Hist_contributions!L16*Assumptions!P$29) -> 8309431.446 | N17: =IF(N$8,CC_ratio!M16*Forecast_spend!N17,Hist_contributions!M16*Assumptions!Q$29) -> 9736416.392 | O17: =IF(O$8,CC_ratio!N16*Forecast_spend!O17,Hist_contributions!N16*Assumptions!R$29) -> 10848598.08 | P17: =IF(P$8,CC_ratio!O16*Forecast_spend!P17,Hist_contributions!O16*Assumptions!S$29) -> 12731952.25 | Q17: =IF(Q$8,CC_ratio!P16*Forecast_spend!Q17,Hist_contributions!P16*Assumptions!T$29) -> 13792925.06 | R17: =IF(R$8,CC_ratio!Q16*Forecast_spend!R17,Hist_contributions!Q16*Assumptions!U$29) -> 14984016.11 | S17: =IF(S$8,CC_ratio!R16*Forecast_spend!S17,Hist_contributions!R16*Assumptions!V$29) -> 13234505.59 | T17: =IF(T$8,CC_ratio!S16*Forecast_spend!T17,Hist_contributions!S16*Assumptions!W$29) -> 16263567.88 | U17: =IF(U$8,CC_ratio!T16*Forecast_spend!U17,Hist_contributions!T16*Assumptions!X$29) -> 16709184.4 | V17: =IF(V$8,CC_ratio!U16*Forecast_spend!V17,Hist_contributions!U16*Assumptions!Y$29) -> 22400600.46 | W17: =IF(W$8,CC_ratio!V16*Forecast_spend!W17,Hist_contributions!V16*Assumptions!Z$29) -> 25289279.5 | X17: =IF(X$8,CC_ratio!W16*Forecast_spend!X17,Hist_contributions!W16*Assumptions!AA$29) -> 24132683.14 | Y17: =IF(Y$8,CC_ratio!X16*Forecast_spend!Y17,Hist_contributions!X16*Assumptions!AB$29) -> 21748986.56 | Z17: =IF(Z$8,CC_ratio!Y16*Forecast_spend!Z17,Hist_contributions!Y16*Assumptions!AC$29) -> 20958340.63 | AA17: =IF(AA$8,CC_ratio!Z16*Forecast_spend!AA17,Hist_contributions!Z16*Assumptions!AD$29) -> 22018885.08 | AC17: =SUMPRODUCT($H$7:$AA$7*$H17:$AA17) -> 114148174.9
B18: =Hist_vol!B17 -> Connections | C18: =Hist_vol!C17 -> R3 | D18: =Hist_vol!D17 -> Residential | E18: =Hist_vol!E17 -> Complex connection HV | F18: Residential Complex connection HV | H18: =IF(H$8,CC_ratio!G17*Forecast_spend!H18,Hist_contributions!G17*Assumptions!K$29) -> 7516975.267 | I18: =IF(I$8,CC_ratio!H17*Forecast_spend!I18,Hist_contributions!H17*Assumptions!L$29) -> 7058359.99 | J18: =IF(J$8,CC_ratio!I17*Forecast_spend!J18,Hist_contributions!I17*Assumptions!M$29) -> 7058518.225 | K18: =IF(K$8,CC_ratio!J17*Forecast_spend!K18,Hist_contributions!J17*Assumptions!N$29) -> 7749355.58 | L18: =IF(L$8,CC_ratio!K17*Forecast_spend!L18,Hist_contributions!K17*Assumptions!O$29) -> 9650703.952 | M18: =IF(M$8,CC_ratio!L17*Forecast_spend!M18,Hist_contributions!L17*Assumptions!P$29) -> 11689404.14 | N18: =IF(N$8,CC_ratio!M17*Forecast_spend!N18,Hist_contributions!M17*Assumptions!Q$29) -> 13727333.2 | O18: =IF(O$8,CC_ratio!N17*Forecast_spend!O18,Hist_contributions!N17*Assumptions!R$29) -> 15685002.38 | P18: =IF(P$8,CC_ratio!O17*Forecast_spend!P18,Hist_contributions!O17*Assumptions!S$29) -> 14545224.04 | Q18: =IF(Q$8,CC_ratio!P17*Forecast_spend!Q18,Hist_contributions!P17*Assumptions!T$29) -> 10493361.07 | R18: =IF(R$8,CC_ratio!Q17*Forecast_spend!R18,Hist_contributions!Q17*Assumptions!U$29) -> 9368419.78 | S18: =IF(S$8,CC_ratio!R17*Forecast_spend!S18,Hist_contributions!R17*Assumptions!V$29) -> 10625579.51 | T18: =IF(T$8,CC_ratio!S17*Forecast_spend!T18,Hist_contributions!S17*Assumptions!W$29) -> 13494029.11 | U18: =IF(U$8,CC_ratio!T17*Forecast_spend!U18,Hist_contributions!T17*Assumptions!X$29) -> 18833181.42 | V18: =IF(V$8,CC_ratio!U17*Forecast_spend!V18,Hist_contributions!U17*Assumptions!Y$29) -> 25248064.91 | W18: =IF(W$8,CC_ratio!V17*Forecast_spend!W18,Hist_contributions!V17*Assumptions!Z$29) -> 28503939.95 | X18: =IF(X$8,CC_ratio!W17*Forecast_spend!X18,Hist_contributions!W17*Assumptions!AA$29) -> 27200322.22 | Y18: =IF(Y$8,CC_ratio!X17*Forecast_spend!Y18,Hist_contributions!X17*Assumptions!AB$29) -> 24513620.76 | Z18: =IF(Z$8,CC_ratio!Y17*Forecast_spend!Z18,Hist_contributions!Y17*Assumptions!AC$29) -> 23622471.45 | AA18: =IF(AA$8,CC_ratio!Z17*Forecast_spend!AA18,Hist_contributions!Z17*Assumptions!AD$29) -> 24817827.57 | AC18: =SUMPRODUCT($H$7:$AA$7*$H18:$AA18) -> 128658181.9
B19: =Hist_vol!B18 -> Connections | C19: =Hist_vol!C18 -> CI1 | D19: =Hist_vol!D18 -> Commercial/Industrial | E19: =Hist_vol!E18 -> Simple connection LV | F19: Commercial/Industrial Simple connection LV | H19: =IF(H$8,CC_ratio!G18*Forecast_spend!H19,Hist_contributions!G18*Assumptions!K$29) -> 731708.472 | I19: =IF(I$8,CC_ratio!H18*Forecast_spend!I19,Hist_contributions!H18*Assumptions!L$29) -> 698138.3215 | J19: =IF(J$8,CC_ratio!I18*Forecast_spend!J19,Hist_contributions!I18*Assumptions!M$29) -> 671067.7003 | K19: =IF(K$8,CC_ratio!J18*Forecast_spend!K19,Hist_contributions!J18*Assumptions!N$29) -> 738042.6208 | L19: =IF(L$8,CC_ratio!K18*Forecast_spend!L19,Hist_contributions!K18*Assumptions!O$29) -> 902740.1473 | M19: =IF(M$8,CC_ratio!L18*Forecast_spend!M19,Hist_contributions!L18*Assumptions!P$29) -> 1120662.124 | N19: =IF(N$8,CC_ratio!M18*Forecast_spend!N19,Hist_contributions!M18*Assumptions!Q$29) -> 1331463.193 | O19: =IF(O$8,CC_ratio!N18*Forecast_spend!O19,Hist_contributions!N18*Assumptions!R$29) -> 1459985.278 | P19: =IF(P$8,CC_ratio!O18*Forecast_spend!P19,Hist_contributions!O18*Assumptions!S$29) -> 1391455.037 | Q19: =IF(Q$8,CC_ratio!P18*Forecast_spend!Q19,Hist_contributions!P18*Assumptions!T$29) -> 1361094.895 | R19: =IF(R$8,CC_ratio!Q18*Forecast_spend!R19,Hist_contributions!Q18*Assumptions!U$29) -> 1557667.251 | S19: =IF(S$8,CC_ratio!R18*Forecast_spend!S19,Hist_contributions!R18*Assumptions!V$29) -> 1511461.922 | T19: =IF(T$8,CC_ratio!S18*Forecast_spend!T19,Hist_contributions!S18*Assumptions!W$29) -> 1588750.69 | U19: =IF(U$8,CC_ratio!T18*Forecast_spend!U19,Hist_contributions!T18*Assumptions!X$29) -> 1336814.78 | V19: =IF(V$8,CC_ratio!U18*Forecast_spend!V19,Hist_contributions!U18*Assumptions!Y$29) -> 1473776.825 | W19: =IF(W$8,CC_ratio!V18*Forecast_spend!W19,Hist_contributions!V18*Assumptions!Z$29) -> 1448809.731 | X19: =IF(X$8,CC_ratio!W18*Forecast_spend!X19,Hist_contributions!W18*Assumptions!AA$29) -> 1492189.473 | Y19: =IF(Y$8,CC_ratio!X18*Forecast_spend!Y19,Hist_contributions!X18*Assumptions!AB$29) -> 1531824.827 | Z19: =IF(Z$8,CC_ratio!Y18*Forecast_spend!Z19,Hist_contributions!Y18*Assumptions!AC$29) -> 1563458.356 | AA19: =IF(AA$8,CC_ratio!Z18*Forecast_spend!AA19,Hist_contributions!Z18*Assumptions!AD$29) -> 1628963.44 | AC19: =SUMPRODUCT($H$7:$AA$7*$H19:$AA19) -> 7665245.827
B20: =Hist_vol!B19 -> Connections | C20: =Hist_vol!C19 -> CI2 | D20: =Hist_vol!D19 -> Commercial/Industrial | E20: =Hist_vol!E19 -> Complex connection HV (customer connected at LV, minor HV works) | F20: Commercial/Industrial Complex connection HV (customer connected at LV, minor HV works) | H20: =IF(H$8,CC_ratio!G19*Forecast_spend!H20,Hist_contributions!G19*Assumptions!K$29) -> 5466023.512 | I20: =IF(I$8,CC_ratio!H19*Forecast_spend!I20,Hist_contributions!H19*Assumptions!L$29) -> 12587817.84 | J20: =IF(J$8,CC_ratio!I19*Forecast_spend!J20,Hist_contributions!I19*Assumptions!M$29) -> 12552057.53 | K20: =IF(K$8,CC_ratio!J19*Forecast_spend!K20,Hist_contributions!J19*Assumptions!N$29) -> 13513327.47 | L20: =IF(L$8,CC_ratio!K19*Forecast_spend!L20,Hist_contributions!K19*Assumptions!O$29) -> 20429329.19 | M20: =IF(M$8,CC_ratio!L19*Forecast_spend!M20,Hist_contributions!L19*Assumptions!P$29) -> 26478404.88 | N20: =IF(N$8,CC_ratio!M19*Forecast_spend!N20,Hist_contributions!M19*Assumptions!Q$29) -> 29968008.21 | O20: =IF(O$8,CC_ratio!N19*Forecast_spend!O20,Hist_contributions!N19*Assumptions!R$29) -> 24800304.1 | P20: =IF(P$8,CC_ratio!O19*Forecast_spend!P20,Hist_contributions!O19*Assumptions!S$29) -> 25895849.15 | Q20: =IF(Q$8,CC_ratio!P19*Forecast_spend!Q20,Hist_contributions!P19*Assumptions!T$29) -> 31680886.66 | R20: =IF(R$8,CC_ratio!Q19*Forecast_spend!R20,Hist_contributions!Q19*Assumptions!U$29) -> 28726990.96 | S20: =IF(S$8,CC_ratio!R19*Forecast_spend!S20,Hist_contributions!R19*Assumptions!V$29) -> 54575160.88 | T20: =IF(T$8,CC_ratio!S19*Forecast_spend!T20,Hist_contributions!S19*Assumptions!W$29) -> 35362171.66 | U20: =IF(U$8,CC_ratio!T19*Forecast_spend!U20,Hist_contributions!T19*Assumptions!X$29) -> 33367993.79 | V20: =IF(V$8,CC_ratio!U19*Forecast_spend!V20,Hist_contributions!U19*Assumptions!Y$29) -> 36786678.81 | W20: =IF(W$8,CC_ratio!V19*Forecast_spend!W20,Hist_contributions!V19*Assumptions!Z$29) -> 36163479.66 | X20: =IF(X$8,CC_ratio!W19*Forecast_spend!X20,Hist_contributions!W19*Assumptions!AA$29) -> 37246273.62 | Y20: =IF(Y$8,CC_ratio!X19*Forecast_spend!Y20,Hist_contributions!X19*Assumptions!AB$29) -> 38235604.56 | Z20: =IF(Z$8,CC_ratio!Y19*Forecast_spend!Z20,Hist_contributions!Y19*Assumptions!AC$29) -> 39025203.4 | AA20: =IF(AA$8,CC_ratio!Z19*Forecast_spend!AA20,Hist_contributions!Z19*Assumptions!AD$29) -> 40660264.04 | AC20: =SUMPRODUCT($H$7:$AA$7*$H20:$AA20) -> 191330825.3
B21: =Hist_vol!B20 -> Connections | C21: =Hist_vol!C20 -> CI3 | D21: =Hist_vol!D20 -> Commercial/Industrial | E21: =Hist_vol!E20 -> Complex connection HV (customer connected at LV, upstream asset works) | F21: Commercial/Industrial Complex connection HV (customer connected at LV, upstream asset works) | H21: =IF(H$8,CC_ratio!G20*Forecast_spend!H21,Hist_contributions!G20*Assumptions!K$29) -> 3340232.849 | I21: =IF(I$8,CC_ratio!H20*Forecast_spend!I21,Hist_contributions!H20*Assumptions!L$29) -> 3125651.244 | J21: =IF(J$8,CC_ratio!I20*Forecast_spend!J21,Hist_contributions!I20*Assumptions!M$29) -> 3104470.6 | K21: =IF(K$8,CC_ratio!J20*Forecast_spend!K21,Hist_contributions!J20*Assumptions!N$29) -> 3306761.288 | L21: =IF(L$8,CC_ratio!K20*Forecast_spend!L21,Hist_contributions!K20*Assumptions!O$29) -> 4054716.568 | M21: =IF(M$8,CC_ratio!L20*Forecast_spend!M21,Hist_contributions!L20*Assumptions!P$29) -> 4962076.424 | N21: =IF(N$8,CC_ratio!M20*Forecast_spend!N21,Hist_contributions!M20*Assumptions!Q$29) -> 5823055.222 | O21: =IF(O$8,CC_ratio!N20*Forecast_spend!O21,Hist_contributions!N20*Assumptions!R$29) -> 6655117.247 | P21: =IF(P$8,CC_ratio!O20*Forecast_spend!P21,Hist_contributions!O20*Assumptions!S$29) -> 6216987.851 | Q21: =IF(Q$8,CC_ratio!P20*Forecast_spend!Q21,Hist_contributions!P20*Assumptions!T$29) -> 4485086.321 | R21: =IF(R$8,CC_ratio!Q20*Forecast_spend!R21,Hist_contributions!Q20*Assumptions!U$29) -> 4027579.844 | S21: =IF(S$8,CC_ratio!R20*Forecast_spend!S21,Hist_contributions!R20*Assumptions!V$29) -> 4390007.094 | T21: =IF(T$8,CC_ratio!S20*Forecast_spend!T21,Hist_contributions!S20*Assumptions!W$29) -> 5692867.592 | U21: =IF(U$8,CC_ratio!T20*Forecast_spend!U21,Hist_contributions!T20*Assumptions!X$29) -> 6542998.878 | V21: =IF(V$8,CC_ratio!U20*Forecast_spend!V21,Hist_contributions!U20*Assumptions!Y$29) -> 7213355.399 | W21: =IF(W$8,CC_ratio!V20*Forecast_spend!W21,Hist_contributions!V20*Assumptions!Z$29) -> 7091154.724 | X21: =IF(X$8,CC_ratio!W20*Forecast_spend!X21,Hist_contributions!W20*Assumptions!AA$29) -> 7303475.539 | Y21: =IF(Y$8,CC_ratio!X20*Forecast_spend!Y21,Hist_contributions!X20*Assumptions!AB$29) -> 7497469.559 | Z21: =IF(Z$8,CC_ratio!Y20*Forecast_spend!Z21,Hist_contributions!Y20*Assumptions!AC$29) -> 7652298.896 | AA21: =IF(AA$8,CC_ratio!Z20*Forecast_spend!AA21,Hist_contributions!Z20*Assumptions!AD$29) -> 7972911.517 | AC21: =SUMPRODUCT($H$7:$AA$7*$H21:$AA21) -> 37517310.23
B22: =Hist_vol!B21 -> Connections | C22: =Hist_vol!C21 -> CI4 | D22: =Hist_vol!D21 -> Commercial/Industrial | E22: =Hist_vol!E21 -> Complex connection HV (customer connected at HV) | F22: Commercial/Industrial Complex connection HV (customer connected at HV) | H22: =IF(H$8,CC_ratio!G21*Forecast_spend!H22,Hist_contributions!G21*Assumptions!K$29) -> 37492.37818 | I22: =IF(I$8,CC_ratio!H21*Forecast_spend!I22,Hist_contributions!H21*Assumptions!L$29) -> 0 | J22: =IF(J$8,CC_ratio!I21*Forecast_spend!J22,Hist_contributions!I21*Assumptions!M$29) -> 121007.2895 | K22: =IF(K$8,CC_ratio!J21*Forecast_spend!K22,Hist_contributions!J21*Assumptions!N$29) -> 426317.2831 | L22: =IF(L$8,CC_ratio!K21*Forecast_spend!L22,Hist_contributions!K21*Assumptions!O$29) -> 1534344.657 | M22: =IF(M$8,CC_ratio!L21*Forecast_spend!M22,Hist_contributions!L21*Assumptions!P$29) -> 2089367.806 | N22: =IF(N$8,CC_ratio!M21*Forecast_spend!N22,Hist_contributions!M21*Assumptions!Q$29) -> 1297862.817 | O22: =IF(O$8,CC_ratio!N21*Forecast_spend!O22,Hist_contributions!N21*Assumptions!R$29) -> 1572516.563 | P22: =IF(P$8,CC_ratio!O21*Forecast_spend!P22,Hist_contributions!O21*Assumptions!S$29) -> 2850102.296 | Q22: =IF(Q$8,CC_ratio!P21*Forecast_spend!Q22,Hist_contributions!P21*Assumptions!T$29) -> 1179840.206 | R22: =IF(R$8,CC_ratio!Q21*Forecast_spend!R22,Hist_contributions!Q21*Assumptions!U$29) -> 3139672.753 | S22: =IF(S$8,CC_ratio!R21*Forecast_spend!S22,Hist_contributions!R21*Assumptions!V$29) -> 9373362.202 | T22: =IF(T$8,CC_ratio!S21*Forecast_spend!T22,Hist_contributions!S21*Assumptions!W$29) -> 656581.7353 | U22: =IF(U$8,CC_ratio!T21*Forecast_spend!U22,Hist_contributions!T21*Assumptions!X$29) -> 721051.3046 | V22: =IF(V$8,CC_ratio!U21*Forecast_spend!V22,Hist_contributions!U21*Assumptions!Y$29) -> 794925.9076 | W22: =IF(W$8,CC_ratio!V21*Forecast_spend!W22,Hist_contributions!V21*Assumptions!Z$29) -> 781459.1536 | X22: =IF(X$8,CC_ratio!W21*Forecast_spend!X22,Hist_contributions!W21*Assumptions!AA$29) -> 804857.3237 | Y22: =IF(Y$8,CC_ratio!X21*Forecast_spend!Y22,Hist_contributions!X21*Assumptions!AB$29) -> 826235.845 | Z22: =IF(Z$8,CC_ratio!Y21*Forecast_spend!Z22,Hist_contributions!Y21*Assumptions!AC$29) -> 843298.3415 | AA22: =IF(AA$8,CC_ratio!Z21*Forecast_spend!AA22,Hist_contributions!Z21*Assumptions!AD$29) -> 878630.4809 | AC22: =SUMPRODUCT($H$7:$AA$7*$H22:$AA22) -> 4134481.145
B23: =Hist_vol!B22 -> Connections | C23: =Hist_vol!C22 -> CI5 | D23: =Hist_vol!D22 -> Commercial/Industrial | E23: =Hist_vol!E22 -> Complex connection sub-transmission | F23: Commercial/Industrial Complex connection sub-transmission | H23: =IF(H$8,CC_ratio!G22*Forecast_spend!H23,Hist_contributions!G22*Assumptions!K$29) -> 0 | I23: =IF(I$8,CC_ratio!H22*Forecast_spend!I23,Hist_contributions!H22*Assumptions!L$29) -> 0 | J23: =IF(J$8,CC_ratio!I22*Forecast_spend!J23,Hist_contributions!I22*Assumptions!M$29) -> 0 | K23: =IF(K$8,CC_ratio!J22*Forecast_spend!K23,Hist_contributions!J22*Assumptions!N$29) -> 0 | L23: =IF(L$8,CC_ratio!K22*Forecast_spend!L23,Hist_contributions!K22*Assumptions!O$29) -> 0 | M23: =IF(M$8,CC_ratio!L22*Forecast_spend!M23,Hist_contributions!L22*Assumptions!P$29) -> 0 | N23: =IF(N$8,CC_ratio!M22*Forecast_spend!N23,Hist_contributions!M22*Assumptions!Q$29) -> 0 | O23: =IF(O$8,CC_ratio!N22*Forecast_spend!O23,Hist_contributions!N22*Assumptions!R$29) -> 0 | P23: =IF(P$8,CC_ratio!O22*Forecast_spend!P23,Hist_contributions!O22*Assumptions!S$29) -> 0 | Q23: =IF(Q$8,CC_ratio!P22*Forecast_spend!Q23,Hist_contributions!P22*Assumptions!T$29) -> 0 | R23: =IF(R$8,CC_ratio!Q22*Forecast_spend!R23,Hist_contributions!Q22*Assumptions!U$29) -> 0 | S23: =IF(S$8,CC_ratio!R22*Forecast_spend!S23,Hist_contributions!R22*Assumptions!V$29) -> 0 | T23: =IF(T$8,CC_ratio!S22*Forecast_spend!T23,Hist_contributions!S22*Assumptions!W$29) -> 0 | U23: =IF(U$8,CC_ratio!T22*Forecast_spend!U23,Hist_contributions!T22*Assumptions!X$29) -> 0 | V23: =IF(V$8,CC_ratio!U22*Forecast_spend!V23,Hist_contributions!U22*Assumptions!Y$29) -> 0 | W23: =IF(W$8,CC_ratio!V22*Forecast_spend!W23,Hist_contributions!V22*Assumptions!Z$29) -> 0 | X23: =IF(X$8,CC_ratio!W22*Forecast_spend!X23,Hist_contributions!W22*Assumptions!AA$29) -> 0 | Y23: =IF(Y$8,CC_ratio!X22*Forecast_spend!Y23,Hist_contributions!X22*Assumptions!AB$29) -> 0 | Z23: =IF(Z$8,CC_ratio!Y22*Forecast_spend!Z23,Hist_contributions!Y22*Assumptions!AC$29) -> 0 | AA23: =IF(AA$8,CC_ratio!Z22*Forecast_spend!AA23,Hist_contributions!Z22*Assumptions!AD$29) -> 0 | AC23: =SUMPRODUCT($H$7:$AA$7*$H23:$AA23) -> 0
B24: =Hist_vol!B23 -> Connections | C24: =Hist_vol!C23 -> S1 | D24: =Hist_vol!D23 -> Subdivision | E24: =Hist_vol!E23 -> Complex connection LV | F24: Subdivision Complex connection LV | H24: =IF(H$8,CC_ratio!G23*Forecast_spend!H24,Hist_contributions!G23*Assumptions!K$29) -> 0 | I24: =IF(I$8,CC_ratio!H23*Forecast_spend!I24,Hist_contributions!H23*Assumptions!L$29) -> 0 | J24: =IF(J$8,CC_ratio!I23*Forecast_spend!J24,Hist_contributions!I23*Assumptions!M$29) -> 0 | K24: =IF(K$8,CC_ratio!J23*Forecast_spend!K24,Hist_contributions!J23*Assumptions!N$29) -> 0 | L24: =IF(L$8,CC_ratio!K23*Forecast_spend!L24,Hist_contributions!K23*Assumptions!O$29) -> 0 | M24: =IF(M$8,CC_ratio!L23*Forecast_spend!M24,Hist_contributions!L23*Assumptions!P$29) -> 0 | N24: =IF(N$8,CC_ratio!M23*Forecast_spend!N24,Hist_contributions!M23*Assumptions!Q$29) -> 0 | O24: =IF(O$8,CC_ratio!N23*Forecast_spend!O24,Hist_contributions!N23*Assumptions!R$29) -> 0 | P24: =IF(P$8,CC_ratio!O23*Forecast_spend!P24,Hist_contributions!O23*Assumptions!S$29) -> 0 | Q24: =IF(Q$8,CC_ratio!P23*Forecast_spend!Q24,Hist_contributions!P23*Assumptions!T$29) -> 0 | R24: =IF(R$8,CC_ratio!Q23*Forecast_spend!R24,Hist_contributions!Q23*Assumptions!U$29) -> 0 | S24: =IF(S$8,CC_ratio!R23*Forecast_spend!S24,Hist_contributions!R23*Assumptions!V$29) -> 0 | T24: =IF(T$8,CC_ratio!S23*Forecast_spend!T24,Hist_contributions!S23*Assumptions!W$29) -> 0 | U24: =IF(U$8,CC_ratio!T23*Forecast_spend!U24,Hist_contributions!T23*Assumptions!X$29) -> 0 | V24: =IF(V$8,CC_ratio!U23*Forecast_spend!V24,Hist_contributions!U23*Assumptions!Y$29) -> 0 | W24: =IF(W$8,CC_ratio!V23*Forecast_spend!W24,Hist_contributions!V23*Assumptions!Z$29) -> 0 | X24: =IF(X$8,CC_ratio!W23*Forecast_spend!X24,Hist_contributions!W23*Assumptions!AA$29) -> 0 | Y24: =IF(Y$8,CC_ratio!X23*Forecast_spend!Y24,Hist_contributions!X23*Assumptions!AB$29) -> 0 | Z24: =IF(Z$8,CC_ratio!Y23*Forecast_spend!Z24,Hist_contributions!Y23*Assumptions!AC$29) -> 0 | AA24: =IF(AA$8,CC_ratio!Z23*Forecast_spend!AA24,Hist_contributions!Z23*Assumptions!AD$29) -> 0 | AC24: =SUMPRODUCT($H$7:$AA$7*$H24:$AA24) -> 0
B25: =Hist_vol!B24 -> Connections | C25: =Hist_vol!C24 -> S2 | D25: =Hist_vol!D24 -> Subdivision | E25: =Hist_vol!E24 -> Complex connection HV (no upstream asset works) | F25: Subdivision Complex connection HV (no upstream asset works) | H25: =IF(H$8,CC_ratio!G24*Forecast_spend!H25,Hist_contributions!G24*Assumptions!K$29) -> 0 | I25: =IF(I$8,CC_ratio!H24*Forecast_spend!I25,Hist_contributions!H24*Assumptions!L$29) -> 0 | J25: =IF(J$8,CC_ratio!I24*Forecast_spend!J25,Hist_contributions!I24*Assumptions!M$29) -> 0 | K25: =IF(K$8,CC_ratio!J24*Forecast_spend!K25,Hist_contributions!J24*Assumptions!N$29) -> 0 | L25: =IF(L$8,CC_ratio!K24*Forecast_spend!L25,Hist_contributions!K24*Assumptions!O$29) -> 0 | M25: =IF(M$8,CC_ratio!L24*Forecast_spend!M25,Hist_contributions!L24*Assumptions!P$29) -> 0 | N25: =IF(N$8,CC_ratio!M24*Forecast_spend!N25,Hist_contributions!M24*Assumptions!Q$29) -> 0 | O25: =IF(O$8,CC_ratio!N24*Forecast_spend!O25,Hist_contributions!N24*Assumptions!R$29) -> 0 | P25: =IF(P$8,CC_ratio!O24*Forecast_spend!P25,Hist_contributions!O24*Assumptions!S$29) -> 0 | Q25: =IF(Q$8,CC_ratio!P24*Forecast_spend!Q25,Hist_contributions!P24*Assumptions!T$29) -> 0 | R25: =IF(R$8,CC_ratio!Q24*Forecast_spend!R25,Hist_contributions!Q24*Assumptions!U$29) -> 0 | S25: =IF(S$8,CC_ratio!R24*Forecast_spend!S25,Hist_contributions!R24*Assumptions!V$29) -> 0 | T25: =IF(T$8,CC_ratio!S24*Forecast_spend!T25,Hist_contributions!S24*Assumptions!W$29) -> 0 | U25: =IF(U$8,CC_ratio!T24*Forecast_spend!U25,Hist_contributions!T24*Assumptions!X$29) -> 0 | V25: =IF(V$8,CC_ratio!U24*Forecast_spend!V25,Hist_contributions!U24*Assumptions!Y$29) -> 0 | W25: =IF(W$8,CC_ratio!V24*Forecast_spend!W25,Hist_contributions!V24*Assumptions!Z$29) -> 0 | X25: =IF(X$8,CC_ratio!W24*Forecast_spend!X25,Hist_contributions!W24*Assumptions!AA$29) -> 0 | Y25: =IF(Y$8,CC_ratio!X24*Forecast_spend!Y25,Hist_contributions!X24*Assumptions!AB$29) -> 0 | Z25: =IF(Z$8,CC_ratio!Y24*Forecast_spend!Z25,Hist_contributions!Y24*Assumptions!AC$29) -> 0 | AA25: =IF(AA$8,CC_ratio!Z24*Forecast_spend!AA25,Hist_contributions!Z24*Assumptions!AD$29) -> 0 | AC25: =SUMPRODUCT($H$7:$AA$7*$H25:$AA25) -> 0
B26: =Hist_vol!B25 -> Connections | C26: =Hist_vol!C25 -> S3 | D26: =Hist_vol!D25 -> Subdivision | E26: =Hist_vol!E25 -> Complex connection HV (with upstream asset works) | F26: Subdivision Complex connection HV (with upstream asset works) | H26: =IF(H$8,CC_ratio!G25*Forecast_spend!H26,Hist_contributions!G25*Assumptions!K$29) -> 0 | I26: =IF(I$8,CC_ratio!H25*Forecast_spend!I26,Hist_contributions!H25*Assumptions!L$29) -> 0 | J26: =IF(J$8,CC_ratio!I25*Forecast_spend!J26,Hist_contributions!I25*Assumptions!M$29) -> 0 | K26: =IF(K$8,CC_ratio!J25*Forecast_spend!K26,Hist_contributions!J25*Assumptions!N$29) -> 0 | L26: =IF(L$8,CC_ratio!K25*Forecast_spend!L26,Hist_contributions!K25*Assumptions!O$29) -> 0 | M26: =IF(M$8,CC_ratio!L25*Forecast_spend!M26,Hist_contributions!L25*Assumptions!P$29) -> 0 | N26: =IF(N$8,CC_ratio!M25*Forecast_spend!N26,Hist_contributions!M25*Assumptions!Q$29) -> 0 | O26: =IF(O$8,CC_ratio!N25*Forecast_spend!O26,Hist_contributions!N25*Assumptions!R$29) -> 0 | P26: =IF(P$8,CC_ratio!O25*Forecast_spend!P26,Hist_contributions!O25*Assumptions!S$29) -> 0 | Q26: =IF(Q$8,CC_ratio!P25*Forecast_spend!Q26,Hist_contributions!P25*Assumptions!T$29) -> 0 | R26: =IF(R$8,CC_ratio!Q25*Forecast_spend!R26,Hist_contributions!Q25*Assumptions!U$29) -> 0 | S26: =IF(S$8,CC_ratio!R25*Forecast_spend!S26,Hist_contributions!R25*Assumptions!V$29) -> 0 | T26: =IF(T$8,CC_ratio!S25*Forecast_spend!T26,Hist_contributions!S25*Assumptions!W$29) -> 0 | U26: =IF(U$8,CC_ratio!T25*Forecast_spend!U26,Hist_contributions!T25*Assumptions!X$29) -> 0 | V26: =IF(V$8,CC_ratio!U25*Forecast_spend!V26,Hist_contributions!U25*Assumptions!Y$29) -> 0 | W26: =IF(W$8,CC_ratio!V25*Forecast_spend!W26,Hist_contributions!V25*Assumptions!Z$29) -> 0 | X26: =IF(X$8,CC_ratio!W25*Forecast_spend!X26,Hist_contributions!W25*Assumptions!AA$29) -> 0 | Y26: =IF(Y$8,CC_ratio!X25*Forecast_spend!Y26,Hist_contributions!X25*Assumptions!AB$29) -> 0 | Z26: =IF(Z$8,CC_ratio!Y25*Forecast_spend!Z26,Hist_contributions!Y25*Assumptions!AC$29) -> 0 | AA26: =IF(AA$8,CC_ratio!Z25*Forecast_spend!AA26,Hist_contributions!Z25*Assumptions!AD$29) -> 0 | AC26: =SUMPRODUCT($H$7:$AA$7*$H26:$AA26) -> 0
B27: =Hist_vol!B26 -> Connections | C27: =Hist_vol!C26 -> EG1 | D27: =Hist_vol!D26 -> Embedded generation | E27: =Hist_vol!E26 -> Simple connection LV | F27: Embedded generation Simple connection LV | H27: =IF(H$8,CC_ratio!G26*Forecast_spend!H27,Hist_contributions!G26*Assumptions!K$29) -> 0 | I27: =IF(I$8,CC_ratio!H26*Forecast_spend!I27,Hist_contributions!H26*Assumptions!L$29) -> 0 | J27: =IF(J$8,CC_ratio!I26*Forecast_spend!J27,Hist_contributions!I26*Assumptions!M$29) -> 0 | K27: =IF(K$8,CC_ratio!J26*Forecast_spend!K27,Hist_contributions!J26*Assumptions!N$29) -> 0 | L27: =IF(L$8,CC_ratio!K26*Forecast_spend!L27,Hist_contributions!K26*Assumptions!O$29) -> 0 | M27: =IF(M$8,CC_ratio!L26*Forecast_spend!M27,Hist_contributions!L26*Assumptions!P$29) -> 0 | N27: =IF(N$8,CC_ratio!M26*Forecast_spend!N27,Hist_contributions!M26*Assumptions!Q$29) -> 0 | O27: =IF(O$8,CC_ratio!N26*Forecast_spend!O27,Hist_contributions!N26*Assumptions!R$29) -> 0 | P27: =IF(P$8,CC_ratio!O26*Forecast_spend!P27,Hist_contributions!O26*Assumptions!S$29) -> 2168.074186 | Q27: =IF(Q$8,CC_ratio!P26*Forecast_spend!Q27,Hist_contributions!P26*Assumptions!T$29) -> -2488.791127 | R27: =IF(R$8,CC_ratio!Q26*Forecast_spend!R27,Hist_contributions!Q26*Assumptions!U$29) -> 622.2404499 | S27: =IF(S$8,CC_ratio!R26*Forecast_spend!S27,Hist_contributions!R26*Assumptions!V$29) -> 0 | T27: =IF(T$8,CC_ratio!S26*Forecast_spend!T27,Hist_contributions!S26*Assumptions!W$29) -> 1749.49868 | U27: =IF(U$8,CC_ratio!T26*Forecast_spend!U27,Hist_contributions!T26*Assumptions!X$29) -> 5139.106258 | V27: =IF(V$8,CC_ratio!U26*Forecast_spend!V27,Hist_contributions!U26*Assumptions!Y$29) -> 5139.717781 | W27: =IF(W$8,CC_ratio!V26*Forecast_spend!W27,Hist_contributions!V26*Assumptions!Z$29) -> 15422.30998 | X27: =IF(X$8,CC_ratio!W26*Forecast_spend!X27,Hist_contributions!W26*Assumptions!AA$29) -> 128524.9937 | Y27: =IF(Y$8,CC_ratio!X26*Forecast_spend!Y27,Hist_contributions!X26*Assumptions!AB$29) -> 128494.8294 | Z27: =IF(Z$8,CC_ratio!Y26*Forecast_spend!Z27,Hist_contributions!Y26*Assumptions!AC$29) -> 89938.76976 | AA27: =IF(AA$8,CC_ratio!Z26*Forecast_spend!AA27,Hist_contributions!Z26*Assumptions!AD$29) -> 89938.40015 | AC27: =SUMPRODUCT($H$7:$AA$7*$H27:$AA27) -> 452319.3029
B28: =Hist_vol!B27 -> Connections | C28: =Hist_vol!C27 -> EG2 | D28: =Hist_vol!D27 -> Embedded generation | E28: =Hist_vol!E27 -> Complex connection HV (small capacity) | F28: Embedded generation Complex connection HV (small capacity) | H28: =IF(H$8,CC_ratio!G27*Forecast_spend!H28,Hist_contributions!G27*Assumptions!K$29) -> 160936.1027 | I28: =IF(I$8,CC_ratio!H27*Forecast_spend!I28,Hist_contributions!H27*Assumptions!L$29) -> 78597.15267 | J28: =IF(J$8,CC_ratio!I27*Forecast_spend!J28,Hist_contributions!I27*Assumptions!M$29) -> 65742.67026 | K28: =IF(K$8,CC_ratio!J27*Forecast_spend!K28,Hist_contributions!J27*Assumptions!N$29) -> 31419.16845 | L28: =IF(L$8,CC_ratio!K27*Forecast_spend!L28,Hist_contributions!K27*Assumptions!O$29) -> 18465.65193 | M28: =IF(M$8,CC_ratio!L27*Forecast_spend!M28,Hist_contributions!L27*Assumptions!P$29) -> 21089.56029 | N28: =IF(N$8,CC_ratio!M27*Forecast_spend!N28,Hist_contributions!M27*Assumptions!Q$29) -> 17253.86198 | O28: =IF(O$8,CC_ratio!N27*Forecast_spend!O28,Hist_contributions!N27*Assumptions!R$29) -> 2817.63911 | P28: =IF(P$8,CC_ratio!O27*Forecast_spend!P28,Hist_contributions!O27*Assumptions!S$29) -> 0 | Q28: =IF(Q$8,CC_ratio!P27*Forecast_spend!Q28,Hist_contributions!P27*Assumptions!T$29) -> 0 | R28: =IF(R$8,CC_ratio!Q27*Forecast_spend!R28,Hist_contributions!Q27*Assumptions!U$29) -> 0 | S28: =IF(S$8,CC_ratio!R27*Forecast_spend!S28,Hist_contributions!R27*Assumptions!V$29) -> 0 | T28: =IF(T$8,CC_ratio!S27*Forecast_spend!T28,Hist_contributions!S27*Assumptions!W$29) -> 0 | U28: =IF(U$8,CC_ratio!T27*Forecast_spend!U28,Hist_contributions!T27*Assumptions!X$29) -> 0 | V28: =IF(V$8,CC_ratio!U27*Forecast_spend!V28,Hist_contributions!U27*Assumptions!Y$29) -> 0 | W28: =IF(W$8,CC_ratio!V27*Forecast_spend!W28,Hist_contributions!V27*Assumptions!Z$29) -> 0 | X28: =IF(X$8,CC_ratio!W27*Forecast_spend!X28,Hist_contributions!W27*Assumptions!AA$29) -> 0 | Y28: =IF(Y$8,CC_ratio!X27*Forecast_spend!Y28,Hist_contributions!X27*Assumptions!AB$29) -> 0 | Z28: =IF(Z$8,CC_ratio!Y27*Forecast_spend!Z28,Hist_contributions!Y27*Assumptions!AC$29) -> 0 | AA28: =IF(AA$8,CC_ratio!Z27*Forecast_spend!AA28,Hist_contributions!Z27*Assumptions!AD$29) -> 0 | AC28: =SUMPRODUCT($H$7:$AA$7*$H28:$AA28) -> 0
B29: =Hist_vol!B28 -> Connections | C29: =Hist_vol!C28 -> EG3 | D29: =Hist_vol!D28 -> Embedded generation | E29: =Hist_vol!E28 -> Complex connection HV (large capacity) | F29: Embedded generation Complex connection HV (large capacity) | H29: =IF(H$8,CC_ratio!G28*Forecast_spend!H29,Hist_contributions!G28*Assumptions!K$29) -> 0 | I29: =IF(I$8,CC_ratio!H28*Forecast_spend!I29,Hist_contributions!H28*Assumptions!L$29) -> 0 | J29: =IF(J$8,CC_ratio!I28*Forecast_spend!J29,Hist_contributions!I28*Assumptions!M$29) -> 0 | K29: =IF(K$8,CC_ratio!J28*Forecast_spend!K29,Hist_contributions!J28*Assumptions!N$29) -> 0 | L29: =IF(L$8,CC_ratio!K28*Forecast_spend!L29,Hist_contributions!K28*Assumptions!O$29) -> 0 | M29: =IF(M$8,CC_ratio!L28*Forecast_spend!M29,Hist_contributions!L28*Assumptions!P$29) -> 0 | N29: =IF(N$8,CC_ratio!M28*Forecast_spend!N29,Hist_contributions!M28*Assumptions!Q$29) -> 0 | O29: =IF(O$8,CC_ratio!N28*Forecast_spend!O29,Hist_contributions!N28*Assumptions!R$29) -> 0 | P29: =IF(P$8,CC_ratio!O28*Forecast_spend!P29,Hist_contributions!O28*Assumptions!S$29) -> 0 | Q29: =IF(Q$8,CC_ratio!P28*Forecast_spend!Q29,Hist_contributions!P28*Assumptions!T$29) -> 0 | R29: =IF(R$8,CC_ratio!Q28*Forecast_spend!R29,Hist_contributions!Q28*Assumptions!U$29) -> 0 | S29: =IF(S$8,CC_ratio!R28*Forecast_spend!S29,Hist_contributions!R28*Assumptions!V$29) -> 0 | T29: =IF(T$8,CC_ratio!S28*Forecast_spend!T29,Hist_contributions!S28*Assumptions!W$29) -> 0 | U29: =IF(U$8,CC_ratio!T28*Forecast_spend!U29,Hist_contributions!T28*Assumptions!X$29) -> 0 | V29: =IF(V$8,CC_ratio!U28*Forecast_spend!V29,Hist_contributions!U28*Assumptions!Y$29) -> 0 | W29: =IF(W$8,CC_ratio!V28*Forecast_spend!W29,Hist_contributions!V28*Assumptions!Z$29) -> 0 | X29: =IF(X$8,CC_ratio!W28*Forecast_spend!X29,Hist_contributions!W28*Assumptions!AA$29) -> 0 | Y29: =IF(Y$8,CC_ratio!X28*Forecast_spend!Y29,Hist_contributions!X28*Assumptions!AB$29) -> 0 | Z29: =IF(Z$8,CC_ratio!Y28*Forecast_spend!Z29,Hist_contributions!Y28*Assumptions!AC$29) -> 0 | AA29: =IF(AA$8,CC_ratio!Z28*Forecast_spend!AA29,Hist_contributions!Z28*Assumptions!AD$29) -> 0 | AC29: =SUMPRODUCT($H$7:$AA$7*$H29:$AA29) -> 0
B30: Connections | C30: Grid connected Batteries | D30: Grid connected Battery | F30: Grid connected Battery | H30: 0 | I30: 0 | J30: 0 | K30: 0 | L30: 0 | M30: 0 | N30: 0 | O30: 0 | P30: 0 | Q30: 0 | R30: 0 | S30: 0 | T30: 0 | U30: 0 | V30: 0 | W30: 0 | X30: 0 | Y30: 0 | Z30: 0 | AA30: 0 | AC30: =SUMPRODUCT($H$7:$AA$7*$H30:$AA30) -> 0
B31: ='Data Centres'!B17 -> Connections | C31: Data Centres | D31: ='Data Centres'!C17 -> Data Centres | F31: =D31 -> Data Centres | H31: 0 | I31: 0 | J31: 0 | K31: 0 | L31: 0 | M31: 0 | N31: 0 | O31: 0 | P31: 0 | Q31: 0 | R31: 0 | S31: 0 | T31: 0 | U31: 0 | V31: 0 | W31: ='Data Centres'!E17 -> 0 | X31: ='Data Centres'!F17 -> 0 | Y31: ='Data Centres'!G17 -> 0 | Z31: ='Data Centres'!H17 -> 47248312.5 | AA31: ='Data Centres'!I17 -> 60415875 | AC31: =SUMPRODUCT($H$7:$AA$7*$H31:$AA31) -> 107664187.5
D32: Total | H32: =SUM(H16:H31) -> 20380230.26 | I32: 26519557.41 | J32: 26611582.74 | K32: 29056229.2 | L32: 41627177.28 | M32: 54670436.38 | N32: 61901392.9 | O32: 61024341.29 | P32: 63633738.69 | Q32: 62990705.42 | R32: 61804968.94 | S32: 93710077.2 | T32: 73059718.16 | U32: 77516363.69 | V32: 93922542.03 | W32: 99293545.02 | X32: 98308326.3 | Y32: 94482236.93 | Z32: 141003322.3 | AA32: 158483295.5 | AC32: =SUM(AC16:AC31) -> 591570726.1

Sheet Forecast_netcapex
A1: =Assumptions!$A$1 -> CitiPower
A2: =Assumptions!$A$2 -> Connections
A3: Forecast net capex
B7: =Assumptions!B17 -> 2026/7 - 2030/31 reg period | H7: =Assumptions!K17 -> FALSE | I7: =Assumptions!L17 -> FALSE | J7: =Assumptions!M17 -> FALSE | K7: =Assumptions!N17 -> FALSE | L7: =Assumptions!O17 -> FALSE | M7: =Assumptions!P17 -> FALSE | N7: =Assumptions!Q17 -> FALSE | O7: =Assumptions!R17 -> FALSE | P7: =Assumptions!S17 -> FALSE | Q7: =Assumptions!T17 -> FALSE | R7: =Assumptions!U17 -> FALSE | S7: =Assumptions!V17 -> FALSE | T7: =Assumptions!W17 -> FALSE | U7: =Assumptions!X17 -> FALSE | V7: =Assumptions!Y17 -> FALSE | W7: =Assumptions!Z17 -> TRUE | X7: =Assumptions!AA17 -> TRUE | Y7: =Assumptions!AB17 -> TRUE | Z7: =Assumptions!AC17 -> TRUE | AA7: =Assumptions!AD17 -> TRUE
B8: =Assumptions!B18 -> Forecast period | H8: =Assumptions!K18 -> FALSE | I8: =Assumptions!L18 -> FALSE | J8: =Assumptions!M18 -> FALSE | K8: =Assumptions!N18 -> FALSE | L8: =Assumptions!O18 -> FALSE | M8: =Assumptions!P18 -> FALSE | N8: =Assumptions!Q18 -> FALSE | O8: =Assumptions!R18 -> FALSE | P8: =Assumptions!S18 -> FALSE | Q8: =Assumptions!T18 -> FALSE | R8: =Assumptions!U18 -> FALSE | S8: =Assumptions!V18 -> FALSE | T8: =Assumptions!W18 -> FALSE | U8: =Assumptions!X18 -> TRUE | V8: =Assumptions!Y18 -> TRUE | W8: =Assumptions!Z18 -> TRUE | X8: =Assumptions!AA18 -> TRUE | Y8: =Assumptions!AB18 -> TRUE | Z8: =Assumptions!AC18 -> TRUE | AA8: =Assumptions!AD18 -> TRUE
B9: =Assumptions!B19 -> Fin year end | H9: =Assumptions!K19 -> 2012 | I9: =Assumptions!L19 -> 2013 | J9: =Assumptions!M19 -> 2014 | K9: =Assumptions!N19 -> 2015 | L9: =Assumptions!O19 -> 2016 | M9: =Assumptions!P19 -> 2017 | N9: =Assumptions!Q19 -> 2018 | O9: =Assumptions!R19 -> 2019 | P9: =Assumptions!S19 -> 2020 | Q9: =Assumptions!T19 -> 2021 | R9: =Assumptions!U19 -> 2022 | S9: =Assumptions!V19 -> 2023 | T9: =Assumptions!W19 -> 2024 | U9: =Assumptions!X19 -> 2025 | V9: =Assumptions!Y19 -> 2026 | W9: =Assumptions!Z19 -> 2027 | X9: =Assumptions!AA19 -> 2028 | Y9: =Assumptions!AB19 -> 2029 | Z9: =Assumptions!AC19 -> 2030 | AA9: =Assumptions!AD19 -> 2031
B10: =Assumptions!B20 -> Basis | H10: =Assumptions!K20 -> Actual | I10: =Assumptions!L20 -> Actual | J10: =Assumptions!M20 -> Actual | K10: =Assumptions!N20 -> Actual | L10: =Assumptions!O20 -> Actual | M10: =Assumptions!P20 -> Actual | N10: =Assumptions!Q20 -> Actual | O10: =Assumptions!R20 -> Actual | P10: =Assumptions!S20 -> Actual | Q10: =Assumptions!T20 -> Actual | R10: =Assumptions!U20 -> Actual | S10: =Assumptions!V20 -> Actual | T10: =Assumptions!W20 -> Actual | U10: =Assumptions!X20 -> Forecast | V10: =Assumptions!Y20 -> Forecast | W10: =Assumptions!Z20 -> Forecast | X10: =Assumptions!AA20 -> Forecast | Y10: =Assumptions!AB20 -> Forecast | Z10: =Assumptions!AC20 -> Forecast | AA10: =Assumptions!AD20 -> Forecast
B13: =Hist_vol!B$13 -> Category | C13: =Hist_vol!C$13 -> Type | D13: =Hist_vol!D$13 -> RIN category | E13: =Hist_vol!E$13 -> Description | H13: =Assumptions!K$24 -> 2011/12 | I13: =Assumptions!L$24 -> 2012/13 | J13: =Assumptions!M$24 -> 2013/14 | K13: =Assumptions!N$24 -> 2014/15 | L13: =Assumptions!O$24 -> 2015/16 | M13: =Assumptions!P$24 -> 2016/17 | N13: =Assumptions!Q$24 -> 2017/18 | O13: =Assumptions!R$24 -> 2018/19 | P13: =Assumptions!S$24 -> 2019/20 | Q13: =Assumptions!T$24 -> 2020/21 | R13: =Assumptions!U$24 -> 2021/22 | S13: =Assumptions!V$24 -> 2022/23 | T13: =Assumptions!W$24 -> 2023/24 | U13: =Assumptions!X$24 -> 2024/25 | V13: =Assumptions!Y$24 -> 2025/26 | W13: =Assumptions!Z$24 -> 2026/27 | X13: =Assumptions!AA$24 -> 2027/28 | Y13: =Assumptions!AB$24 -> 2028/29 | Z13: =Assumptions!AC$24 -> 2029/30 | AA13: =Assumptions!AD$24 -> 2030/31 | AC13: 2026-31 Total
B15: Forecast type 1 contributions (June 2026 $)
B16: =Hist_vol!B15 -> Connections | C16: =Hist_vol!C15 -> R1 | D16: =Hist_vol!D15 -> Residential | E16: =Hist_vol!E15 -> Simple connection LV | F16: =D16&" "&E16 -> Residential Simple connection LV | H16: =Forecast_spend!H16-Forecast_contrib!H16 -> 1162374.073 | I16: =Forecast_spend!I16-Forecast_contrib!I16 -> 1179055.578 | J16: =Forecast_spend!J16-Forecast_contrib!J16 -> 1424193.364 | K16: =Forecast_spend!K16-Forecast_contrib!K16 -> 1581559.021 | L16: =Forecast_spend!L16-Forecast_contrib!L16 -> 750640.6871 | M16: =Forecast_spend!M16-Forecast_contrib!M16 -> 0 | N16: =Forecast_spend!N16-Forecast_contrib!N16 -> 0 | O16: =Forecast_spend!O16-Forecast_contrib!O16 -> 0 | P16: =Forecast_spend!P16-Forecast_contrib!P16 -> 0 | Q16: =Forecast_spend!Q16-Forecast_contrib!Q16 -> 0 | R16: =Forecast_spend!R16-Forecast_contrib!R16 -> 0 | S16: =Forecast_spend!S16-Forecast_contrib!S16 -> 0 | T16: =Forecast_spend!T16-Forecast_contrib!T16 -> 0 | U16: =Forecast_spend!U16-Forecast_contrib!U16 -> 0 | V16: =Forecast_spend!V16-Forecast_contrib!V16 -> 0 | W16: =Forecast_spend!W16-Forecast_contrib!W16 -> 0 | X16: =Forecast_spend!X16-Forecast_contrib!X16 -> 0 | Y16: =Forecast_spend!Y16-Forecast_contrib!Y16 -> 0 | Z16: =Forecast_spend!Z16-Forecast_contrib!Z16 -> 0 | AA16: =Forecast_spend!AA16-Forecast_contrib!AA16 -> 0 | AC16: =SUMPRODUCT($H$7:$AA$7*$H16:$AA16) -> 0
B17: =Hist_vol!B16 -> Connections | C17: =Hist_vol!C16 -> R2 | D17: =Hist_vol!D16 -> Residential | E17: =Hist_vol!E16 -> Complex connection LV | F17: =D17&" "&E17 -> Residential Complex connection LV | H17: =Forecast_spend!H17-Forecast_contrib!H17 -> 8368618.506 | I17: =Forecast_spend!I17-Forecast_contrib!I17 -> 8401984.799 | J17: =Forecast_spend!J17-Forecast_contrib!J17 -> 7941082.875 | K17: =Forecast_spend!K17-Forecast_contrib!K17 -> 7602059.512 | L17: =Forecast_spend!L17-Forecast_contrib!L17 -> 7479075.563 | M17: =Forecast_spend!M17-Forecast_contrib!M17 -> 7791657.484 | N17: =Forecast_spend!N17-Forecast_contrib!N17 -> 8551956.68 | O17: =Forecast_spend!O17-Forecast_contrib!O17 -> 10705815.44 | P17: =Forecast_spend!P17-Forecast_contrib!P17 -> 12125173.37 | Q17: =Forecast_spend!Q17-Forecast_contrib!Q17 -> 13098273.66 | R17: =Forecast_spend!R17-Forecast_contrib!R17 -> 9186206.634 | S17: =Forecast_spend!S17-Forecast_contrib!S17 -> 12903695.35 | T17: =Forecast_spend!T17-Forecast_contrib!T17 -> 8881139.742 | U17: =Forecast_spend!U17-Forecast_contrib!U17 -> 13152415.84 | V17: =Forecast_spend!V17-Forecast_contrib!V17 -> 17632339.5 | W17: =Forecast_spend!W17-Forecast_contrib!W17 -> 19906125.4 | X17: =Forecast_spend!X17-Forecast_contrib!X17 -> 18995725.72 | Y17: =Forecast_spend!Y17-Forecast_contrib!Y17 -> 17119430.15 | Z17: =Forecast_spend!Z17-Forecast_contrib!Z17 -> 16497083.55 | AA17: =Forecast_spend!AA17-Forecast_contrib!AA17 -> 17331877.23 | AC17: =SUMPRODUCT($H$7:$AA$7*$H17:$AA17) -> 89850242.06
B18: =Hist_vol!B17 -> Connections | C18: =Hist_vol!C17 -> R3 | D18: =Hist_vol!D17 -> Residential | E18: =Hist_vol!E17 -> Complex connection HV | F18: Residential Complex connection HV | H18: =Forecast_spend!H18-Forecast_contrib!H18 -> 22921554.14 | I18: =Forecast_spend!I18-Forecast_contrib!I18 -> 22775807.53 | J18: =Forecast_spend!J18-Forecast_contrib!J18 -> 21755351.07 | K18: =Forecast_spend!K18-Forecast_contrib!K18 -> 21589539.91 | L18: =Forecast_spend!L18-Forecast_contrib!L18 -> 16947444.48 | M18: =Forecast_spend!M18-Forecast_contrib!M18 -> 11279669.48 | N18: =Forecast_spend!N18-Forecast_contrib!N18 -> 12216923.54 | O18: =Forecast_spend!O18-Forecast_contrib!O18 -> 15442645.88 | P18: =Forecast_spend!P18-Forecast_contrib!P18 -> 19250946.12 | Q18: =Forecast_spend!Q18-Forecast_contrib!Q18 -> 21843783.5 | R18: =Forecast_spend!R18-Forecast_contrib!R18 -> 8810297.725 | S18: =Forecast_spend!S18-Forecast_contrib!S18 -> 13341968.06 | T18: =Forecast_spend!T18-Forecast_contrib!T18 -> 12873098.42 | U18: =Forecast_spend!U18-Forecast_contrib!U18 -> 12480152.33 | V18: =Forecast_spend!V18-Forecast_contrib!V18 -> 16731092.27 | W18: =Forecast_spend!W18-Forecast_contrib!W18 -> 18888657.45 | X18: =Forecast_spend!X18-Forecast_contrib!X18 -> 18024791.3 | Y18: =Forecast_spend!Y18-Forecast_contrib!Y18 -> 16244399.41 | Z18: =Forecast_spend!Z18-Forecast_contrib!Z18 -> 15653863.01 | AA18: =Forecast_spend!AA18-Forecast_contrib!AA18 -> 16445987.62 | AC18: =SUMPRODUCT($H$7:$AA$7*$H18:$AA18) -> 85257698.79
B19: =Hist_vol!B18 -> Connections | C19: =Hist_vol!C18 -> CI1 | D19: =Hist_vol!D18 -> Commercial/Industrial | E19: =Hist_vol!E18 -> Simple connection LV | F19: Commercial/Industrial Simple connection LV | H19: =Forecast_spend!H19-Forecast_contrib!H19 -> 2228549.538 | I19: =Forecast_spend!I19-Forecast_contrib!I19 -> 2250329.173 | J19: =Forecast_spend!J19-Forecast_contrib!J19 -> 2069474.981 | K19: =Forecast_spend!K19-Forecast_contrib!K19 -> 2044610.118 | L19: =Forecast_spend!L19-Forecast_contrib!L19 -> 1627677.722 | M19: =Forecast_spend!M19-Forecast_contrib!M19 -> 1066472.784 | N19: =Forecast_spend!N19-Forecast_contrib!N19 -> 1179202.75 | O19: =Forecast_spend!O19-Forecast_contrib!O19 -> 1437692.048 | P19: =Forecast_spend!P19-Forecast_contrib!P19 -> 1745944.908 | Q19: =Forecast_spend!Q19-Forecast_contrib!Q19 -> 2045656.016 | R19: =Forecast_spend!R19-Forecast_contrib!R19 -> 1225503.767 | S19: =Forecast_spend!S19-Forecast_contrib!S19 -> 2049717.223 | T19: =Forecast_spend!T19-Forecast_contrib!T19 -> 1817176.011 | U19: =Forecast_spend!U19-Forecast_contrib!U19 -> 1947652.338 | V19: =Forecast_spend!V19-Forecast_contrib!V19 -> 2147197.144 | W19: =Forecast_spend!W19-Forecast_contrib!W19 -> 2110821.709 | X19: =Forecast_spend!X19-Forecast_contrib!X19 -> 2174023.177 | Y19: =Forecast_spend!Y19-Forecast_contrib!Y19 -> 2231769.313 | Z19: =Forecast_spend!Z19-Forecast_contrib!Z19 -> 2277857.311 | AA19: =Forecast_spend!AA19-Forecast_contrib!AA19 -> 2373293.966 | AC19: =SUMPRODUCT($H$7:$AA$7*$H19:$AA19) -> 11167765.48
B20: =Hist_vol!B19 -> Connections | C20: =Hist_vol!C19 -> CI2 | D20: =Hist_vol!D19 -> Commercial/Industrial | E20: =Hist_vol!E19 -> Complex connection HV (customer connected at LV, minor HV works) | F20: Commercial/Industrial Complex connection HV (customer connected at LV, minor HV works) | H20: =Forecast_spend!H20-Forecast_contrib!H20 -> 9115060.1 | I20: =Forecast_spend!I20-Forecast_contrib!I20 -> 3998978.018 | J20: =Forecast_spend!J20-Forecast_contrib!J20 -> 908675.5721 | K20: =Forecast_spend!K20-Forecast_contrib!K20 -> -687430.1803 | L20: =Forecast_spend!L20-Forecast_contrib!L20 -> 385755.7611 | M20: =Forecast_spend!M20-Forecast_contrib!M20 -> 1581982.288 | N20: =Forecast_spend!N20-Forecast_contrib!N20 -> 990762.3516 | O20: =Forecast_spend!O20-Forecast_contrib!O20 -> 2526004.215 | P20: =Forecast_spend!P20-Forecast_contrib!P20 -> 1184983.038 | Q20: =Forecast_spend!Q20-Forecast_contrib!Q20 -> -927681.2699 | R20: =Forecast_spend!R20-Forecast_contrib!R20 -> -4416987.539 | S20: =Forecast_spend!S20-Forecast_contrib!S20 -> -1284521.189 | T20: =Forecast_spend!T20-Forecast_contrib!T20 -> 18982051.78 | U20: =Forecast_spend!U20-Forecast_contrib!U20 -> 0 | V20: =Forecast_spend!V20-Forecast_contrib!V20 -> 0 | W20: =Forecast_spend!W20-Forecast_contrib!W20 -> 0 | X20: =Forecast_spend!X20-Forecast_contrib!X20 -> 0 | Y20: =Forecast_spend!Y20-Forecast_contrib!Y20 -> 0 | Z20: =Forecast_spend!Z20-Forecast_contrib!Z20 -> 0 | AA20: =Forecast_spend!AA20-Forecast_contrib!AA20 -> 0 | AC20: =SUMPRODUCT($H$7:$AA$7*$H20:$AA20) -> 0
B21: =Hist_vol!B20 -> Connections | C21: =Hist_vol!C20 -> CI3 | D21: =Hist_vol!D20 -> Commercial/Industrial | E21: =Hist_vol!E20 -> Complex connection HV (customer connected at LV, upstream asset works) | F21: Commercial/Industrial Complex connection HV (customer connected at LV, upstream asset works) | H21: =Forecast_spend!H21-Forecast_contrib!H21 -> 10180009.82 | I21: =Forecast_spend!I21-Forecast_contrib!I21 -> 10084877.46 | J21: =Forecast_spend!J21-Forecast_contrib!J21 -> 9569122.502 | K21: =Forecast_spend!K21-Forecast_contrib!K21 -> 9228603.691 | L21: =Forecast_spend!L21-Forecast_contrib!L21 -> 7114252.453 | M21: =Forecast_spend!M21-Forecast_contrib!M21 -> 4777799.046 | N21: =Forecast_spend!N21-Forecast_contrib!N21 -> 5175506.696 | O21: =Forecast_spend!O21-Forecast_contrib!O21 -> 6553449.789 | P21: =Forecast_spend!P21-Forecast_contrib!P21 -> 8182572.483 | Q21: =Forecast_spend!Q21-Forecast_contrib!Q21 -> 9342583.74 | R21: =Forecast_spend!R21-Forecast_contrib!R21 -> 3804905.453 | S21: =Forecast_spend!S21-Forecast_contrib!S21 -> 5702949.957 | T21: =Forecast_spend!T21-Forecast_contrib!T21 -> 5569230.788 | U21: =Forecast_spend!U21-Forecast_contrib!U21 -> 4317479.063 | V21: =Forecast_spend!V21-Forecast_contrib!V21 -> 4759822.138 | W21: =Forecast_spend!W21-Forecast_contrib!W21 -> 4679186.505 | X21: =Forecast_spend!X21-Forecast_contrib!X21 -> 4819289.032 | Y21: =Forecast_spend!Y21-Forecast_contrib!Y21 -> 4947298.395 | Z21: =Forecast_spend!Z21-Forecast_contrib!Z21 -> 5049464.455 | AA21: =Forecast_spend!AA21-Forecast_contrib!AA21 -> 5261024.675 | AC21: =SUMPRODUCT($H$7:$AA$7*$H21:$AA21) -> 24756263.06
B22: =Hist_vol!B21 -> Connections | C22: =Hist_vol!C21 -> CI4 | D22: =Hist_vol!D21 -> Commercial/Industrial | E22: =Hist_vol!E21 -> Complex connection HV (customer connected at HV) | F22: Commercial/Industrial Complex connection HV (customer connected at HV) | H22: =Forecast_spend!H22-Forecast_contrib!H22 -> 104114.7779 | I22: =Forecast_spend!I22-Forecast_contrib!I22 -> 0 | J22: =Forecast_spend!J22-Forecast_contrib!J22 -> 370017.7187 | K22: =Forecast_spend!K22-Forecast_contrib!K22 -> 1150247.855 | L22: =Forecast_spend!L22-Forecast_contrib!L22 -> 2185994.423 | M22: =Forecast_spend!M22-Forecast_contrib!M22 -> 2091113.857 | N22: =Forecast_spend!N22-Forecast_contrib!N22 -> 1106732.646 | O22: =Forecast_spend!O22-Forecast_contrib!O22 -> 1565346.401 | P22: =Forecast_spend!P22-Forecast_contrib!P22 -> 1681760.714 | Q22: =Forecast_spend!Q22-Forecast_contrib!Q22 -> 843304.4949 | R22: =Forecast_spend!R22-Forecast_contrib!R22 -> -695056.9973 | S22: =Forecast_spend!S22-Forecast_contrib!S22 -> 175118.853 | T22: =Forecast_spend!T22-Forecast_contrib!T22 -> 92826.93092 | U22: =Forecast_spend!U22-Forecast_contrib!U22 -> 1632.516209 | V22: =Forecast_spend!V22-Forecast_contrib!V22 -> 1799.774053 | W22: =Forecast_spend!W22-Forecast_contrib!W22 -> 1769.284275 | X22: =Forecast_spend!X22-Forecast_contrib!X22 -> 1822.259551 | Y22: =Forecast_spend!Y22-Forecast_contrib!Y22 -> 1870.662185 | Z22: =Forecast_spend!Z22-Forecast_contrib!Z22 -> 1909.293004 | AA22: =Forecast_spend!AA22-Forecast_contrib!AA22 -> 1989.287714 | AC22: =SUMPRODUCT($H$7:$AA$7*$H22:$AA22) -> 9360.786729
B23: =Hist_vol!B22 -> Connections | C23: =Hist_vol!C22 -> CI5 | D23: =Hist_vol!D22 -> Commercial/Industrial | E23: =Hist_vol!E22 -> Complex connection sub-transmission | F23: Commercial/Industrial Complex connection sub-transmission | H23: =Forecast_spend!H23-Forecast_contrib!H23 -> 0 | I23: =Forecast_spend!I23-Forecast_contrib!I23 -> 0 | J23: =Forecast_spend!J23-Forecast_contrib!J23 -> 0 | K23: =Forecast_spend!K23-Forecast_contrib!K23 -> 0 | L23: =Forecast_spend!L23-Forecast_contrib!L23 -> 0 | M23: =Forecast_spend!M23-Forecast_contrib!M23 -> 0 | N23: =Forecast_spend!N23-Forecast_contrib!N23 -> 0 | O23: =Forecast_spend!O23-Forecast_contrib!O23 -> 0 | P23: =Forecast_spend!P23-Forecast_contrib!P23 -> 0 | Q23: =Forecast_spend!Q23-Forecast_contrib!Q23 -> 0 | R23: =Forecast_spend!R23-Forecast_contrib!R23 -> 0 | S23: =Forecast_spend!S23-Forecast_contrib!S23 -> 0 | T23: =Forecast_spend!T23-Forecast_contrib!T23 -> 0 | U23: =Forecast_spend!U23-Forecast_contrib!U23 -> 0 | V23: =Forecast_spend!V23-Forecast_contrib!V23 -> 0 | W23: =Forecast_spend!W23-Forecast_contrib!W23 -> 0 | X23: =Forecast_spend!X23-Forecast_contrib!X23 -> 0 | Y23: =Forecast_spend!Y23-Forecast_contrib!Y23 -> 0 | Z23: =Forecast_spend!Z23-Forecast_contrib!Z23 -> 0 | AA23: =Forecast_spend!AA23-Forecast_contrib!AA23 -> 0 | AC23: =SUMPRODUCT($H$7:$AA$7*$H23:$AA23) -> 0
B24: =Hist_vol!B23 -> Connections | C24: =Hist_vol!C23 -> S1 | D24: =Hist_vol!D23 -> Subdivision | E24: =Hist_vol!E23 -> Complex connection LV | F24: Subdivision Complex connection LV | H24: =Forecast_spend!H24-Forecast_contrib!H24 -> 0 | I24: =Forecast_spend!I24-Forecast_contrib!I24 -> 0 | J24: =Forecast_spend!J24-Forecast_contrib!J24 -> 0 | K24: =Forecast_spend!K24-Forecast_contrib!K24 -> 0 | L24: =Forecast_spend!L24-Forecast_contrib!L24 -> 0 | M24: =Forecast_spend!M24-Forecast_contrib!M24 -> 0 | N24: =Forecast_spend!N24-Forecast_contrib!N24 -> 0 | O24: =Forecast_spend!O24-Forecast_contrib!O24 -> 0 | P24: =Forecast_spend!P24-Forecast_contrib!P24 -> 0 | Q24: =Forecast_spend!Q24-Forecast_contrib!Q24 -> 0 | R24: =Forecast_spend!R24-Forecast_contrib!R24 -> 0 | S24: =Forecast_spend!S24-Forecast_contrib!S24 -> 0 | T24: =Forecast_spend!T24-Forecast_contrib!T24 -> 0 | U24: =Forecast_spend!U24-Forecast_contrib!U24 -> 0 | V24: =Forecast_spend!V24-Forecast_contrib!V24 -> 0 | W24: =Forecast_spend!W24-Forecast_contrib!W24 -> 0 | X24: =Forecast_spend!X24-Forecast_contrib!X24 -> 0 | Y24: =Forecast_spend!Y24-Forecast_contrib!Y24 -> 0 | Z24: =Forecast_spend!Z24-Forecast_contrib!Z24 -> 0 | AA24: =Forecast_spend!AA24-Forecast_contrib!AA24 -> 0 | AC24: =SUMPRODUCT($H$7:$AA$7*$H24:$AA24) -> 0
B25: =Hist_vol!B24 -> Connections | C25: =Hist_vol!C24 -> S2 | D25: =Hist_vol!D24 -> Subdivision | E25: =Hist_vol!E24 -> Complex connection HV (no upstream asset works) | F25: Subdivision Complex connection HV (no upstream asset works) | H25: =Forecast_spend!H25-Forecast_contrib!H25 -> 0 | I25: =Forecast_spend!I25-Forecast_contrib!I25 -> 0 | J25: =Forecast_spend!J25-Forecast_contrib!J25 -> 0 | K25: =Forecast_spend!K25-Forecast_contrib!K25 -> 0 | L25: =Forecast_spend!L25-Forecast_contrib!L25 -> 0 | M25: =Forecast_spend!M25-Forecast_contrib!M25 -> 0 | N25: =Forecast_spend!N25-Forecast_contrib!N25 -> 0 | O25: =Forecast_spend!O25-Forecast_contrib!O25 -> 0 | P25: =Forecast_spend!P25-Forecast_contrib!P25 -> 0 | Q25: =Forecast_spend!Q25-Forecast_contrib!Q25 -> 0 | R25: =Forecast_spend!R25-Forecast_contrib!R25 -> 0 | S25: =Forecast_spend!S25-Forecast_contrib!S25 -> 0 | T25: =Forecast_spend!T25-Forecast_contrib!T25 -> 0 | U25: =Forecast_spend!U25-Forecast_contrib!U25 -> 0 | V25: =Forecast_spend!V25-Forecast_contrib!V25 -> 0 | W25: =Forecast_spend!W25-Forecast_contrib!W25 -> 0 | X25: =Forecast_spend!X25-Forecast_contrib!X25 -> 0 | Y25: =Forecast_spend!Y25-Forecast_contrib!Y25 -> 0 | Z25: =Forecast_spend!Z25-Forecast_contrib!Z25 -> 0 | AA25: =Forecast_spend!AA25-Forecast_contrib!AA25 -> 0 | AC25: =SUMPRODUCT($H$7:$AA$7*$H25:$AA25) -> 0
B26: =Hist_vol!B25 -> Connections | C26: =Hist_vol!C25 -> S3 | D26: =Hist_vol!D25 -> Subdivision | E26: =Hist_vol!E25 -> Complex connection HV (with upstream asset works) | F26: Subdivision Complex connection HV (with upstream asset works) | H26: =Forecast_spend!H26-Forecast_contrib!H26 -> 0 | I26: =Forecast_spend!I26-Forecast_contrib!I26 -> 0 | J26: =Forecast_spend!J26-Forecast_contrib!J26 -> 0 | K26: =Forecast_spend!K26-Forecast_contrib!K26 -> 0 | L26: =Forecast_spend!L26-Forecast_contrib!L26 -> 0 | M26: =Forecast_spend!M26-Forecast_contrib!M26 -> 0 | N26: =Forecast_spend!N26-Forecast_contrib!N26 -> 0 | O26: =Forecast_spend!O26-Forecast_contrib!O26 -> 0 | P26: =Forecast_spend!P26-Forecast_contrib!P26 -> 0 | Q26: =Forecast_spend!Q26-Forecast_contrib!Q26 -> 0 | R26: =Forecast_spend!R26-Forecast_contrib!R26 -> 0 | S26: =Forecast_spend!S26-Forecast_contrib!S26 -> 0 | T26: =Forecast_spend!T26-Forecast_contrib!T26 -> 0 | U26: =Forecast_spend!U26-Forecast_contrib!U26 -> 0 | V26: =Forecast_spend!V26-Forecast_contrib!V26 -> 0 | W26: =Forecast_spend!W26-Forecast_contrib!W26 -> 0 | X26: =Forecast_spend!X26-Forecast_contrib!X26 -> 0 | Y26: =Forecast_spend!Y26-Forecast_contrib!Y26 -> 0 | Z26: =Forecast_spend!Z26-Forecast_contrib!Z26 -> 0 | AA26: =Forecast_spend!AA26-Forecast_contrib!AA26 -> 0 | AC26: =SUMPRODUCT($H$7:$AA$7*$H26:$AA26) -> 0
B27: =Hist_vol!B26 -> Connections | C27: =Hist_vol!C26 -> EG1 | D27: =Hist_vol!D26 -> Embedded generation | E27: =Hist_vol!E26 -> Simple connection LV | F27: Embedded generation Simple connection LV | H27: =Forecast_spend!H27-Forecast_contrib!H27 -> 0 | I27: =Forecast_spend!I27-Forecast_contrib!I27 -> 0 | J27: =Forecast_spend!J27-Forecast_contrib!J27 -> 0 | K27: =Forecast_spend!K27-Forecast_contrib!K27 -> 0 | L27: =Forecast_spend!L27-Forecast_contrib!L27 -> 0 | M27: =Forecast_spend!M27-Forecast_contrib!M27 -> 0 | N27: =Forecast_spend!N27-Forecast_contrib!N27 -> 0 | O27: =Forecast_spend!O27-Forecast_contrib!O27 -> 0 | P27: =Forecast_spend!P27-Forecast_contrib!P27 -> 90.97241725 | Q27: =Forecast_spend!Q27-Forecast_contrib!Q27 -> 9649.94679 | R27: =Forecast_spend!R27-Forecast_contrib!R27 -> 8586.437714 | S27: =Forecast_spend!S27-Forecast_contrib!S27 -> 1703.607444 | T27: =Forecast_spend!T27-Forecast_contrib!T27 -> 11097.96491 | U27: =Forecast_spend!U27-Forecast_contrib!U27 -> 0 | V27: =Forecast_spend!V27-Forecast_contrib!V27 -> 0 | W27: =Forecast_spend!W27-Forecast_contrib!W27 -> 0 | X27: =Forecast_spend!X27-Forecast_contrib!X27 -> 0 | Y27: =Forecast_spend!Y27-Forecast_contrib!Y27 -> 0 | Z27: =Forecast_spend!Z27-Forecast_contrib!Z27 -> 0 | AA27: =Forecast_spend!AA27-Forecast_contrib!AA27 -> 0 | AC27: =SUMPRODUCT($H$7:$AA$7*$H27:$AA27) -> 0
B28: =Hist_vol!B27 -> Connections | C28: =Hist_vol!C27 -> EG2 | D28: =Hist_vol!D27 -> Embedded generation | E28: =Hist_vol!E27 -> Complex connection HV (small capacity) | F28: Embedded generation Complex connection HV (small capacity) | H28: =Forecast_spend!H28-Forecast_contrib!H28 -> 465256.3565 | I28: =Forecast_spend!I28-Forecast_contrib!I28 -> 251783.9476 | J28: =Forecast_spend!J28-Forecast_contrib!J28 -> 203313.4243 | K28: =Forecast_spend!K28-Forecast_contrib!K28 -> 90026.95721 | L28: =Forecast_spend!L28-Forecast_contrib!L28 -> 38073.69241 | M28: =Forecast_spend!M28-Forecast_contrib!M28 -> 19081.38862 | N28: =Forecast_spend!N28-Forecast_contrib!N28 -> 14241.6934 | O28: =Forecast_spend!O28-Forecast_contrib!O28 -> 2692.26611 | P28: =Forecast_spend!P28-Forecast_contrib!P28 -> 0 | Q28: =Forecast_spend!Q28-Forecast_contrib!Q28 -> 0 | R28: =Forecast_spend!R28-Forecast_contrib!R28 -> 0 | S28: =Forecast_spend!S28-Forecast_contrib!S28 -> 0 | T28: =Forecast_spend!T28-Forecast_contrib!T28 -> 0 | U28: =Forecast_spend!U28-Forecast_contrib!U28 -> 0 | V28: =Forecast_spend!V28-Forecast_contrib!V28 -> 0 | W28: =Forecast_spend!W28-Forecast_contrib!W28 -> 0 | X28: =Forecast_spend!X28-Forecast_contrib!X28 -> 0 | Y28: =Forecast_spend!Y28-Forecast_contrib!Y28 -> 0 | Z28: =Forecast_spend!Z28-Forecast_contrib!Z28 -> 0 | AA28: =Forecast_spend!AA28-Forecast_contrib!AA28 -> 0 | AC28: =SUMPRODUCT($H$7:$AA$7*$H28:$AA28) -> 0
B29: =Hist_vol!B28 -> Connections | C29: =Hist_vol!C28 -> EG3 | D29: =Hist_vol!D28 -> Embedded generation | E29: =Hist_vol!E28 -> Complex connection HV (large capacity) | F29: Embedded generation Complex connection HV (large capacity) | H29: =Forecast_spend!H29-Forecast_contrib!H29 -> 0 | I29: =Forecast_spend!I29-Forecast_contrib!I29 -> 0 | J29: =Forecast_spend!J29-Forecast_contrib!J29 -> 0 | K29: =Forecast_spend!K29-Forecast_contrib!K29 -> 0 | L29: =Forecast_spend!L29-Forecast_contrib!L29 -> 0 | M29: =Forecast_spend!M29-Forecast_contrib!M29 -> 0 | N29: =Forecast_spend!N29-Forecast_contrib!N29 -> 0 | O29: =Forecast_spend!O29-Forecast_contrib!O29 -> 0 | P29: =Forecast_spend!P29-Forecast_contrib!P29 -> 0 | Q29: =Forecast_spend!Q29-Forecast_contrib!Q29 -> 0 | R29: =Forecast_spend!R29-Forecast_contrib!R29 -> 0 | S29: =Forecast_spend!S29-Forecast_contrib!S29 -> 0 | T29: =Forecast_spend!T29-Forecast_contrib!T29 -> 0 | U29: =Forecast_spend!U29-Forecast_contrib!U29 -> 0 | V29: =Forecast_spend!V29-Forecast_contrib!V29 -> 0 | W29: =Forecast_spend!W29-Forecast_contrib!W29 -> 0 | X29: =Forecast_spend!X29-Forecast_contrib!X29 -> 0 | Y29: =Forecast_spend!Y29-Forecast_contrib!Y29 -> 0 | Z29: =Forecast_spend!Z29-Forecast_contrib!Z29 -> 0 | AA29: =Forecast_spend!AA29-Forecast_contrib!AA29 -> 0 | AC29: =SUMPRODUCT($H$7:$AA$7*$H29:$AA29) -> 0
B30: Connections | C30: Grid connected Batteries | D30: Grid connected Battery | E30: Net capex | F30: Grid connected Battery Net capex | H30: =Forecast_spend!H30-Forecast_contrib!H30 -> 0 | I30: =Forecast_spend!I30-Forecast_contrib!I30 -> 0 | J30: =Forecast_spend!J30-Forecast_contrib!J30 -> 0 | K30: =Forecast_spend!K30-Forecast_contrib!K30 -> 0 | L30: =Forecast_spend!L30-Forecast_contrib!L30 -> 0 | M30: =Forecast_spend!M30-Forecast_contrib!M30 -> 0 | N30: =Forecast_spend!N30-Forecast_contrib!N30 -> 0 | O30: =Forecast_spend!O30-Forecast_contrib!O30 -> 0 | P30: =Forecast_spend!P30-Forecast_contrib!P30 -> 0 | Q30: =Forecast_spend!Q30-Forecast_contrib!Q30 -> 0 | R30: =Forecast_spend!R30-Forecast_contrib!R30 -> 0 | S30: =Forecast_spend!S30-Forecast_contrib!S30 -> 0 | T30: =Forecast_spend!T30-Forecast_contrib!T30 -> 0 | U30: =Forecast_spend!U30-Forecast_contrib!U30 -> 0 | V30: =Forecast_spend!V30-Forecast_contrib!V30 -> 0 | W30: =Forecast_spend!W30-Forecast_contrib!W30 -> 0 | X30: =Forecast_spend!X30-Forecast_contrib!X30 -> 0 | Y30: =Forecast_spend!Y30-Forecast_contrib!Y30 -> 0 | Z30: =Forecast_spend!Z30-Forecast_contrib!Z30 -> 0 | AA30: =Forecast_spend!AA30-Forecast_contrib!AA30 -> 0 | AC30: =SUMPRODUCT($H$7:$AA$7*$H30:$AA30) -> 0
B31: ='Data Centres'!A2 -> Connections | C31: Data Centres | D31: =C31 -> Data Centres | E31: Net Capex | F31: =D31 -> Data Centres | H31: =Forecast_spend!H31-Forecast_contrib!H31 -> 0 | I31: =Forecast_spend!I31-Forecast_contrib!I31 -> 0 | J31: =Forecast_spend!J31-Forecast_contrib!J31 -> 0 | K31: =Forecast_spend!K31-Forecast_contrib!K31 -> 0 | L31: =Forecast_spend!L31-Forecast_contrib!L31 -> 0 | M31: =Forecast_spend!M31-Forecast_contrib!M31 -> 0 | N31: =Forecast_spend!N31-Forecast_contrib!N31 -> 0 | O31: =Forecast_spend!O31-Forecast_contrib!O31 -> 0 | P31: =Forecast_spend!P31-Forecast_contrib!P31 -> 0 | Q31: =Forecast_spend!Q31-Forecast_contrib!Q31 -> 0 | R31: =Forecast_spend!R31-Forecast_contrib!R31 -> 0 | S31: =Forecast_spend!S31-Forecast_contrib!S31 -> 0 | T31: =Forecast_spend!T31-Forecast_contrib!T31 -> 0 | U31: =Forecast_spend!U31-Forecast_contrib!U31 -> 0 | V31: =Forecast_spend!V31-Forecast_contrib!V31 -> 0 | W31: =Forecast_spend!W31-Forecast_contrib!W31 -> 0 | X31: =Forecast_spend!X31-Forecast_contrib!X31 -> 0 | Y31: =Forecast_spend!Y31-Forecast_contrib!Y31 -> 0 | Z31: =Forecast_spend!Z31-Forecast_contrib!Z31 -> 8337937.5 | AA31: =Forecast_spend!AA31-Forecast_contrib!AA31 -> 10661625 | AC31: =SUMPRODUCT($H$7:$AA$7*$H31:$AA31) -> 18999562.5
D32: Total | H32: =SUM(H16:H31) -> 54545537.31 | I32: 48942816.5 | J32: 44241231.51 | K32: 42599216.89 | L32: 36528914.78 | M32: 28607776.32 | N32: 29235326.36 | O32: 38233646.03 | P32: 44171471.6 | Q32: 46255570.09 | R32: 17923455.48 | S32: 32890631.87 | T32: 48226621.63 | U32: 31899332.08 | V32: 41272250.83 | W32: 45586560.35 | X32: 44015651.49 | Y32: 40544767.93 | Z32: 47818115.12 | AA32: 52075797.78 | AC32: =SUM(AC16:AC31) -> 230040892.7

Sheet Lists
A1: =Assumptions!$A$1 -> CitiPower
A2: =Assumptions!$A$2 -> Connections
A3: Assumptions
B6: Business | D6: RIN categories | F6: Business categories | G6: AER categories | I6: PTRM asset category | K6: RIN category | N6: Forecast basis | P6: Growth rates | S6: Code | T6: Segment | U6: Type
B7: Powercor | D7: Replacement | F7: Replacement | G7: Replacement | I7: Subtransmission | K7: Residential | L7: Res | N7: History | P7: Historical | S7: R1 | T7: Residential | U7: Simple connection LV
B8: CitiPower | D8: Augmentation | F8: DER Augmentation | G8: Augmentation | I8: Distribution system assets | K8: Commercial/Industrial | L8: C&I | N8: Business case | P8: Growth1 | S8: R2 | T8: Residential | U8: Complex connection LV
B9: United Energy | D9: Connections | F9: Other augmentation | G9: DER capex | I9: Public lighting | K9: Subdivision | L9: Subd | N9: Other | P9: Growth2 | S9: R3 | T9: Residential | U9: Complex connection HV
F10: Connections | G10: Connections | I10: SCADA/Network control | K10: Embedded generation | L10: EmbG | P10: Growth3 | S10: CI1 | T10: Commercial/Industrial | U10: Simple connection LV
F11: SCADA | G11: Augmentation | I11: Non-network general assets - IT | K11: Other connections | L11: Other | P11: Flat | S11: CI2 | T11: Commercial/Industrial | U11: Complex connection HV (customer connected at LV, minor HV works)
F12: VBRC | G12: Replacement | I12: Non-network general assets - Other | P12: ACIF | S12: CI3 | T12: Commercial/Industrial | U12: Complex connection HV (customer connected at LV, upstream asset works)
F13: REFCL | G13: Augmentation | I13: VBRC | P13: GSP | S13: CI4 | T13: Commercial/Industrial | U13: Complex connection HV (customer connected at HV)
F14: Recurring IT | G14: ICT capex | I14: Land | P14: HIA | S14: CI5 | T14: Commercial/Industrial | U14: Complex connection sub-transmission
F15: Non-recurring IT | G15: ICT capex | I15: Accelerated depreciation assets | P15: ACIF FTI | S15: S1 | T15: Subdivision | U15: Complex connection LV
F16: Recurring DER IT | G16: DER capex | P16: Macromonitor | S16: S2 | T16: Subdivision | U16: Complex connection HV (no upstream asset works)
F17: Non-recurring DER IT | G17: DER capex | S17: S3 | T17: Subdivision | U17: Complex connection HV (with upstream asset works)
F18: Property | G18: Property capex | S18: EG1 | T18: Embedded generation | U18: Simple connection LV
F19: Fleet | G19: Fleet capex | S19: EG2 | T19: Embedded generation | U19: Complex connection HV (small capacity)
F20: Other | G20: Other non-network capex | S20: EG3 | T20: Embedded generation | U20: Complex connection HV (large capacity)
F21: Land | G21: Other non-network capex
W60: RHU | X60: Fuse/Junction Box Replacement | AB60: =W60&X60 -> RHUFuse/Junction Box Replacement
W61: RLG | X61: Sustainable Lantern Replacemen | AB61: RLGSustainable Lantern Replacemen
W62: RLJ | X62: Single Main Roads P/L replacem | AB62: RLJSingle Main Roads P/L replacem
W63: RLM | X63: Single Minor Roads P/L replace | AB63: RLMSingle Minor Roads P/L replace
W64: RMF | X64: Premise faults service replace | AB64: RMFPremise faults service replace
W65: RMJ | X65: Replace Service (alter termina | AB65: RMJReplace Service (alter termina
W66: RMK | X66: Replace Service (& customer ma | AB66: RMKReplace Service (& customer ma
W67: RML | X67: Install Disconnect Device | AB67: RMLInstall Disconnect Device
W68: RMP | X68: Service replacement (Planned) | AB68: RMPService replacement (Planned)
W69: RMU | X69: O/h services replaced with U/G | AB69: RMUO/h services replaced with U/G
W70: ROA | X70: O/H Line Repl-HV ABC | AB70: ROAO/H Line Repl-HV ABC
W71: ROF | X71: Fargo Sleeve replacement (3) | AB71: ROFFargo Sleeve replacement (3)
W72: ROH | X72: Open wire replacement | AB72: ROHOpen wire replacement
W73: ROL | X73: O/H Line Repl-LV ABC | AB73: ROLO/H Line Repl-LV ABC
W74: ROP | AB74: ROP
W75: RPA | X75: Pole Replace P/L - Main Roads | AB75: RPAPole Replace P/L - Main Roads
W76: RPB | X76: Pole Replace P/L - Minor Roads | AB76: RPBPole Replace P/L - Minor Roads
W77: RPH | X77: Pole Replacement- High Voltage | AB77: RPHPole Replacement- High Voltage
W78: RPL | X78: Pole Replacement- Low Voltage | AB78: RPLPole Replacement- Low Voltage
W79: RPS | X79: Pole Replacement- SubT | AB79: RPSPole Replacement- SubT
W80: RRH | X80: Pole Reinforcement- HV | AB80: RRHPole Reinforcement- HV
W81: RRL | X81: Pole Reinforcement- LV | AB81: RRLPole Reinforcement- LV
W82: RRS | X82: Pole Reinforcement- ST | AB82: RRSPole Reinforcement- ST
W83: RSA | X83: Subtrans Install Replacement | AB83: RSASubtrans Install Replacement
W84: RUA | X84: Dist. U/G Cable Replacement | AB84: RUADist. U/G Cable Replacement
W85: RUC | X85: Underground Cable Replacement | AB85: RUCUnderground Cable Replacement
W86: RUD | X86: Pillar to Pit | AB86: RUDPillar to Pit
W87: RUE | X87: Pillar to Pit Cust Service Alt | AB87: RUEPillar to Pit Cust Service Alt
W88: RUF | X88: Pillar to UEL STD Pillar Repla | AB88: RUFPillar to UEL STD Pillar Repla
W89: RUG | X89: Dist. U/G Cable Repl-non cabus | AB89: RUGDist. U/G Cable Repl-non cabus
W90: RUH | X90: Dist. U/G Cable Repl-HV | AB90: RUHDist. U/G Cable Repl-HV
W91: RUL | X91: Dist. U/G Cable Repl-LV | AB91: RULDist. U/G Cable Repl-LV
W92: RUP | X92: Dist. U/G Cable Replacement - | AB92: RUPDist. U/G Cable Replacement -
W93: RUS | X93: Dist. U/G Cable Repl-SubT | AB93: =W93&X93 -> RUSDist. U/G Cable Repl-SubT
W94: RXD | X94: Surge Diverter repl (set of 3) | AB94: RXDSurge Diverter repl (set of 3)
W95: RXE | X95: Surge Diverter repl - (single) | AB95: RXESurge Diverter repl - (single)
W96: RXF | X96: Fuse Unit repl (set of 3) | AB96: RXFFuse Unit repl (set of 3)
W97: RXG | X97: Sub T Insulator repl(set of 3) | AB97: RXGSub T Insulator repl(set of 3)
W98: RXH | X98: HV Xarms replacement | AB98: RXHHV Xarms replacement
W99: RXI | X99: HV Insulator repl (set of 3) | AB99: RXIHV Insulator repl (set of 3)
W100: RXJ | X100: Fuse Unit repl (single) | AB100: RXJFuse Unit repl (single)
W101: RXK | X101: Sub T Insulator repl (single) | AB101: RXKSub T Insulator repl (single)
W102: RXL | X102: LV Xarms replacement | AB102: RXLLV Xarms replacement
W103: RXM | X103: HV Insulator repl (single) | AB103: RXMHV Insulator repl (single)
W104: RXP | X104: Pole Top Rot life extension | AB104: RXPPole Top Rot life extension
W105: RXS | X105: ST Xarms replacement | AB105: RXSST Xarms replacement

Sheet Output
A1: CitiPower
C2: SME Output sheet for input into AER Capex Forecast Model | I2: Key: | J2: Input | K2: Do not edit
C3: Input| Projects
I5: Total annual direct costs excl. type 2 capcons, unescalated (note: please include type 1 capital contributions and rebates where applicable) | Q5: Total annual type 1 capital contributions, direct costs, unescalated | AF5: 0 | AG5: 0
I6: =SUM(I10:I1009) -> 109415.6958 | J6: 135194.7929 | K6: 144880.1054 | L6: 142323.9778 | M6: 135027.0049 | N6: 188821.4375 | O6: 210559.0933 | Q6: =SUM(Q10:Q1009) -> 77516.36369 | R6: 93922.54203 | S6: 99293.54502 | T6: 98308.3263 | U6: 94482.23693 | V6: 141003.3223 | W6: 158483.2955 | AF6: NOTE: fill in table only if you select 'DNSP defined' overhead allocation | AR6: 1 | AS6: 2 | AT6: 3 | AU6: 4 | AV6: 5 | AW6: 6 | AX6: 7 | AY6: 8 | AZ6: 9 | BA6: 10 | BB6: 11 | BC6: 12 | BD6: 13 | BE6: 14 | BF6: 15 | BG6: 16 | BH6: 17 | BI6: 18 | BJ6: 19 | BK6: 20 | BL6: 21 | BM6: 22 | BN6: 23 | BO6: 24 | BP6: 25 | BQ6: 26 | BR6: 27 | BS6: 28 | BT6: 29 | BU6: 30 | BV6: 31 | BW6: 32 | BX6: 33 | BY6: 34 | BZ6: 35 | CA6: 36 | CB6: 37 | CC6: 38 | CD6: 39 | CE6: 40 | CF6: 41 | CG6: 42 | CH6: 43 | CI6: 44 | CJ6: 45 | CK6: 46 | CL6: 47 | CM6: 48 | CN6: 49 | CO6: 50
C7: 13. Project Details | F7: 14. RIN and optional DNSP mapping categories | I7: 15. Unescalated direct costs (excluding type 2 capital contributions) ($'000s 2025-26 June) | Q7: 16. Type 1 capital contributions included in table 15 ($'000s 2025-26 June) | Y7: 17. Cost components as % of direct costs | AC7: 18. Capitalised overheads allocation | AF7: 19. Allocation of capitalised overheads - DNSP defined | AI7: 20. AER categories as % of direct costs (i.e. total costs reported in table 15, excluding capitalised overheads) | AR7: 21. PTRM asset classes as % of direct costs (i.e. total costs reported in table 15, excluding capitalised overheads)
AB8: 0 | AF8: % of total capitalised overheads allocated to project: | AQ8: 0 | AR8: Dx | AS8: Dx | AT8: Dx | AU8: Dx | AV8: Dx | AW8: Dx | AX8: Dx | AY8: Dx | AZ8: Dx | BA8: Dx | CP8: 0
C9: Project/Program Inputs | D9: Unique ID | F9: RIN categories | G9: DNSP category (free-fill) | I9: 2024-25 | J9: 2025-26 | K9: 2026-27 | L9: 2027-28 | M9: 2028-29 | N9: 2029-30 | O9: 2030-31 | Q9: 2024-25 | R9: 2025-26 | S9: 2026-27 | T9: 2027-28 | U9: 2028-29 | V9: 2029-30 | W9: 2030-31 | Y9: Internal labour | Z9: Contract labour | AA9: Non-labour | AC9: Network Overheads Applies | AD9: Corporate Overheads Applies | AF9: % of total network overheads | AG9: % of total corporate overheads | AI9: Replacement | AJ9: DER capex | AK9: Augmentation | AL9: Connections | AM9: ICT capex | AN9: Property capex | AO9: Fleet capex | AP9: Other non-network capex | AR9: Subtransmission | AS9: Distribution system assets | AT9: Public lighting | AU9: SCADA/Network control | AV9: Non-network general assets - IT | AW9: Non-network general assets - Other | AX9: VBRC | AY9: Land | AZ9: in-house software | BA9: Accelerated depreciation assets
B10: 1 | C10: LV pole replacement | D10: 1 | F10: Replacement | G10: Replacement | I10: =SUMPRODUCT((Forecast_spend!U$16:U$31)*(Forecast_spend!$F$16:$F$31=$C10))/1000 -> 0 | J10: =SUMPRODUCT((Forecast_spend!V$16:V$31)*(Forecast_spend!$F$16:$F$31=$C10))/1000 -> 0 | K10: =SUMPRODUCT((Forecast_spend!W$16:W$31)*(Forecast_spend!$F$16:$F$31=$C10))/1000 -> 0 | L10: =SUMPRODUCT((Forecast_spend!X$16:X$31)*(Forecast_spend!$F$16:$F$31=$C10))/1000 -> 0 | M10: =SUMPRODUCT((Forecast_spend!Y$16:Y$31)*(Forecast_spend!$F$16:$F$31=$C10))/1000 -> 0 | N10: =SUMPRODUCT((Forecast_spend!Z$16:Z$31)*(Forecast_spend!$F$16:$F$31=$C10))/1000 -> 0 | O10: =SUMPRODUCT((Forecast_spend!AA$16:AA$31)*(Forecast_spend!$F$16:$F$31=$C10))/1000 -> 0 | Q10: =SUMPRODUCT((Forecast_contrib!U$16:U$31)*(Forecast_contrib!$F$16:$F$31=$C10))/1000 -> 0 | R10: =SUMPRODUCT((Forecast_contrib!V$16:V$31)*(Forecast_contrib!$F$16:$F$31=$C10))/1000 -> 0 | S10: =SUMPRODUCT((Forecast_contrib!W$16:W$31)*(Forecast_contrib!$F$16:$F$31=$C10))/1000 -> 0 | T10: =SUMPRODUCT((Forecast_contrib!X$16:X$31)*(Forecast_contrib!$F$16:$F$31=$C10))/1000 -> 0 | U10: =SUMPRODUCT((Forecast_contrib!Y$16:Y$31)*(Forecast_contrib!$F$16:$F$31=$C10))/1000 -> 0 | V10: =SUMPRODUCT((Forecast_contrib!Z$16:Z$31)*(Forecast_contrib!$F$16:$F$31=$C10))/1000 -> 0 | W10: =SUMPRODUCT((Forecast_contrib!AA$16:AA$31)*(Forecast_contrib!$F$16:$F$31=$C10))/1000 -> 0 | AB10: =IF(SUM(Y10:AA10,I10:O10)=0,"",IF(SUM(Y10:AA10)=1,"",1)) ->  | AI10: 0 | AJ10: 0 | AK10: 0 | AL10: 0 | AM10: 0 | AN10: 0 | AO10: 0 | AP10: 0 | CP10: =IF(COUNT(AI10:AP10)=0,"",IF(SUM(AI10:AP10)=1,"",1)) -> 1
B11: =IFERROR(B10+1,"") -> 2 | C11: HV pole replacement | D11: 2 | F11: Replacement | G11: Replacement | I11: =SUMPRODUCT((Forecast_spend!U$16:U$31)*(Forecast_spend!$F$16:$F$31=$C11))/1000 -> 0 | J11: =SUMPRODUCT((Forecast_spend!V$16:V$31)*(Forecast_spend!$F$16:$F$31=$C11))/1000 -> 0 | K11: =SUMPRODUCT((Forecast_spend!W$16:W$31)*(Forecast_spend!$F$16:$F$31=$C11))/1000 -> 0 | L11: =SUMPRODUCT((Forecast_spend!X$16:X$31)*(Forecast_spend!$F$16:$F$31=$C11))/1000 -> 0 | M11: =SUMPRODUCT((Forecast_spend!Y$16:Y$31)*(Forecast_spend!$F$16:$F$31=$C11))/1000 -> 0 | N11: =SUMPRODUCT((Forecast_spend!Z$16:Z$31)*(Forecast_spend!$F$16:$F$31=$C11))/1000 -> 0 | O11: =SUMPRODUCT((Forecast_spend!AA$16:AA$31)*(Forecast_spend!$F$16:$F$31=$C11))/1000 -> 0 | Q11: =SUMPRODUCT((Forecast_contrib!U$16:U$31)*(Forecast_contrib!$F$16:$F$31=$C11))/1000 -> 0 | R11: =SUMPRODUCT((Forecast_contrib!V$16:V$31)*(Forecast_contrib!$F$16:$F$31=$C11))/1000 -> 0 | S11: =SUMPRODUCT((Forecast_contrib!W$16:W$31)*(Forecast_contrib!$F$16:$F$31=$C11))/1000 -> 0 | T11: =SUMPRODUCT((Forecast_contrib!X$16:X$31)*(Forecast_contrib!$F$16:$F$31=$C11))/1000 -> 0 | U11: =SUMPRODUCT((Forecast_contrib!Y$16:Y$31)*(Forecast_contrib!$F$16:$F$31=$C11))/1000 -> 0 | V11: =SUMPRODUCT((Forecast_contrib!Z$16:Z$31)*(Forecast_contrib!$F$16:$F$31=$C11))/1000 -> 0 | W11: =SUMPRODUCT((Forecast_contrib!AA$16:AA$31)*(Forecast_contrib!$F$16:$F$31=$C11))/1000 -> 0 | AI11: 0 | AJ11: 0 | AK11: 0 | AL11: 0 | AM11: 0 | AN11: 0 | AO11: 0 | AP11: 0 | CP11: 1
B12: 3 | C12: LV pole top replacement | D12: 3 | F12: Replacement | G12: Replacement | I12: =SUMPRODUCT((Forecast_spend!U$16:U$31)*(Forecast_spend!$F$16:$F$31=$C12))/1000 -> 0 | J12: =SUMPRODUCT((Forecast_spend!V$16:V$31)*(Forecast_spend!$F$16:$F$31=$C12))/1000 -> 0 | K12: =SUMPRODUCT((Forecast_spend!W$16:W$31)*(Forecast_spend!$F$16:$F$31=$C12))/1000 -> 0 | L12: =SUMPRODUCT((Forecast_spend!X$16:X$31)*(Forecast_spend!$F$16:$F$31=$C12))/1000 -> 0 | M12: =SUMPRODUCT((Forecast_spend!Y$16:Y$31)*(Forecast_spend!$F$16:$F$31=$C12))/1000 -> 0 | N12: =SUMPRODUCT((Forecast_spend!Z$16:Z$31)*(Forecast_spend!$F$16:$F$31=$C12))/1000 -> 0 | O12: =SUMPRODUCT((Forecast_spend!AA$16:AA$31)*(Forecast_spend!$F$16:$F$31=$C12))/1000 -> 0 | Q12: =SUMPRODUCT((Forecast_contrib!U$16:U$31)*(Forecast_contrib!$F$16:$F$31=$C12))/1000 -> 0 | R12: =SUMPRODUCT((Forecast_contrib!V$16:V$31)*(Forecast_contrib!$F$16:$F$31=$C12))/1000 -> 0 | S12: =SUMPRODUCT((Forecast_contrib!W$16:W$31)*(Forecast_contrib!$F$16:$F$31=$C12))/1000 -> 0 | T12: =SUMPRODUCT((Forecast_contrib!X$16:X$31)*(Forecast_contrib!$F$16:$F$31=$C12))/1000 -> 0 | U12: =SUMPRODUCT((Forecast_contrib!Y$16:Y$31)*(Forecast_contrib!$F$16:$F$31=$C12))/1000 -> 0 | V12: =SUMPRODUCT((Forecast_contrib!Z$16:Z$31)*(Forecast_contrib!$F$16:$F$31=$C12))/1000 -> 0 | W12: =SUMPRODUCT((Forecast_contrib!AA$16:AA$31)*(Forecast_contrib!$F$16:$F$31=$C12))/1000 -> 0 | AI12: 0 | AJ12: 0 | AK12: 0 | AL12: 0 | AM12: 0 | AN12: 0 | AO12: 0 | AP12: 0 | CP12: 1
B13: 4 | C13: HV pole top replacement | D13: 4 | F13: Replacement | G13: Replacement | I13: =SUMPRODUCT((Forecast_spend!U$16:U$31)*(Forecast_spend!$F$16:$F$31=$C13))/1000 -> 0 | J13: =SUMPRODUCT((Forecast_spend!V$16:V$31)*(Forecast_spend!$F$16:$F$31=$C13))/1000 -> 0 | K13: =SUMPRODUCT((Forecast_spend!W$16:W$31)*(Forecast_spend!$F$16:$F$31=$C13))/1000 -> 0 | L13: =SUMPRODUCT((Forecast_spend!X$16:X$31)*(Forecast_spend!$F$16:$F$31=$C13))/1000 -> 0 | M13: =SUMPRODUCT((Forecast_spend!Y$16:Y$31)*(Forecast_spend!$F$16:$F$31=$C13))/1000 -> 0 | N13: =SUMPRODUCT((Forecast_spend!Z$16:Z$31)*(Forecast_spend!$F$16:$F$31=$C13))/1000 -> 0 | O13: =SUMPRODUCT((Forecast_spend!AA$16:AA$31)*(Forecast_spend!$F$16:$F$31=$C13))/1000 -> 0 | Q13: =SUMPRODUCT((Forecast_contrib!U$16:U$31)*(Forecast_contrib!$F$16:$F$31=$C13))/1000 -> 0 | R13: =SUMPRODUCT((Forecast_contrib!V$16:V$31)*(Forecast_contrib!$F$16:$F$31=$C13))/1000 -> 0 | S13: =SUMPRODUCT((Forecast_contrib!W$16:W$31)*(Forecast_contrib!$F$16:$F$31=$C13))/1000 -> 0 | T13: =SUMPRODUCT((Forecast_contrib!X$16:X$31)*(Forecast_contrib!$F$16:$F$31=$C13))/1000 -> 0 | U13: =SUMPRODUCT((Forecast_contrib!Y$16:Y$31)*(Forecast_contrib!$F$16:$F$31=$C13))/1000 -> 0 | V13: =SUMPRODUCT((Forecast_contrib!Z$16:Z$31)*(Forecast_contrib!$F$16:$F$31=$C13))/1000 -> 0 | W13: =SUMPRODUCT((Forecast_contrib!AA$16:AA$31)*(Forecast_contrib!$F$16:$F$31=$C13))/1000 -> 0 | AI13: 0 | AJ13: 0 | AK13: 0 | AL13: 0 | AM13: 0 | AN13: 0 | AO13: 0 | AP13: 0 | CP13: 1
B14: 5 | C14: Unplanned line maintenance | D14: 5 | F14: Replacement | G14: Replacement | I14: =SUMPRODUCT((Forecast_spend!U$16:U$31)*(Forecast_spend!$F$16:$F$31=$C14))/1000 -> 0 | J14: =SUMPRODUCT((Forecast_spend!V$16:V$31)*(Forecast_spend!$F$16:$F$31=$C14))/1000 -> 0 | K14: =SUMPRODUCT((Forecast_spend!W$16:W$31)*(Forecast_spend!$F$16:$F$31=$C14))/1000 -> 0 | L14: =SUMPRODUCT((Forecast_spend!X$16:X$31)*(Forecast_spend!$F$16:$F$31=$C14))/1000 -> 0 | M14: =SUMPRODUCT((Forecast_spend!Y$16:Y$31)*(Forecast_spend!$F$16:$F$31=$C14))/1000 -> 0 | N14: =SUMPRODUCT((Forecast_spend!Z$16:Z$31)*(Forecast_spend!$F$16:$F$31=$C14))/1000 -> 0 | O14: =SUMPRODUCT((Forecast_spend!AA$16:AA$31)*(Forecast_spend!$F$16:$F$31=$C14))/1000 -> 0 | Q14: =SUMPRODUCT((Forecast_contrib!U$16:U$31)*(Forecast_contrib!$F$16:$F$31=$C14))/1000 -> 0 | R14: =SUMPRODUCT((Forecast_contrib!V$16:V$31)*(Forecast_contrib!$F$16:$F$31=$C14))/1000 -> 0 | S14: =SUMPRODUCT((Forecast_contrib!W$16:W$31)*(Forecast_contrib!$F$16:$F$31=$C14))/1000 -> 0 | T14: =SUMPRODUCT((Forecast_contrib!X$16:X$31)*(Forecast_contrib!$F$16:$F$31=$C14))/1000 -> 0 | U14: =SUMPRODUCT((Forecast_contrib!Y$16:Y$31)*(Forecast_contrib!$F$16:$F$31=$C14))/1000 -> 0 | V14: =SUMPRODUCT((Forecast_contrib!Z$16:Z$31)*(Forecast_contrib!$F$16:$F$31=$C14))/1000 -> 0 | W14: =SUMPRODUCT((Forecast_contrib!AA$16:AA$31)*(Forecast_contrib!$F$16:$F$31=$C14))/1000 -> 0 | AI14: 0 | AJ14: 0 | AK14: 0 | AL14: 0 | AM14: 0 | AN14: 0 | AO14: 0 | AP14: 0 | CP14: 1
B15: 6 | C15: Pole reinforcement | D15: 6 | F15: Replacement | G15: Replacement | I15: =SUMPRODUCT((Forecast_spend!U$16:U$31)*(Forecast_spend!$F$16:$F$31=$C15))/1000 -> 0 | J15: =SUMPRODUCT((Forecast_spend!V$16:V$31)*(Forecast_spend!$F$16:$F$31=$C15))/1000 -> 0 | K15: =SUMPRODUCT((Forecast_spend!W$16:W$31)*(Forecast_spend!$F$16:$F$31=$C15))/1000 -> 0 | L15: =SUMPRODUCT((Forecast_spend!X$16:X$31)*(Forecast_spend!$F$16:$F$31=$C15))/1000 -> 0 | M15: =SUMPRODUCT((Forecast_spend!Y$16:Y$31)*(Forecast_spend!$F$16:$F$31=$C15))/1000 -> 0 | N15: =SUMPRODUCT((Forecast_spend!Z$16:Z$31)*(Forecast_spend!$F$16:$F$31=$C15))/1000 -> 0 | O15: =SUMPRODUCT((Forecast_spend!AA$16:AA$31)*(Forecast_spend!$F$16:$F$31=$C15))/1000 -> 0 | Q15: =SUMPRODUCT((Forecast_contrib!U$16:U$31)*(Forecast_contrib!$F$16:$F$31=$C15))/1000 -> 0 | R15: =SUMPRODUCT((Forecast_contrib!V$16:V$31)*(Forecast_contrib!$F$16:$F$31=$C15))/1000 -> 0 | S15: =SUMPRODUCT((Forecast_contrib!W$16:W$31)*(Forecast_contrib!$F$16:$F$31=$C15))/1000 -> 0 | T15: =SUMPRODUCT((Forecast_contrib!X$16:X$31)*(Forecast_contrib!$F$16:$F$31=$C15))/1000 -> 0 | U15: =SUMPRODUCT((Forecast_contrib!Y$16:Y$31)*(Forecast_contrib!$F$16:$F$31=$C15))/1000 -> 0 | V15: =SUMPRODUCT((Forecast_contrib!Z$16:Z$31)*(Forecast_contrib!$F$16:$F$31=$C15))/1000 -> 0 | W15: =SUMPRODUCT((Forecast_contrib!AA$16:AA$31)*(Forecast_contrib!$F$16:$F$31=$C15))/1000 -> 0 | AI15: 0 | AJ15: 0 | AK15: 0 | AL15: 0 | AM15: 0 | AN15: 0 | AO15: 0 | AP15: 0 | CP15: 1
B16: 7 | C16: Corrective HV cable replacement | D16: 7 | F16: Replacement | G16: Replacement | I16: =SUMPRODUCT((Forecast_spend!U$16:U$31)*(Forecast_spend!$F$16:$F$31=$C16))/1000 -> 0 | J16: =SUMPRODUCT((Forecast_spend!V$16:V$31)*(Forecast_spend!$F$16:$F$31=$C16))/1000 -> 0 | K16: =SUMPRODUCT((Forecast_spend!W$16:W$31)*(Forecast_spend!$F$16:$F$31=$C16))/1000 -> 0 | L16: =SUMPRODUCT((Forecast_spend!X$16:X$31)*(Forecast_spend!$F$16:$F$31=$C16))/1000 -> 0 | M16: =SUMPRODUCT((Forecast_spend!Y$16:Y$31)*(Forecast_spend!$F$16:$F$31=$C16))/1000 -> 0 | N16: =SUMPRODUCT((Forecast_spend!Z$16:Z$31)*(Forecast_spend!$F$16:$F$31=$C16))/1000 -> 0 | O16: =SUMPRODUCT((Forecast_spend!AA$16:AA$31)*(Forecast_spend!$F$16:$F$31=$C16))/1000 -> 0 | Q16: =SUMPRODUCT((Forecast_contrib!U$16:U$31)*(Forecast_contrib!$F$16:$F$31=$C16))/1000 -> 0 | R16: =SUMPRODUCT((Forecast_contrib!V$16:V$31)*(Forecast_contrib!$F$16:$F$31=$C16))/1000 -> 0 | S16: =SUMPRODUCT((Forecast_contrib!W$16:W$31)*(Forecast_contrib!$F$16:$F$31=$C16))/1000 -> 0 | T16: =SUMPRODUCT((Forecast_contrib!X$16:X$31)*(Forecast_contrib!$F$16:$F$31=$C16))/1000 -> 0 | U16: =SUMPRODUCT((Forecast_contrib!Y$16:Y$31)*(Forecast_contrib!$F$16:$F$31=$C16))/1000 -> 0 | V16: =SUMPRODUCT((Forecast_contrib!Z$16:Z$31)*(Forecast_contrib!$F$16:$F$31=$C16))/1000 -> 0 | W16: =SUMPRODUCT((Forecast_contrib!AA$16:AA$31)*(Forecast_contrib!$F$16:$F$31=$C16))/1000 -> 0 | AI16: 0 | AJ16: 0 | AK16: 0 | AL16: 0 | AM16: 0 | AN16: 0 | AO16: 0 | AP16: 0 | CP16: 1
B17: 8 | C17: Risk-based HV cable replacement | D17: 8 | F17: Replacement | G17: Replacement | I17: =SUMPRODUCT((Forecast_spend!U$16:U$31)*(Forecast_spend!$F$16:$F$31=$C17))/1000 -> 0 | J17: =SUMPRODUCT((Forecast_spend!V$16:V$31)*(Forecast_spend!$F$16:$F$31=$C17))/1000 -> 0 | K17: =SUMPRODUCT((Forecast_spend!W$16:W$31)*(Forecast_spend!$F$16:$F$31=$C17))/1000 -> 0 | L17: =SUMPRODUCT((Forecast_spend!X$16:X$31)*(Forecast_spend!$F$16:$F$31=$C17))/1000 -> 0 | M17: =SUMPRODUCT((Forecast_spend!Y$16:Y$31)*(Forecast_spend!$F$16:$F$31=$C17))/1000 -> 0 | N17: =SUMPRODUCT((Forecast_spend!Z$16:Z$31)*(Forecast_spend!$F$16:$F$31=$C17))/1000 -> 0 | O17: =SUMPRODUCT((Forecast_spend!AA$16:AA$31)*(Forecast_spend!$F$16:$F$31=$C17))/1000 -> 0 | Q17: =SUMPRODUCT((Forecast_contrib!U$16:U$31)*(Forecast_contrib!$F$16:$F$31=$C17))/1000 -> 0 | R17: =SUMPRODUCT((Forecast_contrib!V$16:V$31)*(Forecast_contrib!$F$16:$F$31=$C17))/1000 -> 0 | S17: =SUMPRODUCT((Forecast_contrib!W$16:W$31)*(Forecast_contrib!$F$16:$F$31=$C17))/1000 -> 0 | T17: =SUMPRODUCT((Forecast_contrib!X$16:X$31)*(Forecast_contrib!$F$16:$F$31=$C17))/1000 -> 0 | U17: =SUMPRODUCT((Forecast_contrib!Y$16:Y$31)*(Forecast_contrib!$F$16:$F$31=$C17))/1000 -> 0 | V17: =SUMPRODUCT((Forecast_contrib!Z$16:Z$31)*(Forecast_contrib!$F$16:$F$31=$C17))/1000 -> 0 | W17: =SUMPRODUCT((Forecast_contrib!AA$16:AA$31)*(Forecast_contrib!$F$16:$F$31=$C17))/1000 -> 0 | AI17: 0 | AJ17: 0 | AK17: 0 | AL17: 0 | AM17: 0 | AN17: 0 | AO17: 0 | AP17: 0 | CP17: 1
B18: 9 | C18: Risk-based HV UG cabus box replacement | D18: 9 | F18: Replacement | G18: Replacement | I18: =SUMPRODUCT((Forecast_spend!U$16:U$31)*(Forecast_spend!$F$16:$F$31=$C18))/1000 -> 0 | J18: =SUMPRODUCT((Forecast_spend!V$16:V$31)*(Forecast_spend!$F$16:$F$31=$C18))/1000 -> 0 | K18: =SUMPRODUCT((Forecast_spend!W$16:W$31)*(Forecast_spend!$F$16:$F$31=$C18))/1000 -> 0 | L18: =SUMPRODUCT((Forecast_spend!X$16:X$31)*(Forecast_spend!$F$16:$F$31=$C18))/1000 -> 0 | M18: =SUMPRODUCT((Forecast_spend!Y$16:Y$31)*(Forecast_spend!$F$16:$F$31=$C18))/1000 -> 0 | N18: =SUMPRODUCT((Forecast_spend!Z$16:Z$31)*(Forecast_spend!$F$16:$F$31=$C18))/1000 -> 0 | O18: =SUMPRODUCT((Forecast_spend!AA$16:AA$31)*(Forecast_spend!$F$16:$F$31=$C18))/1000 -> 0 | Q18: =SUMPRODUCT((Forecast_contrib!U$16:U$31)*(Forecast_contrib!$F$16:$F$31=$C18))/1000 -> 0 | R18: =SUMPRODUCT((Forecast_contrib!V$16:V$31)*(Forecast_contrib!$F$16:$F$31=$C18))/1000 -> 0 | S18: =SUMPRODUCT((Forecast_contrib!W$16:W$31)*(Forecast_contrib!$F$16:$F$31=$C18))/1000 -> 0 | T18: =SUMPRODUCT((Forecast_contrib!X$16:X$31)*(Forecast_contrib!$F$16:$F$31=$C18))/1000 -> 0 | U18: =SUMPRODUCT((Forecast_contrib!Y$16:Y$31)*(Forecast_contrib!$F$16:$F$31=$C18))/1000 -> 0 | V18: =SUMPRODUCT((Forecast_contrib!Z$16:Z$31)*(Forecast_contrib!$F$16:$F$31=$C18))/1000 -> 0 | W18: =SUMPRODUCT((Forecast_contrib!AA$16:AA$31)*(Forecast_contrib!$F$16:$F$31=$C18))/1000 -> 0 | AB18: =IF(SUM(Y18:AA18,I18:O18)=0,"",IF(SUM(Y18:AA18)=1,"",1)) ->  | AI18: 0 | AJ18: 0 | AK18: 0 | AL18: 0 | AM18: 0 | AN18: 0 | AO18: 0 | AP18: 0 | CP18: 1
B19: 10 | C19: Corrective LV cable replacement | D19: 10 | F19: Replacement | G19: Replacement | I19: =SUMPRODUCT((Forecast_spend!U$16:U$31)*(Forecast_spend!$F$16:$F$31=$C19))/1000 -> 0 | J19: =SUMPRODUCT((Forecast_spend!V$16:V$31)*(Forecast_spend!$F$16:$F$31=$C19))/1000 -> 0 | K19: =SUMPRODUCT((Forecast_spend!W$16:W$31)*(Forecast_spend!$F$16:$F$31=$C19))/1000 -> 0 | L19: =SUMPRODUCT((Forecast_spend!X$16:X$31)*(Forecast_spend!$F$16:$F$31=$C19))/1000 -> 0 | M19: =SUMPRODUCT((Forecast_spend!Y$16:Y$31)*(Forecast_spend!$F$16:$F$31=$C19))/1000 -> 0 | N19: =SUMPRODUCT((Forecast_spend!Z$16:Z$31)*(Forecast_spend!$F$16:$F$31=$C19))/1000 -> 0 | O19: =SUMPRODUCT((Forecast_spend!AA$16:AA$31)*(Forecast_spend!$F$16:$F$31=$C19))/1000 -> 0 | Q19: =SUMPRODUCT((Forecast_contrib!U$16:U$31)*(Forecast_contrib!$F$16:$F$31=$C19))/1000 -> 0 | R19: =SUMPRODUCT((Forecast_contrib!V$16:V$31)*(Forecast_contrib!$F$16:$F$31=$C19))/1000 -> 0 | S19: =SUMPRODUCT((Forecast_contrib!W$16:W$31)*(Forecast_contrib!$F$16:$F$31=$C19))/1000 -> 0 | T19: =SUMPRODUCT((Forecast_contrib!X$16:X$31)*(Forecast_contrib!$F$16:$F$31=$C19))/1000 -> 0 | U19: =SUMPRODUCT((Forecast_contrib!Y$16:Y$31)*(Forecast_contrib!$F$16:$F$31=$C19))/1000 -> 0 | V19: =SUMPRODUCT((Forecast_contrib!Z$16:Z$31)*(Forecast_contrib!$F$16:$F$31=$C19))/1000 -> 0 | W19: =SUMPRODUCT((Forecast_contrib!AA$16:AA$31)*(Forecast_contrib!$F$16:$F$31=$C19))/1000 -> 0 | AB19: =IF(SUM(Y19:AA19,I19:O19)=0,"",IF(SUM(Y19:AA19)=1,"",1)) ->  | AI19: 0 | AJ19: 0 | AK19: 0 | AL19: 0 | AM19: 0 | AN19: 0 | AO19: 0 | AP19: 0 | CP19: =IF(COUNT(AI19:AP19)=0,"",IF(SUM(AI19:AP19)=1,"",1)) -> 1
B20: 11 | C20: Service lines | D20: 11 | F20: Replacement | G20: Replacement | I20: =SUMPRODUCT((Forecast_spend!U$16:U$31)*(Forecast_spend!$F$16:$F$31=$C20))/1000 -> 0 | J20: =SUMPRODUCT((Forecast_spend!V$16:V$31)*(Forecast_spend!$F$16:$F$31=$C20))/1000 -> 0 | K20: =SUMPRODUCT((Forecast_spend!W$16:W$31)*(Forecast_spend!$F$16:$F$31=$C20))/1000 -> 0 | L20: =SUMPRODUCT((Forecast_spend!X$16:X$31)*(Forecast_spend!$F$16:$F$31=$C20))/1000 -> 0 | M20: =SUMPRODUCT((Forecast_spend!Y$16:Y$31)*(Forecast_spend!$F$16:$F$31=$C20))/1000 -> 0 | N20: =SUMPRODUCT((Forecast_spend!Z$16:Z$31)*(Forecast_spend!$F$16:$F$31=$C20))/1000 -> 0 | O20: =SUMPRODUCT((Forecast_spend!AA$16:AA$31)*(Forecast_spend!$F$16:$F$31=$C20))/1000 -> 0 | Q20: =SUMPRODUCT((Forecast_contrib!U$16:U$31)*(Forecast_contrib!$F$16:$F$31=$C20))/1000 -> 0 | R20: =SUMPRODUCT((Forecast_contrib!V$16:V$31)*(Forecast_contrib!$F$16:$F$31=$C20))/1000 -> 0 | S20: =SUMPRODUCT((Forecast_contrib!W$16:W$31)*(Forecast_contrib!$F$16:$F$31=$C20))/1000 -> 0 | T20: =SUMPRODUCT((Forecast_contrib!X$16:X$31)*(Forecast_contrib!$F$16:$F$31=$C20))/1000 -> 0 | U20: =SUMPRODUCT((Forecast_contrib!Y$16:Y$31)*(Forecast_contrib!$F$16:$F$31=$C20))/1000 -> 0 | V20: =SUMPRODUCT((Forecast_contrib!Z$16:Z$31)*(Forecast_contrib!$F$16:$F$31=$C20))/1000 -> 0 | W20: =SUMPRODUCT((Forecast_contrib!AA$16:AA$31)*(Forecast_contrib!$F$16:$F$31=$C20))/1000 -> 0 | AB20: =IF(SUM(Y20:AA20,I20:O20)=0,"",IF(SUM(Y20:AA20)=1,"",1)) ->  | AI20: 0 | AJ20: 0 | AK20: 0 | AL20: 0 | AM20: 0 | AN20: 0 | AO20: 0 | AP20: 0 | CP20: =IF(COUNT(AI20:AP20)=0,"",IF(SUM(AI20:AP20)=1,"",1)) -> 1
B21: 12 | C21: ZSS transformer replacement | D21: 12 | F21: Replacement | G21: Replacement | I21: =SUMPRODUCT((Forecast_spend!U$16:U$31)*(Forecast_spend!$F$16:$F$31=$C21))/1000 -> 0 | J21: =SUMPRODUCT((Forecast_spend!V$16:V$31)*(Forecast_spend!$F$16:$F$31=$C21))/1000 -> 0 | K21: =SUMPRODUCT((Forecast_spend!W$16:W$31)*(Forecast_spend!$F$16:$F$31=$C21))/1000 -> 0 | L21: =SUMPRODUCT((Forecast_spend!X$16:X$31)*(Forecast_spend!$F$16:$F$31=$C21))/1000 -> 0 | M21: =SUMPRODUCT((Forecast_spend!Y$16:Y$31)*(Forecast_spend!$F$16:$F$31=$C21))/1000 -> 0 | N21: =SUMPRODUCT((Forecast_spend!Z$16:Z$31)*(Forecast_spend!$F$16:$F$31=$C21))/1000 -> 0 | O21: =SUMPRODUCT((Forecast_spend!AA$16:AA$31)*(Forecast_spend!$F$16:$F$31=$C21))/1000 -> 0 | Q21: =SUMPRODUCT((Forecast_contrib!U$16:U$31)*(Forecast_contrib!$F$16:$F$31=$C21))/1000 -> 0 | R21: =SUMPRODUCT((Forecast_contrib!V$16:V$31)*(Forecast_contrib!$F$16:$F$31=$C21))/1000 -> 0 | S21: =SUMPRODUCT((Forecast_contrib!W$16:W$31)*(Forecast_contrib!$F$16:$F$31=$C21))/1000 -> 0 | T21: =SUMPRODUCT((Forecast_contrib!X$16:X$31)*(Forecast_contrib!$F$16:$F$31=$C21))/1000 -> 0 | U21: =SUMPRODUCT((Forecast_contrib!Y$16:Y$31)*(Forecast_contrib!$F$16:$F$31=$C21))/1000 -> 0 | V21: =SUMPRODUCT((Forecast_contrib!Z$16:Z$31)*(Forecast_contrib!$F$16:$F$31=$C21))/1000 -> 0 | W21: =SUMPRODUCT((Forecast_contrib!AA$16:AA$31)*(Forecast_contrib!$F$16:$F$31=$C21))/1000 -> 0 | AI21: 0 | AJ21: 0 | AK21: 0 | AL21: 0 | AM21: 0 | AN21: 0 | AO21: 0 | AP21: 0 | CP21: =IF(COUNT(AI21:AP21)=0,"",IF(SUM(AI21:AP21)=1,"",1)) -> 1
B22: 13 | C22: Transformer refurbishment | D22: 13 | F22: Replacement | G22: Replacement | I22: =SUMPRODUCT((Forecast_spend!U$16:U$31)*(Forecast_spend!$F$16:$F$31=$C22))/1000 -> 0 | J22: =SUMPRODUCT((Forecast_spend!V$16:V$31)*(Forecast_spend!$F$16:$F$31=$C22))/1000 -> 0 | K22: =SUMPRODUCT((Forecast_spend!W$16:W$31)*(Forecast_spend!$F$16:$F$31=$C22))/1000 -> 0 | L22: =SUMPRODUCT((Forecast_spend!X$16:X$31)*(Forecast_spend!$F$16:$F$31=$C22))/1000 -> 0 | M22: =SUMPRODUCT((Forecast_spend!Y$16:Y$31)*(Forecast_spend!$F$16:$F$31=$C22))/1000 -> 0 | N22: =SUMPRODUCT((Forecast_spend!Z$16:Z$31)*(Forecast_spend!$F$16:$F$31=$C22))/1000 -> 0 | O22: =SUMPRODUCT((Forecast_spend!AA$16:AA$31)*(Forecast_spend!$F$16:$F$31=$C22))/1000 -> 0 | Q22: =SUMPRODUCT((Forecast_contrib!U$16:U$31)*(Forecast_contrib!$F$16:$F$31=$C22))/1000 -> 0 | R22: =SUMPRODUCT((Forecast_contrib!V$16:V$31)*(Forecast_contrib!$F$16:$F$31=$C22))/1000 -> 0 | S22: =SUMPRODUCT((Forecast_contrib!W$16:W$31)*(Forecast_contrib!$F$16:$F$31=$C22))/1000 -> 0 | T22: =SUMPRODUCT((Forecast_contrib!X$16:X$31)*(Forecast_contrib!$F$16:$F$31=$C22))/1000 -> 0 | U22: =SUMPRODUCT((Forecast_contrib!Y$16:Y$31)*(Forecast_contrib!$F$16:$F$31=$C22))/1000 -> 0 | V22: =SUMPRODUCT((Forecast_contrib!Z$16:Z$31)*(Forecast_contrib!$F$16:$F$31=$C22))/1000 -> 0 | W22: =SUMPRODUCT((Forecast_contrib!AA$16:AA$31)*(Forecast_contrib!$F$16:$F$31=$C22))/1000 -> 0 | AI22: 0 | AJ22: 0 | AK22: 0 | AL22: 0 | AM22: 0 | AN22: 0 | AO22: 0 | AP22: 0 | CP22: =IF(COUNT(AI22:AP22)=0,"",IF(SUM(AI22:AP22)=1,"",1)) -> 1
B23: 14 | C23: Minor station works | D23: 14 | F23: Replacement | G23: Replacement | I23: =SUMPRODUCT((Forecast_spend!U$16:U$31)*(Forecast_spend!$F$16:$F$31=$C23))/1000 -> 0 | J23: =SUMPRODUCT((Forecast_spend!V$16:V$31)*(Forecast_spend!$F$16:$F$31=$C23))/1000 -> 0 | K23: =SUMPRODUCT((Forecast_spend!W$16:W$31)*(Forecast_spend!$F$16:$F$31=$C23))/1000 -> 0 | L23: =SUMPRODUCT((Forecast_spend!X$16:X$31)*(Forecast_spend!$F$16:$F$31=$C23))/1000 -> 0 | M23: =SUMPRODUCT((Forecast_spend!Y$16:Y$31)*(Forecast_spend!$F$16:$F$31=$C23))/1000 -> 0 | N23: =SUMPRODUCT((Forecast_spend!Z$16:Z$31)*(Forecast_spend!$F$16:$F$31=$C23))/1000 -> 0 | O23: =SUMPRODUCT((Forecast_spend!AA$16:AA$31)*(Forecast_spend!$F$16:$F$31=$C23))/1000 -> 0 | Q23: =SUMPRODUCT((Forecast_contrib!U$16:U$31)*(Forecast_contrib!$F$16:$F$31=$C23))/1000 -> 0 | R23: =SUMPRODUCT((Forecast_contrib!V$16:V$31)*(Forecast_contrib!$F$16:$F$31=$C23))/1000 -> 0 | S23: =SUMPRODUCT((Forecast_contrib!W$16:W$31)*(Forecast_contrib!$F$16:$F$31=$C23))/1000 -> 0 | T23: =SUMPRODUCT((Forecast_contrib!X$16:X$31)*(Forecast_contrib!$F$16:$F$31=$C23))/1000 -> 0 | U23: =SUMPRODUCT((Forecast_contrib!Y$16:Y$31)*(Forecast_contrib!$F$16:$F$31=$C23))/1000 -> 0 | V23: =SUMPRODUCT((Forecast_contrib!Z$16:Z$31)*(Forecast_contrib!$F$16:$F$31=$C23))/1000 -> 0 | W23: =SUMPRODUCT((Forecast_contrib!AA$16:AA$31)*(Forecast_contrib!$F$16:$F$31=$C23))/1000 -> 0 | AI23: 0 | AJ23: 0 | AK23: 0 | AL23: 0 | AM23: 0 | AN23: 0 | AO23: 0 | AP23: 0 | CP23: =IF(COUNT(AI23:AP23)=0,"",IF(SUM(AI23:AP23)=1,"",1)) -> 1
B24: 15 | C24: Defective indoor transformer replacement | D24: 15 | F24: Replacement | G24: Replacement | I24: =SUMPRODUCT((Forecast_spend!U$16:U$31)*(Forecast_spend!$F$16:$F$31=$C24))/1000 -> 0 | J24: =SUMPRODUCT((Forecast_spend!V$16:V$31)*(Forecast_spend!$F$16:$F$31=$C24))/1000 -> 0 | K24: =SUMPRODUCT((Forecast_spend!W$16:W$31)*(Forecast_spend!$F$16:$F$31=$C24))/1000 -> 0 | L24: =SUMPRODUCT((Forecast_spend!X$16:X$31)*(Forecast_spend!$F$16:$F$31=$C24))/1000 -> 0 | M24: =SUMPRODUCT((Forecast_spend!Y$16:Y$31)*(Forecast_spend!$F$16:$F$31=$C24))/1000 -> 0 | N24: =SUMPRODUCT((Forecast_spend!Z$16:Z$31)*(Forecast_spend!$F$16:$F$31=$C24))/1000 -> 0 | O24: =SUMPRODUCT((Forecast_spend!AA$16:AA$31)*(Forecast_spend!$F$16:$F$31=$C24))/1000 -> 0 | Q24: =SUMPRODUCT((Forecast_contrib!U$16:U$31)*(Forecast_contrib!$F$16:$F$31=$C24))/1000 -> 0 | R24: =SUMPRODUCT((Forecast_contrib!V$16:V$31)*(Forecast_contrib!$F$16:$F$31=$C24))/1000 -> 0 | S24: =SUMPRODUCT((Forecast_contrib!W$16:W$31)*(Forecast_contrib!$F$16:$F$31=$C24))/1000 -> 0 | T24: =SUMPRODUCT((Forecast_contrib!X$16:X$31)*(Forecast_contrib!$F$16:$F$31=$C24))/1000 -> 0 | U24: =SUMPRODUCT((Forecast_contrib!Y$16:Y$31)*(Forecast_contrib!$F$16:$F$31=$C24))/1000 -> 0 | V24: =SUMPRODUCT((Forecast_contrib!Z$16:Z$31)*(Forecast_contrib!$F$16:$F$31=$C24))/1000 -> 0 | W24: =SUMPRODUCT((Forecast_contrib!AA$16:AA$31)*(Forecast_contrib!$F$16:$F$31=$C24))/1000 -> 0 | AI24: 0 | AJ24: 0 | AK24: 0 | AL24: 0 | AM24: 0 | AN24: 0 | AO24: 0 | AP24: 0 | CP24: 1
B25: 16 | C25: Defective kiosk transformer replacement | D25: 16 | F25: Replacement | G25: Replacement | I25: =SUMPRODUCT((Forecast_spend!U$16:U$31)*(Forecast_spend!$F$16:$F$31=$C25))/1000 -> 0 | J25: =SUMPRODUCT((Forecast_spend!V$16:V$31)*(Forecast_spend!$F$16:$F$31=$C25))/1000 -> 0 | K25: =SUMPRODUCT((Forecast_spend!W$16:W$31)*(Forecast_spend!$F$16:$F$31=$C25))/1000 -> 0 | L25: =SUMPRODUCT((Forecast_spend!X$16:X$31)*(Forecast_spend!$F$16:$F$31=$C25))/1000 -> 0 | M25: =SUMPRODUCT((Forecast_spend!Y$16:Y$31)*(Forecast_spend!$F$16:$F$31=$C25))/1000 -> 0 | N25: =SUMPRODUCT((Forecast_spend!Z$16:Z$31)*(Forecast_spend!$F$16:$F$31=$C25))/1000 -> 0 | O25: =SUMPRODUCT((Forecast_spend!AA$16:AA$31)*(Forecast_spend!$F$16:$F$31=$C25))/1000 -> 0 | Q25: =SUMPRODUCT((Forecast_contrib!U$16:U$31)*(Forecast_contrib!$F$16:$F$31=$C25))/1000 -> 0 | R25: =SUMPRODUCT((Forecast_contrib!V$16:V$31)*(Forecast_contrib!$F$16:$F$31=$C25))/1000 -> 0 | S25: =SUMPRODUCT((Forecast_contrib!W$16:W$31)*(Forecast_contrib!$F$16:$F$31=$C25))/1000 -> 0 | T25: =SUMPRODUCT((Forecast_contrib!X$16:X$31)*(Forecast_contrib!$F$16:$F$31=$C25))/1000 -> 0 | U25: =SUMPRODUCT((Forecast_contrib!Y$16:Y$31)*(Forecast_contrib!$F$16:$F$31=$C25))/1000 -> 0 | V25: =SUMPRODUCT((Forecast_contrib!Z$16:Z$31)*(Forecast_contrib!$F$16:$F$31=$C25))/1000 -> 0 | W25: =SUMPRODUCT((Forecast_contrib!AA$16:AA$31)*(Forecast_contrib!$F$16:$F$31=$C25))/1000 -> 0 | AI25: 0 | AJ25: 0 | AK25: 0 | AL25: 0 | AM25: 0 | AN25: 0 | AO25: 0 | AP25: 0 | CP25: 1
B26: 17 | C26: Other distribution works | D26: 17 | F26: Replacement | G26: Replacement | I26: =SUMPRODUCT((Forecast_spend!U$16:U$31)*(Forecast_spend!$F$16:$F$31=$C26))/1000 -> 0 | J26: =SUMPRODUCT((Forecast_spend!V$16:V$31)*(Forecast_spend!$F$16:$F$31=$C26))/1000 -> 0 | K26: =SUMPRODUCT((Forecast_spend!W$16:W$31)*(Forecast_spend!$F$16:$F$31=$C26))/1000 -> 0 | L26: =SUMPRODUCT((Forecast_spend!X$16:X$31)*(Forecast_spend!$F$16:$F$31=$C26))/1000 -> 0 | M26: =SUMPRODUCT((Forecast_spend!Y$16:Y$31)*(Forecast_spend!$F$16:$F$31=$C26))/1000 -> 0 | N26: =SUMPRODUCT((Forecast_spend!Z$16:Z$31)*(Forecast_spend!$F$16:$F$31=$C26))/1000 -> 0 | O26: =SUMPRODUCT((Forecast_spend!AA$16:AA$31)*(Forecast_spend!$F$16:$F$31=$C26))/1000 -> 0 | Q26: =SUMPRODUCT((Forecast_contrib!U$16:U$31)*(Forecast_contrib!$F$16:$F$31=$C26))/1000 -> 0 | R26: =SUMPRODUCT((Forecast_contrib!V$16:V$31)*(Forecast_contrib!$F$16:$F$31=$C26))/1000 -> 0 | S26: =SUMPRODUCT((Forecast_contrib!W$16:W$31)*(Forecast_contrib!$F$16:$F$31=$C26))/1000 -> 0 | T26: =SUMPRODUCT((Forecast_contrib!X$16:X$31)*(Forecast_contrib!$F$16:$F$31=$C26))/1000 -> 0 | U26: =SUMPRODUCT((Forecast_contrib!Y$16:Y$31)*(Forecast_contrib!$F$16:$F$31=$C26))/1000 -> 0 | V26: =SUMPRODUCT((Forecast_contrib!Z$16:Z$31)*(Forecast_contrib!$F$16:$F$31=$C26))/1000 -> 0 | W26: =SUMPRODUCT((Forecast_contrib!AA$16:AA$31)*(Forecast_contrib!$F$16:$F$31=$C26))/1000 -> 0 | AI26: 0 | AJ26: 0 | AK26: 0 | AL26: 0 | AM26: 0 | AN26: 0 | AO26: 0 | AP26: 0 | CP26: 1
B27: 18 | C27: Defective ground transformer replacement | D27: 18 | F27: Replacement | G27: Replacement | I27: =SUMPRODUCT((Forecast_spend!U$16:U$31)*(Forecast_spend!$F$16:$F$31=$C27))/1000 -> 0 | J27: =SUMPRODUCT((Forecast_spend!V$16:V$31)*(Forecast_spend!$F$16:$F$31=$C27))/1000 -> 0 | K27: =SUMPRODUCT((Forecast_spend!W$16:W$31)*(Forecast_spend!$F$16:$F$31=$C27))/1000 -> 0 | L27: =SUMPRODUCT((Forecast_spend!X$16:X$31)*(Forecast_spend!$F$16:$F$31=$C27))/1000 -> 0 | M27: =SUMPRODUCT((Forecast_spend!Y$16:Y$31)*(Forecast_spend!$F$16:$F$31=$C27))/1000 -> 0 | N27: =SUMPRODUCT((Forecast_spend!Z$16:Z$31)*(Forecast_spend!$F$16:$F$31=$C27))/1000 -> 0 | O27: =SUMPRODUCT((Forecast_spend!AA$16:AA$31)*(Forecast_spend!$F$16:$F$31=$C27))/1000 -> 0 | Q27: =SUMPRODUCT((Forecast_contrib!U$16:U$31)*(Forecast_contrib!$F$16:$F$31=$C27))/1000 -> 0 | R27: =SUMPRODUCT((Forecast_contrib!V$16:V$31)*(Forecast_contrib!$F$16:$F$31=$C27))/1000 -> 0 | S27: =SUMPRODUCT((Forecast_contrib!W$16:W$31)*(Forecast_contrib!$F$16:$F$31=$C27))/1000 -> 0 | T27: =SUMPRODUCT((Forecast_contrib!X$16:X$31)*(Forecast_contrib!$F$16:$F$31=$C27))/1000 -> 0 | U27: =SUMPRODUCT((Forecast_contrib!Y$16:Y$31)*(Forecast_contrib!$F$16:$F$31=$C27))/1000 -> 0 | V27: =SUMPRODUCT((Forecast_contrib!Z$16:Z$31)*(Forecast_contrib!$F$16:$F$31=$C27))/1000 -> 0 | W27: =SUMPRODUCT((Forecast_contrib!AA$16:AA$31)*(Forecast_contrib!$F$16:$F$31=$C27))/1000 -> 0 | AI27: 0 | AJ27: 0 | AK27: 0 | AL27: 0 | AM27: 0 | AN27: 0 | AO27: 0 | AP27: 0 | CP27: 1
B28: 19 | C28: ZSS switchboard replacement | D28: 19 | F28: Replacement | G28: Replacement | I28: =SUMPRODUCT((Forecast_spend!U$16:U$31)*(Forecast_spend!$F$16:$F$31=$C28))/1000 -> 0 | J28: =SUMPRODUCT((Forecast_spend!V$16:V$31)*(Forecast_spend!$F$16:$F$31=$C28))/1000 -> 0 | K28: =SUMPRODUCT((Forecast_spend!W$16:W$31)*(Forecast_spend!$F$16:$F$31=$C28))/1000 -> 0 | L28: =SUMPRODUCT((Forecast_spend!X$16:X$31)*(Forecast_spend!$F$16:$F$31=$C28))/1000 -> 0 | M28: =SUMPRODUCT((Forecast_spend!Y$16:Y$31)*(Forecast_spend!$F$16:$F$31=$C28))/1000 -> 0 | N28: =SUMPRODUCT((Forecast_spend!Z$16:Z$31)*(Forecast_spend!$F$16:$F$31=$C28))/1000 -> 0 | O28: =SUMPRODUCT((Forecast_spend!AA$16:AA$31)*(Forecast_spend!$F$16:$F$31=$C28))/1000 -> 0 | Q28: =SUMPRODUCT((Forecast_contrib!U$16:U$31)*(Forecast_contrib!$F$16:$F$31=$C28))/1000 -> 0 | R28: =SUMPRODUCT((Forecast_contrib!V$16:V$31)*(Forecast_contrib!$F$16:$F$31=$C28))/1000 -> 0 | S28: =SUMPRODUCT((Forecast_contrib!W$16:W$31)*(Forecast_contrib!$F$16:$F$31=$C28))/1000 -> 0 | T28: =SUMPRODUCT((Forecast_contrib!X$16:X$31)*(Forecast_contrib!$F$16:$F$31=$C28))/1000 -> 0 | U28: =SUMPRODUCT((Forecast_contrib!Y$16:Y$31)*(Forecast_contrib!$F$16:$F$31=$C28))/1000 -> 0 | V28: =SUMPRODUCT((Forecast_contrib!Z$16:Z$31)*(Forecast_contrib!$F$16:$F$31=$C28))/1000 -> 0 | W28: =SUMPRODUCT((Forecast_contrib!AA$16:AA$31)*(Forecast_contrib!$F$16:$F$31=$C28))/1000 -> 0 | AI28: 0 | AJ28: 0 | AK28: 0 | AL28: 0 | AM28: 0 | AN28: 0 | AO28: 0 | AP28: 0 | CP28: 1
B29: 20 | C29: Unmaintainable RMUs | D29: 20 | F29: Replacement | G29: Replacement | I29: =SUMPRODUCT((Forecast_spend!U$16:U$31)*(Forecast_spend!$F$16:$F$31=$C29))/1000 -> 0 | J29: =SUMPRODUCT((Forecast_spend!V$16:V$31)*(Forecast_spend!$F$16:$F$31=$C29))/1000 -> 0 | K29: =SUMPRODUCT((Forecast_spend!W$16:W$31)*(Forecast_spend!$F$16:$F$31=$C29))/1000 -> 0 | L29: =SUMPRODUCT((Forecast_spend!X$16:X$31)*(Forecast_spend!$F$16:$F$31=$C29))/1000 -> 0 | M29: =SUMPRODUCT((Forecast_spend!Y$16:Y$31)*(Forecast_spend!$F$16:$F$31=$C29))/1000 -> 0 | N29: =SUMPRODUCT((Forecast_spend!Z$16:Z$31)*(Forecast_spend!$F$16:$F$31=$C29))/1000 -> 0 | O29: =SUMPRODUCT((Forecast_spend!AA$16:AA$31)*(Forecast_spend!$F$16:$F$31=$C29))/1000 -> 0 | Q29: =SUMPRODUCT((Forecast_contrib!U$16:U$31)*(Forecast_contrib!$F$16:$F$31=$C29))/1000 -> 0 | R29: =SUMPRODUCT((Forecast_contrib!V$16:V$31)*(Forecast_contrib!$F$16:$F$31=$C29))/1000 -> 0 | S29: =SUMPRODUCT((Forecast_contrib!W$16:W$31)*(Forecast_contrib!$F$16:$F$31=$C29))/1000 -> 0 | T29: =SUMPRODUCT((Forecast_contrib!X$16:X$31)*(Forecast_contrib!$F$16:$F$31=$C29))/1000 -> 0 | U29: =SUMPRODUCT((Forecast_contrib!Y$16:Y$31)*(Forecast_contrib!$F$16:$F$31=$C29))/1000 -> 0 | V29: =SUMPRODUCT((Forecast_contrib!Z$16:Z$31)*(Forecast_contrib!$F$16:$F$31=$C29))/1000 -> 0 | W29: =SUMPRODUCT((Forecast_contrib!AA$16:AA$31)*(Forecast_contrib!$F$16:$F$31=$C29))/1000 -> 0 | AI29: 0 | AJ29: 0 | AK29: 0 | AL29: 0 | AM29: 0 | AN29: 0 | AO29: 0 | AP29: 0 | CP29: 1
B30: 21 | C30: Defective switches | D30: 21 | F30: Replacement | G30: Replacement | I30: =SUMPRODUCT((Forecast_spend!U$16:U$31)*(Forecast_spend!$F$16:$F$31=$C30))/1000 -> 0 | J30: =SUMPRODUCT((Forecast_spend!V$16:V$31)*(Forecast_spend!$F$16:$F$31=$C30))/1000 -> 0 | K30: =SUMPRODUCT((Forecast_spend!W$16:W$31)*(Forecast_spend!$F$16:$F$31=$C30))/1000 -> 0 | L30: =SUMPRODUCT((Forecast_spend!X$16:X$31)*(Forecast_spend!$F$16:$F$31=$C30))/1000 -> 0 | M30: =SUMPRODUCT((Forecast_spend!Y$16:Y$31)*(Forecast_spend!$F$16:$F$31=$C30))/1000 -> 0 | N30: =SUMPRODUCT((Forecast_spend!Z$16:Z$31)*(Forecast_spend!$F$16:$F$31=$C30))/1000 -> 0 | O30: =SUMPRODUCT((Forecast_spend!AA$16:AA$31)*(Forecast_spend!$F$16:$F$31=$C30))/1000 -> 0 | Q30: =SUMPRODUCT((Forecast_contrib!U$16:U$31)*(Forecast_contrib!$F$16:$F$31=$C30))/1000 -> 0 | R30: =SUMPRODUCT((Forecast_contrib!V$16:V$31)*(Forecast_contrib!$F$16:$F$31=$C30))/1000 -> 0 | S30: =SUMPRODUCT((Forecast_contrib!W$16:W$31)*(Forecast_contrib!$F$16:$F$31=$C30))/1000 -> 0 | T30: =SUMPRODUCT((Forecast_contrib!X$16:X$31)*(Forecast_contrib!$F$16:$F$31=$C30))/1000 -> 0 | U30: =SUMPRODUCT((Forecast_contrib!Y$16:Y$31)*(Forecast_contrib!$F$16:$F$31=$C30))/1000 -> 0 | V30: =SUMPRODUCT((Forecast_contrib!Z$16:Z$31)*(Forecast_contrib!$F$16:$F$31=$C30))/1000 -> 0 | W30: =SUMPRODUCT((Forecast_contrib!AA$16:AA$31)*(Forecast_contrib!$F$16:$F$31=$C30))/1000 -> 0 | AI30: 0 | AJ30: 0 | AK30: 0 | AL30: 0 | AM30: 0 | AN30: 0 | AO30: 0 | AP30: 0 | CP30: 1
